Workbook

Sheet MDR
A2: Project # | S2: Mix Design Type | Y2: =$BI$43 -> SP (Gyratory) | AF2: Traffic Level (Millions of ESAL's) | AL2: 1 to < 3 [Level 3] | AY2: "% Passing the # 4 Sieve" | BI2: Asphalt Test Comparison List
A3: Location | T3: Mix Course | Y3: WE (Wear) - 3% Voids | AF3: Asphalt Binder Grade | AL3: B = PG 58-28 | AV3: Source | AW3: Source | AX3: Source | AY3: Source | AZ3: Source | BA3: Source | BB3: Source | BC3: Source | BD3: Source | BE3: Source | BI3: ???? | BW3: AFT | BX3: AFT Tolerance | BY3: Used Tolerance
A4: Design Voids | D4: HWY # | S4: Max. Aggr. Size | Y4: B (3/4 inch) | AF4: AFT Project? | AL4: =$BW$4 -> Yes | AV4: 1 | AW4: 2 | AX4: 3 | AY4: 4 | AZ4: 5 | BA4: 6 | BB4: 7 | BC4: 8 | BD4: 9 | BE4: 10 | BI4: Chemical - vs - Incinerator Oven | BW4: Yes | BX4: 1.2 | BY4: =IF($AL$4="Yes",1.2,2) -> 1.2 | CA4: =IF(AL4="Yes","AFT Project","") -> AFT Project
A5: Design VMA | D5: Design #200 | T5: RAP | Y5: Yes | AV5: -0.04 | AW5: -0.04 | AX5: -0.04 | AY5: -0.04 | AZ5: -0.04 | BA5: -0.04 | BB5: -0.04 | BC5: -0.04 | BD5: -0.04 | BE5: -0.04 | BI5: Incinerator Oven - vs - Incinerator Oven | BW5: No | BX5: 2
A6: Design AFT | D6: Design Total AC | N6: Mix Designation | T6: =BI91 -> SPWEB330B | Z6: Asphalt Test Comparisons
Z7: Incinerator Oven - vs - Incinerator Oven
AV8: "-4 Aggregate Specific Gravity"
A9: Summary | C9: Summary | AU9: Summary | AV9: Source | AW9: Source | AX9: Source | AY9: Source | AZ9: Source | BA9: Source | BB9: Source | BC9: Source | BD9: Source | BE9: Source
A10: Sheet | C10: Sheet | D10: Design | E10: Minimum | F10: 1 inch | I10: 1 inch | J10: 1 inch | L10: 3/4 inch | M10: 3/4 inch | N10: 3/4 inch | O10: 3/4 inch | P10: 3/4 inch | R10: 1/2 inch | S10: 1/2 inch | T10: 1/2 inch | U10: 1/2 inch | V10: 1/2 inch | X10: 3/8 inch | Y10: 3/8 inch | Z10: 3/8 inch | AA10: 3/8 inch | AB10: 3/8 inch | AD10: # 4 | AE10: # 4 | AF10: # 4 | AG10: # 4 | AH10: # 4 | AJ10: # 8 | AK10: # 8 | AL10: # 8 | AM10: # 8 | AN10: # 8 | AP10: # 200 | AQ10: # 200 | AR10: # 200 | AS10: # 200 | AT10: # 200 | AU10: Sheet | AV10: 1 | AW10: 2 | AX10: 3 | AY10: 4 | AZ10: 5 | BA10: 6 | BB10: 7 | BC10: 8 | BD10: 9 | BE10: 10
A11: Test # | B11: MDR # | C11: Number | D11: AC | E11: AC | F11: Composite | I11: 2XLJMFL | J11: 2XUJMFL | L11: Composite | M11: LJMFL | N11: UJMFL | O11: 2XLJMFL | P11: 2XUJMFL | R11: Composite | S11: LJMFL | T11: UJMFL | U11: 2XLJMFL | V11: 2XUJMFL | X11: Composite | Y11: LJMFL | Z11: UJMFL | AA11: 2XLJMFL | AB11: 2XUJMFL | AD11: Composite | AE11: LJMFL | AF11: UJMFL | AG11: 2XLJMFL | AH11: 2XUJMFL | AJ11: Composite | AK11: LJMFL | AL11: UJMFL | AM11: 2XLJMFL | AN11: 2XUJMFL | AP11: Composite | AQ11: LJMFL | AR11: UJMFL | AS11: 2XLJMFL | AT11: 2XUJMFL | AU11: Test # | AV11: Sp. G | AW11: Sp. G | AX11: Sp. G | AY11: Sp. G | AZ11: Sp. G | BA11: Sp. G | BB11: Sp. G | BC11: Sp. G | BD11: Sp. G | BE11: Sp. G
A12: =SUMMARY!D7 -> 301 | C12: 1 | F12: =D12-E12 -> 0 | I12: 100 | J12: 100 | L12: 100 | O12: 0 | P12: 0 | R12: 90 | U12: =R12-14 -> 76 | V12: =R12+14 -> 104 | X12: 70 | AA12: =X12-14 -> 56 | AB12: =X12+14 -> 84 | AD12: 50 | AG12: =AD12-14 -> 36 | AH12: =AD12+14 -> 64 | AJ12: 35 | AM12: =AJ12-12 -> 23 | AN12: =AJ12+12 -> 47 | AO12: =Grad!W11 -> 0 | AS12: =AP12-2 -> -2 | AT12: =AP12+2 -> 2 | AU12: =A12 -> 301 | BH12: 2350 HV | BI12: 2350/2360 | BL12: 1 face | BM12: 2 face | BN12: faa we | BO12: initial | BP12: design | BQ12: max
A13: =SUMMARY!F7 -> 302 | B13: =IF(B12="","",B12) ->  | C13: =C12 -> 1 | D13: =IF(D12="","",D12) ->  | F13: =D13-E13 ->  | I13: 100 | J13: 100 | L13: 100 | O13: 0 | P13: 0 | R13: 90 | U13: 76 | V13: 104 | X13: 70 | AA13: 56 | AB13: 84 | AD13: 50 | AG13: 36 | AH13: 64 | AJ13: 35 | AM13: 23 | AN13: 47 | AO13: =Grad!W12 -> 0 | AU13: =AU12+1 -> 302 | AV13: =IF(AV12="","",AV12) ->  | AW13: =IF(AW12="","",AW12) ->  | BG13: =IF(BG12="","",BG12) ->  | BH13: =IF(BH12="","",BH12) -> 2350 HV | BI13: LVNW2 | BJ13: MARSHALL DESIGN | BK13: 3 | BL13: 30 | BM13: - | BN13: - | BO13: - | BP13: 50 | BQ13: - | BR13: Low Volume
A14: =SUMMARY!H7 -> 303 | C14: 1 | F14: =D14-E14 ->  | I14: =I13 -> 100 | J14: =J13 -> 100 | L14: =L13 -> 100 | N14: =N13 ->  | O14: =L14-14 -> 86 | P14: =L14+14 -> 114 | R14: =R13 -> 90 | S14: =S13 ->  | T14: =T13 ->  | U14: =R14-14 -> 76 | V14: =R14+14 -> 104 | X14: =X13 -> 70 | Y14: =Y13 ->  | Z14: =Z13 ->  | AA14: =X14-14 -> 56 | AB14: =X14+14 -> 84 | AD14: =AD13 -> 50 | AE14: =AE13 ->  | AF14: =AF13 ->  | AG14: =AD14-14 -> 36 | AH14: =AD14+14 -> 64 | AJ14: =AJ13 -> 35 | AK14: =AK13 ->  | AL14: =AL13 ->  | AM14: =AJ14-12 -> 23 | AN14: =AJ14+12 -> 47 | AO14: =Grad!W13 -> 0 | AP14: =AP13 ->  | AQ14: =AQ13 ->  | AR14: =AR13 ->  | AU14: 303 | AV14: =AV13 ->  | BI14: LVWE2 | BJ14: MARSHALL DESIGN | BK14: 3 | BL14: 30 | BM14: - | BN14: - | BO14: - | BP14: 50 | BQ14: - | BR14: Low Volume
A15: =SUMMARY!J7 -> 304 | C15: 1 | I15: 100 | J15: 100 | L15: 100 | O15: 86 | P15: 114 | Q15: =Grad!S14 ->  | R15: =R14 -> 90 | T15: =T14 ->  | U15: 76 | V15: 104 | X15: =X14 -> 70 | Z15: =Z14 ->  | AA15: 56 | AB15: 84 | AD15: =AD14 -> 50 | AE15: =AE14 ->  | AF15: =AF14 ->  | AG15: 36 | AH15: 64 | AI15: =Grad!V14 ->  | AJ15: =AJ14 -> 35 | AK15: =AK14 ->  | AL15: =AL14 ->  | AM15: 23 | AN15: 47 | AO15: =Grad!W14 ->  | AP15: =AP14 ->  | AQ15: =AQ14 ->  | AR15: =AR14 ->  | AU15: 304 | BI15: LVNW3 | BJ15: MARSHALL DESIGN | BK15: 3 | BL15: 30 | BM15: - | BN15: - | BO15: - | BP15: 50 | BQ15: - | BR15: Low Volume
A16: =SUMMARY!P7 -> 305 | B16: =B15 ->  | C16: 2 | D16: =D15 ->  | I16: 100 | J16: 100 | L16: 100 | O16: 86 | P16: 114 | Q16: =Grad!S15 ->  | R16: 90 | U16: 76 | V16: 104 | X16: 70 | AA16: 56 | AB16: 84 | AD16: 50 | AG16: 36 | AH16: 64 | AI16: =Grad!V15 ->  | AJ16: 35 | AM16: 23 | AN16: 47 | AO16: =Grad!W15 ->  | AU16: 305 | AV16: =AV15 ->  | AW16: =AW15 ->  | AX16: =AX15 ->  | AY16: =AY15 ->  | AZ16: =AZ15 ->  | BA16: =BA15 ->  | BI16: LVWE3 | BJ16: MARSHALL DESIGN | BK16: 3 | BL16: 30 | BM16: - | BN16: - | BO16: - | BP16: 50 | BQ16: - | BR16: Low Volume
A17: =SUMMARY!R7 -> 306 | C17: =C16 -> 2 | I17: 100 | J17: 100 | L17: 100 | O17: 86 | P17: 114 | Q17: =Grad!S16 ->  | R17: 90 | U17: 76 | V17: 104 | X17: 70 | AA17: 56 | AB17: 84 | AD17: 50 | AG17: 36 | AH17: 64 | AI17: =Grad!V16 ->  | AJ17: 35 | AM17: 23 | AN17: 47 | AO17: =Grad!W16 ->  | AU17: 306 | AV17: =AV16 ->  | AW17: =AW16 ->  | AX17: =AX16 ->  | BI17: LVNW4 | BJ17: MARSHALL DESIGN | BK17: 3 | BL17: 30 | BM17: - | BN17: - | BO17: - | BP17: 50 | BQ17: - | BR17: Low Volume
A18: =SUMMARY!T7 -> 307 | C18: =C17 -> 2 | I18: 100 | J18: 100 | L18: 100 | O18: 86 | P18: 114 | Q18: =Grad!S17 ->  | R18: 90 | U18: 76 | V18: 104 | X18: 70 | AA18: 56 | AB18: 84 | AD18: 50 | AG18: 36 | AH18: 64 | AI18: =Grad!V17 ->  | AJ18: 35 | AM18: 23 | AN18: 47 | AO18: =Grad!W17 ->  | AU18: 307 | BI18: LVWE4 | BJ18: MARSHALL DESIGN | BK18: 3 | BL18: 30 | BM18: - | BN18: - | BO18: - | BP18: 50 | BQ18: - | BR18: Low Volume
A19: =SUMMARY!V7 -> 308 | C19: =C18 -> 2 | I19: 100 | J19: 100 | L19: 100 | O19: 86 | P19: 114 | Q19: =Grad!S18 ->  | R19: 90 | U19: 76 | V19: 104 | X19: 70 | AA19: 56 | AB19: 84 | AD19: 50 | AG19: 36 | AH19: 64 | AI19: =Grad!V18 ->  | AJ19: 35 | AM19: 23 | AN19: 47 | AO19: =Grad!W18 ->  | AU19: 308 | AV19: =AV18 ->  | BI19: LVNW5 | BJ19: MARSHALL DESIGN | BK19: 3 | BL19: 30 | BM19: - | BN19: - | BO19: - | BP19: 50 | BQ19: - | BR19: Low Volume
A20: =SUMMARY!AB7 -> 309 | C20: 3 | I20: 100 | J20: 100 | L20: 100 | O20: 86 | P20: 114 | Q20: =Grad!S19 ->  | R20: 90 | U20: 76 | V20: 104 | X20: 70 | AA20: 56 | AB20: 84 | AD20: 50 | AG20: 36 | AH20: 64 | AI20: =Grad!V19 ->  | AJ20: 35 | AM20: 23 | AN20: 47 | AO20: =Grad!W19 ->  | AU20: 309 | BI20: LVWE5 | BJ20: MARSHALL DESIGN | BK20: 3 | BL20: 30 | BM20: - | BN20: - | BO20: - | BP20: 50 | BQ20: - | BR20: Low Volume
A21: =SUMMARY!AD7 -> 310 | C21: =C20 -> 3 | I21: 100 | J21: 100 | L21: 100 | O21: 86 | P21: 114 | Q21: =Grad!S20 ->  | R21: 90 | U21: 76 | V21: 104 | X21: 70 | AA21: 56 | AB21: 84 | AD21: 50 | AG21: 36 | AH21: 64 | AI21: =Grad!V20 ->  | AJ21: 35 | AM21: 23 | AN21: 47 | AO21: =Grad!W20 ->  | AU21: 310 | BI21: MVNW2 | BJ21: MARSHALL DESIGN | BK21: 3.5 | BL21: 55 | BM21: - | BN21: 40 | BO21: - | BP21: 50 | BQ21: - | BR21: MV n/wear
A22: =SUMMARY!AF7 -> 311 | C22: =C21 -> 3 | I22: 100 | J22: 100 | L22: 100 | O22: 86 | P22: 114 | Q22: =Grad!S21 ->  | R22: 90 | U22: 76 | V22: 104 | X22: 70 | AA22: 56 | AB22: 84 | AD22: 50 | AG22: 36 | AH22: 64 | AI22: =Grad!V21 ->  | AJ22: 35 | AM22: 23 | AN22: 47 | AO22: =Grad!W21 ->  | AU22: 311 | BI22: MVWE2 | BJ22: MARSHALL DESIGN | BK22: 3.5 | BL22: 55 | BM22: - | BN22: 42 | BO22: - | BP22: 50 | BQ22: - | BR22: MV wear
A23: =SUMMARY!AH7 -> 312 | C23: =C22 -> 3 | I23: 100 | J23: 100 | L23: 100 | O23: 86 | P23: 114 | Q23: =Grad!S22 ->  | R23: 90 | U23: 76 | V23: 104 | X23: 70 | AA23: 56 | AB23: 84 | AD23: 50 | AG23: 36 | AH23: 64 | AI23: =Grad!V22 ->  | AJ23: 35 | AM23: 23 | AN23: 47 | AO23: =Grad!W22 ->  | AU23: 312 | BE23: =BE22 ->  | BI23: MVNW3 | BJ23: MARSHALL DESIGN | BK23: 3.5 | BL23: 55 | BM23: - | BN23: 40 | BO23: - | BP23: 50 | BQ23: - | BR23: MV n/wear
A24: =SUMMARY!AN7 -> 313 | C24: 4 | I24: 100 | J24: 100 | L24: 100 | O24: 86 | P24: 114 | Q24: =Grad!S23 ->  | R24: 90 | U24: 76 | V24: 104 | X24: 70 | AA24: 56 | AB24: 84 | AD24: 50 | AG24: 36 | AH24: 64 | AI24: =Grad!V23 ->  | AJ24: 35 | AM24: 23 | AN24: 47 | AO24: =Grad!W23 ->  | AU24: 313 | BI24: MVWE3 | BJ24: MARSHALL DESIGN | BK24: 3.5 | BL24: 55 | BM24: - | BN24: 42 | BO24: - | BP24: 50 | BQ24: - | BR24: MV wear
A25: =SUMMARY!AP7 -> 314 | C25: =C24 -> 4 | I25: 100 | J25: 100 | L25: 100 | O25: 86 | P25: 114 | Q25: =Grad!S24 ->  | R25: 90 | U25: 76 | V25: 104 | X25: 70 | AA25: 56 | AB25: 84 | AD25: 50 | AG25: 36 | AH25: 64 | AI25: =Grad!V24 ->  | AJ25: 35 | AM25: 23 | AN25: 47 | AO25: =Grad!W24 ->  | AU25: 314 | BI25: MVNW4 | BJ25: MARSHALL DESIGN | BK25: 3.5 | BL25: 55 | BM25: - | BN25: 40 | BO25: - | BP25: 50 | BQ25: - | BR25: MV n/wear
A26: =SUMMARY!AR7 -> 315 | C26: =C25 -> 4 | I26: 100 | J26: 100 | L26: 100 | O26: 86 | P26: 114 | Q26: =Grad!S25 ->  | R26: 90 | U26: 76 | V26: 104 | X26: 70 | AA26: 56 | AB26: 84 | AD26: 50 | AG26: 36 | AH26: 64 | AI26: =Grad!V25 ->  | AJ26: 35 | AM26: 23 | AN26: 47 | AO26: =Grad!W25 ->  | AU26: 315 | BI26: MVWE4 | BJ26: MARSHALL DESIGN | BK26: 3.5 | BL26: 55 | BM26: - | BN26: 42 | BO26: - | BP26: 50 | BQ26: - | BR26: MV wear
A27: =SUMMARY!AT7 -> 316 | C27: =C26 -> 4 | I27: 100 | J27: 100 | L27: 100 | O27: 86 | P27: 114 | Q27: =Grad!S26 ->  | R27: 90 | U27: 76 | V27: 104 | X27: 70 | AA27: 56 | AB27: 84 | AD27: 50 | AG27: 36 | AH27: 64 | AI27: =Grad!V26 ->  | AJ27: 35 | AM27: 23 | AN27: 47 | AO27: =Grad!W26 ->  | AU27: 316 | BI27: MVNW5 | BJ27: MARSHALL DESIGN | BK27: 3.5 | BL27: 55 | BM27: - | BN27: 40 | BO27: - | BP27: 50 | BQ27: - | BR27: MV n/wear
A28: =SUMMARY!AZ7 -> 317 | C28: 5 | I28: 100 | J28: 100 | L28: 100 | O28: 86 | P28: 114 | Q28: =Grad!S27 ->  | R28: 90 | U28: 76 | V28: 104 | X28: 70 | AA28: 56 | AB28: 84 | AD28: 50 | AG28: 36 | AH28: 64 | AI28: =Grad!V27 ->  | AJ28: 35 | AM28: 23 | AN28: 47 | AO28: =Grad!W27 ->  | AU28: 317 | BI28: MVWE5 | BJ28: MARSHALL DESIGN | BK28: 3.5 | BL28: 55 | BM28: - | BN28: 42 | BO28: - | BP28: 50 | BQ28: - | BR28: MV wear
A29: =SUMMARY!BB7 -> 318 | C29: =C28 -> 5 | D29: =D28 ->  | I29: 100 | J29: 100 | L29: 100 | O29: 86 | P29: 114 | Q29: =Grad!S28 ->  | R29: 90 | U29: 76 | V29: 104 | X29: 70 | AA29: 56 | AB29: 84 | AD29: 50 | AG29: 36 | AH29: 64 | AI29: =Grad!V28 ->  | AJ29: 35 | AM29: 23 | AN29: 47 | AO29: =Grad!W28 ->  | AU29: 318 | BI29: SPNW2 | BJ29: GYRATORY DESIGN | BK29: 3 | BL29: 30 | BM29: - | BN29: 40 | BO29: 6 | BP29: 40 | BQ29: 60 | BR29: Level 2 n/wear
A30: =SUMMARY!BD7 -> 319 | C30: =C29 -> 5 | I30: 100 | J30: 100 | L30: 100 | O30: 86 | P30: 114 | Q30: =Grad!S29 ->  | R30: 90 | U30: 76 | V30: 104 | X30: 70 | AA30: 56 | AB30: 84 | AD30: 50 | AG30: 36 | AH30: 64 | AI30: =Grad!V29 ->  | AJ30: 35 | AM30: 23 | AN30: 47 | AO30: =Grad!W29 ->  | AU30: 319 | BI30: SPWE2 | BJ30: GYRATORY DESIGN | BK30: 4 | BL30: 30 | BM30: - | BN30: 40 | BO30: 6 | BP30: 40 | BQ30: 60 | BR30: Level 2 wear
A31: =SUMMARY!BF7 -> 320 | C31: =C30 -> 5 | I31: 100 | J31: 100 | L31: 100 | O31: 86 | P31: 114 | Q31: =Grad!S30 ->  | R31: 90 | U31: 76 | V31: 104 | X31: 70 | AA31: 56 | AB31: 84 | AD31: 50 | AG31: 36 | AH31: 64 | AI31: =Grad!V30 ->  | AJ31: 35 | AM31: 23 | AN31: 47 | AO31: =Grad!W30 ->  | AU31: 320 | BI31: SPNW3 | BJ31: GYRATORY DESIGN | BK31: 3 | BL31: 55 | BM31: - | BN31: 40 | BO31: 7 | BP31: 60 | BQ31: 90 | BR31: Level 3 n/wear
A32: =SUMMARY!BL7 -> 321 | C32: 6 | I32: 100 | J32: 100 | L32: 100 | O32: 86 | P32: 114 | Q32: =Grad!S31 ->  | R32: 90 | U32: 76 | V32: 104 | X32: 70 | AA32: 56 | AB32: 84 | AD32: 50 | AG32: 36 | AH32: 64 | AI32: =Grad!V31 ->  | AJ32: 35 | AM32: 23 | AN32: 47 | AO32: =Grad!W31 ->  | AU32: 321 | BI32: SPWE3 | BJ32: GYRATORY DESIGN | BK32: 4 | BL32: 55 | BM32: - | BN32: 42 | BO32: 7 | BP32: 60 | BQ32: 90 | BR32: Level 3 wear
A33: =SUMMARY!BN7 -> 322 | C33: =C32 -> 6 | I33: 100 | J33: 100 | L33: 100 | O33: 86 | P33: 114 | Q33: =Grad!S32 ->  | R33: 90 | U33: 76 | V33: 104 | X33: 70 | AA33: 56 | AB33: 84 | AD33: 50 | AG33: 36 | AH33: 64 | AI33: =Grad!V32 ->  | AJ33: 35 | AM33: 23 | AN33: 47 | AO33: =Grad!W32 ->  | AU33: 322 | BI33: SPNW4 | BJ33: GYRATORY DESIGN | BK33: 3 | BL33: 60 | BM33: - | BN33: 40 | BO33: 8 | BP33: 90 | BQ33: 140 | BR33: Level 4 n/wear
A34: =SUMMARY!BP7 -> 323 | C34: =C33 -> 6 | I34: 100 | J34: 100 | L34: 100 | O34: 86 | P34: 114 | Q34: =Grad!S33 ->  | R34: 90 | U34: 76 | V34: 104 | X34: 70 | AA34: 56 | AB34: 84 | AD34: 50 | AG34: 36 | AH34: 64 | AI34: =Grad!V33 ->  | AJ34: 35 | AM34: 23 | AN34: 47 | AO34: =Grad!W33 ->  | AU34: 323 | BI34: SPWE4 | BJ34: GYRATORY DESIGN | BK34: 4 | BL34: 85 | BM34: 80 | BN34: 44 | BO34: 8 | BP34: 90 | BQ34: 140 | BR34: Level 4 wear
A35: =SUMMARY!BR7 -> 324 | C35: =C34 -> 6 | I35: 100 | J35: 100 | L35: 100 | O35: 86 | P35: 114 | Q35: =Grad!S34 ->  | R35: 90 | U35: 76 | V35: 104 | X35: 70 | AA35: 56 | AB35: 84 | AD35: 50 | AG35: 36 | AH35: 64 | AI35: =Grad!V34 ->  | AJ35: 35 | AM35: 23 | AN35: 47 | AO35: =Grad!W34 ->  | AU35: 324 | BI35: SPNW5 | BJ35: GYRATORY DESIGN | BK35: 3 | BL35: 80 | BM35: 75 | BN35: 40 | BO35: 8 | BP35: 100 | BQ35: 160 | BR35: Level 5 n/wear
A36: =SUMMARY!BX7 -> 325 | C36: 7 | I36: 100 | J36: 100 | L36: 100 | O36: 86 | P36: 114 | Q36: =Grad!S35 ->  | R36: 90 | U36: 76 | V36: 104 | X36: 70 | AA36: 56 | AB36: 84 | AD36: 50 | AG36: 36 | AH36: 64 | AI36: =Grad!V35 ->  | AJ36: 35 | AM36: 23 | AN36: 47 | AO36: =Grad!W35 ->  | AU36: 325 | BI36: SPWE5 | BJ36: GYRATORY DESIGN | BK36: 4 | BL36: 95 | BM36: 90 | BN36: 45 | BO36: 8 | BP36: 100 | BQ36: 160 | BR36: Level 5 wear
A37: =SUMMARY!BZ7 -> 326 | C37: =C36 -> 7 | I37: 100 | J37: 100 | L37: 100 | O37: 86 | P37: 114 | Q37: =Grad!S36 ->  | R37: 90 | U37: 76 | V37: 104 | X37: 70 | AA37: 56 | AB37: 84 | AD37: 50 | AG37: 36 | AH37: 64 | AI37: =Grad!V36 ->  | AJ37: 35 | AM37: 23 | AN37: 47 | AO37: =Grad!W36 ->  | AU37: 326
A38: =SUMMARY!CB7 -> 327 | C38: =C37 -> 7 | I38: 100 | J38: 100 | L38: 100 | O38: 86 | P38: 114 | Q38: =Grad!S37 ->  | R38: 90 | U38: 76 | V38: 104 | X38: 70 | AA38: 56 | AB38: 84 | AD38: 50 | AG38: 36 | AH38: 64 | AI38: =Grad!V37 ->  | AJ38: 35 | AM38: 23 | AN38: 47 | AO38: =Grad!W37 ->  | AU38: 327
A39: =SUMMARY!CD7 -> 328 | C39: =C38 -> 7 | I39: 100 | J39: 100 | L39: 100 | O39: 86 | P39: 114 | Q39: =Grad!S38 ->  | R39: 90 | U39: 76 | V39: 104 | X39: 70 | AA39: 56 | AB39: 84 | AD39: 50 | AG39: 36 | AH39: 64 | AI39: =Grad!V38 ->  | AJ39: 35 | AM39: 23 | AN39: 47 | AO39: =Grad!W38 ->  | AU39: 328
A40: =SUMMARY!CJ7 -> 329 | C40: 8 | I40: 100 | J40: 100 | L40: 100 | O40: 86 | P40: 114 | R40: 90 | U40: 76 | V40: 104 | X40: 70 | AA40: 56 | AB40: 84 | AD40: 50 | AG40: 36 | AH40: 64 | AJ40: 35 | AM40: 23 | AN40: 47 | AU40: 329 | BI40: Mixture Designation Questions
A41: =SUMMARY!CL7 -> 330 | C41: =C40 -> 8 | I41: 100 | J41: 100 | L41: 100 | O41: 86 | P41: 114 | R41: 90 | U41: 76 | V41: 104 | X41: 70 | AA41: 56 | AB41: 84 | AD41: 50 | AG41: 36 | AH41: 64 | AJ41: 35 | AM41: 23 | AN41: 47 | AU41: 330 | BP41: Gyratory Aggregate Gradation Broad Bands
A42: =SUMMARY!CN7 -> 331 | C42: =C41 -> 8 | I42: 100 | J42: 100 | L42: 100 | O42: 86 | P42: 114 | R42: 90 | U42: 76 | V42: 104 | X42: 70 | AA42: 56 | AB42: 84 | AD42: 50 | AG42: 36 | AH42: 64 | AJ42: 35 | AM42: 23 | AN42: 47 | AU42: 331 | BI42: Mixture Design Type | BM42: Chosen Design Type | BN42: Text Design Type | BQ42: Final with RAP conversion | BV42: Overall without RAP conversion
A43: =SUMMARY!CP7 -> 332 | C43: =C42 -> 8 | I43: 100 | J43: 100 | L43: 100 | O43: 86 | P43: 114 | R43: 90 | U43: 76 | V43: 104 | X43: 70 | AA43: 56 | AB43: 84 | AD43: 50 | AG43: 36 | AH43: 64 | AJ43: 35 | AM43: 23 | AN43: 47 | AU43: 332 | BI43: SP (Gyratory) | BM43: =IF(Y2="SP (Gyratory)","SP",IF(Y2="LV (Marshall)","LV","MV")) -> SP | BN43: =IF(BM43="SP","GYRATORY DESIGN","MARSHALL DESIGN") -> GYRATORY DESIGN | BQ43: Min | BR43: Max | BV43: Min | BW43: Max
A44: =SUMMARY!CV7 -> 333 | C44: 9 | I44: 100 | J44: 100 | L44: 100 | O44: =L44-14 -> 86 | P44: =L44+14 -> 114 | R44: 90 | U44: =R44-14 -> 76 | V44: =R44+14 -> 104 | X44: 70 | AA44: =X44-14 -> 56 | AB44: =X44+14 -> 84 | AD44: 50 | AG44: =AD44-14 -> 36 | AH44: =AD44+14 -> 64 | AJ44: 35 | AM44: =AJ44-12 -> 23 | AN44: =AJ44+12 -> 47 | AS44: =AP44-2 ->  | AT44: =AP44+2 ->  | AU44: 333 | BI44: LV (Marshall) | BP44: 1 inch | BQ44: =BV44 -> 100 | BR44: =BW44 -> 100 | BU44: 1 inch | BV44: =IF($BM$56="A",100,IF($BM$56="B",100,IF($BM$56="C",100,100))) -> 100 | BW44: =IF($BM$56="A",100,IF($BM$56="B",100,IF($BM$56="C",100,100))) -> 100
A45: =SUMMARY!CX7 -> 334 | C45: =C44 -> 9 | I45: 100 | J45: 100 | L45: 100 | O45: 86 | P45: 114 | R45: 90 | U45: 76 | V45: 104 | X45: 70 | AA45: 56 | AB45: 84 | AD45: 50 | AG45: 36 | AH45: 64 | AJ45: 35 | AM45: 23 | AN45: 47 | AU45: 334 | BI45: MV (Marshall) | BP45: 3/4 inch | BQ45: =IF(AND(($BK$101="yes"), ($BM$56="B")),97,BV45) -> 97 | BR45: =BW45 -> 100 | BU45: 3/4 inch | BV45: =IF($BM$56="A",100,IF($BM$56="B",100,IF($BM$56="C",85,100))) -> 100 | BW45: 100
A46: =SUMMARY!CZ7 -> 335 | C46: =C45 -> 9 | I46: 100 | J46: 100 | L46: 100 | O46: 86 | P46: 114 | R46: 90 | U46: 76 | V46: 104 | X46: 70 | AA46: 56 | AB46: 84 | AD46: 50 | AG46: 36 | AH46: 64 | AJ46: 35 | AM46: 23 | AN46: 47 | AU46: 335 | BP46: 1/2 inch | BQ46: =IF(AND(($BK$101="yes"), ($BM$56="A")),97,BV46) -> 85 | BR46: 100 | BU46: 1/2 inch | BV46: =IF($BM$56="A",100,IF($BM$56="B",85,IF($BM$56="C",45,100))) -> 85 | BW46: =IF($BM$56="A",100,IF($BM$56="B",100,IF($BM$56="C",90,100))) -> 100
A47: =SUMMARY!DB7 -> 336 | C47: =C46 -> 9 | I47: 100 | J47: 100 | L47: 100 | O47: 86 | P47: 114 | R47: 90 | U47: 76 | V47: 104 | X47: 70 | AA47: 56 | AB47: 84 | AD47: 50 | AG47: 36 | AH47: 64 | AJ47: 35 | AM47: 23 | AN47: 47 | AU47: 336 | BP47: 3/8 inch | BQ47: =BV47 -> 35 | BR47: 90 | BU47: 3/8 inch | BV47: =IF($BM$56="A",85,IF($BM$56="B",35,IF($BM$56="C","",100))) -> 35 | BW47: =IF($BM$56="A",100,IF($BM$56="B",90,IF($BM$56="C","",100))) -> 90
A48: =SUMMARY!DH7 -> 337 | C48: 10 | D48: =D47 ->  | E48: =E47 ->  | I48: 100 | J48: 100 | L48: 100 | O48: 86 | P48: 114 | R48: 90 | U48: 76 | V48: 104 | X48: 70 | AA48: 56 | AB48: 84 | AD48: 50 | AG48: 36 | AH48: 64 | AJ48: 35 | AM48: 23 | AN48: 47 | AU48: 337 | BP48: #4 | BQ48: =BV48 -> 30 | BR48: 80 | BU48: #4 | BV48: =IF($BM$56="A",60,IF($BM$56="B",30,IF($BM$56="C",30,65))) -> 30 | BW48: =IF($BM$56="A",90,IF($BM$56="B",80,IF($BM$56="C",75,95))) -> 80
A49: =SUMMARY!DJ7 -> 338 | C49: =C48 -> 10 | I49: 100 | J49: 100 | L49: 100 | O49: 86 | P49: 114 | R49: 90 | U49: 76 | V49: 104 | X49: 70 | AA49: 56 | AB49: 84 | AD49: 50 | AG49: 36 | AH49: 64 | AJ49: 35 | AM49: 23 | AN49: 47 | AU49: 338 | AV49: =AV48 ->  | BI49: Course | BK49: Chosen Course | BM49: Chosen Designation | BP49: #8 | BQ49: =BV49 -> 25 | BR49: 65 | BU49: #8 | BV49: =IF($BM$56="A",45,IF($BM$56="B",25,IF($BM$56="C",25,45))) -> 25 | BW49: =IF($BM$56="A",70,IF($BM$56="B",65,IF($BM$56="C",60,80))) -> 65
A50: =SUMMARY!DL7 -> 339 | C50: 10 | I50: 100 | J50: 100 | L50: 100 | O50: 86 | P50: 114 | R50: 90 | U50: 76 | V50: 104 | X50: 70 | AA50: 56 | AB50: 84 | AD50: 50 | AG50: 36 | AH50: 64 | AJ50: 35 | AM50: 23 | AN50: 47 | AU50: 339 | BI50: WE (Wear) - 4% Voids | BK50: =$Y$3 -> WE (Wear) - 3% Voids | BM50: =IF(Y3="WE (Wear) - 4% Voids","WE",IF(Y3="NW (Non-Wearing)","NW","WE")) -> WE | BP50: #200 | BQ50: =BV50 -> 2 | BR50: 7 | BU50: #200 | BV50: =IF($BM$56="A",2,IF($BM$56="B",2,IF($BM$56="C",2,3))) -> 2 | BW50: =IF($BM$56="A",7,IF($BM$56="B",7,IF($BM$56="C",7,8))) -> 7
A51: =SUMMARY!DN7 -> 340 | C51: 10 | I51: 100 | J51: 100 | L51: 100 | O51: 86 | P51: 114 | R51: 90 | U51: 76 | V51: 104 | X51: 70 | AA51: 56 | AB51: 84 | AD51: 50 | AG51: 36 | AH51: 64 | AJ51: 35 | AM51: 23 | AN51: 47 | AU51: 340 | BI51: NW (Non-Wearing)
A52: =SUMMARY!DT7 -> 341 | B52: =B51 ->  | C52: 11 | D52: =D51 ->  | E52: =E51 ->  | I52: =I51 -> 100 | J52: =J51 -> 100 | L52: =L51 -> 100 | M52: =M51 ->  | N52: =N51 ->  | O52: 86 | P52: 114 | R52: =R51 -> 90 | S52: =S51 ->  | T52: =T51 ->  | U52: 76 | V52: 104 | X52: =X51 -> 70 | Y52: =Y51 ->  | Z52: =Z51 ->  | AA52: 56 | AB52: 84 | AD52: =AD51 -> 50 | AE52: =AE51 ->  | AF52: =AF51 ->  | AG52: 36 | AH52: 64 | AJ52: =AJ51 -> 35 | AK52: =AK51 ->  | AL52: =AL51 ->  | AM52: 23 | AN52: 47 | AP52: =AP51 ->  | AQ52: =AQ51 ->  | AR52: =AR51 ->  | AU52: 341 | BI52: SHLDR-WE (Shoulder) | BP52: Marshall Aggregate Gradation
A53: =SUMMARY!DV7 -> 342 | B53: =B52 ->  | C53: 11 | D53: =D52 ->  | I53: =I52 -> 100 | J53: =J52 -> 100 | L53: =L52 -> 100 | N53: =N52 ->  | O53: 86 | P53: 114 | R53: =R52 -> 90 | S53: =S52 ->  | T53: =T52 ->  | U53: 76 | V53: 104 | X53: =X52 -> 70 | Z53: =Z52 ->  | AA53: 56 | AB53: 84 | AD53: =AD52 -> 50 | AE53: =AE52 ->  | AF53: =AF52 ->  | AG53: 36 | AH53: 64 | AJ53: =AJ52 -> 35 | AK53: =AK52 ->  | AL53: =AL52 ->  | AM53: 23 | AN53: 47 | AP53: =AP52 ->  | AQ53: =AQ52 ->  | AR53: =AR52 ->  | AU53: 342 | BI53: WE (Wear) - 3% Voids | BQ53: Min | BR53: Max
A54: =SUMMARY!DX7 -> 343 | C54: 11 | I54: 100 | J54: 100 | L54: 100 | O54: 86 | P54: 114 | R54: =R53 -> 90 | S54: =S53 ->  | U54: 76 | V54: 104 | X54: 70 | AA54: 56 | AB54: 84 | AD54: 50 | AG54: 36 | AH54: 64 | AJ54: 35 | AM54: 23 | AN54: 47 | AU54: 343 | BP54: 1 inch | BQ54: 100 | BR54: 100
A55: =SUMMARY!DZ7 -> 344 | C55: 11 | I55: 100 | J55: 100 | L55: 100 | O55: 86 | P55: 114 | R55: =R54 -> 90 | U55: 76 | V55: 104 | X55: 70 | AA55: 56 | AB55: 84 | AD55: 50 | AG55: 36 | AH55: 64 | AJ55: 35 | AM55: 23 | AN55: 47 | AU55: 344 | BI55: Maximum Aggregate Size | BM55: Chosen Aggr. Size | BP55: 3/4 inch | BQ55: =IF(BM66="C",85,100) -> 100 | BR55: 100
A56: =SUMMARY!EF7 -> 345 | C56: 12 | I56: 100 | J56: 100 | L56: 100 | O56: 86 | P56: 114 | R56: 90 | U56: 76 | V56: 104 | X56: 70 | AA56: 56 | AB56: 84 | AD56: 50 | AG56: 36 | AH56: 64 | AJ56: 35 | AM56: 23 | AN56: 47 | AU56: 345 | BI56: A (1/2 inch) | BM56: =IF(Y4="A (1/2 inch)","A",IF(Y4="B (3/4 inch)","B",IF(Y4="C (1 inch)","C","D"))) -> B | BP56: 1/2 inch | BQ56: =IF(BM66="C",45,IF(BM66="B",85,100)) -> 100 | BR56: =IF(BM66="C",90,100) -> 100
A57: =SUMMARY!EH7 -> 346 | C57: =C56 -> 12 | I57: 100 | J57: 100 | L57: 100 | O57: 86 | P57: 114 | R57: 90 | U57: 76 | V57: 104 | X57: 70 | AA57: 56 | AB57: 84 | AD57: 50 | AG57: 36 | AH57: 64 | AJ57: 35 | AM57: 23 | AN57: 47 | AU57: 346 | BI57: B (3/4 inch) | BP57: 3/8 inch | BQ57: =IF(BM66="A",85,IF(BM66="B",35,"")) ->  | BR57: =IF(BM66="A",100,IF(BM66="B",90,"")) -> 
A58: =SUMMARY!EJ7 -> 347 | C58: =C57 -> 12 | I58: 100 | J58: 100 | L58: 100 | O58: 86 | P58: 114 | R58: 90 | U58: 76 | V58: 104 | X58: 70 | AA58: 56 | AB58: 84 | AD58: 50 | AG58: 36 | AH58: 64 | AJ58: 35 | AM58: 23 | AN58: 47 | AU58: 347 | BI58: C (1 inch) | BP58: #4 | BQ58: =IF(BM66="A",25,IF(BM66="B",30,30)) -> 30 | BR58: =IF(BM66="A",90,IF(BM66="B",80,75)) -> 75
A59: =SUMMARY!EL7 -> 348 | C59: =C58 -> 12 | I59: 100 | J59: 100 | L59: 100 | O59: 86 | P59: 114 | R59: 90 | U59: 76 | V59: 104 | X59: 70 | AA59: 56 | AB59: 84 | AD59: 50 | AG59: 36 | AH59: 64 | AJ59: 35 | AM59: 23 | AN59: 47 | AU59: 348 | BI59: D (3/8 inch) | BP59: #8 | BQ59: =IF(BM66="A",20,IF(BM66="B",25,25)) -> 25 | BR59: =IF(BM66="A",70,IF(BM66="B",65,60)) -> 60
A60: =SUMMARY!ER7 -> 349 | C60: 13 | I60: 100 | J60: 100 | L60: 100 | O60: 86 | P60: 114 | R60: 90 | U60: 76 | V60: 104 | X60: 70 | AA60: 56 | AB60: 84 | AD60: 50 | AG60: 36 | AH60: 64 | AJ60: 35 | AM60: 23 | AN60: 47 | AU60: 349 | BP60: #200 | BQ60: 2 | BR60: 7
A61: =SUMMARY!ET7 -> 350 | C61: =C60 -> 13 | I61: 100 | J61: 100 | L61: 100 | O61: 86 | P61: 114 | R61: 90 | U61: 76 | V61: 104 | X61: 70 | AA61: 56 | AB61: 84 | AD61: 50 | AG61: 36 | AH61: 64 | AJ61: 35 | AM61: 23 | AN61: 47 | AU61: 350
A62: =SUMMARY!EV7 -> 351 | C62: =C61 -> 13 | I62: 100 | J62: 100 | L62: 100 | O62: 86 | P62: 114 | R62: 90 | U62: 76 | V62: 104 | X62: 70 | AA62: 56 | AB62: 84 | AD62: 50 | AG62: 36 | AH62: 64 | AJ62: 35 | AM62: 23 | AN62: 47 | AU62: 351 | BI62: Traffic Level (Gyratory) | BM62: Chosen Traffic Level | BN62: Traffic Level | BO62: Gyrations for Ndesign
A63: =SUMMARY!EX7 -> 352 | C63: =C62 -> 13 | I63: 100 | J63: 100 | L63: 100 | O63: 86 | P63: 114 | R63: 90 | U63: 76 | V63: 104 | X63: 70 | AA63: 56 | AB63: 84 | AD63: 50 | AG63: 36 | AH63: 64 | AJ63: 35 | AM63: 23 | AN63: 47 | AU63: 352 | BI63: < 1 [Level 2] | BK63: =AL2 -> 1 to < 3 [Level 3] | BM63: =IF(BK63="< 1 [Level 2]",2,IF(BK63="1 to < 3 [Level 3]",3,IF(BK63="3 to < 10 [Level 4]",4,5))) -> 3 | BN63: 2 | BO63: 40
A64: =SUMMARY!FD7 -> 353 | C64: 14 | I64: 100 | J64: 100 | L64: 100 | O64: 86 | P64: 114 | R64: 90 | U64: 76 | V64: 104 | X64: 70 | AA64: 56 | AB64: 84 | AD64: 50 | AG64: 36 | AH64: 64 | AJ64: 35 | AM64: 23 | AN64: 47 | AU64: 353 | BI64: 1 to < 3 [Level 3] | BN64: 3 | BO64: 60
A65: =SUMMARY!FF7 -> 354 | C65: =C64 -> 14 | I65: 100 | J65: 100 | L65: 100 | O65: 86 | P65: 114 | R65: 90 | U65: 76 | V65: 104 | X65: 70 | AA65: 56 | AB65: 84 | AD65: 50 | AG65: 36 | AH65: 64 | AJ65: 35 | AM65: 23 | AN65: 47 | AU65: 354 | BI65: 3 to < 10 [Level 4] | BN65: 4 | BO65: 90
A66: =SUMMARY!FH7 -> 355 | C66: =C65 -> 14 | I66: 100 | J66: 100 | L66: 100 | O66: 86 | P66: 114 | R66: 90 | U66: 76 | V66: 104 | X66: 70 | AA66: 56 | AB66: 84 | AD66: 50 | AG66: 36 | AH66: 64 | AJ66: 35 | AM66: 23 | AN66: 47 | AU66: 355 | BI66: 10 to <= 30 [Level 5] | BN66: 5 | BO66: 100
A67: =SUMMARY!FJ7 -> 356 | C67: =C66 -> 14 | I67: 100 | J67: 100 | L67: 100 | O67: 86 | P67: 114 | R67: 90 | U67: 76 | V67: 104 | X67: 70 | AA67: 56 | AB67: 84 | AD67: 50 | AG67: 36 | AH67: 64 | AJ67: 35 | AM67: 23 | AN67: 47 | AU67: 356
A68: =SUMMARY!FP7 -> 357 | C68: 15 | I68: 100 | J68: 100 | L68: 100 | O68: 86 | P68: 114 | R68: 90 | U68: 76 | V68: 104 | X68: 70 | AA68: 56 | AB68: 84 | AD68: 50 | AG68: 36 | AH68: 64 | AJ68: 35 | AM68: 23 | AN68: 47 | AU68: 357 | BN68: Design Gyrations ==> | BO68: =VLOOKUP($BM$63,$BN$63:$BO$66,2) -> 60
A69: =SUMMARY!FR7 -> 358 | C69: =C68 -> 15 | I69: 100 | J69: 100 | L69: 100 | O69: 86 | P69: 114 | R69: 90 | U69: 76 | V69: 104 | X69: 70 | AA69: 56 | AB69: 84 | AD69: 50 | AG69: 36 | AH69: 64 | AJ69: 35 | AM69: 23 | AN69: 47 | AU69: 358 | BI69: Design Blows (Marshall Design)
A70: =SUMMARY!FT7 -> 359 | C70: =C69 -> 15 | I70: 100 | J70: 100 | L70: 100 | O70: 86 | P70: 114 | R70: 90 | U70: 76 | V70: 104 | X70: 70 | AA70: 56 | AB70: 84 | AD70: 50 | AG70: 36 | AH70: 64 | AJ70: 35 | AM70: 23 | AN70: 47 | AU70: 359 | BI70: 50 | BK70: 50
A71: =SUMMARY!FV7 -> 360 | C71: =C70 -> 15 | I71: 100 | J71: 100 | L71: 100 | O71: 86 | P71: 114 | R71: 90 | U71: 76 | V71: 104 | X71: 70 | AA71: 56 | AB71: 84 | AD71: 50 | AG71: 36 | AH71: 64 | AJ71: 35 | AM71: 23 | AN71: 47 | AU71: 360
A72: =SUMMARY!GB7 -> 361 | B72: =B71 ->  | C72: 16 | F72: =D72-E72 ->  | I72: 100 | J72: 100 | L72: 100 | O72: =L72-14 -> 86 | P72: =L72+14 -> 114 | R72: 90 | U72: =R72-14 -> 76 | V72: =R72+14 -> 104 | X72: 70 | AA72: =X72-14 -> 56 | AB72: =X72+14 -> 84 | AD72: 50 | AG72: =AD72-14 -> 36 | AH72: =AD72+14 -> 64 | AJ72: 35 | AM72: =AJ72-12 -> 23 | AN72: =AJ72+12 -> 47 | AU72: 361
A73: =SUMMARY!GD7 -> 362 | C73: =C72 -> 16 | D73: =D72 ->  | I73: 100 | J73: 100 | L73: =L72 -> 100 | O73: 86 | P73: 114 | R73: =R72 -> 90 | U73: 76 | V73: 104 | X73: =X72 -> 70 | AA73: 56 | AB73: 84 | AD73: 50 | AG73: 36 | AH73: 64 | AJ73: 35 | AM73: 23 | AN73: 47 | AU73: 362 | BI73: Air Voids | BJ73: Mix Type | BK73: Air Voids | BL73: Chosen Air Voids
A74: =SUMMARY!GF7 -> 363 | C74: =C73 -> 16 | I74: 100 | J74: 100 | L74: 100 | O74: 86 | P74: 114 | R74: 90 | U74: 76 | V74: 104 | X74: 70 | AA74: 56 | AB74: 84 | AD74: 50 | AG74: 36 | AH74: 64 | AJ74: 35 | AM74: 23 | AN74: 47 | AU74: 363 | BI74: 0.04 | BJ74: SP | BK74: 40 | BL74: =IF(AND(BM43="SP",BK50="WE (Wear) - 4% voids"),40,IF(AND(BM43="SP",BK50="NW (Non-Wearing)"),30,IF(AND(BM43="SP",BK50="SHLDR-WE (Shoulder Wear)"),30,IF(AND(BM43="SP",BK50="WE(Wear) - 3% Voids"),30,IF(BM43="MV",35,30))))) -> 30 | BM74: =BL74*0.1 -> 3
A75: =SUMMARY!GH7 -> 364 | C75: =C74 -> 16 | I75: 100 | J75: 100 | L75: 100 | O75: 86 | P75: 114 | R75: 90 | U75: 76 | V75: 104 | X75: 70 | AA75: 56 | AB75: 84 | AD75: 50 | AG75: 36 | AH75: 64 | AJ75: 35 | AM75: 23 | AN75: 47 | AU75: 364 | BI75: 0.035 | BJ75: MV | BK75: 35
A76: =SUMMARY!GN7 -> 365 | C76: 17 | I76: 100 | J76: 100 | L76: 100 | O76: 86 | P76: 114 | R76: 90 | U76: 76 | V76: 104 | X76: 70 | AA76: 56 | AB76: 84 | AD76: 50 | AG76: 36 | AH76: 64 | AJ76: 35 | AM76: 23 | AN76: 47 | AS76: =AP76-2 ->  | AT76: =AP76+2 ->  | AU76: 365 | BI76: 0.03 | BJ76: LV & SP NW | BK76: 30
A77: =SUMMARY!GP7 -> 366 | C77: =C76 -> 17 | I77: 100 | J77: 100 | L77: 100 | O77: 86 | P77: 114 | R77: 90 | U77: 76 | V77: 104 | X77: 70 | AA77: 56 | AB77: 84 | AD77: 50 | AG77: 36 | AH77: 64 | AJ77: 35 | AM77: 23 | AN77: 47 | AU77: =AU76+1 -> 366 | BI77: 0.03 | BJ77: SP SHLDR WE | BK77: 30
A78: =SUMMARY!GR7 -> 367 | C78: =C77 -> 17 | I78: 100 | J78: 100 | L78: 100 | O78: 86 | P78: 114 | R78: 90 | U78: 76 | V78: 104 | X78: 70 | AA78: 56 | AB78: 84 | AD78: 50 | AG78: 36 | AH78: 64 | AJ78: 35 | AM78: 23 | AN78: 47 | AU78: 367 | AZ78: =AZ77 ->  | BI78: 0.03 | BJ78: SP WE - 3% | BK78: 30
A79: =SUMMARY!GT7 -> 368 | C79: =C78 -> 17 | I79: 100 | J79: 100 | L79: 100 | O79: 86 | P79: 114 | R79: 90 | U79: 76 | V79: 104 | X79: 70 | AA79: 56 | AB79: 84 | AD79: 50 | AG79: 36 | AH79: 64 | AJ79: 35 | AM79: 23 | AN79: 47 | AU79: 368 | BI79: Asphalt Binder Grades | BK79: Chosen Binder
A80: =SUMMARY!GZ7 -> 369 | C80: 18 | I80: 100 | J80: 100 | L80: 100 | O80: 86 | P80: 114 | R80: 90 | U80: 76 | V80: 104 | X80: 70 | AA80: 56 | AB80: 84 | AD80: 50 | AG80: 36 | AH80: 64 | AJ80: 35 | AM80: 23 | AN80: 47 | AU80: 369 | AY80: =AY79 ->  | BI80: A = PG 52-34 | BK80: =IF(AL3="A = PG 52-34","A",IF(AL3="B = PG 58-28","B",IF(AL3="C = PG 58-34","C",IF(AL3="E = PG 64-28","E",IF(AL3="F = PG 64-34","F",IF(AL3="H = PG 70-28","H","L")))))) -> B
A81: =SUMMARY!HB7 -> 370 | C81: =C80 -> 18 | I81: 100 | J81: 100 | L81: 100 | O81: 86 | P81: 114 | R81: 90 | U81: 76 | V81: 104 | X81: 70 | AA81: 56 | AB81: 84 | AD81: 50 | AG81: 36 | AH81: 64 | AJ81: 35 | AM81: 23 | AN81: 47 | AU81: 370 | AW81: =AW80 ->  | AX81: =AX80 ->  | AY81: =AY80 ->  | BI81: B = PG 58-28
A82: =SUMMARY!HD7 -> 371 | C82: =C81 -> 18 | I82: 100 | J82: 100 | L82: 100 | O82: 86 | P82: 114 | R82: 90 | U82: 76 | V82: 104 | X82: 70 | AA82: 56 | AB82: 84 | AD82: 50 | AG82: 36 | AH82: 64 | AJ82: 35 | AM82: 23 | AN82: 47 | AU82: 371 | AV82: =AV81 ->  | BI82: C = PG 58-34
A83: =SUMMARY!HF7 -> 372 | C83: =C82 -> 18 | I83: 100 | J83: 100 | L83: 100 | O83: 86 | P83: 114 | R83: 90 | U83: 76 | V83: 104 | X83: 70 | AA83: 56 | AB83: 84 | AD83: 50 | AG83: 36 | AH83: 64 | AJ83: 35 | AM83: 23 | AN83: 47 | AU83: 372 | BI83: E = PG 64-28
A84: =SUMMARY!HL7 -> 373 | C84: 19 | I84: 100 | J84: 100 | L84: 100 | O84: 86 | P84: 114 | R84: 90 | U84: 76 | V84: 104 | X84: 70 | AA84: 56 | AB84: 84 | AD84: 50 | AG84: 36 | AH84: 64 | AJ84: 35 | AM84: 23 | AN84: 47 | AU84: 373 | BI84: F = PG 64-34
A85: =SUMMARY!HN7 -> 374 | C85: =C84 -> 19 | I85: 100 | J85: 100 | L85: 100 | O85: 86 | P85: 114 | R85: 90 | U85: 76 | V85: 104 | X85: 70 | AA85: 56 | AB85: 84 | AD85: 50 | AG85: 36 | AH85: 64 | AJ85: 35 | AM85: 23 | AN85: 47 | AU85: 374 | BI85: H = PG 70-28
A86: =SUMMARY!HP7 -> 375 | C86: =C85 -> 19 | I86: 100 | J86: 100 | L86: 100 | O86: 86 | P86: 114 | R86: 90 | U86: 76 | V86: 104 | X86: 70 | AA86: 56 | AB86: 84 | AD86: 50 | AG86: 36 | AH86: 64 | AJ86: 35 | AM86: 23 | AN86: 47 | AU86: 375 | BI86: I = PG 70-34
A87: =SUMMARY!HR7 -> 376 | C87: =C86 -> 19 | I87: 100 | J87: 100 | L87: 100 | O87: 86 | P87: 114 | R87: 90 | U87: 76 | V87: 104 | X87: 70 | AA87: 56 | AB87: 84 | AD87: 50 | AG87: 36 | AH87: 64 | AJ87: 35 | AM87: 23 | AN87: 47 | AU87: 376 | BI87: L = PG 64-22
A88: =SUMMARY!HX7 -> 377 | C88: 20 | I88: 100 | J88: 100 | L88: 100 | O88: 86 | P88: 114 | R88: 90 | U88: 76 | V88: 104 | X88: 70 | AA88: 56 | AB88: 84 | AD88: 50 | AG88: 36 | AH88: 64 | AJ88: 35 | AM88: 23 | AN88: 47 | AU88: 377 | BI88: M = PG 49-34
A89: =SUMMARY!HZ7 -> 378 | C89: =C88 -> 20 | I89: 100 | J89: 100 | L89: 100 | O89: 86 | P89: 114 | R89: 90 | U89: 76 | V89: 104 | X89: 70 | AA89: 56 | AB89: 84 | AD89: 50 | AG89: 36 | AH89: 64 | AJ89: 35 | AM89: 23 | AN89: 47 | AU89: 378 | BI89: Mix Design Abbreviation
A90: =SUMMARY!IB7 -> 379 | C90: =C89 -> 20 | I90: 100 | J90: 100 | L90: 100 | O90: 86 | P90: 114 | R90: 90 | U90: 76 | V90: 104 | X90: 70 | AA90: 56 | AB90: 84 | AD90: 50 | AG90: 36 | AH90: 64 | AJ90: 35 | AM90: 23 | AN90: 47 | AU90: 379
A91: =SUMMARY!ID7 -> 380 | C91: =C90 -> 20 | I91: 100 | J91: 100 | L91: 100 | O91: 86 | P91: 114 | R91: 90 | U91: 76 | V91: 104 | X91: 70 | AA91: 56 | AB91: 84 | AD91: 50 | AG91: 36 | AH91: 64 | AJ91: 35 | AM91: 23 | AN91: 47 | AU91: 380 | BI91: =IF(BM43="SP",CONCATENATE(BM43,BM50,BM56,BM63,BL74,BK80),CONCATENATE(BM43,BM50,BM56,BK70,BL74,BK80)) -> SPWEB330B
A92: =SUMMARY!IJ7 -> 381 | C92: 21 | I92: 100 | J92: 100 | L92: 100 | O92: 86 | P92: 114 | R92: 90 | U92: 76 | V92: 104 | X92: 70 | AA92: 56 | AB92: 84 | AD92: 50 | AG92: 36 | AH92: 64 | AJ92: 35 | AM92: 23 | AN92: 47 | AU92: 381
A93: =SUMMARY!IL7 -> 382 | C93: =C92 -> 21 | I93: 100 | J93: 100 | L93: 100 | O93: 86 | P93: 114 | R93: 90 | U93: 76 | V93: 104 | X93: 70 | AA93: 56 | AB93: 84 | AD93: 50 | AG93: 36 | AH93: 64 | AJ93: 35 | AM93: 23 | AN93: 47 | AU93: 382
A94: =SUMMARY!IN7 -> 383 | C94: =C93 -> 21 | I94: 100 | J94: 100 | L94: 100 | O94: 86 | P94: 114 | R94: 90 | U94: 76 | V94: 104 | X94: 70 | AA94: 56 | AB94: 84 | AD94: 50 | AG94: 36 | AH94: 64 | AJ94: 35 | AM94: 23 | AN94: 47 | AU94: 383 | BI94: Mixture Properties Designation to determine CAA & FAA
A95: =SUMMARY!IP7 -> 384 | C95: =C94 -> 21 | I95: 100 | J95: 100 | L95: 100 | O95: 86 | P95: 114 | R95: 90 | U95: 76 | V95: 104 | X95: 70 | AA95: 56 | AB95: 84 | AD95: 50 | AG95: 36 | AH95: 64 | AJ95: 35 | AM95: 23 | AN95: 47 | AU95: 384 | AV95: =AV94 ->  | BI95: =IF(BM43="LV","LV",IF(BM43="MV","MV","SP")) -> SP | BJ95: <== Mix Type
BI96: =BM50 -> WE | BJ96: <== Course
BI97: =BM63 -> 3 | BJ97: <== Traffic Level
BI98: =CONCATENATE(BI95,BI96,BI97) -> SPWE3 | BJ98: <== Composite Designation to be used in table below
BI101: RAP? | BJ101: Yes | BK101: =IF(Y5="Yes","Yes","No") -> Yes
BJ102: No
BI124: CAA- 1 FACE | BJ124: =VLOOKUP($BI$98,$BI$130:$BN$153,4) -> 55
BI125: CAA -2 FACE | BJ125: =VLOOKUP($BI$98,$BI$130:$BN$153,5) -> -
BI126: FAA | BJ126: =VLOOKUP($BI$98,$BI$130:$BN$153,6) -> 42
BI129: 2350/2360 | BK129: Voids | BL129: 1 face | BM129: 2 face | BN129: faa we | BO129: initial | BP129: design | BQ129: max
BI130: LVNW2 | BJ130: MARSHALL DESIGN | BK130: 1 | BL130: 30 | BM130: - | BN130: - | BO130: - | BP130: 50 | BQ130: - | BR130: Low Volume
BI131: LVNW3 | BJ131: MARSHALL DESIGN | BK131: 2 | BL131: 30 | BM131: - | BN131: - | BO131: - | BP131: 50 | BQ131: - | BR131: Low Volume
BI132: LVNW4 | BJ132: MARSHALL DESIGN | BK132: 3 | BL132: 30 | BM132: - | BN132: - | BO132: - | BP132: 50 | BQ132: - | BR132: Low Volume
BI133: LVNW5 | BJ133: MARSHALL DESIGN | BK133: 4 | BL133: 30 | BM133: - | BN133: - | BO133: - | BP133: 50 | BQ133: - | BR133: Low Volume
BI134: LVWE2 | BJ134: MARSHALL DESIGN | BK134: 5 | BL134: 30 | BM134: - | BN134: - | BO134: - | BP134: 50 | BQ134: - | BR134: Low Volume
BI135: LVWE3 | BJ135: MARSHALL DESIGN | BK135: 6 | BL135: 30 | BM135: - | BN135: - | BO135: - | BP135: 50 | BQ135: - | BR135: Low Volume
BI136: LVWE4 | BJ136: MARSHALL DESIGN | BK136: 7 | BL136: 30 | BM136: - | BN136: - | BO136: - | BP136: 50 | BQ136: - | BR136: Low Volume
BI137: LVWE5 | BJ137: MARSHALL DESIGN | BK137: 8 | BL137: 30 | BM137: - | BN137: - | BO137: - | BP137: 50 | BQ137: - | BR137: Low Volume
BI138: MVNW2 | BJ138: MARSHALL DESIGN | BK138: 9 | BL138: 55 | BM138: - | BN138: 40 | BO138: - | BP138: 50 | BQ138: - | BR138: MV n/wear
BI139: MVNW3 | BJ139: MARSHALL DESIGN | BK139: 10 | BL139: 55 | BM139: - | BN139: 40 | BO139: - | BP139: 50 | BQ139: - | BR139: MV n/wear
BI140: MVNW4 | BJ140: MARSHALL DESIGN | BK140: 11 | BL140: 55 | BM140: - | BN140: 40 | BO140: - | BP140: 50 | BQ140: - | BR140: MV n/wear
BI141: MVNW5 | BJ141: MARSHALL DESIGN | BK141: 12 | BL141: 55 | BM141: - | BN141: 40 | BO141: - | BP141: 50 | BQ141: - | BR141: MV n/wear
BI142: MVWE2 | BJ142: MARSHALL DESIGN | BK142: 13 | BL142: 55 | BM142: - | BN142: 42 | BO142: - | BP142: 50 | BQ142: - | BR142: MV wear
BI143: MVWE3 | BJ143: MARSHALL DESIGN | BK143: 14 | BL143: 55 | BM143: - | BN143: 42 | BO143: - | BP143: 50 | BQ143: - | BR143: MV wear
BI144: MVWE4 | BJ144: MARSHALL DESIGN | BK144: 15 | BL144: 55 | BM144: - | BN144: 42 | BO144: - | BP144: 50 | BQ144: - | BR144: MV wear
BI145: MVWE5 | BJ145: MARSHALL DESIGN | BK145: 16 | BL145: 55 | BM145: - | BN145: 42 | BO145: - | BP145: 50 | BQ145: - | BR145: MV wear
BI146: SPNW2 | BJ146: GYRATORY DESIGN | BK146: 17 | BL146: 30 | BM146: - | BN146: 40 | BO146: 6 | BP146: 40 | BQ146: 60 | BR146: Level 2 n/wear
BI147: SPNW3 | BJ147: GYRATORY DESIGN | BK147: 18 | BL147: 55 | BM147: - | BN147: 40 | BO147: 7 | BP147: 60 | BQ147: 90 | BR147: Level 3 n/wear
BI148: SPNW4 | BJ148: GYRATORY DESIGN | BK148: 19 | BL148: 60 | BM148: - | BN148: 40 | BO148: 8 | BP148: 90 | BQ148: 140 | BR148: Level 4 n/wear
BI149: SPNW5 | BJ149: GYRATORY DESIGN | BK149: 20 | BL149: 80 | BM149: 75 | BN149: 40 | BO149: 8 | BP149: 100 | BQ149: 160 | BR149: Level 5 n/wear
BI150: SPWE2 | BJ150: GYRATORY DESIGN | BK150: 21 | BL150: 30 | BM150: - | BN150: 40 | BO150: 6 | BP150: 40 | BQ150: 60 | BR150: Level 2 wear
BI151: SPWE3 | BJ151: GYRATORY DESIGN | BK151: 22 | BL151: 55 | BM151: - | BN151: 42 | BO151: 7 | BP151: 60 | BQ151: 90 | BR151: Level 3 wear
BI152: SPWE4 | BJ152: GYRATORY DESIGN | BK152: 23 | BL152: 85 | BM152: 80 | BN152: 44 | BO152: 8 | BP152: 90 | BQ152: 140 | BR152: Level 4 wear
BI153: SPWE5 | BJ153: GYRATORY DESIGN | BK153: 24 | BL153: 95 | BM153: 90 | BN153: 45 | BO153: 8 | BP153: 100 | BQ153: 160 | BR153: Level 5 wear
BG200: =AV12 -> 0 | BI200: =AV13 ->  | BK200: =AV14 ->  | BM200: =AV15 ->  | BS200: =AV16 ->  | BU200: =AV17 ->  | BW200: =AV18 ->  | BY200: =AV19 ->  | CE200: =AV20 ->  | CG200: =AV21 ->  | CI200: =AV22 ->  | CK200: =AV23 ->  | CQ200: =AV24 ->  | CS200: =AV25 ->  | CU200: =AV26 ->  | CW200: =AV27 ->  | DC200: =AV28 ->  | DE200: =AV29 ->  | DG200: =AV30 ->  | DI200: =AV31 ->  | DO200: =AV32 ->  | DQ200: =AV33 ->  | DS200: =AV34 ->  | DU200: =AV35 ->  | EA200: =AV36 ->  | EC200: =AV37 ->  | EE200: =AV38 ->  | EG200: =AV39 ->  | EM200: =AV40 ->  | EO200: =AV41 ->  | EQ200: =AV42 ->  | ES200: =AV43 ->  | EY200: =AV44 ->  | FA200: =AV45 ->  | FC200: =AV46 ->  | FE200: =AV47 ->  | FK200: =AV48 ->  | FM200: =AV49 ->  | FO200: =AV50 ->  | FQ200: =AV51 ->  | FW200: =AV52 ->  | FY200: =AV53 ->  | GA200: =AV54 ->  | GC200: =AV55 -> 
BG201: =AW12 -> 0 | BI201: =AW13 ->  | BK201: =AW14 ->  | BM201: =AW15 ->  | BS201: =AW16 ->  | BU201: =AW17 ->  | BW201: =AW18 ->  | BY201: =AW19 ->  | CE201: =AW20 ->  | CG201: =AW21 ->  | CI201: =AW22 ->  | CK201: =AW23 ->  | CQ201: =AW24 ->  | CS201: =AW25 ->  | CU201: =AW26 ->  | CW201: =AW27 ->  | DC201: =AW28 ->  | DE201: =AW29 ->  | DG201: =AW30 ->  | DI201: =AW31 ->  | DO201: =AW32 ->  | DQ201: =AW33 ->  | DS201: =AW34 ->  | DU201: =AW35 ->  | EA201: =AW36 ->  | EC201: =AW37 ->  | EE201: =AW38 ->  | EG201: =AW39 ->  | EM201: =AW40 ->  | EO201: =AW41 ->  | EQ201: =AW42 ->  | ES201: =AW43 ->  | EY201: =AW44 ->  | FA201: =AW45 ->  | FC201: =AW46 ->  | FE201: =AW47 ->  | FK201: =AW48 ->  | FM201: =AW49 ->  | FO201: =AW50 ->  | FQ201: =AW51 ->  | FW201: =AW52 ->  | FY201: =AW53 ->  | GA201: =AW54 ->  | GC201: =AW55 -> 
BG202: =AX12 -> 0 | BI202: =AX13 ->  | BK202: =AX14 ->  | BM202: =AX15 ->  | BS202: =AX16 ->  | BU202: =AX17 ->  | BW202: =AX18 ->  | BY202: =AX19 ->  | CE202: =AX20 ->  | CG202: =AX21 ->  | CI202: =AX22 ->  | CK202: =AX23 ->  | CQ202: =AX24 ->  | CS202: =AX25 ->  | CU202: =AX26 ->  | CW202: =AX27 ->  | DC202: =AX28 ->  | DE202: =AX29 ->  | DG202: =AX30 ->  | DI202: =AX31 ->  | DO202: =AX32 ->  | DQ202: =AX33 ->  | DS202: =AX34 ->  | DU202: =AX35 ->  | EA202: =AX36 ->  | EC202: =AX37 ->  | EE202: =AX38 ->  | EG202: =AX39 ->  | EM202: =AX40 ->  | EO202: =AX41 ->  | EQ202: =AX42 ->  | ES202: =AX43 ->  | EY202: =AX44 ->  | FA202: =AX45 ->  | FC202: =AX46 ->  | FE202: =AX47 ->  | FK202: =AX48 ->  | FM202: =AX49 ->  | FO202: =AX50 ->  | FQ202: =AX51 ->  | FW202: =AX52 ->  | FY202: =AX53 ->  | GA202: =AX54 ->  | GC202: =AX55 -> 
BG203: =AY12 -> 0 | BI203: =AY13 ->  | BK203: =AY14 ->  | BM203: =AY15 ->  | BS203: =AY16 ->  | BU203: =AY17 ->  | BW203: =AY18 ->  | BY203: =AY19 ->  | CE203: =AY20 ->  | CG203: =AY21 ->  | CI203: =AY22 ->  | CK203: =AY23 ->  | CQ203: =AY24 ->  | CS203: =AY25 ->  | CU203: =AY26 ->  | CW203: =AY27 ->  | DC203: =AY28 ->  | DE203: =AY29 ->  | DG203: =AY30 ->  | DI203: =AY31 ->  | DO203: =AY32 ->  | DQ203: =AY33 ->  | DS203: =AY34 ->  | DU203: =AY35 ->  | EA203: =AY36 ->  | EC203: =AY37 ->  | EE203: =AY38 ->  | EG203: =AY39 ->  | EM203: =AY40 ->  | EO203: =AY41 ->  | EQ203: =AY42 ->  | ES203: =AY43 ->  | EY203: =AY44 ->  | FA203: =AY45 ->  | FC203: =AY46 ->  | FE203: =AY47 ->  | FK203: =AY48 ->  | FM203: =AY49 ->  | FO203: =AY50 ->  | FQ203: =AY51 ->  | FW203: =AY52 ->  | FY203: =AY53 ->  | GA203: =AY54 ->  | GC203: =AY55 -> 
BG204: =AZ12 -> 0 | BI204: =AZ13 ->  | BK204: =AZ14 ->  | BM204: =AZ15 ->  | BS204: =AZ16 ->  | BU204: =AZ17 ->  | BW204: =AZ18 ->  | BY204: =AZ19 ->  | CE204: =AZ20 ->  | CG204: =AZ21 ->  | CI204: =AZ22 ->  | CK204: =AZ23 ->  | CQ204: =AZ24 ->  | CS204: =AZ25 ->  | CU204: =AZ26 ->  | CW204: =AZ27 ->  | DC204: =AZ28 ->  | DE204: =AZ29 ->  | DG204: =AZ30 ->  | DI204: =AZ31 ->  | DO204: =AZ32 ->  | DQ204: =AZ33 ->  | DS204: =AZ34 ->  | DU204: =AZ35 ->  | EA204: =AZ36 ->  | EC204: =AZ37 ->  | EE204: =AZ38 ->  | EG204: =AZ39 ->  | EM204: =AZ40 ->  | EO204: =AZ41 ->  | EQ204: =AZ42 ->  | ES204: =AZ43 ->  | EY204: =AZ44 ->  | FA204: =AZ45 ->  | FC204: =AZ46 ->  | FE204: =AZ47 ->  | FK204: =AZ48 ->  | FM204: =AZ49 ->  | FO204: =AZ50 ->  | FQ204: =AZ51 ->  | FW204: =AZ52 ->  | FY204: =AZ53 ->  | GA204: =AZ54 ->  | GC204: =AZ55 -> 
BG205: =BA12 -> 0 | BI205: =BA13 ->  | BK205: =BA14 ->  | BM205: =BA15 ->  | BS205: =BA16 ->  | BU205: =BA17 ->  | BW205: =BA18 ->  | BY205: =BA19 ->  | CE205: =BA20 ->  | CG205: =BA21 ->  | CI205: =BA22 ->  | CK205: =BA23 ->  | CQ205: =BA24 ->  | CS205: =BA25 ->  | CU205: =BA26 ->  | CW205: =BA27 ->  | DC205: =BA28 ->  | DE205: =BA29 ->  | DG205: =BA30 ->  | DI205: =BA31 ->  | DO205: =BA32 ->  | DQ205: =BA33 ->  | DS205: =BA34 ->  | DU205: =BA35 ->  | EA205: =BA36 ->  | EC205: =BA37 ->  | EE205: =BA38 ->  | EG205: =BA39 ->  | EM205: =BA40 ->  | EO205: =BA41 ->  | EQ205: =BA42 ->  | ES205: =BA43 ->  | EY205: =BA44 ->  | FA205: =BA45 ->  | FC205: =BA46 ->  | FE205: =BA47 ->  | FK205: =BA48 ->  | FM205: =BA49 ->  | FO205: =BA50 ->  | FQ205: =BA51 ->  | FW205: =BA52 ->  | FY205: =BA53 ->  | GA205: =BA54 ->  | GC205: =BA55 -> 
BG206: =BB12 -> 0 | BI206: =BB13 ->  | BK206: =BB14 ->  | BM206: =BB15 ->  | BS206: =BB16 ->  | BU206: =BB17 ->  | BW206: =BB18 ->  | BY206: =BB19 ->  | CE206: =BB20 ->  | CG206: =BB21 ->  | CI206: =BB22 ->  | CK206: =BB23 ->  | CQ206: =BB24 ->  | CS206: =BB25 ->  | CU206: =BB26 ->  | CW206: =BB27 ->  | DC206: =BB28 ->  | DE206: =BB29 ->  | DG206: =BB30 ->  | DI206: =BB31 ->  | DO206: =BB32 ->  | DQ206: =BB33 ->  | DS206: =BB34 ->  | DU206: =BB35 ->  | EA206: =BB36 ->  | EC206: =BB37 ->  | EE206: =BB38 ->  | EG206: =BB39 ->  | EM206: =BB40 ->  | EO206: =BB41 ->  | EQ206: =BB42 ->  | ES206: =BB43 ->  | EY206: =BB44 ->  | FA206: =BB45 ->  | FC206: =BB46 ->  | FE206: =BB47 ->  | FK206: =BB48 ->  | FM206: =BB49 ->  | FO206: =BB50 ->  | FQ206: =BB51 ->  | FW206: =BB52 ->  | FY206: =BB53 ->  | GA206: =BB54 ->  | GC206: =BB55 -> 
BG207: =BC12 -> 0 | BI207: =BC13 ->  | BK207: =BC14 ->  | BM207: =BC15 ->  | BS207: =BC16 ->  | BU207: =BC17 ->  | BW207: =BC18 ->  | BY207: =BC19 ->  | CE207: =BC20 ->  | CG207: =BC21 ->  | CI207: =BC22 ->  | CK207: =BC23 ->  | CQ207: =BC24 ->  | CS207: =BC25 ->  | CU207: =BC26 ->  | CW207: =BC27 ->  | DC207: =BC28 ->  | DE207: =BC29 ->  | DG207: =BC30 ->  | DI207: =BC31 ->  | DO207: =BC32 ->  | DQ207: =BC33 ->  | DS207: =BC34 ->  | DU207: =BC35 ->  | EA207: =BC36 ->  | EC207: =BC37 ->  | EE207: =BC38 ->  | EG207: =BC39 ->  | EM207: =BC40 ->  | EO207: =BC41 ->  | EQ207: =BC42 ->  | ES207: =BC43 ->  | EY207: =BC44 ->  | FA207: =BC45 ->  | FC207: =BC46 ->  | FE207: =BC47 ->  | FK207: =BC48 ->  | FM207: =BC49 ->  | FO207: =BC50 ->  | FQ207: =BC51 ->  | FW207: =BC52 ->  | FY207: =BC53 ->  | GA207: =BC54 ->  | GC207: =BC55 -> 
BG208: =BD12 -> 0 | BI208: =BD13 ->  | BK208: =BD14 ->  | BM208: =BD15 ->  | BS208: =BD16 ->  | BU208: =BD17 ->  | BW208: =BD18 ->  | BY208: =BD19 ->  | CE208: =BD20 ->  | CG208: =BD21 ->  | CI208: =BD22 ->  | CK208: =BD23 ->  | CQ208: =BD24 ->  | CS208: =BD25 ->  | CU208: =BD26 ->  | CW208: =BD27 ->  | DC208: =BD28 ->  | DE208: =BD29 ->  | DG208: =BD30 ->  | DI208: =BD31 ->  | DO208: =BD32 ->  | DQ208: =BD33 ->  | DS208: =BD34 ->  | DU208: =BD35 ->  | EA208: =BD36 ->  | EC208: =BD37 ->  | EE208: =BD38 ->  | EG208: =BD39 ->  | EM208: =BD40 ->  | EO208: =BD41 ->  | EQ208: =BD42 ->  | ES208: =BD43 ->  | EY208: =BD44 ->  | FA208: =BD45 ->  | FC208: =BD46 ->  | FE208: =BD47 ->  | FK208: =BD48 ->  | FM208: =BD49 ->  | FO208: =BD50 ->  | FQ208: =BD51 ->  | FW208: =BD52 ->  | FY208: =BD53 ->  | GA208: =BD54 ->  | GC208: =BD55 -> 
BG209: =BE12 -> 0 | BI209: =BE13 ->  | BK209: =BE14 ->  | BM209: =BE15 ->  | BS209: =BE16 ->  | BU209: =BE17 ->  | BW209: =BE18 ->  | BY209: =BE19 ->  | CE209: =BE20 ->  | CG209: =BE21 ->  | CI209: =BE22 ->  | CK209: =BE23 ->  | CQ209: =BE24 ->  | CS209: =BE25 ->  | CU209: =BE26 ->  | CW209: =BE27 ->  | DC209: =BE28 ->  | DE209: =BE29 ->  | DG209: =BE30 ->  | DI209: =BE31 ->  | DO209: =BE32 ->  | DQ209: =BE33 ->  | DS209: =BE34 ->  | DU209: =BE35 ->  | EA209: =BE36 ->  | EC209: =BE37 ->  | EE209: =BE38 ->  | EG209: =BE39 ->  | EM209: =BE40 ->  | EO209: =BE41 ->  | EQ209: =BE42 ->  | ES209: =BE43 ->  | EY209: =BE44 ->  | FA209: =BE45 ->  | FC209: =BE46 ->  | FE209: =BE47 ->  | FK209: =BE48 ->  | FM209: =BE49 ->  | FO209: =BE50 ->  | FQ209: =BE51 ->  | FW209: =BE52 ->  | FY209: =BE53 ->  | GA209: =BE54 ->  | GC209: =BE55 -> 
BG220: =AV56 ->  | BI220: =AV57 ->  | BK220: =AV58 ->  | BM220: =AV59 ->  | BS220: =AV60 ->  | BU220: =AV61 ->  | BW220: =AV62 ->  | BY220: =AV63 ->  | CE220: =AV64 ->  | CG220: =AV65 ->  | CI220: =AV66 ->  | CK220: =AV67 ->  | CQ220: =AV68 ->  | CS220: =AV69 ->  | CU220: =AV70 ->  | CW220: =AV71 ->  | DC220: =AV72 ->  | DE220: =AV73 ->  | DG220: =AV74 ->  | DI220: =AV75 ->  | DO220: =AV76 ->  | DQ220: =AV77 ->  | DS220: =AV78 ->  | DU220: =AV79 ->  | EA220: =AV80 ->  | EC220: =AV81 ->  | EE220: =AV82 ->  | EG220: =AV83 ->  | EM220: =AV84 ->  | EO220: =AV85 ->  | EQ220: =AV86 ->  | ES220: =AV87 ->  | EY220: =AV88 ->  | FA220: =AV89 ->  | FC220: =AV90 ->  | FE220: =AV91 ->  | FK220: =AV92 ->  | FM220: =AV93 ->  | FO220: =AV94 ->  | FQ220: =AV95 -> 
BG221: =AW56 ->  | BI221: =AW57 ->  | BK221: =AW58 ->  | BM221: =AW59 ->  | BS221: =AW60 ->  | BU221: =AW61 ->  | BW221: =AW62 ->  | BY221: =AW63 ->  | CE221: =AW64 ->  | CG221: =AW65 ->  | CI221: =AW66 ->  | CK221: =AW67 ->  | CQ221: =AW68 ->  | CS221: =AW69 ->  | CU221: =AW70 ->  | CW221: =AW71 ->  | DC221: =AW72 ->  | DE221: =AW73 ->  | DG221: =AW74 ->  | DI221: =AW75 ->  | DO221: =AW76 ->  | DQ221: =AW77 ->  | DS221: =AW78 ->  | DU221: =AW79 ->  | EA221: =AW80 ->  | EC221: =AW81 ->  | EE221: =AW82 ->  | EG221: =AW83 ->  | EM221: =AW84 ->  | EO221: =AW85 ->  | EQ221: =AW86 ->  | ES221: =AW87 ->  | EY221: =AW88 ->  | FA221: =AW89 ->  | FC221: =AW90 ->  | FE221: =AW91 ->  | FK221: =AW92 ->  | FM221: =AW93 ->  | FO221: =AW94 ->  | FQ221: =AW95 -> 
BG222: =AX56 ->  | BI222: =AX57 ->  | BK222: =AX58 ->  | BM222: =AX59 ->  | BS222: =AX60 ->  | BU222: =AX61 ->  | BW222: =AX62 ->  | BY222: =AX63 ->  | CE222: =AX64 ->  | CG222: =AX65 ->  | CI222: =AX66 ->  | CK222: =AX67 ->  | CQ222: =AX68 ->  | CS222: =AX69 ->  | CU222: =AX70 ->  | CW222: =AX71 ->  | DC222: =AX72 ->  | DE222: =AX73 ->  | DG222: =AX74 ->  | DI222: =AX75 ->  | DO222: =AX76 ->  | DQ222: =AX77 ->  | DS222: =AX78 ->  | DU222: =AX79 ->  | EA222: =AX80 ->  | EC222: =AX81 ->  | EE222: =AX82 ->  | EG222: =AX83 ->  | EM222: =AX84 ->  | EO222: =AX85 ->  | EQ222: =AX86 ->  | ES222: =AX87 ->  | EY222: =AX88 ->  | FA222: =AX89 ->  | FC222: =AX90 ->  | FE222: =AX91 ->  | FK222: =AX92 ->  | FM222: =AX93 ->  | FO222: =AX94 ->  | FQ222: =AX95 -> 
BG223: =AY56 ->  | BI223: =AY57 ->  | BK223: =AY58 ->  | BM223: =AY59 ->  | BS223: =AY60 ->  | BU223: =AY61 ->  | BW223: =AY62 ->  | BY223: =AY63 ->  | CE223: =AY64 ->  | CG223: =AY65 ->  | CI223: =AY66 ->  | CK223: =AY67 ->  | CQ223: =AY68 ->  | CS223: =AY69 ->  | CU223: =AY70 ->  | CW223: =AY71 ->  | DC223: =AY72 ->  | DE223: =AY73 ->  | DG223: =AY74 ->  | DI223: =AY75 ->  | DO223: =AY76 ->  | DQ223: =AY77 ->  | DS223: =AY78 ->  | DU223: =AY79 ->  | EA223: =AY80 ->  | EC223: =AY81 ->  | EE223: =AY82 ->  | EG223: =AY83 ->  | EM223: =AY84 ->  | EO223: =AY85 ->  | EQ223: =AY86 ->  | ES223: =AY87 ->  | EY223: =AY88 ->  | FA223: =AY89 ->  | FC223: =AY90 ->  | FE223: =AY91 ->  | FK223: =AY92 ->  | FM223: =AY93 ->  | FO223: =AY94 ->  | FQ223: =AY95 -> 
BG224: =AZ56 ->  | BI224: =AZ57 ->  | BK224: =AZ58 ->  | BM224: =AZ59 ->  | BS224: =AZ60 ->  | BU224: =AZ61 ->  | BW224: =AZ62 ->  | BY224: =AZ63 ->  | CE224: =AZ64 ->  | CG224: =AZ65 ->  | CI224: =AZ66 ->  | CK224: =AZ67 ->  | CQ224: =AZ68 ->  | CS224: =AZ69 ->  | CU224: =AZ70 ->  | CW224: =AZ71 ->  | DC224: =AZ72 ->  | DE224: =AZ73 ->  | DG224: =AZ74 ->  | DI224: =AZ75 ->  | DO224: =AZ76 ->  | DQ224: =AZ77 ->  | DS224: =AZ78 ->  | DU224: =AZ79 ->  | EA224: =AZ80 ->  | EC224: =AZ81 ->  | EE224: =AZ82 ->  | EG224: =AZ83 ->  | EM224: =AZ84 ->  | EO224: =AZ85 ->  | EQ224: =AZ86 ->  | ES224: =AZ87 ->  | EY224: =AZ88 ->  | FA224: =AZ89 ->  | FC224: =AZ90 ->  | FE224: =AZ91 ->  | FK224: =AZ92 ->  | FM224: =AZ93 ->  | FO224: =AZ94 ->  | FQ224: =AZ95 -> 
BG225: =BA56 ->  | BI225: =BA57 ->  | BK225: =BA58 ->  | BM225: =BA59 ->  | BS225: =BA60 ->  | BU225: =BA61 ->  | BW225: =BA62 ->  | BY225: =BA63 ->  | CE225: =BA64 ->  | CG225: =BA65 ->  | CI225: =BA66 ->  | CK225: =BA67 ->  | CQ225: =BA68 ->  | CS225: =BA69 ->  | CU225: =BA70 ->  | CW225: =BA71 ->  | DC225: =BA72 ->  | DE225: =BA73 ->  | DG225: =BA74 ->  | DI225: =BA75 ->  | DO225: =BA76 ->  | DQ225: =BA77 ->  | DS225: =BA78 ->  | DU225: =BA79 ->  | EA225: =BA80 ->  | EC225: =BA81 ->  | EE225: =BA82 ->  | EG225: =BA83 ->  | EM225: =BA84 ->  | EO225: =BA85 ->  | EQ225: =BA86 ->  | ES225: =BA87 ->  | EY225: =BA88 ->  | FA225: =BA89 ->  | FC225: =BA90 ->  | FE225: =BA91 ->  | FK225: =BA92 ->  | FM225: =BA93 ->  | FO225: =BA94 ->  | FQ225: =BA95 -> 
BG226: =BB56 ->  | BI226: =BB57 ->  | BK226: =BB58 ->  | BM226: =BB59 ->  | BS226: =BB60 ->  | BU226: =BB61 ->  | BW226: =BB62 ->  | BY226: =BB63 ->  | CE226: =BB64 ->  | CG226: =BB65 ->  | CI226: =BB66 ->  | CK226: =BB67 ->  | CQ226: =BB68 ->  | CS226: =BB69 ->  | CU226: =BB70 ->  | CW226: =BB71 ->  | DC226: =BB72 ->  | DE226: =BB73 ->  | DG226: =BB74 ->  | DI226: =BB75 ->  | DO226: =BB76 ->  | DQ226: =BB77 ->  | DS226: =BB78 ->  | DU226: =BB79 ->  | EA226: =BB80 ->  | EC226: =BB81 ->  | EE226: =BB82 ->  | EG226: =BB83 ->  | EM226: =BB84 ->  | EO226: =BB85 ->  | EQ226: =BB86 ->  | ES226: =BB87 ->  | EY226: =BB88 ->  | FA226: =BB89 ->  | FC226: =BB90 ->  | FE226: =BB91 ->  | FK226: =BB92 ->  | FM226: =BB93 ->  | FO226: =BB94 ->  | FQ226: =BB95 -> 
BG227: =BC56 ->  | BI227: =BC57 ->  | BK227: =BC58 ->  | BM227: =BC59 ->  | BS227: =BC60 ->  | BU227: =BC61 ->  | BW227: =BC62 ->  | BY227: =BC63 ->  | CE227: =BC64 ->  | CG227: =BC65 ->  | CI227: =BC66 ->  | CK227: =BC67 ->  | CQ227: =BC68 ->  | CS227: =BC69 ->  | CU227: =BC70 ->  | CW227: =BC71 ->  | DC227: =BC72 ->  | DE227: =BC73 ->  | DG227: =BC74 ->  | DI227: =BC75 ->  | DO227: =BC76 ->  | DQ227: =BC77 ->  | DS227: =BC78 ->  | DU227: =BC79 ->  | EA227: =BC80 ->  | EC227: =BC81 ->  | EE227: =BC82 ->  | EG227: =BC83 ->  | EM227: =BC84 ->  | EO227: =BC85 ->  | EQ227: =BC86 ->  | ES227: =BC87 ->  | EY227: =BC88 ->  | FA227: =BC89 ->  | FC227: =BC90 ->  | FE227: =BC91 ->  | FK227: =BC92 ->  | FM227: =BC93 ->  | FO227: =BC94 ->  | FQ227: =BC95 -> 
BG228: =BD56 ->  | BI228: =BD57 ->  | BK228: =BD58 ->  | BM228: =BD59 ->  | BS228: =BD60 ->  | BU228: =BD61 ->  | BW228: =BD62 ->  | BY228: =BD63 ->  | CE228: =BD64 ->  | CG228: =BD65 ->  | CI228: =BD66 ->  | CK228: =BD67 ->  | CQ228: =BD68 ->  | CS228: =BD69 ->  | CU228: =BD70 ->  | CW228: =BD71 ->  | DC228: =BD72 ->  | DE228: =BD73 ->  | DG228: =BD74 ->  | DI228: =BD75 ->  | DO228: =BD76 ->  | DQ228: =BD77 ->  | DS228: =BD78 ->  | DU228: =BD79 ->  | EA228: =BD80 ->  | EC228: =BD81 ->  | EE228: =BD82 ->  | EG228: =BD83 ->  | EM228: =BD84 ->  | EO228: =BD85 ->  | EQ228: =BD86 ->  | ES228: =BD87 ->  | EY228: =BD88 ->  | FA228: =BD89 ->  | FC228: =BD90 ->  | FE228: =BD91 ->  | FK228: =BD92 ->  | FM228: =BD93 ->  | FO228: =BD94 ->  | FQ228: =BD95 -> 
BG229: =BE56 ->  | BI229: =BE57 ->  | BK229: =BE58 ->  | BM229: =BE59 ->  | BS229: =BE60 ->  | BU229: =BE61 ->  | BW229: =BE62 ->  | BY229: =BE63 ->  | CE229: =BE64 ->  | CG229: =BE65 ->  | CI229: =BE66 ->  | CK229: =BE67 ->  | CQ229: =BE68 ->  | CS229: =BE69 ->  | CU229: =BE70 ->  | CW229: =BE71 ->  | DC229: =BE72 ->  | DE229: =BE73 ->  | DG229: =BE74 ->  | DI229: =BE75 ->  | DO229: =BE76 ->  | DQ229: =BE77 ->  | DS229: =BE78 ->  | DU229: =BE79 ->  | EA229: =BE80 ->  | EC229: =BE81 ->  | EE229: =BE82 ->  | EG229: =BE83 ->  | EM229: =BE84 ->  | EO229: =BE85 ->  | EQ229: =BE86 ->  | ES229: =BE87 ->  | EY229: =BE88 ->  | FA229: =BE89 ->  | FC229: =BE90 ->  | FE229: =BE91 ->  | FK229: =BE92 ->  | FM229: =BE93 ->  | FO229: =BE94 ->  | FQ229: =BE95 -> 

Sheet SUMMARY
A1: Rev.02May2012 | E1: =MDR!$CA$4 -> AFT Project | K1: 1 | M1: =+A1 -> Rev.02May2012 | Q1: =MDR!$CA$4 -> AFT Project | W1: 2 | Y1: =+M1 -> Rev.02May2012 | AC1: =MDR!$CA$4 -> AFT Project | AI1: 3 | AK1: =+Y1 -> Rev.02May2012 | AO1: =MDR!$CA$4 -> AFT Project | AU1: 4 | AW1: =+AK1 -> Rev.02May2012 | BA1: =MDR!$CA$4 -> AFT Project | BG1: 5 | BI1: =+AW1 -> Rev.02May2012 | BM1: =MDR!$CA$4 -> AFT Project | BS1: 6 | BU1: =+BI1 -> Rev.02May2012 | BY1: =MDR!$CA$4 -> AFT Project | CE1: 7 | CG1: =+BU1 -> Rev.02May2012 | CK1: =MDR!$CA$4 -> AFT Project | CQ1: 8 | CS1: =+CG1 -> Rev.02May2012 | CW1: =MDR!$CA$4 -> AFT Project | DC1: 9 | DE1: =+CS1 -> Rev.02May2012 | DI1: =MDR!$CA$4 -> AFT Project | DO1: 10 | DQ1: =+DE1 -> Rev.02May2012 | DU1: =MDR!$CA$4 -> AFT Project | EA1: 11 | EC1: =+DQ1 -> Rev.02May2012 | EG1: =MDR!$CA$4 -> AFT Project | EM1: 12 | EO1: =+EC1 -> Rev.02May2012 | ES1: =MDR!$CA$4 -> AFT Project | EY1: 13 | FA1: =+EO1 -> Rev.02May2012 | FE1: =MDR!$CA$4 -> AFT Project | FK1: 14 | FM1: =+FA1 -> Rev.02May2012 | FQ1: =MDR!$CA$4 -> AFT Project | FW1: 15 | FY1: =+FM1 -> Rev.02May2012 | GC1: =MDR!$CA$4 -> AFT Project | GI1: 16 | GK1: =+FY1 -> Rev.02May2012 | GO1: =MDR!$CA$4 -> AFT Project | GU1: 17 | GW1: =+GK1 -> Rev.02May2012 | HA1: =MDR!$CA$4 -> AFT Project | HG1: 18 | HI1: =+GW1 -> Rev.02May2012 | HM1: =MDR!$CA$4 -> AFT Project | HS1: 19 | HU1: =+HI1 -> Rev.02May2012 | HY1: =MDR!$CA$4 -> AFT Project | IE1: 20 | IG1: =+HU1 -> Rev.02May2012 | IK1: =MDR!$CA$4 -> AFT Project | IQ1: 21
B2: TEST SUMMARY SHEET - | G2: =MDR!BN43 -> GYRATORY DESIGN | N2: TEST SUMMARY SHEET - | S2: =G2 -> GYRATORY DESIGN | Z2: TEST SUMMARY SHEET - | AE2: =S2 -> GYRATORY DESIGN | AL2: TEST SUMMARY SHEET - | AQ2: =AE2 -> GYRATORY DESIGN | AX2: TEST SUMMARY SHEET - | BC2: =AQ2 -> GYRATORY DESIGN | BJ2: TEST SUMMARY SHEET - | BO2: =BC2 -> GYRATORY DESIGN | BV2: TEST SUMMARY SHEET - | CA2: =BO2 -> GYRATORY DESIGN | CH2: TEST SUMMARY SHEET - | CM2: =CA2 -> GYRATORY DESIGN | CT2: TEST SUMMARY SHEET - | CY2: =CM2 -> GYRATORY DESIGN | DF2: TEST SUMMARY SHEET - | DK2: =CY2 -> GYRATORY DESIGN | DR2: TEST SUMMARY SHEET - | DW2: =DK2 -> GYRATORY DESIGN | ED2: TEST SUMMARY SHEET - | EI2: =DW2 -> GYRATORY DESIGN | EP2: TEST SUMMARY SHEET - | EU2: =EI2 -> GYRATORY DESIGN | FB2: TEST SUMMARY SHEET - | FG2: =EU2 -> GYRATORY DESIGN | FN2: TEST SUMMARY SHEET - | FS2: =FG2 -> GYRATORY DESIGN | FZ2: TEST SUMMARY SHEET - | GE2: =FS2 -> GYRATORY DESIGN | GL2: TEST SUMMARY SHEET - | GQ2: =GE2 -> GYRATORY DESIGN | GX2: TEST SUMMARY SHEET - | HC2: =GQ2 -> GYRATORY DESIGN | HJ2: TEST SUMMARY SHEET - | HO2: =HC2 -> GYRATORY DESIGN | HV2: TEST SUMMARY SHEET - | IA2: =HO2 -> GYRATORY DESIGN | IH2: TEST SUMMARY SHEET - | IM2: =IA2 -> GYRATORY DESIGN
A3: Project #'s | B3: =IF(MDR!B2="","",MDR!B2) ->  | H3: Mix Designation | J3: =IF(MDR!$T$6="","",MDR!$T$6) -> SPWEB330B | M3: Project #'s | N3: =B3 ->  | T3: Mix Designation | V3: =IF(MDR!$T$6="","",MDR!$T$6) -> SPWEB330B | Y3: Project #'s | Z3: =N3 ->  | AF3: Mix Designation | AH3: =IF(MDR!$T$6="","",MDR!$T$6) -> SPWEB330B | AK3: Project #'s | AL3: =Z3 ->  | AR3: Mix Designation | AT3: =IF(MDR!$T$6="","",MDR!$T$6) -> SPWEB330B | AW3: Project #'s | AX3: =AL3 ->  | BD3: Mix Designation | BF3: =IF(MDR!$T$6="","",MDR!$T$6) -> SPWEB330B | BI3: Project #'s | BJ3: =AX3 ->  | BP3: Mix Designation | BR3: =IF(MDR!$T$6="","",MDR!$T$6) -> SPWEB330B | BU3: Project #'s | BV3: =BJ3 ->  | CB3: Mix Designation | CD3: =IF(MDR!$T$6="","",MDR!$T$6) -> SPWEB330B | CG3: Project #'s | CH3: =BV3 ->  | CN3: Mix Designation | CP3: =IF(MDR!$T$6="","",MDR!$T$6) -> SPWEB330B | CS3: Project #'s | CT3: =CH3 ->  | CZ3: Mix Designation | DB3: =IF(MDR!$T$6="","",MDR!$T$6) -> SPWEB330B | DE3: Project #'s | DF3: =CT3 ->  | DL3: Mix Designation | DN3: =IF(MDR!$T$6="","",MDR!$T$6) -> SPWEB330B | DQ3: Project #'s | DR3: =DF3 ->  | DX3: Mix Designation | DZ3: =IF(MDR!$T$6="","",MDR!$T$6) -> SPWEB330B | EC3: Project #'s | ED3: =DR3 ->  | EJ3: Mix Designation | EL3: =IF(MDR!$T$6="","",MDR!$T$6) -> SPWEB330B | EO3: Project #'s | EP3: =ED3 ->  | EV3: Mix Designation | EX3: =IF(MDR!$T$6="","",MDR!$T$6) -> SPWEB330B | FA3: Project #'s | FB3: =EP3 ->  | FH3: Mix Designation | FJ3: =IF(MDR!$T$6="","",MDR!$T$6) -> SPWEB330B | FM3: Project #'s | FN3: =FB3 ->  | FT3: Mix Designation | FV3: =IF(MDR!$T$6="","",MDR!$T$6) -> SPWEB330B | FY3: Project #'s | FZ3: =FN3 ->  | GF3: Mix Designation | GH3: =IF(MDR!$T$6="","",MDR!$T$6) -> SPWEB330B | GK3: Project #'s | GL3: =FZ3 ->  | GR3: Mix Designation | GT3: =IF(MDR!$T$6="","",MDR!$T$6) -> SPWEB330B | GW3: Project #'s | GX3: =GL3 ->  | HD3: Mix Designation | HF3: =IF(MDR!$T$6="","",MDR!$T$6) -> SPWEB330B | HI3: Project #'s | HJ3: =GX3 ->  | HP3: Mix Designation | HR3: =IF(MDR!$T$6="","",MDR!$T$6) -> SPWEB330B | HU3: Project #'s | HV3: =HJ3 ->  | IB3: Mix Designation | ID3: =IF(MDR!$T$6="","",MDR!$T$6) -> SPWEB330B | IG3: Project #'s | IH3: =HV3 ->  | IN3: Mix Designation | IP3: =IF(MDR!$T$6="","",MDR!$T$6) -> SPWEB330B
A4: Location | B4: =IF(MDR!B3="","",MDR!B3) ->  | H4: Course | J4: =IF(MDR!$Y$3="","",MDR!$Y$3) -> WE (Wear) - 3% Voids | M4: Location | N4: =B4 ->  | T4: Course | V4: =IF(MDR!$Y$3="","",MDR!$Y$3) -> WE (Wear) - 3% Voids | Y4: Location | Z4: =N4 ->  | AF4: Course | AH4: =IF(MDR!$Y$3="","",MDR!$Y$3) -> WE (Wear) - 3% Voids | AK4: Location | AL4: =Z4 ->  | AR4: Course | AT4: =IF(MDR!$Y$3="","",MDR!$Y$3) -> WE (Wear) - 3% Voids | AW4: Location | AX4: =AL4 ->  | BD4: Course | BF4: =IF(MDR!$Y$3="","",MDR!$Y$3) -> WE (Wear) - 3% Voids | BI4: Location | BJ4: =AX4 ->  | BP4: Course | BR4: =IF(MDR!$Y$3="","",MDR!$Y$3) -> WE (Wear) - 3% Voids | BU4: Location | BV4: =BJ4 ->  | CB4: Course | CD4: =IF(MDR!$Y$3="","",MDR!$Y$3) -> WE (Wear) - 3% Voids | CG4: Location | CH4: =BV4 ->  | CN4: Course | CP4: =IF(MDR!$Y$3="","",MDR!$Y$3) -> WE (Wear) - 3% Voids | CS4: Location | CT4: =CH4 ->  | CZ4: Course | DB4: =IF(MDR!$Y$3="","",MDR!$Y$3) -> WE (Wear) - 3% Voids | DE4: Location | DF4: =CT4 ->  | DL4: Course | DN4: =IF(MDR!$Y$3="","",MDR!$Y$3) -> WE (Wear) - 3% Voids | DQ4: Location | DR4: =DF4 ->  | DX4: Course | DZ4: =IF(MDR!$Y$3="","",MDR!$Y$3) -> WE (Wear) - 3% Voids | EC4: Location | ED4: =DR4 ->  | EJ4: Course | EL4: =IF(MDR!$Y$3="","",MDR!$Y$3) -> WE (Wear) - 3% Voids | EO4: Location | EP4: =ED4 ->  | EV4: Course | EX4: =IF(MDR!$Y$3="","",MDR!$Y$3) -> WE (Wear) - 3% Voids | FA4: Location | FB4: =EP4 ->  | FH4: Course | FJ4: =IF(MDR!$Y$3="","",MDR!$Y$3) -> WE (Wear) - 3% Voids | FM4: Location | FN4: =FB4 ->  | FT4: Course | FV4: =IF(MDR!$Y$3="","",MDR!$Y$3) -> WE (Wear) - 3% Voids | FY4: Location | FZ4: =FN4 ->  | GF4: Course | GH4: =IF(MDR!$Y$3="","",MDR!$Y$3) -> WE (Wear) - 3% Voids | GK4: Location | GL4: =FZ4 ->  | GR4: Course | GT4: =IF(MDR!$Y$3="","",MDR!$Y$3) -> WE (Wear) - 3% Voids | GW4: Location | GX4: =GL4 ->  | HD4: Course | HF4: =IF(MDR!$Y$3="","",MDR!$Y$3) -> WE (Wear) - 3% Voids | HI4: Location | HJ4: =GX4 ->  | HP4: Course | HR4: =IF(MDR!$Y$3="","",MDR!$Y$3) -> WE (Wear) - 3% Voids | HU4: Location | HV4: =HJ4 ->  | IB4: Course | ID4: =IF(MDR!$Y$3="","",MDR!$Y$3) -> WE (Wear) - 3% Voids | IG4: Location | IH4: =HV4 ->  | IN4: Course | IP4: =IF(MDR!$Y$3="","",MDR!$Y$3) -> WE (Wear) - 3% Voids
B6: SPEC. YEAR "2012" | D6: Cont'r | E6: Agency | F6: Cont'r | G6: Agency | H6: Cont'r | I6: Agency | J6: Cont'r | K6: Agency | N6: =$B$6 -> SPEC. YEAR "2012" | P6: Cont'r | Q6: Agency | R6: Cont'r | S6: Agency | T6: Cont'r | U6: Agency | V6: Cont'r | W6: Agency | Z6: =$B$6 -> SPEC. YEAR "2012" | AB6: Cont'r | AC6: Agency | AD6: Cont'r | AE6: Agency | AF6: Cont'r | AG6: Agency | AH6: Cont'r | AI6: Agency | AL6: =$B$6 -> SPEC. YEAR "2012" | AN6: Cont'r | AO6: Agency | AP6: Cont'r | AQ6: Agency | AR6: Cont'r | AS6: Agency | AT6: Cont'r | AU6: Agency | AX6: =$B$6 -> SPEC. YEAR "2012" | AZ6: Cont'r | BA6: Agency | BB6: Cont'r | BC6: Agency | BD6: Cont'r | BE6: Agency | BF6: Cont'r | BG6: Agency | BJ6: =$B$6 -> SPEC. YEAR "2012" | BL6: Cont'r | BM6: Agency | BN6: Cont'r | BO6: Agency | BP6: Cont'r | BQ6: Agency | BR6: Cont'r | BS6: Agency | BV6: =$B$6 -> SPEC. YEAR "2012" | BX6: Cont'r | BY6: Agency | BZ6: Cont'r | CA6: Agency | CB6: Cont'r | CC6: Agency | CD6: Cont'r | CE6: Agency | CH6: =$B$6 -> SPEC. YEAR "2012" | CJ6: Cont'r | CK6: Agency | CL6: Cont'r | CM6: Agency | CN6: Cont'r | CO6: Agency | CP6: Cont'r | CQ6: Agency | CT6: =$B$6 -> SPEC. YEAR "2012" | CV6: Cont'r | CW6: Agency | CX6: Cont'r | CY6: Agency | CZ6: Cont'r | DA6: Agency | DB6: Cont'r | DC6: Agency | DF6: =$B$6 -> SPEC. YEAR "2012" | DH6: Cont'r | DI6: Agency | DJ6: Cont'r | DK6: Agency | DL6: Cont'r | DM6: Agency | DN6: Cont'r | DO6: Agency | DR6: =$B$6 -> SPEC. YEAR "2012" | DT6: Cont'r | DU6: Agency | DV6: Cont'r | DW6: Agency | DX6: Cont'r | DY6: Agency | DZ6: Cont'r | EA6: Agency | ED6: =$B$6 -> SPEC. YEAR "2012" | EF6: Cont'r | EG6: Agency | EH6: Cont'r | EI6: Agency | EJ6: Cont'r | EK6: Agency | EL6: Cont'r | EM6: Agency | EP6: =$B$6 -> SPEC. YEAR "2012" | ER6: Cont'r | ES6: Agency | ET6: Cont'r | EU6: Agency | EV6: Cont'r | EW6: Agency | EX6: Cont'r | EY6: Agency | FB6: =$B$6 -> SPEC. YEAR "2012" | FD6: Cont'r | FE6: Agency | FF6: Cont'r | FG6: Agency | FH6: Cont'r | FI6: Agency | FJ6: Cont'r | FK6: Agency | FN6: =$B$6 -> SPEC. YEAR "2012" | FP6: Cont'r | FQ6: Agency | FR6: Cont'r | FS6: Agency | FT6: Cont'r | FU6: Agency | FV6: Cont'r | FW6: Agency | FZ6: =$B$6 -> SPEC. YEAR "2012" | GB6: Cont'r | GC6: Agency | GD6: Cont'r | GE6: Agency | GF6: Cont'r | GG6: Agency | GH6: Cont'r | GI6: Agency | GL6: =$B$6 -> SPEC. YEAR "2012" | GN6: Cont'r | GO6: Agency | GP6: Cont'r | GQ6: Agency | GR6: Cont'r | GS6: Agency | GT6: Cont'r | GU6: Agency | GX6: =$B$6 -> SPEC. YEAR "2012" | GZ6: Cont'r | HA6: Agency | HB6: Cont'r | HC6: Agency | HD6: Cont'r | HE6: Agency | HF6: Cont'r | HG6: Agency | HJ6: =$B$6 -> SPEC. YEAR "2012" | HL6: Cont'r | HM6: Agency | HN6: Cont'r | HO6: Agency | HP6: Cont'r | HQ6: Agency | HR6: Cont'r | HS6: Agency | HV6: =$B$6 -> SPEC. YEAR "2012" | HX6: Cont'r | HY6: Agency | HZ6: Cont'r | IA6: Agency | IB6: Cont'r | IC6: Agency | ID6: Cont'r | IE6: Agency | IH6: =$B$6 -> SPEC. YEAR "2012" | IJ6: Cont'r | IK6: Agency | IL6: Cont'r | IM6: Agency | IN6: Cont'r | IO6: Agency | IP6: Cont'r | IQ6: Agency
A7: ACsg | C7: Test# | D7: 301 | F7: =D7+1 -> 302 | H7: =F7+1 -> 303 | J7: =H7+1 -> 304 | M7: ACsg | N7: =+B7 -> 0 | O7: Test# | P7: =J7+1 -> 305 | R7: =P7+1 -> 306 | T7: =R7+1 -> 307 | V7: =T7+1 -> 308 | Y7: ACsg | Z7: =+N7 -> 0 | AA7: Test# | AB7: =V7+1 -> 309 | AD7: =AB7+1 -> 310 | AF7: =AD7+1 -> 311 | AH7: =AF7+1 -> 312 | AK7: ACsg | AL7: =+Z7 -> 0 | AM7: Test# | AN7: =AH7+1 -> 313 | AP7: =AN7+1 -> 314 | AR7: =AP7+1 -> 315 | AT7: =AR7+1 -> 316 | AW7: ACsg | AX7: =+AL7 -> 0 | AY7: Test# | AZ7: =AT7+1 -> 317 | BB7: =AZ7+1 -> 318 | BD7: =BB7+1 -> 319 | BF7: =BD7+1 -> 320 | BI7: ACsg | BJ7: =+AX7 -> 0 | BK7: Test# | BL7: =BF7+1 -> 321 | BN7: =BL7+1 -> 322 | BP7: =BN7+1 -> 323 | BR7: =BP7+1 -> 324 | BU7: ACsg | BV7: =+BJ7 -> 0 | BW7: Test# | BX7: =BR7+1 -> 325 | BZ7: =BX7+1 -> 326 | CB7: =BZ7+1 -> 327 | CD7: =CB7+1 -> 328 | CG7: ACsg | CH7: =+BV7 -> 0 | CI7: Test# | CJ7: =CD7+1 -> 329 | CL7: =CJ7+1 -> 330 | CN7: =CL7+1 -> 331 | CP7: =CN7+1 -> 332 | CS7: ACsg | CT7: =+CH7 -> 0 | CU7: Test# | CV7: =CP7+1 -> 333 | CX7: =CV7+1 -> 334 | CZ7: =CX7+1 -> 335 | DB7: =CZ7+1 -> 336 | DE7: ACsg | DF7: =+CT7 -> 0 | DG7: Test# | DH7: =DB7+1 -> 337 | DJ7: =DH7+1 -> 338 | DL7: =DJ7+1 -> 339 | DN7: =DL7+1 -> 340 | DQ7: ACsg | DR7: =+DF7 -> 0 | DS7: Test# | DT7: =DN7+1 -> 341 | DV7: =DT7+1 -> 342 | DX7: =DV7+1 -> 343 | DZ7: =DX7+1 -> 344 | EC7: ACsg | ED7: =+DR7 -> 0 | EE7: Test# | EF7: =DZ7+1 -> 345 | EH7: =EF7+1 -> 346 | EJ7: =EH7+1 -> 347 | EL7: =EJ7+1 -> 348 | EO7: ACsg | EP7: =+ED7 -> 0 | EQ7: Test# | ER7: =EL7+1 -> 349 | ET7: =ER7+1 -> 350 | EV7: =ET7+1 -> 351 | EX7: =EV7+1 -> 352 | FA7: ACsg | FB7: =+EP7 -> 0 | FC7: Test# | FD7: =EX7+1 -> 353 | FF7: =FD7+1 -> 354 | FH7: =FF7+1 -> 355 | FJ7: =FH7+1 -> 356 | FM7: ACsg | FN7: =+FB7 -> 0 | FO7: Test# | FP7: =FJ7+1 -> 357 | FR7: =FP7+1 -> 358 | FT7: =FR7+1 -> 359 | FV7: =FT7+1 -> 360 | FY7: ACsg | FZ7: =+FN7 -> 0 | GA7: Test# | GB7: =FV7+1 -> 361 | GD7: =GB7+1 -> 362 | GF7: =GD7+1 -> 363 | GH7: =GF7+1 -> 364 | GK7: ACsg | GL7: =+FZ7 -> 0 | GM7: Test# | GN7: =GH7+1 -> 365 | GP7: =GN7+1 -> 366 | GR7: =GP7+1 -> 367 | GT7: =GR7+1 -> 368 | GW7: ACsg | GX7: =+GL7 -> 0 | GY7: Test# | GZ7: =GT7+1 -> 369 | HB7: =GZ7+1 -> 370 | HD7: =HB7+1 -> 371 | HF7: =HD7+1 -> 372 | HI7: ACsg | HJ7: =+GX7 -> 0 | HK7: Test# | HL7: =HF7+1 -> 373 | HN7: =HL7+1 -> 374 | HP7: =HN7+1 -> 375 | HR7: =HP7+1 -> 376 | HU7: ACsg | HV7: =+HJ7 -> 0 | HW7: Test# | HX7: =HR7+1 -> 377 | HZ7: =HX7+1 -> 378 | IB7: =HZ7+1 -> 379 | ID7: =IB7+1 -> 380 | IG7: ACsg | IH7: =+HV7 -> 0 | II7: Test# | IJ7: =ID7+1 -> 381 | IL7: =IJ7+1 -> 382 | IN7: =IL7+1 -> 383 | IP7: =IN7+1 -> 384 | IV7: Verif.
C8: Date/Day: | F8: =D8 -> 0 | H8: =F8 -> 0 | J8: =IF(H8="","",H8) -> 0 | O8: Date/Day: | P8: =J8 -> 0 | R8: =P8 -> 0 | T8: =R8 -> 0 | V8: =T8 -> 0 | AA8: Date/Day: | AB8: =V8 -> 0 | AD8: =AB8 -> 0 | AF8: =AD8 -> 0 | AH8: =AF8 -> 0 | AM8: Date/Day: | AN8: =AH8 -> 0 | AP8: =AN8 -> 0 | AR8: =AP8 -> 0 | AT8: =AR8 -> 0 | AY8: Date/Day: | AZ8: =AT8 -> 0 | BB8: =AZ8 -> 0 | BD8: =BB8 -> 0 | BF8: =BD8 -> 0 | BK8: Date/Day: | BL8: =BF8 -> 0 | BN8: =BL8 -> 0 | BP8: =BN8 -> 0 | BR8: =BP8 -> 0 | BW8: Date/Day: | BX8: =BR8 -> 0 | BZ8: =BX8 -> 0 | CB8: =BZ8 -> 0 | CD8: =CB8 -> 0 | CI8: Date/Day: | CJ8: =CD8 -> 0 | CL8: =CJ8 -> 0 | CN8: =CL8 -> 0 | CP8: =CN8 -> 0 | CU8: Date/Day: | CV8: =CP8 -> 0 | CX8: =CV8 -> 0 | CZ8: =CX8 -> 0 | DB8: =CZ8 -> 0 | DG8: Date/Day: | DH8: =DB8 -> 0 | DJ8: =DH8 -> 0 | DL8: =DJ8 -> 0 | DN8: =DL8 -> 0 | DS8: Date/Day: | DT8: =DN8 -> 0 | DV8: =DT8 -> 0 | DX8: =DV8 -> 0 | DZ8: =DX8 -> 0 | EE8: Date/Day: | EF8: =DZ8 -> 0 | EH8: =EF8 -> 0 | EJ8: =EH8 -> 0 | EL8: =EJ8 -> 0 | EQ8: Date/Day: | ER8: =EL8 -> 0 | ET8: =ER8 -> 0 | EV8: =ET8 -> 0 | EX8: =EV8 -> 0 | FC8: Date/Day: | FD8: =EX8 -> 0 | FF8: =FD8 -> 0 | FH8: =FF8 -> 0 | FJ8: =FH8 -> 0 | FO8: Date/Day: | FP8: =FJ8 -> 0 | FR8: =FP8 -> 0 | FT8: =FR8 -> 0 | FV8: =FT8 -> 0 | GA8: Date/Day: | GB8: =FV8 -> 0 | GD8: =GB8 -> 0 | GF8: =GD8 -> 0 | GH8: =GF8 -> 0 | GM8: Date/Day: | GN8: =GH8 -> 0 | GP8: =GN8 -> 0 | GR8: =GP8 -> 0 | GT8: =GR8 -> 0 | GY8: Date/Day: | GZ8: =GX8 -> 0 | HB8: =GZ8 -> 0 | HD8: =HB8 -> 0 | HF8: =HD8 -> 0 | HK8: Date/Day: | HL8: =HF8 -> 0 | HN8: =HL8 -> 0 | HP8: =HN8 -> 0 | HR8: =HP8 -> 0 | HW8: Date/Day: | HX8: =HR8 -> 0 | HZ8: =HX8 -> 0 | IB8: =HZ8 -> 0 | ID8: =IB8 -> 0 | II8: Date/Day: | IJ8: =ID8 -> 0 | IL8: =IJ8 -> 0 | IN8: =IL8 -> 0 | IP8: =IN8 -> 0
C9: MDR # | D9: =MDR!B12 -> 0 | F9: =MDR!B13 ->  | H9: =MDR!B14 ->  | J9: =MDR!B15 ->  | O9: MDR # | P9: =MDR!B16 ->  | R9: =MDR!B17 ->  | T9: =MDR!B18 ->  | V9: =MDR!B19 ->  | AA9: MDR # | AB9: =MDR!B20 ->  | AD9: =MDR!B21 ->  | AF9: =MDR!B22 ->  | AH9: =MDR!B23 ->  | AM9: MDR # | AN9: =MDR!B24 ->  | AP9: =MDR!B25 ->  | AR9: =MDR!B26 ->  | AT9: =MDR!B27 ->  | AY9: MDR # | AZ9: =MDR!B28 ->  | BB9: =MDR!B29 ->  | BD9: =MDR!B30 ->  | BF9: =MDR!B31 ->  | BK9: MDR # | BL9: =MDR!B32 ->  | BN9: =MDR!B33 ->  | BP9: =MDR!B34 ->  | BR9: =MDR!B35 ->  | BW9: MDR # | BX9: =MDR!B36 ->  | BZ9: =MDR!B37 ->  | CB9: =MDR!B38 ->  | CD9: =MDR!B39 ->  | CI9: MDR # | CJ9: =MDR!B40 ->  | CL9: =MDR!B41 ->  | CN9: =MDR!B42 ->  | CP9: =MDR!B43 ->  | CU9: MDR # | CV9: =MDR!B44 ->  | CX9: =MDR!B45 ->  | CZ9: =MDR!B46 ->  | DB9: =MDR!B47 ->  | DG9: MDR # | DH9: =MDR!B48 ->  | DJ9: =MDR!B49 ->  | DL9: =MDR!B50 ->  | DN9: =MDR!B51 ->  | DS9: MDR # | DT9: =MDR!B52 ->  | DV9: =MDR!B53 ->  | DX9: =MDR!B54 ->  | DZ9: =MDR!B55 ->  | EE9: MDR # | EF9: =MDR!B56 ->  | EH9: =MDR!B57 ->  | EJ9: =MDR!B58 ->  | EL9: =MDR!B59 ->  | EQ9: MDR # | ER9: =MDR!B60 ->  | ET9: =MDR!B61 ->  | EV9: =MDR!B62 ->  | EX9: =MDR!B63 ->  | FC9: MDR # | FD9: =MDR!B64 ->  | FF9: =MDR!B65 ->  | FH9: =MDR!B66 ->  | FJ9: =MDR!B67 ->  | FO9: MDR # | FP9: =MDR!B68 ->  | FR9: =MDR!B69 ->  | FT9: =MDR!B70 ->  | FV9: =MDR!B71 ->  | GA9: MDR # | GB9: =MDR!B72 ->  | GD9: =MDR!B73 ->  | GF9: =MDR!B74 ->  | GH9: =MDR!B75 ->  | GM9: MDR # | GN9: =MDR!B76 ->  | GP9: =MDR!B77 ->  | GR9: =MDR!B78 ->  | GT9: =MDR!B79 ->  | GY9: MDR # | GZ9: =MDR!B80 ->  | HB9: =MDR!B81 ->  | HD9: =MDR!B82 ->  | HF9: =MDR!B83 ->  | HK9: MDR # | HL9: =MDR!B84 ->  | HN9: =MDR!B85 ->  | HP9: =MDR!B86 ->  | HR9: =MDR!B87 ->  | HW9: MDR # | HX9: =MDR!B88 ->  | HZ9: =MDR!B89 ->  | IB9: =MDR!B90 ->  | ID9: =MDR!B91 ->  | II9: MDR # | IJ9: =MDR!B92 ->  | IL9: =MDR!B93 ->  | IN9: =MDR!B94 ->  | IP9: =MDR!B95 -> 
A10: - 4 Aggregate Bulk SpG.(Gsb) = | D10: =E138 ->  | F10: =G138 ->  | H10: =I138 ->  | J10: =K138 ->  | M10: - 4 Aggregate Bulk SpG.( Gsb ) = | P10: =Q138 ->  | R10: =S138 ->  | T10: =U138 ->  | V10: =W138 ->  | Y10: - 4 Aggregate Bulk SpG.( Gsb ) = | AB10: =AC138 ->  | AD10: =AE138 ->  | AF10: =AG138 ->  | AH10: =AI138 ->  | AK10: - 4 Aggregate Bulk SpG.( Gsb ) = | AN10: =AO138 ->  | AP10: =AQ138 ->  | AR10: =AS138 ->  | AT10: =AU138 ->  | AW10: - 4 Aggregate Bulk SpG.( Gsb ) = | AZ10: =BA138 ->  | BB10: =BC138 ->  | BD10: =BE138 ->  | BF10: =BG138 ->  | BI10: - 4 Aggregate Bulk SpG.( Gsb ) = | BL10: =BM138 ->  | BN10: =BO138 ->  | BP10: =BQ138 ->  | BR10: =BS138 ->  | BU10: - 4 Aggregate Bulk SpG.( Gsb ) = | BX10: =BY138 ->  | BZ10: =CA138 ->  | CB10: =CC138 ->  | CD10: =CE138 ->  | CG10: - 4 Aggregate Bulk SpG.( Gsb ) = | CJ10: =CK138 ->  | CL10: =CM138 ->  | CN10: =CO138 ->  | CP10: =CQ138 ->  | CS10: - 4 Aggregate Bulk SpG.( Gsb ) = | CV10: =CW138 ->  | CX10: =CY138 ->  | CZ10: =DA138 ->  | DB10: =DC138 ->  | DE10: - 4 Aggregate Bulk SpG.( Gsb ) = | DH10: =DI138 ->  | DJ10: =DK138 ->  | DL10: =DM138 ->  | DN10: =DO138 ->  | DQ10: - 4 Aggregate Bulk SpG.( Gsb ) = | DT10: =DU138 ->  | DV10: =DW138 ->  | DX10: =DY138 ->  | DZ10: =EA138 ->  | EC10: - 4 Aggregate Bulk SpG.( Gsb ) = | EF10: =EG138 ->  | EH10: =EI138 ->  | EJ10: =EK138 ->  | EL10: =EM138 ->  | EO10: - 4 Aggregate Bulk SpG.( Gsb ) = | ER10: =ES138 ->  | ET10: =EU138 ->  | EV10: =EW138 ->  | EX10: =EY138 ->  | FA10: - 4 Aggregate Bulk SpG.( Gsb ) = | FD10: =FE138 ->  | FF10: =FG138 ->  | FH10: =FI138 ->  | FJ10: =FK138 ->  | FM10: - 4 Aggregate Bulk SpG.( Gsb ) = | FP10: =FQ138 ->  | FR10: =FS138 ->  | FT10: =FU138 ->  | FV10: =FW138 ->  | FY10: - 4 Aggregate Bulk SpG.( Gsb ) = | GB10: =GC138 ->  | GD10: =GE138 ->  | GF10: =GG138 ->  | GH10: =GI138 ->  | GK10: - 4 Aggregate Bulk SpG.( Gsb ) = | GN10: =GO138 ->  | GP10: =GQ138 ->  | GR10: =GS138 ->  | GT10: =GU138 ->  | GW10: - 4 Aggregate Bulk SpG.( Gsb ) = | GZ10: =HA138 ->  | HB10: =HC138 ->  | HD10: =HE138 ->  | HF10: =HG138 ->  | HI10: - 4 Aggregate Bulk SpG.( Gsb ) = | HL10: =HM138 ->  | HN10: =HO138 ->  | HP10: =HQ138 ->  | HR10: =HS138 ->  | HU10: - 4 Aggregate Bulk SpG.( Gsb ) = | HX10: =HY138 ->  | HZ10: =IA138 ->  | IB10: =IC138 ->  | ID10: =IE138 ->  | IG10: - 4 Aggregate Bulk SpG.( Gsb ) = | IJ10: =IK138 ->  | IL10: =IM138 ->  | IN10: =IO138 ->  | IP10: =IQ138 -> 
A11: Mix Aggregate Bulk SpG.( Gsb ) = | D11: =E141 ->  | F11: =G141 ->  | H11: =I141 ->  | J11: =K141 ->  | N11: Mix Aggregate Bulk SpG.( Gsb ) = | P11: =Q141 ->  | R11: =S141 ->  | T11: =U141 ->  | V11: =W141 ->  | Z11: Mix Aggregate Bulk SpG.( Gsb ) = | AB11: =AC141 ->  | AD11: =AE141 ->  | AF11: =AG141 ->  | AH11: =AI141 ->  | AL11: Mix Aggregate Bulk SpG.( Gsb ) = | AN11: =AO141 ->  | AP11: =AQ141 ->  | AR11: =AS141 ->  | AT11: =AU141 ->  | AX11: Mix Aggregate Bulk SpG.( Gsb ) = | AZ11: =BA141 ->  | BB11: =BC141 ->  | BD11: =BE141 ->  | BF11: =BG141 ->  | BJ11: Mix Aggregate Bulk SpG.( Gsb ) = | BL11: =BM141 ->  | BN11: =BO141 ->  | BP11: =BQ141 ->  | BR11: =BS141 ->  | BV11: Mix Aggregate Bulk SpG.( Gsb ) = | BX11: =BY141 ->  | BZ11: =CA141 ->  | CB11: =CC141 ->  | CD11: =CE141 ->  | CH11: Mix Aggregate Bulk SpG.( Gsb ) = | CJ11: =CK141 ->  | CL11: =CM141 ->  | CN11: =CO141 ->  | CP11: =CQ141 ->  | CT11: Mix Aggregate Bulk SpG.( Gsb ) = | CV11: =CW141 ->  | CX11: =CY141 ->  | CZ11: =DA141 ->  | DB11: =DC141 ->  | DF11: Mix Aggregate Bulk SpG.( Gsb ) = | DH11: =DI141 ->  | DJ11: =DK141 ->  | DL11: =DM141 ->  | DN11: =DO141 ->  | DR11: Mix Aggregate Bulk SpG.( Gsb ) = | DT11: =DU141 ->  | DV11: =DW141 ->  | DX11: =DY141 ->  | DZ11: =EA141 ->  | ED11: Mix Aggregate Bulk SpG.( Gsb ) = | EF11: =EG141 ->  | EH11: =EI141 ->  | EJ11: =EK141 ->  | EL11: =EM141 ->  | EP11: Mix Aggregate Bulk SpG.( Gsb ) = | ER11: =ES141 ->  | ET11: =EU141 ->  | EV11: =EW141 ->  | EX11: =EY141 ->  | FB11: Mix Aggregate Bulk SpG.( Gsb ) = | FD11: =FE141 ->  | FF11: =FG141 ->  | FH11: =FI141 ->  | FJ11: =FK141 ->  | FN11: Mix Aggregate Bulk SpG.( Gsb ) = | FP11: =FQ141 ->  | FR11: =FS141 ->  | FT11: =FU141 ->  | FV11: =FW141 ->  | FZ11: Mix Aggregate Bulk SpG.( Gsb ) = | GB11: =GC141 ->  | GD11: =GE141 ->  | GF11: =GG141 ->  | GH11: =GI141 ->  | GL11: Mix Aggregate Bulk SpG.( Gsb ) = | GN11: =GO141 ->  | GP11: =GQ141 ->  | GR11: =GS141 ->  | GT11: =GU141 ->  | GX11: Mix Aggregate Bulk SpG.( Gsb ) = | GZ11: =HA141 ->  | HB11: =HC141 ->  | HD11: =HE141 ->  | HF11: =HG141 ->  | HJ11: Mix Aggregate Bulk SpG.( Gsb ) = | HL11: =HM141 ->  | HN11: =HO141 ->  | HP11: =HQ141 ->  | HR11: =HS141 ->  | HV11: Mix Aggregate Bulk SpG.( Gsb ) = | HX11: =HY141 ->  | HZ11: =IA141 ->  | IB11: =IC141 ->  | ID11: =IE141 ->  | IH11: Mix Aggregate Bulk SpG.( Gsb ) = | IJ11: =IK141 ->  | IL11: =IM141 ->  | IN11: =IO141 ->  | IP11: =IQ141 ->  | IT11: 0 | IU11: Agency AFT Substituted
A12: Ignition Oven Calibration Factor = | D12: 0 | F12: =D12 -> 0 | H12: =F12 -> 0 | J12: =H12 -> 0 | M12: Ignition Oven Calibration Factor = | P12: =J12 -> 0 | R12: =P12 -> 0 | T12: =R12 -> 0 | V12: =T12 -> 0 | Y12: Ignition Oven Calibration Factor = | AB12: =V12 -> 0 | AD12: =AB12 -> 0 | AF12: =AD12 -> 0 | AH12: =AF12 -> 0 | AK12: Ignition Oven Calibration Factor = | AN12: =AH12 -> 0 | AP12: =AN12 -> 0 | AR12: =AP12 -> 0 | AT12: =AR12 -> 0 | AW12: Ignition Oven Calibration Factor = | AZ12: =AT12 -> 0 | BB12: =AZ12 -> 0 | BD12: =BB12 -> 0 | BF12: =BD12 -> 0 | BI12: Ignition Oven Calibration Factor = | BL12: =BF12 -> 0 | BN12: =BL12 -> 0 | BP12: =BN12 -> 0 | BR12: =BP12 -> 0 | BU12: Ignition Oven Calibration Factor = | BX12: =BR12 -> 0 | BZ12: =BX12 -> 0 | CB12: =BZ12 -> 0 | CD12: =CB12 -> 0 | CG12: Ignition Oven Calibration Factor = | CJ12: =CD12 -> 0 | CL12: =CJ12 -> 0 | CN12: =CL12 -> 0 | CP12: =CN12 -> 0 | CS12: Ignition Oven Calibration Factor = | CV12: =CP12 -> 0 | CX12: =CV12 -> 0 | CZ12: =CX12 -> 0 | DB12: =CZ12 -> 0 | DE12: Ignition Oven Calibration Factor = | DH12: =DB12 -> 0 | DJ12: =DH12 -> 0 | DL12: =DJ12 -> 0 | DN12: =DL12 -> 0 | DQ12: Ignition Oven Calibration Factor = | DT12: =DN12 -> 0 | DV12: =DT12 -> 0 | DX12: =DV12 -> 0 | DZ12: =DX12 -> 0 | EC12: Ignition Oven Calibration Factor = | EF12: =DZ12 -> 0 | EH12: =EF12 -> 0 | EJ12: =EH12 -> 0 | EL12: =EJ12 -> 0 | EO12: Ignition Oven Calibration Factor = | ER12: =EL12 -> 0 | ET12: =ER12 -> 0 | EV12: =ET12 -> 0 | EX12: =EV12 -> 0 | FA12: Ignition Oven Calibration Factor = | FD12: =EX12 -> 0 | FF12: =FD12 -> 0 | FH12: =FF12 -> 0 | FJ12: =FH12 -> 0 | FM12: Ignition Oven Calibration Factor = | FP12: =FJ12 -> 0 | FR12: =FP12 -> 0 | FT12: =FR12 -> 0 | FV12: =FT12 -> 0 | FY12: Ignition Oven Calibration Factor = | GB12: =FV12 -> 0 | GD12: =GB12 -> 0 | GF12: =GD12 -> 0 | GH12: =GF12 -> 0 | GK12: Ignition Oven Calibration Factor = | GN12: =GH12 -> 0 | GP12: =GN12 -> 0 | GR12: =GP12 -> 0 | GT12: =GR12 -> 0 | GW12: Ignition Oven Calibration Factor = | GZ12: =GX12 -> 0 | HB12: =GZ12 -> 0 | HD12: =HB12 -> 0 | HF12: =HD12 -> 0 | HI12: Ignition Oven Calibration Factor = | HL12: =HF12 -> 0 | HN12: =HL12 -> 0 | HP12: =HN12 -> 0 | HR12: =HP12 -> 0 | HU12: Ignition Oven Calibration Factor = | HX12: =HR12 -> 0 | HZ12: =HX12 -> 0 | IB12: =HZ12 -> 0 | ID12: =IB12 -> 0 | IG12: Ignition Oven Calibration Factor = | IJ12: =ID12 -> 0 | IL12: =IJ12 -> 0 | IN12: =IL12 -> 0 | IP12: =IN12 -> 0 | IT12: 0 | IU12: Agency AFT Substituted
A13: 1" | B13: min. | C13: max. | M13: 1" | N13: min. | O13: max. | Y13: 1" | Z13: min. | AA13: max. | AK13: 1" | AL13: min. | AM13: max. | AW13: 1" | AX13: min. | AY13: max. | BI13: 1" | BJ13: min. | BK13: max. | BU13: 1" | BV13: min. | BW13: max. | CG13: 1" | CH13: min. | CI13: max. | CS13: 1" | CT13: min. | CU13: max. | DE13: 1" | DF13: min. | DG13: max. | DQ13: 1" | DR13: min. | DS13: max. | EC13: 1" | ED13: min. | EE13: max. | EO13: 1" | EP13: min. | EQ13: max. | FA13: 1" | FB13: min. | FC13: max. | FM13: 1" | FN13: min. | FO13: max. | FY13: 1" | FZ13: min. | GA13: max. | GK13: 1" | GL13: min. | GM13: max. | GW13: 1" | GX13: min. | GY13: max. | HI13: 1" | HJ13: min. | HK13: max. | HU13: 1" | HV13: min. | HW13: max. | IG13: 1" | IH13: min. | II13: max. | IT13: 0 | IU13: Agency AFT Substituted
A14: Mov Avg. | B14: 100 | C14: 100 | E14: =IF(E13="","",IF(OR(E13>(D13+6),E13<(D13-6)),"Tolerance","")) ->  | G14: =IF(G13="","",IF(OR(G13>(F13+6),G13<(F13-6)),"Tolerance","")) ->  | I14: =IF(I13="","",IF(OR(I13>(H13+6),I13<(H13-6)),"Tolerance","")) ->  | J14: =mndot_rounding_0(IF(D13="","",IF(F13="","",IF(H13="","",IF(J13="","",Grad!R14))))) ->  | K14: =IF(K13="","",IF(OR(K13>(J13+6),K13<(J13-6)),"Tolerance","")) ->  | M14: Mov Avg. | N14: 100 | O14: 100 | P14: =mndot_rounding_0(Grad!R15) ->  | Q14: =IF(Q13="","",IF(OR(Q13>(P13+6),Q13<(P13-6)),"Tolerance","")) ->  | R14: =mndot_rounding_0(Grad!R16) ->  | S14: =IF(S13="","",IF(OR(S13>(R13+6),S13<(R13-6)),"Tolerance","")) ->  | T14: =mndot_rounding_0(Grad!R17) ->  | U14: =IF(U13="","",IF(OR(U13>(T13+6),U13<(T13-6)),"Tolerance","")) ->  | V14: =mndot_rounding_0(Grad!R18) ->  | W14: =IF(W13="","",IF(OR(W13>(V13+6),W13<(V13-6)),"Tolerance","")) ->  | Y14: Mov Avg. | Z14: 100 | AA14: 100 | AB14: =mndot_rounding_0(Grad!$R19) ->  | AC14: =IF(AC13="","",IF(OR(AC13>(AB13+6),AC13<(AB13-6)),"Tolerance","")) ->  | AD14: =mndot_rounding_0(Grad!$R20) ->  | AE14: =IF(AE13="","",IF(OR(AE13>(AD13+6),AE13<(AD13-6)),"Tolerance","")) ->  | AF14: =mndot_rounding_0(Grad!$R21) ->  | AG14: =IF(AG13="","",IF(OR(AG13>(AF13+6),AG13<(AF13-6)),"Tolerance","")) ->  | AH14: =mndot_rounding_0(Grad!$R22) ->  | AI14: =IF(AI13="","",IF(OR(AI13>(AH13+6),AI13<(AH13-6)),"Tolerance","")) ->  | AK14: Mov Avg. | AL14: 100 | AM14: 100 | AN14: =mndot_rounding_0(Grad!$R23) ->  | AO14: =IF(AO13="","",IF(OR(AO13>(AN13+6),AO13<(AN13-6)),"Tolerance","")) ->  | AP14: =mndot_rounding_0(Grad!$R24) ->  | AQ14: =IF(AQ13="","",IF(OR(AQ13>(AP13+6),AQ13<(AP13-6)),"Tolerance","")) ->  | AR14: =mndot_rounding_0(Grad!$R25) ->  | AS14: =IF(AS13="","",IF(OR(AS13>(AR13+6),AS13<(AR13-6)),"Tolerance","")) ->  | AT14: =mndot_rounding_0(Grad!$R26) ->  | AU14: =IF(AU13="","",IF(OR(AU13>(AT13+6),AU13<(AT13-6)),"Tolerance","")) ->  | AW14: Mov Avg. | AX14: 100 | AY14: 100 | AZ14: =mndot_rounding_0(Grad!$R27) ->  | BA14: =IF(BA13="","",IF(OR(BA13>(AZ13+6),BA13<(AZ13-6)),"Tolerance","")) ->  | BB14: =mndot_rounding_0(Grad!$R28) ->  | BC14: =IF(BC13="","",IF(OR(BC13>(BB13+6),BC13<(BB13-6)),"Tolerance","")) ->  | BD14: =mndot_rounding_0(Grad!$R29) ->  | BE14: =IF(BE13="","",IF(OR(BE13>(BD13+6),BE13<(BD13-6)),"Tolerance","")) ->  | BF14: =mndot_rounding_0(Grad!$R30) ->  | BG14: =IF(BG13="","",IF(OR(BG13>(BF13+6),BG13<(BF13-6)),"Tolerance","")) ->  | BI14: Mov Avg. | BJ14: 100 | BK14: 100 | BL14: =mndot_rounding_0(Grad!$R31) ->  | BM14: =IF(BM13="","",IF(OR(BM13>(BL13+6),BM13<(BL13-6)),"Tolerance","")) ->  | BN14: =mndot_rounding_0(Grad!$R32) ->  | BO14: =IF(BO13="","",IF(OR(BO13>(BN13+6),BO13<(BN13-6)),"Tolerance","")) ->  | BP14: =mndot_rounding_0(Grad!$R33) ->  | BQ14: =IF(BQ13="","",IF(OR(BQ13>(BP13+6),BQ13<(BP13-6)),"Tolerance","")) ->  | BR14: =mndot_rounding_0(Grad!$R34) ->  | BS14: =IF(BS13="","",IF(OR(BS13>(BR13+6),BS13<(BR13-6)),"Tolerance","")) ->  | BU14: Mov Avg. | BV14: 100 | BW14: 100 | BX14: =mndot_rounding_0(Grad!$R35) ->  | BY14: =IF(BY13="","",IF(OR(BY13>(BX13+5),BY13<(BX13-5)),"Tolerance","")) ->  | BZ14: =mndot_rounding_0(Grad!$R36) ->  | CA14: =IF(CA13="","",IF(OR(CA13>(BZ13+5),CA13<(BZ13-5)),"Tolerance","")) ->  | CB14: =mndot_rounding_0(Grad!$R37) ->  | CC14: =IF(CC13="","",IF(OR(CC13>(CB13+5),CC13<(CB13-5)),"Tolerance","")) ->  | CD14: =mndot_rounding_0(Grad!$R38) ->  | CE14: =IF(CE13="","",IF(OR(CE13>(CD13+5),CE13<(CD13-5)),"Tolerance","")) ->  | CG14: Mov Avg. | CH14: 100 | CI14: 100 | CJ14: =mndot_rounding_0(Grad!$R39) ->  | CK14: =IF(CK13="","",IF(OR(CK13>(CJ13+5),CK13<(CJ13-5)),"Tolerance","")) ->  | CL14: =mndot_rounding_0(Grad!$R40) ->  | CM14: =IF(CM13="","",IF(OR(CM13>(CL13+5),CM13<(CL13-5)),"Tolerance","")) ->  | CN14: =mndot_rounding_0(Grad!$R41) ->  | CO14: =IF(CO13="","",IF(OR(CO13>(CN13+5),CO13<(CN13-5)),"Tolerance","")) ->  | CP14: =mndot_rounding_0(Grad!$R42) ->  | CQ14: =IF(CQ13="","",IF(OR(CQ13>(CP13+5),CQ13<(CP13-5)),"Tolerance","")) ->  | CS14: Mov Avg. | CT14: 100 | CU14: 100 | CV14: =mndot_rounding_0(Grad!$R43) ->  | CW14: =IF(CW13="","",IF(OR(CW13>(CV13+5),CW13<(CV13-5)),"Tolerance","")) ->  | CX14: =mndot_rounding_0(Grad!$R44) ->  | CY14: =IF(CY13="","",IF(OR(CY13>(CX13+5),CY13<(CX13-5)),"Tolerance","")) ->  | CZ14: =mndot_rounding_0(Grad!$R45) ->  | DA14: =IF(DA13="","",IF(OR(DA13>(CZ13+5),DA13<(CZ13-5)),"Tolerance","")) ->  | DB14: =mndot_rounding_0(Grad!$R46) ->  | DC14: =IF(DC13="","",IF(OR(DC13>(DB13+5),DC13<(DB13-5)),"Tolerance","")) ->  | DE14: Mov Avg. | DF14: 100 | DG14: 100 | DH14: =mndot_rounding_0(Grad!$R47) ->  | DI14: =IF(DI13="","",IF(OR(DI13>(DH13+5),DI13<(DH13-5)),"Tolerance","")) ->  | DJ14: =mndot_rounding_0(Grad!$R48) ->  | DK14: =IF(DK13="","",IF(OR(DK13>(DJ13+5),DK13<(DJ13-5)),"Tolerance","")) ->  | DL14: =mndot_rounding_0(Grad!$R49) ->  | DM14: =IF(DM13="","",IF(OR(DM13>(DL13+5),DM13<(DL13-5)),"Tolerance","")) ->  | DN14: =mndot_rounding_0(Grad!$R50) ->  | DO14: =IF(DO13="","",IF(OR(DO13>(DN13+5),DO13<(DN13-5)),"Tolerance","")) ->  | DQ14: Mov Avg. | DR14: 100 | DS14: 100 | DT14: =mndot_rounding_0(Grad!$R51) ->  | DU14: =IF(DU13="","",IF(OR(DU13>(DT13+5),DU13<(DT13-5)),"Tolerance","")) ->  | DV14: =mndot_rounding_0(Grad!$R52) ->  | DW14: =IF(DW13="","",IF(OR(DW13>(DV13+5),DW13<(DV13-5)),"Tolerance","")) ->  | DX14: =mndot_rounding_0(Grad!$R53) ->  | DY14: =IF(DY13="","",IF(OR(DY13>(DX13+5),DY13<(DX13-5)),"Tolerance","")) ->  | DZ14: =mndot_rounding_0(Grad!$R54) ->  | EA14: =IF(EA13="","",IF(OR(EA13>(DZ13+5),EA13<(DZ13-5)),"Tolerance","")) ->  | EC14: Mov Avg. | ED14: 100 | EE14: 100 | EF14: =mndot_rounding_0(Grad!$R55) ->  | EG14: =IF(EG13="","",IF(OR(EG13>(EF13+5),EG13<(EF13-5)),"Tolerance","")) ->  | EH14: =mndot_rounding_0(Grad!$R56) ->  | EI14: =IF(EI13="","",IF(OR(EI13>(EH13+5),EI13<(EH13-5)),"Tolerance","")) ->  | EJ14: =mndot_rounding_0(Grad!$R57) ->  | EK14: =IF(EK13="","",IF(OR(EK13>(EJ13+5),EK13<(EJ13-5)),"Tolerance","")) ->  | EL14: =mndot_rounding_0(Grad!$R58) ->  | EM14: =IF(EM13="","",IF(OR(EM13>(EL13+5),EM13<(EL13-5)),"Tolerance","")) ->  | EO14: Mov Avg. | EP14: 100 | EQ14: 100 | ER14: =mndot_rounding_0(Grad!$R59) ->  | ES14: =IF(ES13="","",IF(OR(ES13>(ER13+5),ES13<(ER13-5)),"Tolerance","")) ->  | ET14: =mndot_rounding_0(Grad!$R60) ->  | EU14: =IF(EU13="","",IF(OR(EU13>(ET13+5),EU13<(ET13-5)),"Tolerance","")) ->  | EV14: =mndot_rounding_0(Grad!$R61) ->  | EW14: =IF(EW13="","",IF(OR(EW13>(EV13+5),EW13<(EV13-5)),"Tolerance","")) ->  | EX14: =mndot_rounding_0(Grad!$R62) ->  | EY14: =IF(EY13="","",IF(OR(EY13>(EX13+5),EY13<(EX13-5)),"Tolerance","")) ->  | FA14: Mov Avg. | FB14: 100 | FC14: 100 | FD14: =mndot_rounding_0(Grad!$R63) ->  | FE14: =IF(FE13="","",IF(OR(FE13>(FD13+5),FE13<(FD13-5)),"Tolerance","")) ->  | FF14: =mndot_rounding_0(Grad!$R64) ->  | FG14: =IF(FG13="","",IF(OR(FG13>(FF13+5),FG13<(FF13-5)),"Tolerance","")) ->  | FH14: =mndot_rounding_0(Grad!$R65) ->  | FI14: =IF(FI13="","",IF(OR(FI13>(FH13+5),FI13<(FH13-5)),"Tolerance","")) ->  | FJ14: =mndot_rounding_0(Grad!$R66) ->  | FK14: =IF(FK13="","",IF(OR(FK13>(FJ13+5),FK13<(FJ13-5)),"Tolerance","")) ->  | FM14: Mov Avg. | FN14: 100 | FO14: 100 | FP14: =mndot_rounding_0(Grad!$R67) ->  | FQ14: =IF(FQ13="","",IF(OR(FQ13>(FP13+5),FQ13<(FP13-5)),"Tolerance","")) ->  | FR14: =mndot_rounding_0(Grad!$R68) ->  | FS14: =IF(FS13="","",IF(OR(FS13>(FR13+5),FS13<(FR13-5)),"Tolerance","")) ->  | FT14: =mndot_rounding_0(Grad!$R69) ->  | FU14: =IF(FU13="","",IF(OR(FU13>(FT13+5),FU13<(FT13-5)),"Tolerance","")) ->  | FV14: =mndot_rounding_0(Grad!$R70) ->  | FW14: =IF(FW13="","",IF(OR(FW13>(FV13+5),FW13<(FV13-5)),"Tolerance","")) ->  | FY14: Mov Avg. | FZ14: 100 | GA14: 100 | GB14: =mndot_rounding_0(Grad!$R71) ->  | GC14: =IF(GC13="","",IF(OR(GC13>(GB13+5),GC13<(GB13-5)),"Tolerance","")) ->  | GD14: =mndot_rounding_0(Grad!$R72) ->  | GE14: =IF(GE13="","",IF(OR(GE13>(GD13+5),GE13<(GD13-5)),"Tolerance","")) ->  | GF14: =mndot_rounding_0(Grad!$R73) ->  | GG14: =IF(GG13="","",IF(OR(GG13>(GF13+5),GG13<(GF13-5)),"Tolerance","")) ->  | GH14: =mndot_rounding_0(Grad!$R74) ->  | GI14: =IF(GI13="","",IF(OR(GI13>(GH13+5),GI13<(GH13-5)),"Tolerance","")) ->  | GK14: Mov Avg. | GL14: 100 | GM14: 100 | GN14: =mndot_rounding_0(Grad!$R75) ->  | GO14: =IF(GO13="","",IF(OR(GO13>(GN13+5),GO13<(GN13-5)),"Tolerance","")) ->  | GP14: =mndot_rounding_0(Grad!$R76) ->  | GQ14: =IF(GQ13="","",IF(OR(GQ13>(GP13+5),GQ13<(GP13-5)),"Tolerance","")) ->  | GR14: =mndot_rounding_0(Grad!$R77) ->  | GS14: =IF(GS13="","",IF(OR(GS13>(GR13+5),GS13<(GR13-5)),"Tolerance","")) ->  | GT14: =mndot_rounding_0(Grad!$R78) ->  | GU14: =IF(GU13="","",IF(OR(GU13>(GT13+5),GU13<(GT13-5)),"Tolerance","")) ->  | GW14: Mov Avg. | GX14: 100 | GY14: 100 | GZ14: =mndot_rounding_0(Grad!$R79) ->  | HA14: =IF(HA13="","",IF(OR(HA13>(GZ13+5),HA13<(GZ13-5)),"Tolerance","")) ->  | HB14: =mndot_rounding_0(Grad!$R80) ->  | HC14: =IF(HC13="","",IF(OR(HC13>(HB13+5),HC13<(HB13-5)),"Tolerance","")) ->  | HD14: =mndot_rounding_0(Grad!$R81) ->  | HE14: =IF(HE13="","",IF(OR(HE13>(HD13+5),HE13<(HD13-5)),"Tolerance","")) ->  | HF14: =mndot_rounding_0(Grad!$R82) ->  | HG14: =IF(HG13="","",IF(OR(HG13>(HF13+5),HG13<(HF13-5)),"Tolerance","")) ->  | HI14: Mov Avg. | HJ14: 100 | HK14: 100 | HL14: =mndot_rounding_0(Grad!$R83) ->  | HM14: =IF(HM13="","",IF(OR(HM13>(HL13+5),HM13<(HL13-5)),"Tolerance","")) ->  | HN14: =mndot_rounding_0(Grad!$R84) ->  | HO14: =IF(HO13="","",IF(OR(HO13>(HN13+5),HO13<(HN13-5)),"Tolerance","")) ->  | HP14: =mndot_rounding_0(Grad!$R85) ->  | HQ14: =IF(HQ13="","",IF(OR(HQ13>(HP13+5),HQ13<(HP13-5)),"Tolerance","")) ->  | HR14: =mndot_rounding_0(Grad!$R86) ->  | HS14: =IF(HS13="","",IF(OR(HS13>(HR13+5),HS13<(HR13-5)),"Tolerance","")) ->  | HU14: Mov Avg. | HV14: 100 | HW14: 100 | HX14: =mndot_rounding_0(Grad!$R87) ->  | HY14: =IF(HY13="","",IF(OR(HY13>(HX13+5),HY13<(HX13-5)),"Tolerance","")) ->  | HZ14: =mndot_rounding_0(Grad!$R88) ->  | IA14: =IF(IA13="","",IF(OR(IA13>(HZ13+5),IA13<(HZ13-5)),"Tolerance","")) ->  | IB14: =mndot_rounding_0(Grad!$R89) ->  | IC14: =IF(IC13="","",IF(OR(IC13>(IB13+5),IC13<(IB13-5)),"Tolerance","")) ->  | ID14: =mndot_rounding_0(Grad!$R90) ->  | IE14: =IF(IE13="","",IF(OR(IE13>(ID13+5),IE13<(ID13-5)),"Tolerance","")) ->  | IG14: Mov Avg. | IH14: 100 | II14: 100 | IJ14: =mndot_rounding_0(Grad!$R91) ->  | IK14: =IF(IK13="","",IF(OR(IK13>(IJ13+5),IK13<(IJ13-5)),"Tolerance","")) ->  | IL14: =mndot_rounding_0(Grad!$R92) ->  | IM14: =IF(IM13="","",IF(OR(IM13>(IL13+5),IM13<(IL13-5)),"Tolerance","")) ->  | IN14: =mndot_rounding_0(Grad!$R93) ->  | IO14: =IF(IO13="","",IF(OR(IO13>(IN13+5),IO13<(IN13-5)),"Tolerance","")) ->  | IP14: =mndot_rounding_0(Grad!$R94) ->  | IQ14: =IF(IQ13="","",IF(OR(IQ13>(IP13+5),IQ13<(IP13-5)),"Tolerance","")) ->  | IT14: 0 | IU14: Agency AFT Substituted
A15: 1" Calc. % | D15: =IF(D13="","",IF(E13="",D13,IF(OR(E13>(D13+6),E13<(D13-6)),E13,D13))) ->  | E15: =IF(E13="","",IF(OR(E13>(D13+6),E13<(D13-6)),"Agncy Repl.","")) ->  | F15: =IF(F13="","",IF(G13="",F13,IF(OR(G13>(F13+6),G13<(F13-6)),G13,F13))) ->  | G15: =IF(G13="","",IF(OR(G13>(F13+6),G13<(F13-6)),"Agncy Repl.","")) ->  | H15: =IF(H13="","",IF(I13="",H13,IF(OR(I13>(H13+6),I13<(H13-6)),I13,H13))) ->  | I15: =IF(I13="","",IF(OR(I13>(H13+6),I13<(H13-6)),"Agncy Repl.","")) ->  | J15: =IF(J13="","",IF(K13="",J13,IF(OR(K13>(J13+6),K13<(J13-6)),K13,J13))) ->  | K15: =IF(K13="","",IF(OR(K13>(J13+6),K13<(J13-6)),"Agncy Repl.","")) ->  | M15: Calc. % | P15: =IF(P13="","",IF(Q13="",P13,IF(OR(Q13>(P13+6),Q13<(P13-6)),Q13,P13))) ->  | Q15: =IF(Q13="","",IF(OR(Q13>(P13+6),Q13<(P13-6)),"Agncy Repl.","")) ->  | R15: =IF(R13="","",IF(S13="",R13,IF(OR(S13>(R13+6),S13<(R13-6)),S13,R13))) ->  | S15: =IF(S13="","",IF(OR(S13>(R13+6),S13<(R13-6)),"Agncy Repl.","")) ->  | T15: =IF(T13="","",IF(U13="",T13,IF(OR(U13>(T13+6),U13<(T13-6)),U13,T13))) ->  | U15: =IF(U13="","",IF(OR(U13>(T13+6),U13<(T13-6)),"Agncy Repl.","")) ->  | V15: =IF(V13="","",IF(W13="",V13,IF(OR(W13>(V13+6),W13<(V13-6)),W13,V13))) ->  | W15: =IF(W13="","",IF(OR(W13>(V13+6),W13<(V13-6)),"Agncy Repl.","")) ->  | Y15: Calc. % | AB15: =IF(AB13="","",IF(AC13="",AB13,IF(OR(AC13>(AB13+6),AC13<(AB13-6)),AC13,AB13))) ->  | AC15: =IF(AC13="","",IF(OR(AC13>(AB13+6),AC13<(AB13-6)),"Agncy Repl.","")) ->  | AD15: =IF(AD13="","",IF(AE13="",AD13,IF(OR(AE13>(AD13+6),AE13<(AD13-6)),AE13,AD13))) ->  | AE15: =IF(AE13="","",IF(OR(AE13>(AD13+6),AE13<(AD13-6)),"Agncy Repl.","")) ->  | AF15: =IF(AF13="","",IF(AG13="",AF13,IF(OR(AG13>(AF13+6),AG13<(AF13-6)),AG13,AF13))) ->  | AG15: =IF(AG13="","",IF(OR(AG13>(AF13+6),AG13<(AF13-6)),"Agncy Repl.","")) ->  | AH15: =IF(AH13="","",IF(AI13="",AH13,IF(OR(AI13>(AH13+6),AI13<(AH13-6)),AI13,AH13))) ->  | AI15: =IF(AI13="","",IF(OR(AI13>(AH13+6),AI13<(AH13-6)),"Agncy Repl.","")) ->  | AK15: Calc. % | AN15: =IF(AN13="","",IF(AO13="",AN13,IF(OR(AO13>(AN13+6),AO13<(AN13-6)),AO13,AN13))) ->  | AO15: =IF(AO13="","",IF(OR(AO13>(AN13+6),AO13<(AN13-6)),"Agncy Repl.","")) ->  | AP15: =IF(AP13="","",IF(AQ13="",AP13,IF(OR(AQ13>(AP13+6),AQ13<(AP13-6)),AQ13,AP13))) ->  | AQ15: =IF(AQ13="","",IF(OR(AQ13>(AP13+6),AQ13<(AP13-6)),"Agncy Repl.","")) ->  | AR15: =IF(AR13="","",IF(AS13="",AR13,IF(OR(AS13>(AR13+6),AS13<(AR13-6)),AS13,AR13))) ->  | AS15: =IF(AS13="","",IF(OR(AS13>(AR13+6),AS13<(AR13-6)),"Agncy Repl.","")) ->  | AT15: =IF(AT13="","",IF(AU13="",AT13,IF(OR(AU13>(AT13+6),AU13<(AT13-6)),AU13,AT13))) ->  | AU15: =IF(AU13="","",IF(OR(AU13>(AT13+6),AU13<(AT13-6)),"Agncy Repl.","")) ->  | AW15: Calc. % | AZ15: =IF(AZ13="","",IF(BA13="",AZ13,IF(OR(BA13>(AZ13+6),BA13<(AZ13-6)),BA13,AZ13))) ->  | BA15: =IF(BA13="","",IF(OR(BA13>(AZ13+6),BA13<(AZ13-6)),"Agncy Repl.","")) ->  | BB15: =IF(BB13="","",IF(BC13="",BB13,IF(OR(BC13>(BB13+6),BC13<(BB13-6)),BC13,BB13))) ->  | BC15: =IF(BC13="","",IF(OR(BC13>(BB13+6),BC13<(BB13-6)),"Agncy Repl.","")) ->  | BD15: =IF(BD13="","",IF(BE13="",BD13,IF(OR(BE13>(BD13+6),BE13<(BD13-6)),BE13,BD13))) ->  | BE15: =IF(BE13="","",IF(OR(BE13>(BD13+6),BE13<(BD13-6)),"Agncy Repl.","")) ->  | BF15: =IF(BF13="","",IF(BG13="",BF13,IF(OR(BG13>(BF13+6),BG13<(BF13-6)),BG13,BF13))) ->  | BG15: =IF(BG13="","",IF(OR(BG13>(BF13+6),BG13<(BF13-6)),"Agncy Repl.","")) ->  | BI15: Calc. % | BL15: =IF(BL13="","",IF(BM13="",BL13,IF(OR(BM13>(BL13+6),BM13<(BL13-6)),BM13,BL13))) ->  | BM15: =IF(BM13="","",IF(OR(BM13>(BL13+6),BM13<(BL13-6)),"Agncy Repl.","")) ->  | BN15: =IF(BN13="","",IF(BO13="",BN13,IF(OR(BO13>(BN13+6),BO13<(BN13-6)),BO13,BN13))) ->  | BO15: =IF(BO13="","",IF(OR(BO13>(BN13+6),BO13<(BN13-6)),"Agncy Repl.","")) ->  | BP15: =IF(BP13="","",IF(BQ13="",BP13,IF(OR(BQ13>(BP13+6),BQ13<(BP13-6)),BQ13,BP13))) ->  | BQ15: =IF(BQ13="","",IF(OR(BQ13>(BP13+6),BQ13<(BP13-6)),"Agncy Repl.","")) ->  | BR15: =IF(BR13="","",IF(BS13="",BR13,IF(OR(BS13>(BR13+6),BS13<(BR13-6)),BS13,BR13))) ->  | BS15: =IF(BS13="","",IF(OR(BS13>(BR13+6),BS13<(BR13-6)),"Agncy Repl.","")) ->  | BU15: Calc. % | BX15: =IF(BX13="","",IF(BY13="",BX13,IF(OR(BY13>(BX13+6),BY13<(BX13-6)),BY13,BX13))) ->  | BY15: =IF(BY13="","",IF(OR(BY13>(BX13+6),BY13<(BX13-6)),"Agncy Repl.","")) ->  | BZ15: =IF(BZ13="","",IF(CA13="",BZ13,IF(OR(CA13>(BZ13+6),CA13<(BZ13-6)),CA13,BZ13))) ->  | CA15: =IF(CA13="","",IF(OR(CA13>(BZ13+6),CA13<(BZ13-6)),"Agncy Repl.","")) ->  | CB15: =IF(CB13="","",IF(CC13="",CB13,IF(OR(CC13>(CB13+6),CC13<(CB13-6)),CC13,CB13))) ->  | CC15: =IF(CC13="","",IF(OR(CC13>(CB13+6),CC13<(CB13-6)),"Agncy Repl.","")) ->  | CD15: =IF(CD13="","",IF(CE13="",CD13,IF(OR(CE13>(CD13+6),CE13<(CD13-6)),CE13,CD13))) ->  | CE15: =IF(CE13="","",IF(OR(CE13>(CD13+6),CE13<(CD13-6)),"Agncy Repl.","")) ->  | CG15: Calc. % | CJ15: =IF(CJ13="","",IF(CK13="",CJ13,IF(OR(CK13>(CJ13+6),CK13<(CJ13-6)),CK13,CJ13))) ->  | CK15: =IF(CK13="","",IF(OR(CK13>(CJ13+6),CK13<(CJ13-6)),"Agncy Repl.","")) ->  | CL15: =IF(CL13="","",IF(CM13="",CL13,IF(OR(CM13>(CL13+6),CM13<(CL13-6)),CM13,CL13))) ->  | CM15: =IF(CM13="","",IF(OR(CM13>(CL13+6),CM13<(CL13-6)),"Agncy Repl.","")) ->  | CN15: =IF(CN13="","",IF(CO13="",CN13,IF(OR(CO13>(CN13+6),CO13<(CN13-6)),CO13,CN13))) ->  | CO15: =IF(CO13="","",IF(OR(CO13>(CN13+6),CO13<(CN13-6)),"Agncy Repl.","")) ->  | CP15: =IF(CP13="","",IF(CQ13="",CP13,IF(OR(CQ13>(CP13+6),CQ13<(CP13-6)),CQ13,CP13))) ->  | CQ15: =IF(CQ13="","",IF(OR(CQ13>(CP13+6),CQ13<(CP13-6)),"Agncy Repl.","")) ->  | CS15: Calc. % | CV15: =IF(CV13="","",IF(CW13="",CV13,IF(OR(CW13>(CV13+6),CW13<(CV13-6)),CW13,CV13))) ->  | CW15: =IF(CW13="","",IF(OR(CW13>(CV13+6),CW13<(CV13-6)),"Agncy Repl.","")) ->  | CX15: =IF(CX13="","",IF(CY13="",CX13,IF(OR(CY13>(CX13+6),CY13<(CX13-6)),CY13,CX13))) ->  | CY15: =IF(CY13="","",IF(OR(CY13>(CX13+6),CY13<(CX13-6)),"Agncy Repl.","")) ->  | CZ15: =IF(CZ13="","",IF(DA13="",CZ13,IF(OR(DA13>(CZ13+6),DA13<(CZ13-6)),DA13,CZ13))) ->  | DA15: =IF(DA13="","",IF(OR(DA13>(CZ13+6),DA13<(CZ13-6)),"Agncy Repl.","")) ->  | DB15: =IF(DB13="","",IF(DC13="",DB13,IF(OR(DC13>(DB13+6),DC13<(DB13-6)),DC13,DB13))) ->  | DC15: =IF(DC13="","",IF(OR(DC13>(DB13+6),DC13<(DB13-6)),"Agncy Repl.","")) ->  | DE15: Calc. % | DH15: =IF(DH13="","",IF(DI13="",DH13,IF(OR(DI13>(DH13+6),DI13<(DH13-6)),DI13,DH13))) ->  | DI15: =IF(DI13="","",IF(OR(DI13>(DH13+6),DI13<(DH13-6)),"Agncy Repl.","")) ->  | DJ15: =IF(DJ13="","",IF(DK13="",DJ13,IF(OR(DK13>(DJ13+6),DK13<(DJ13-6)),DK13,DJ13))) ->  | DK15: =IF(DK13="","",IF(OR(DK13>(DJ13+6),DK13<(DJ13-6)),"Agncy Repl.","")) ->  | DL15: =IF(DL13="","",IF(DM13="",DL13,IF(OR(DM13>(DL13+6),DM13<(DL13-6)),DM13,DL13))) ->  | DM15: =IF(DM13="","",IF(OR(DM13>(DL13+6),DM13<(DL13-6)),"Agncy Repl.","")) ->  | DN15: =IF(DN13="","",IF(DO13="",DN13,IF(OR(DO13>(DN13+6),DO13<(DN13-6)),DO13,DN13))) ->  | DO15: =IF(DO13="","",IF(OR(DO13>(DN13+6),DO13<(DN13-6)),"Agncy Repl.","")) ->  | DQ15: Calc. % | DT15: =IF(DT13="","",IF(DU13="",DT13,IF(OR(DU13>(DT13+6),DU13<(DT13-6)),DU13,DT13))) ->  | DU15: =IF(DU13="","",IF(OR(DU13>(DT13+6),DU13<(DT13-6)),"Agncy Repl.","")) ->  | DV15: =IF(DV13="","",IF(DW13="",DV13,IF(OR(DW13>(DV13+6),DW13<(DV13-6)),DW13,DV13))) ->  | DW15: =IF(DW13="","",IF(OR(DW13>(DV13+6),DW13<(DV13-6)),"Agncy Repl.","")) ->  | DX15: =IF(DX13="","",IF(DY13="",DX13,IF(OR(DY13>(DX13+6),DY13<(DX13-6)),DY13,DX13))) ->  | DY15: =IF(DY13="","",IF(OR(DY13>(DX13+6),DY13<(DX13-6)),"Agncy Repl.","")) ->  | DZ15: =IF(DZ13="","",IF(EA13="",DZ13,IF(OR(EA13>(DZ13+6),EA13<(DZ13-6)),EA13,DZ13))) ->  | EA15: =IF(EA13="","",IF(OR(EA13>(DZ13+6),EA13<(DZ13-6)),"Agncy Repl.","")) ->  | EC15: Calc. % | EF15: =IF(EF13="","",IF(EG13="",EF13,IF(OR(EG13>(EF13+6),EG13<(EF13-6)),EG13,EF13))) ->  | EG15: =IF(EG13="","",IF(OR(EG13>(EF13+6),EG13<(EF13-6)),"Agncy Repl.","")) ->  | EH15: =IF(EH13="","",IF(EI13="",EH13,IF(OR(EI13>(EH13+6),EI13<(EH13-6)),EI13,EH13))) ->  | EI15: =IF(EI13="","",IF(OR(EI13>(EH13+6),EI13<(EH13-6)),"Agncy Repl.","")) ->  | EJ15: =IF(EJ13="","",IF(EK13="",EJ13,IF(OR(EK13>(EJ13+6),EK13<(EJ13-6)),EK13,EJ13))) ->  | EK15: =IF(EK13="","",IF(OR(EK13>(EJ13+6),EK13<(EJ13-6)),"Agncy Repl.","")) ->  | EL15: =IF(EL13="","",IF(EM13="",EL13,IF(OR(EM13>(EL13+6),EM13<(EL13-6)),EM13,EL13))) ->  | EM15: =IF(EM13="","",IF(OR(EM13>(EL13+6),EM13<(EL13-6)),"Agncy Repl.","")) ->  | EO15: Calc. % | ER15: =IF(ER13="","",IF(ES13="",ER13,IF(OR(ES13>(ER13+6),ES13<(ER13-6)),ES13,ER13))) ->  | ES15: =IF(ES13="","",IF(OR(ES13>(ER13+6),ES13<(ER13-6)),"Agncy Repl.","")) ->  | ET15: =IF(ET13="","",IF(EU13="",ET13,IF(OR(EU13>(ET13+6),EU13<(ET13-6)),EU13,ET13))) ->  | EU15: =IF(EU13="","",IF(OR(EU13>(ET13+6),EU13<(ET13-6)),"Agncy Repl.","")) ->  | EV15: =IF(EV13="","",IF(EW13="",EV13,IF(OR(EW13>(EV13+6),EW13<(EV13-6)),EW13,EV13))) ->  | EW15: =IF(EW13="","",IF(OR(EW13>(EV13+6),EW13<(EV13-6)),"Agncy Repl.","")) ->  | EX15: =IF(EX13="","",IF(EY13="",EX13,IF(OR(EY13>(EX13+6),EY13<(EX13-6)),EY13,EX13))) ->  | EY15: =IF(EY13="","",IF(OR(EY13>(EX13+6),EY13<(EX13-6)),"Agncy Repl.","")) ->  | FA15: Calc. % | FD15: =IF(FD13="","",IF(FE13="",FD13,IF(OR(FE13>(FD13+6),FE13<(FD13-6)),FE13,FD13))) ->  | FE15: =IF(FE13="","",IF(OR(FE13>(FD13+6),FE13<(FD13-6)),"Agncy Repl.","")) ->  | FF15: =IF(FF13="","",IF(FG13="",FF13,IF(OR(FG13>(FF13+6),FG13<(FF13-6)),FG13,FF13))) ->  | FG15: =IF(FG13="","",IF(OR(FG13>(FF13+6),FG13<(FF13-6)),"Agncy Repl.","")) ->  | FH15: =IF(FH13="","",IF(FI13="",FH13,IF(OR(FI13>(FH13+6),FI13<(FH13-6)),FI13,FH13))) ->  | FI15: =IF(FI13="","",IF(OR(FI13>(FH13+6),FI13<(FH13-6)),"Agncy Repl.","")) ->  | FJ15: =IF(FJ13="","",IF(FK13="",FJ13,IF(OR(FK13>(FJ13+6),FK13<(FJ13-6)),FK13,FJ13))) ->  | FK15: =IF(FK13="","",IF(OR(FK13>(FJ13+6),FK13<(FJ13-6)),"Agncy Repl.","")) ->  | FM15: Calc. % | FP15: =IF(FP13="","",IF(FQ13="",FP13,IF(OR(FQ13>(FP13+6),FQ13<(FP13-6)),FQ13,FP13))) ->  | FQ15: =IF(FQ13="","",IF(OR(FQ13>(FP13+6),FQ13<(FP13-6)),"Agncy Repl.","")) ->  | FR15: =IF(FR13="","",IF(FS13="",FR13,IF(OR(FS13>(FR13+6),FS13<(FR13-6)),FS13,FR13))) ->  | FS15: =IF(FS13="","",IF(OR(FS13>(FR13+6),FS13<(FR13-6)),"Agncy Repl.","")) ->  | FT15: =IF(FT13="","",IF(FU13="",FT13,IF(OR(FU13>(FT13+6),FU13<(FT13-6)),FU13,FT13))) ->  | FU15: =IF(FU13="","",IF(OR(FU13>(FT13+6),FU13<(FT13-6)),"Agncy Repl.","")) ->  | FV15: =IF(FV13="","",IF(FW13="",FV13,IF(OR(FW13>(FV13+6),FW13<(FV13-6)),FW13,FV13))) ->  | FW15: =IF(FW13="","",IF(OR(FW13>(FV13+6),FW13<(FV13-6)),"Agncy Repl.","")) ->  | FY15: Calc. % | GB15: =IF(GB13="","",IF(GC13="",GB13,IF(OR(GC13>(GB13+6),GC13<(GB13-6)),GC13,GB13))) ->  | GC15: =IF(GC13="","",IF(OR(GC13>(GB13+6),GC13<(GB13-6)),"Agncy Repl.","")) ->  | GD15: =IF(GD13="","",IF(GE13="",GD13,IF(OR(GE13>(GD13+6),GE13<(GD13-6)),GE13,GD13))) ->  | GE15: =IF(GE13="","",IF(OR(GE13>(GD13+6),GE13<(GD13-6)),"Agncy Repl.","")) ->  | GF15: =IF(GF13="","",IF(GG13="",GF13,IF(OR(GG13>(GF13+6),GG13<(GF13-6)),GG13,GF13))) ->  | GG15: =IF(GG13="","",IF(OR(GG13>(GF13+6),GG13<(GF13-6)),"Agncy Repl.","")) ->  | GH15: =IF(GH13="","",IF(GI13="",GH13,IF(OR(GI13>(GH13+6),GI13<(GH13-6)),GI13,GH13))) ->  | GI15: =IF(GI13="","",IF(OR(GI13>(GH13+6),GI13<(GH13-6)),"Agncy Repl.","")) ->  | GK15: Calc. % | GN15: =IF(GN13="","",IF(GO13="",GN13,IF(OR(GO13>(GN13+6),GO13<(GN13-6)),GO13,GN13))) ->  | GO15: =IF(GO13="","",IF(OR(GO13>(GN13+6),GO13<(GN13-6)),"Agncy Repl.","")) ->  | GP15: =IF(GP13="","",IF(GQ13="",GP13,IF(OR(GQ13>(GP13+6),GQ13<(GP13-6)),GQ13,GP13))) ->  | GQ15: =IF(GQ13="","",IF(OR(GQ13>(GP13+6),GQ13<(GP13-6)),"Agncy Repl.","")) ->  | GR15: =IF(GR13="","",IF(GS13="",GR13,IF(OR(GS13>(GR13+6),GS13<(GR13-6)),GS13,GR13))) ->  | GS15: =IF(GS13="","",IF(OR(GS13>(GR13+6),GS13<(GR13-6)),"Agncy Repl.","")) ->  | GT15: =IF(GT13="","",IF(GU13="",GT13,IF(OR(GU13>(GT13+6),GU13<(GT13-6)),GU13,GT13))) ->  | GU15: =IF(GU13="","",IF(OR(GU13>(GT13+6),GU13<(GT13-6)),"Agncy Repl.","")) ->  | GW15: Calc. % | GZ15: =IF(GZ13="","",IF(HA13="",GZ13,IF(OR(HA13>(GZ13+6),HA13<(GZ13-6)),HA13,GZ13))) ->  | HA15: =IF(HA13="","",IF(OR(HA13>(GZ13+6),HA13<(GZ13-6)),"Agncy Repl.","")) ->  | HB15: =IF(HB13="","",IF(HC13="",HB13,IF(OR(HC13>(HB13+6),HC13<(HB13-6)),HC13,HB13))) ->  | HC15: =IF(HC13="","",IF(OR(HC13>(HB13+6),HC13<(HB13-6)),"Agncy Repl.","")) ->  | HD15: =IF(HD13="","",IF(HE13="",HD13,IF(OR(HE13>(HD13+6),HE13<(HD13-6)),HE13,HD13))) ->  | HE15: =IF(HE13="","",IF(OR(HE13>(HD13+6),HE13<(HD13-6)),"Agncy Repl.","")) ->  | HF15: =IF(HF13="","",IF(HG13="",HF13,IF(OR(HG13>(HF13+6),HG13<(HF13-6)),HG13,HF13))) ->  | HG15: =IF(HG13="","",IF(OR(HG13>(HF13+6),HG13<(HF13-6)),"Agncy Repl.","")) ->  | HI15: Calc. % | HL15: =IF(HL13="","",IF(HM13="",HL13,IF(OR(HM13>(HL13+6),HM13<(HL13-6)),HM13,HL13))) ->  | HM15: =IF(HM13="","",IF(OR(HM13>(HL13+6),HM13<(HL13-6)),"Agncy Repl.","")) ->  | HN15: =IF(HN13="","",IF(HO13="",HN13,IF(OR(HO13>(HN13+6),HO13<(HN13-6)),HO13,HN13))) ->  | HO15: =IF(HO13="","",IF(OR(HO13>(HN13+6),HO13<(HN13-6)),"Agncy Repl.","")) ->  | HP15: =IF(HP13="","",IF(HQ13="",HP13,IF(OR(HQ13>(HP13+6),HQ13<(HP13-6)),HQ13,HP13))) ->  | HQ15: =IF(HQ13="","",IF(OR(HQ13>(HP13+6),HQ13<(HP13-6)),"Agncy Repl.","")) ->  | HR15: =IF(HR13="","",IF(HS13="",HR13,IF(OR(HS13>(HR13+6),HS13<(HR13-6)),HS13,HR13))) ->  | HS15: =IF(HS13="","",IF(OR(HS13>(HR13+6),HS13<(HR13-6)),"Agncy Repl.","")) ->  | HU15: Calc. % | HX15: =IF(HX13="","",IF(HY13="",HX13,IF(OR(HY13>(HX13+6),HY13<(HX13-6)),HY13,HX13))) ->  | HY15: =IF(HY13="","",IF(OR(HY13>(HX13+6),HY13<(HX13-6)),"Agncy Repl.","")) ->  | HZ15: =IF(HZ13="","",IF(IA13="",HZ13,IF(OR(IA13>(HZ13+6),IA13<(HZ13-6)),IA13,HZ13))) ->  | IA15: =IF(IA13="","",IF(OR(IA13>(HZ13+6),IA13<(HZ13-6)),"Agncy Repl.","")) ->  | IB15: =IF(IB13="","",IF(IC13="",IB13,IF(OR(IC13>(IB13+6),IC13<(IB13-6)),IC13,IB13))) ->  | IC15: =IF(IC13="","",IF(OR(IC13>(IB13+6),IC13<(IB13-6)),"Agncy Repl.","")) ->  | ID15: =IF(ID13="","",IF(IE13="",ID13,IF(OR(IE13>(ID13+6),IE13<(ID13-6)),IE13,ID13))) ->  | IE15: =IF(IE13="","",IF(OR(IE13>(ID13+6),IE13<(ID13-6)),"Agncy Repl.","")) ->  | IG15: Calc. % | IJ15: =IF(IJ13="","",IF(IK13="",IJ13,IF(OR(IK13>(IJ13+6),IK13<(IJ13-6)),IK13,IJ13))) ->  | IK15: =IF(IK13="","",IF(OR(IK13>(IJ13+6),IK13<(IJ13-6)),"Agncy Repl.","")) ->  | IL15: =IF(IL13="","",IF(IM13="",IL13,IF(OR(IM13>(IL13+6),IM13<(IL13-6)),IM13,IL13))) ->  | IM15: =IF(IM13="","",IF(OR(IM13>(IL13+6),IM13<(IL13-6)),"Agncy Repl.","")) ->  | IN15: =IF(IN13="","",IF(IO13="",IN13,IF(OR(IO13>(IN13+6),IO13<(IN13-6)),IO13,IN13))) ->  | IO15: =IF(IO13="","",IF(OR(IO13>(IN13+6),IO13<(IN13-6)),"Agncy Repl.","")) ->  | IP15: =IF(IP13="","",IF(IQ13="",IP13,IF(OR(IQ13>(IP13+6),IQ13<(IP13-6)),IQ13,IP13))) ->  | IQ15: =IF(IQ13="","",IF(OR(IQ13>(IP13+6),IQ13<(IP13-6)),"Agncy Repl.","")) ->  | IR15: =IF(IR13="","",IF(OR(IR13>(IQ13+6),IR13<(IQ13-6)),"Agncy Repl.","")) -> 
A16: 3/4 in. | M16: 3/4 in. | Y16: 3/4 in. | AK16: 3/4 in. | AW16: 3/4 in. | BI16: 3/4 in. | BU16: 3/4 in. | CG16: 3/4 in. | CS16: 3/4 in. | DE16: 3/4 in. | DQ16: 3/4 in. | EC16: 3/4 in. | EO16: 3/4 in. | FA16: 3/4 in. | FM16: 3/4 in. | FY16: 3/4 in. | GK16: 3/4 in. | GW16: 3/4 in. | HI16: 3/4 in. | HU16: 3/4 in. | IG16: 3/4 in. | IT16: 0 | IU16: Agency AFT Substituted
A17: Mov Avg. | B17: =IF(MDR!$AL$4="YES",MDR!$BQ$45,MDR!$M12) -> 97 | C17: =IF(MDR!$AL$4="YES",MDR!$BR$45,MDR!$N12) -> 100 | E17: =IF(E16="","",IF(OR(E16>(D16+6),E16<(D16-6)),"Tolerance","")) ->  | G17: =IF(G16="","",IF(OR(G16>(F16+6),G16<(F16-6)),"Tolerance","")) ->  | I17: =IF(I16="","",IF(OR(I16>(H16+6),I16<(H16-6)),"Tolerance","")) ->  | J17: =mndot_rounding_0(IF(D16="","",IF(F16="","",IF(H16="","",IF(J16="","",Grad!E14))))) ->  | K17: =IF(K16="","",IF(OR(K16>(J16+6),K16<(J16-6)),"Tolerance","")) ->  | M17: Mov Avg. | N17: =IF(MDR!$AL$4="YES",MDR!$BQ$45,MDR!$M16) -> 97 | O17: =IF(MDR!$AL$4="YES",MDR!$BR$45,MDR!$N16) -> 100 | P17: =mndot_rounding_0(Grad!S15) ->  | Q17: =IF(Q16="","",IF(OR(Q16>(P16+6),Q16<(P16-6)),"Tolerance","")) ->  | R17: =mndot_rounding_0(Grad!S16) ->  | S17: =IF(S16="","",IF(OR(S16>(R16+6),S16<(R16-6)),"Tolerance","")) ->  | T17: =mndot_rounding_0(Grad!S17) ->  | U17: =IF(U16="","",IF(OR(U16>(T16+6),U16<(T16-6)),"Tolerance","")) ->  | V17: =mndot_rounding_0(Grad!S18) ->  | W17: =IF(W16="","",IF(OR(W16>(V16+6),W16<(V16-6)),"Tolerance","")) ->  | Y17: Mov Avg. | Z17: =IF(MDR!$AL$4="YES",MDR!$BQ$45,MDR!$M20) -> 97 | AA17: =IF(MDR!$AL$4="YES",MDR!$BR$45,MDR!$N20) -> 100 | AB17: =mndot_rounding_0(Grad!$S19) ->  | AC17: =IF(AC16="","",IF(OR(AC16>(AB16+6),AC16<(AB16-6)),"Tolerance","")) ->  | AD17: =mndot_rounding_0(Grad!$S20) ->  | AE17: =IF(AE16="","",IF(OR(AE16>(AD16+6),AE16<(AD16-6)),"Tolerance","")) ->  | AF17: =mndot_rounding_0(Grad!$S21) ->  | AG17: =IF(AG16="","",IF(OR(AG16>(AF16+6),AG16<(AF16-6)),"Tolerance","")) ->  | AH17: =mndot_rounding_0(Grad!$S22) ->  | AI17: =IF(AI16="","",IF(OR(AI16>(AH16+6),AI16<(AH16-6)),"Tolerance","")) ->  | AK17: Mov Avg. | AL17: =IF(MDR!$AL$4="YES",MDR!$BQ$45,MDR!$M24) -> 97 | AM17: =IF(MDR!$AL$4="YES",MDR!$BR$45,MDR!$N24) -> 100 | AN17: =mndot_rounding_0(Grad!$S23) ->  | AO17: =IF(AO16="","",IF(OR(AO16>(AN16+6),AO16<(AN16-6)),"Tolerance","")) ->  | AP17: =mndot_rounding_0(Grad!$S24) ->  | AQ17: =IF(AQ16="","",IF(OR(AQ16>(AP16+6),AQ16<(AP16-6)),"Tolerance","")) ->  | AR17: =mndot_rounding_0(Grad!$S25) ->  | AS17: =IF(AS16="","",IF(OR(AS16>(AR16+6),AS16<(AR16-6)),"Tolerance","")) ->  | AT17: =mndot_rounding_0(Grad!$S26) ->  | AU17: =IF(AU16="","",IF(OR(AU16>(AT16+6),AU16<(AT16-6)),"Tolerance","")) ->  | AW17: Mov Avg. | AX17: =IF(MDR!$AL$4="YES",MDR!$BQ$45,MDR!$M28) -> 97 | AY17: =IF(MDR!$AL$4="YES",MDR!$BR$45,MDR!$N28) -> 100 | AZ17: =mndot_rounding_0(Grad!$S27) ->  | BA17: =IF(BA16="","",IF(OR(BA16>(AZ16+6),BA16<(AZ16-6)),"Tolerance","")) ->  | BB17: =mndot_rounding_0(Grad!$S28) ->  | BC17: =IF(BC16="","",IF(OR(BC16>(BB16+6),BC16<(BB16-6)),"Tolerance","")) ->  | BD17: =mndot_rounding_0(Grad!$S29) ->  | BE17: =IF(BE16="","",IF(OR(BE16>(BD16+6),BE16<(BD16-6)),"Tolerance","")) ->  | BF17: =mndot_rounding_0(Grad!$S30) ->  | BG17: =IF(BG16="","",IF(OR(BG16>(BF16+6),BG16<(BF16-6)),"Tolerance","")) ->  | BI17: Mov Avg. | BJ17: =IF(MDR!$AL$4="YES",MDR!$BQ$45,MDR!$M32) -> 97 | BK17: =IF(MDR!$AL$4="YES",MDR!$BR$45,MDR!$N32) -> 100 | BL17: =mndot_rounding_0(Grad!$S31) ->  | BM17: =IF(BM16="","",IF(OR(BM16>(BL16+6),BM16<(BL16-6)),"Tolerance","")) ->  | BN17: =mndot_rounding_0(Grad!$S32) ->  | BO17: =IF(BO16="","",IF(OR(BO16>(BN16+6),BO16<(BN16-6)),"Tolerance","")) ->  | BP17: =mndot_rounding_0(Grad!$S33) ->  | BQ17: =IF(BQ16="","",IF(OR(BQ16>(BP16+6),BQ16<(BP16-6)),"Tolerance","")) ->  | BR17: =mndot_rounding_0(Grad!$S34) ->  | BS17: =IF(BS16="","",IF(OR(BS16>(BR16+6),BS16<(BR16-6)),"Tolerance","")) ->  | BU17: Mov Avg. | BV17: =IF(MDR!$AL$4="YES",MDR!$BQ$45,MDR!$M36) -> 97 | BW17: =IF(MDR!$AL$4="YES",MDR!$BR$45,MDR!$N36) -> 100 | BX17: =mndot_rounding_0(Grad!$S35) ->  | BY17: =IF(BY16="","",IF(OR(BY16>(BX16+6),BY16<(BX16-6)),"Tolerance","")) ->  | BZ17: =mndot_rounding_0(Grad!$S36) ->  | CA17: =IF(CA16="","",IF(OR(CA16>(BZ16+6),CA16<(BZ16-6)),"Tolerance","")) ->  | CB17: =mndot_rounding_0(Grad!$S37) ->  | CC17: =IF(CC16="","",IF(OR(CC16>(CB16+6),CC16<(CB16-6)),"Tolerance","")) ->  | CD17: =mndot_rounding_0(Grad!$S38) ->  | CE17: =IF(CE16="","",IF(OR(CE16>(CD16+6),CE16<(CD16-6)),"Tolerance","")) ->  | CG17: Mov Avg. | CH17: =IF(MDR!$AL$4="YES",MDR!$BQ$45,MDR!$M40) -> 97 | CI17: =IF(MDR!$AL$4="YES",MDR!$BR$45,MDR!$N40) -> 100 | CJ17: =mndot_rounding_0(Grad!$S39) ->  | CK17: =IF(CK16="","",IF(OR(CK16>(CJ16+6),CK16<(CJ16-6)),"Tolerance","")) ->  | CL17: =mndot_rounding_0(Grad!$S40) ->  | CM17: =IF(CM16="","",IF(OR(CM16>(CL16+6),CM16<(CL16-6)),"Tolerance","")) ->  | CN17: =mndot_rounding_0(Grad!$S41) ->  | CO17: =IF(CO16="","",IF(OR(CO16>(CN16+6),CO16<(CN16-6)),"Tolerance","")) ->  | CP17: =mndot_rounding_0(Grad!$S42) ->  | CQ17: =IF(CQ16="","",IF(OR(CQ16>(CP16+6),CQ16<(CP16-6)),"Tolerance","")) ->  | CS17: Mov Avg. | CT17: =IF(MDR!$AL$4="YES",MDR!$BQ$45,MDR!$M44) -> 97 | CU17: =IF(MDR!$AL$4="YES",MDR!$BR$45,MDR!$N44) -> 100 | CV17: =mndot_rounding_0(Grad!$S43) ->  | CW17: =IF(CW16="","",IF(OR(CW16>(CV16+6),CW16<(CV16-6)),"Tolerance","")) ->  | CX17: =mndot_rounding_0(Grad!$S44) ->  | CY17: =IF(CY16="","",IF(OR(CY16>(CX16+6),CY16<(CX16-6)),"Tolerance","")) ->  | CZ17: =mndot_rounding_0(Grad!$S45) ->  | DA17: =IF(DA16="","",IF(OR(DA16>(CZ16+6),DA16<(CZ16-6)),"Tolerance","")) ->  | DB17: =mndot_rounding_0(Grad!$S46) ->  | DC17: =IF(DC16="","",IF(OR(DC16>(DB16+6),DC16<(DB16-6)),"Tolerance","")) ->  | DE17: Mov Avg. | DF17: =IF(MDR!$AL$4="YES",MDR!$BQ$45,MDR!$M48) -> 97 | DG17: =IF(MDR!$AL$4="YES",MDR!$BR$45,MDR!$N48) -> 100 | DH17: =mndot_rounding_0(Grad!$S47) ->  | DI17: =IF(DI16="","",IF(OR(DI16>(DH16+6),DI16<(DH16-6)),"Tolerance","")) ->  | DJ17: =mndot_rounding_0(Grad!$S48) ->  | DK17: =IF(DK16="","",IF(OR(DK16>(DJ16+6),DK16<(DJ16-6)),"Tolerance","")) ->  | DL17: =mndot_rounding_0(Grad!$S49) ->  | DM17: =IF(DM16="","",IF(OR(DM16>(DL16+6),DM16<(DL16-6)),"Tolerance","")) ->  | DN17: =mndot_rounding_0(Grad!$S50) ->  | DO17: =IF(DO16="","",IF(OR(DO16>(DN16+6),DO16<(DN16-6)),"Tolerance","")) ->  | DQ17: Mov Avg. | DR17: =IF(MDR!$AL$4="YES",MDR!$BQ$45,MDR!$M52) -> 97 | DS17: =IF(MDR!$AL$4="YES",MDR!$BR$45,MDR!$N52) -> 100 | DT17: =mndot_rounding_0(Grad!$S51) ->  | DU17: =IF(DU16="","",IF(OR(DU16>(DT16+6),DU16<(DT16-6)),"Tolerance","")) ->  | DV17: =mndot_rounding_0(Grad!$S52) ->  | DW17: =IF(DW16="","",IF(OR(DW16>(DV16+6),DW16<(DV16-6)),"Tolerance","")) ->  | DX17: =mndot_rounding_0(Grad!$S53) ->  | DY17: =IF(DY16="","",IF(OR(DY16>(DX16+6),DY16<(DX16-6)),"Tolerance","")) ->  | DZ17: =mndot_rounding_0(Grad!$S54) ->  | EA17: =IF(EA16="","",IF(OR(EA16>(DZ16+6),EA16<(DZ16-6)),"Tolerance","")) ->  | EC17: Mov Avg. | ED17: =IF(MDR!$AL$4="YES",MDR!$BQ$45,MDR!$M56) -> 97 | EE17: =IF(MDR!$AL$4="YES",MDR!$BR$45,MDR!$N56) -> 100 | EF17: =mndot_rounding_0(Grad!$S55) ->  | EG17: =IF(EG16="","",IF(OR(EG16>(EF16+6),EG16<(EF16-6)),"Tolerance","")) ->  | EH17: =mndot_rounding_0(Grad!$S56) ->  | EI17: =IF(EI16="","",IF(OR(EI16>(EH16+6),EI16<(EH16-6)),"Tolerance","")) ->  | EJ17: =mndot_rounding_0(Grad!$S57) ->  | EK17: =IF(EK16="","",IF(OR(EK16>(EJ16+6),EK16<(EJ16-6)),"Tolerance","")) ->  | EL17: =mndot_rounding_0(Grad!$S58) ->  | EM17: =IF(EM16="","",IF(OR(EM16>(EL16+6),EM16<(EL16-6)),"Tolerance","")) ->  | EO17: Mov Avg. | EP17: =IF(MDR!$AL$4="YES",MDR!$BQ$45,MDR!$M60) -> 97 | EQ17: =IF(MDR!$AL$4="YES",MDR!$BR$45,MDR!$N60) -> 100 | ER17: =mndot_rounding_0(Grad!$S59) ->  | ES17: =IF(ES16="","",IF(OR(ES16>(ER16+6),ES16<(ER16-6)),"Tolerance","")) ->  | ET17: =mndot_rounding_0(Grad!$S60) ->  | EU17: =IF(EU16="","",IF(OR(EU16>(ET16+6),EU16<(ET16-6)),"Tolerance","")) ->  | EV17: =mndot_rounding_0(Grad!$S61) ->  | EW17: =IF(EW16="","",IF(OR(EW16>(EV16+6),EW16<(EV16-6)),"Tolerance","")) ->  | EX17: =mndot_rounding_0(Grad!$S62) ->  | EY17: =IF(EY16="","",IF(OR(EY16>(EX16+6),EY16<(EX16-6)),"Tolerance","")) ->  | FA17: Mov Avg. | FB17: =IF(MDR!$AL$4="YES",MDR!$BQ$45,MDR!$M64) -> 97 | FC17: =IF(MDR!$AL$4="YES",MDR!$BR$45,MDR!$N64) -> 100 | FD17: =mndot_rounding_0(Grad!$S63) ->  | FE17: =IF(FE16="","",IF(OR(FE16>(FD16+6),FE16<(FD16-6)),"Tolerance","")) ->  | FF17: =mndot_rounding_0(Grad!$S64) ->  | FG17: =IF(FG16="","",IF(OR(FG16>(FF16+6),FG16<(FF16-6)),"Tolerance","")) ->  | FH17: =mndot_rounding_0(Grad!$S65) ->  | FI17: =IF(FI16="","",IF(OR(FI16>(FH16+6),FI16<(FH16-6)),"Tolerance","")) ->  | FJ17: =mndot_rounding_0(Grad!$S66) ->  | FK17: =IF(FK16="","",IF(OR(FK16>(FJ16+6),FK16<(FJ16-6)),"Tolerance","")) ->  | FM17: Mov Avg. | FN17: =IF(MDR!$AL$4="YES",MDR!$BQ$45,MDR!$M68) -> 97 | FO17: =IF(MDR!$AL$4="YES",MDR!$BR$45,MDR!$N68) -> 100 | FP17: =mndot_rounding_0(Grad!$S67) ->  | FQ17: =IF(FQ16="","",IF(OR(FQ16>(FP16+6),FQ16<(FP16-6)),"Tolerance","")) ->  | FR17: =mndot_rounding_0(Grad!$S68) ->  | FS17: =IF(FS16="","",IF(OR(FS16>(FR16+6),FS16<(FR16-6)),"Tolerance","")) ->  | FT17: =mndot_rounding_0(Grad!$S69) ->  | FU17: =IF(FU16="","",IF(OR(FU16>(FT16+6),FU16<(FT16-6)),"Tolerance","")) ->  | FV17: =mndot_rounding_0(Grad!$S70) ->  | FW17: =IF(FW16="","",IF(OR(FW16>(FV16+6),FW16<(FV16-6)),"Tolerance","")) ->  | FY17: Mov Avg. | FZ17: =IF(MDR!$AL$4="YES",MDR!$BQ$45,MDR!$M72) -> 97 | GA17: =IF(MDR!$AL$4="YES",MDR!$BR$45,MDR!$N72) -> 100 | GB17: =mndot_rounding_0(Grad!$S71) ->  | GC17: =IF(GC16="","",IF(OR(GC16>(GB16+6),GC16<(GB16-6)),"Tolerance","")) ->  | GD17: =mndot_rounding_0(Grad!$S72) ->  | GE17: =IF(GE16="","",IF(OR(GE16>(GD16+6),GE16<(GD16-6)),"Tolerance","")) ->  | GF17: =mndot_rounding_0(Grad!$S73) ->  | GG17: =IF(GG16="","",IF(OR(GG16>(GF16+6),GG16<(GF16-6)),"Tolerance","")) ->  | GH17: =mndot_rounding_0(Grad!$S74) ->  | GI17: =IF(GI16="","",IF(OR(GI16>(GH16+6),GI16<(GH16-6)),"Tolerance","")) ->  | GK17: Mov Avg. | GL17: =IF(MDR!$AL$4="YES",MDR!$BQ$45,MDR!$M76) -> 97 | GM17: =IF(MDR!$AL$4="YES",MDR!$BR$45,MDR!$N76) -> 100 | GN17: =mndot_rounding_0(Grad!$S75) ->  | GO17: =IF(GO16="","",IF(OR(GO16>(GN16+6),GO16<(GN16-6)),"Tolerance","")) ->  | GP17: =mndot_rounding_0(Grad!$S76) ->  | GQ17: =IF(GQ16="","",IF(OR(GQ16>(GP16+6),GQ16<(GP16-6)),"Tolerance","")) ->  | GR17: =mndot_rounding_0(Grad!$S77) ->  | GS17: =IF(GS16="","",IF(OR(GS16>(GR16+6),GS16<(GR16-6)),"Tolerance","")) ->  | GT17: =mndot_rounding_0(Grad!$S78) ->  | GU17: =IF(GU16="","",IF(OR(GU16>(GT16+6),GU16<(GT16-6)),"Tolerance","")) ->  | GW17: Mov Avg. | GX17: =IF(MDR!$AL$4="YES",MDR!$BQ$45,MDR!$M80) -> 97 | GY17: =IF(MDR!$AL$4="YES",MDR!$BR$45,MDR!$N80) -> 100 | GZ17: =mndot_rounding_0(Grad!$S79) ->  | HA17: =IF(HA16="","",IF(OR(HA16>(GZ16+6),HA16<(GZ16-6)),"Tolerance","")) ->  | HB17: =mndot_rounding_0(Grad!$S80) ->  | HC17: =IF(HC16="","",IF(OR(HC16>(HB16+6),HC16<(HB16-6)),"Tolerance","")) ->  | HD17: =mndot_rounding_0(Grad!$S81) ->  | HE17: =IF(HE16="","",IF(OR(HE16>(HD16+6),HE16<(HD16-6)),"Tolerance","")) ->  | HF17: =mndot_rounding_0(Grad!$S82) ->  | HG17: =IF(HG16="","",IF(OR(HG16>(HF16+6),HG16<(HF16-6)),"Tolerance","")) ->  | HI17: Mov Avg. | HJ17: =IF(MDR!$AL$4="YES",MDR!$BQ$45,MDR!$M84) -> 97 | HK17: =IF(MDR!$AL$4="YES",MDR!$BR$45,MDR!$N84) -> 100 | HL17: =mndot_rounding_0(Grad!$S83) ->  | HM17: =IF(HM16="","",IF(OR(HM16>(HL16+6),HM16<(HL16-6)),"Tolerance","")) ->  | HN17: =mndot_rounding_0(Grad!$S84) ->  | HO17: =IF(HO16="","",IF(OR(HO16>(HN16+6),HO16<(HN16-6)),"Tolerance","")) ->  | HP17: =mndot_rounding_0(Grad!$S85) ->  | HQ17: =IF(HQ16="","",IF(OR(HQ16>(HP16+6),HQ16<(HP16-6)),"Tolerance","")) ->  | HR17: =mndot_rounding_0(Grad!$S86) ->  | HS17: =IF(HS16="","",IF(OR(HS16>(HR16+6),HS16<(HR16-6)),"Tolerance","")) ->  | HU17: Mov Avg. | HV17: =IF(MDR!$AL$4="YES",MDR!$BQ$45,MDR!$M88) -> 97 | HW17: =IF(MDR!$AL$4="YES",MDR!$BR$45,MDR!$N88) -> 100 | HX17: =mndot_rounding_0(Grad!$S87) ->  | HY17: =IF(HY16="","",IF(OR(HY16>(HX16+6),HY16<(HX16-6)),"Tolerance","")) ->  | HZ17: =mndot_rounding_0(Grad!$S88) ->  | IA17: =IF(IA16="","",IF(OR(IA16>(HZ16+6),IA16<(HZ16-6)),"Tolerance","")) ->  | IB17: =mndot_rounding_0(Grad!$S89) ->  | IC17: =IF(IC16="","",IF(OR(IC16>(IB16+6),IC16<(IB16-6)),"Tolerance","")) ->  | ID17: =mndot_rounding_0(Grad!$S90) ->  | IE17: =IF(IE16="","",IF(OR(IE16>(ID16+6),IE16<(ID16-6)),"Tolerance","")) ->  | IG17: Mov Avg. | IH17: =IF(MDR!$AL$4="YES",MDR!$BQ$45,MDR!$M92) -> 97 | II17: =IF(MDR!$AL$4="YES",MDR!$BR$45,MDR!$N92) -> 100 | IJ17: =mndot_rounding_0(Grad!$S91) ->  | IK17: =IF(IK16="","",IF(OR(IK16>(IJ16+6),IK16<(IJ16-6)),"Tolerance","")) ->  | IL17: =mndot_rounding_0(Grad!$S92) ->  | IM17: =IF(IM16="","",IF(OR(IM16>(IL16+6),IM16<(IL16-6)),"Tolerance","")) ->  | IN17: =mndot_rounding_0(Grad!$S93) ->  | IO17: =IF(IO16="","",IF(OR(IO16>(IN16+6),IO16<(IN16-6)),"Tolerance","")) ->  | IP17: =mndot_rounding_0(Grad!$S94) ->  | IQ17: =IF(IQ16="","",IF(OR(IQ16>(IP16+6),IQ16<(IP16-6)),"Tolerance","")) ->  | IT17: 0 | IU17: Agency AFT Substituted
A18: 3/4" Calc. % | D18: =IF(D16="","",IF(E16="",D16,IF(OR(E16>(D16+6),E16<(D16-6)),E16,D16))) ->  | E18: =IF(E16="","",IF(OR(E16>(D16+6),E16<(D16-6)),"Agncy Repl.","")) ->  | F18: =IF(F16="","",IF(G16="",F16,IF(OR(G16>(F16+6),G16<(F16-6)),G16,F16))) ->  | G18: =IF(G16="","",IF(OR(G16>(F16+6),G16<(F16-6)),"Agncy Repl.","")) ->  | H18: =IF(H16="","",IF(I16="",H16,IF(OR(I16>(H16+6),I16<(H16-6)),I16,H16))) ->  | I18: =IF(I16="","",IF(OR(I16>(H16+6),I16<(H16-6)),"Agncy Repl.","")) ->  | J18: =IF(J16="","",IF(K16="",J16,IF(OR(K16>(J16+6),K16<(J16-6)),K16,J16))) ->  | K18: =IF(K16="","",IF(OR(K16>(J16+6),K16<(J16-6)),"Agncy Repl.","")) ->  | M18: Calc. % | P18: =IF(P16="","",IF(Q16="",P16,IF(OR(Q16>(P16+6),Q16<(P16-6)),Q16,P16))) ->  | Q18: =IF(Q16="","",IF(OR(Q16>(P16+6),Q16<(P16-6)),"Agncy Repl.","")) ->  | R18: =IF(R16="","",IF(S16="",R16,IF(OR(S16>(R16+6),S16<(R16-6)),S16,R16))) ->  | S18: =IF(S16="","",IF(OR(S16>(R16+6),S16<(R16-6)),"Agncy Repl.","")) ->  | T18: =IF(T16="","",IF(U16="",T16,IF(OR(U16>(T16+6),U16<(T16-6)),U16,T16))) ->  | U18: =IF(U16="","",IF(OR(U16>(T16+6),U16<(T16-6)),"Agncy Repl.","")) ->  | V18: =IF(V16="","",IF(W16="",V16,IF(OR(W16>(V16+6),W16<(V16-6)),W16,V16))) ->  | W18: =IF(W16="","",IF(OR(W16>(V16+6),W16<(V16-6)),"Agncy Repl.","")) ->  | Y18: Calc. % | AB18: =IF(AB16="","",IF(AC16="",AB16,IF(OR(AC16>(AB16+6),AC16<(AB16-6)),AC16,AB16))) ->  | AC18: =IF(AC16="","",IF(OR(AC16>(AB16+6),AC16<(AB16-6)),"Agncy Repl.","")) ->  | AD18: =IF(AD16="","",IF(AE16="",AD16,IF(OR(AE16>(AD16+6),AE16<(AD16-6)),AE16,AD16))) ->  | AE18: =IF(AE16="","",IF(OR(AE16>(AD16+6),AE16<(AD16-6)),"Agncy Repl.","")) ->  | AF18: =IF(AF16="","",IF(AG16="",AF16,IF(OR(AG16>(AF16+6),AG16<(AF16-6)),AG16,AF16))) ->  | AG18: =IF(AG16="","",IF(OR(AG16>(AF16+6),AG16<(AF16-6)),"Agncy Repl.","")) ->  | AH18: =IF(AH16="","",IF(AI16="",AH16,IF(OR(AI16>(AH16+6),AI16<(AH16-6)),AI16,AH16))) ->  | AI18: =IF(AI16="","",IF(OR(AI16>(AH16+6),AI16<(AH16-6)),"Agncy Repl.","")) ->  | AK18: Calc. % | AN18: =IF(AN16="","",IF(AO16="",AN16,IF(OR(AO16>(AN16+6),AO16<(AN16-6)),AO16,AN16))) ->  | AO18: =IF(AO16="","",IF(OR(AO16>(AN16+6),AO16<(AN16-6)),"Agncy Repl.","")) ->  | AP18: =IF(AP16="","",IF(AQ16="",AP16,IF(OR(AQ16>(AP16+6),AQ16<(AP16-6)),AQ16,AP16))) ->  | AQ18: =IF(AQ16="","",IF(OR(AQ16>(AP16+6),AQ16<(AP16-6)),"Agncy Repl.","")) ->  | AR18: =IF(AR16="","",IF(AS16="",AR16,IF(OR(AS16>(AR16+6),AS16<(AR16-6)),AS16,AR16))) ->  | AS18: =IF(AS16="","",IF(OR(AS16>(AR16+6),AS16<(AR16-6)),"Agncy Repl.","")) ->  | AT18: =IF(AT16="","",IF(AU16="",AT16,IF(OR(AU16>(AT16+6),AU16<(AT16-6)),AU16,AT16))) ->  | AU18: =IF(AU16="","",IF(OR(AU16>(AT16+6),AU16<(AT16-6)),"Agncy Repl.","")) ->  | AW18: Calc. % | AZ18: =IF(AZ16="","",IF(BA16="",AZ16,IF(OR(BA16>(AZ16+6),BA16<(AZ16-6)),BA16,AZ16))) ->  | BA18: =IF(BA16="","",IF(OR(BA16>(AZ16+6),BA16<(AZ16-6)),"Agncy Repl.","")) ->  | BB18: =IF(BB16="","",IF(BC16="",BB16,IF(OR(BC16>(BB16+6),BC16<(BB16-6)),BC16,BB16))) ->  | BC18: =IF(BC16="","",IF(OR(BC16>(BB16+6),BC16<(BB16-6)),"Agncy Repl.","")) ->  | BD18: =IF(BD16="","",IF(BE16="",BD16,IF(OR(BE16>(BD16+6),BE16<(BD16-6)),BE16,BD16))) ->  | BE18: =IF(BE16="","",IF(OR(BE16>(BD16+6),BE16<(BD16-6)),"Agncy Repl.","")) ->  | BF18: =IF(BF16="","",IF(BG16="",BF16,IF(OR(BG16>(BF16+6),BG16<(BF16-6)),BG16,BF16))) ->  | BG18: =IF(BG16="","",IF(OR(BG16>(BF16+6),BG16<(BF16-6)),"Agncy Repl.","")) ->  | BI18: Calc. % | BL18: =IF(BL16="","",IF(BM16="",BL16,IF(OR(BM16>(BL16+6),BM16<(BL16-6)),BM16,BL16))) ->  | BM18: =IF(BM16="","",IF(OR(BM16>(BL16+6),BM16<(BL16-6)),"Agncy Repl.","")) ->  | BN18: =IF(BN16="","",IF(BO16="",BN16,IF(OR(BO16>(BN16+6),BO16<(BN16-6)),BO16,BN16))) ->  | BO18: =IF(BO16="","",IF(OR(BO16>(BN16+6),BO16<(BN16-6)),"Agncy Repl.","")) ->  | BP18: =IF(BP16="","",IF(BQ16="",BP16,IF(OR(BQ16>(BP16+6),BQ16<(BP16-6)),BQ16,BP16))) ->  | BQ18: =IF(BQ16="","",IF(OR(BQ16>(BP16+6),BQ16<(BP16-6)),"Agncy Repl.","")) ->  | BR18: =IF(BR16="","",IF(BS16="",BR16,IF(OR(BS16>(BR16+6),BS16<(BR16-6)),BS16,BR16))) ->  | BS18: =IF(BS16="","",IF(OR(BS16>(BR16+6),BS16<(BR16-6)),"Agncy Repl.","")) ->  | BU18: Calc. % | BX18: =IF(BX16="","",IF(BY16="",BX16,IF(OR(BY16>(BX16+6),BY16<(BX16-6)),BY16,BX16))) ->  | BY18: =IF(BY16="","",IF(OR(BY16>(BX16+6),BY16<(BX16-6)),"Agncy Repl.","")) ->  | BZ18: =IF(BZ16="","",IF(CA16="",BZ16,IF(OR(CA16>(BZ16+6),CA16<(BZ16-6)),CA16,BZ16))) ->  | CA18: =IF(CA16="","",IF(OR(CA16>(BZ16+6),CA16<(BZ16-6)),"Agncy Repl.","")) ->  | CB18: =IF(CB16="","",IF(CC16="",CB16,IF(OR(CC16>(CB16+6),CC16<(CB16-6)),CC16,CB16))) ->  | CC18: =IF(CC16="","",IF(OR(CC16>(CB16+6),CC16<(CB16-6)),"Agncy Repl.","")) ->  | CD18: =IF(CD16="","",IF(CE16="",CD16,IF(OR(CE16>(CD16+6),CE16<(CD16-6)),CE16,CD16))) ->  | CE18: =IF(CE16="","",IF(OR(CE16>(CD16+6),CE16<(CD16-6)),"Agncy Repl.","")) ->  | CG18: Calc. % | CJ18: =IF(CJ16="","",IF(CK16="",CJ16,IF(OR(CK16>(CJ16+6),CK16<(CJ16-6)),CK16,CJ16))) ->  | CK18: =IF(CK16="","",IF(OR(CK16>(CJ16+6),CK16<(CJ16-6)),"Agncy Repl.","")) ->  | CL18: =IF(CL16="","",IF(CM16="",CL16,IF(OR(CM16>(CL16+6),CM16<(CL16-6)),CM16,CL16))) ->  | CM18: =IF(CM16="","",IF(OR(CM16>(CL16+6),CM16<(CL16-6)),"Agncy Repl.","")) ->  | CN18: =IF(CN16="","",IF(CO16="",CN16,IF(OR(CO16>(CN16+6),CO16<(CN16-6)),CO16,CN16))) ->  | CO18: =IF(CO16="","",IF(OR(CO16>(CN16+6),CO16<(CN16-6)),"Agncy Repl.","")) ->  | CP18: =IF(CP16="","",IF(CQ16="",CP16,IF(OR(CQ16>(CP16+6),CQ16<(CP16-6)),CQ16,CP16))) ->  | CQ18: =IF(CQ16="","",IF(OR(CQ16>(CP16+6),CQ16<(CP16-6)),"Agncy Repl.","")) ->  | CS18: Calc. % | CV18: =IF(CV16="","",IF(CW16="",CV16,IF(OR(CW16>(CV16+6),CW16<(CV16-6)),CW16,CV16))) ->  | CW18: =IF(CW16="","",IF(OR(CW16>(CV16+6),CW16<(CV16-6)),"Agncy Repl.","")) ->  | CX18: =IF(CX16="","",IF(CY16="",CX16,IF(OR(CY16>(CX16+6),CY16<(CX16-6)),CY16,CX16))) ->  | CY18: =IF(CY16="","",IF(OR(CY16>(CX16+6),CY16<(CX16-6)),"Agncy Repl.","")) ->  | CZ18: =IF(CZ16="","",IF(DA16="",CZ16,IF(OR(DA16>(CZ16+6),DA16<(CZ16-6)),DA16,CZ16))) ->  | DA18: =IF(DA16="","",IF(OR(DA16>(CZ16+6),DA16<(CZ16-6)),"Agncy Repl.","")) ->  | DB18: =IF(DB16="","",IF(DC16="",DB16,IF(OR(DC16>(DB16+6),DC16<(DB16-6)),DC16,DB16))) ->  | DC18: =IF(DC16="","",IF(OR(DC16>(DB16+6),DC16<(DB16-6)),"Agncy Repl.","")) ->  | DD18: =IF(DD16="","",IF(OR(DD16>(DC16+6),DD16<(DC16-6)),"Agncy Repl.","")) ->  | DE18: Calc. % | DH18: =IF(DH16="","",IF(DI16="",DH16,IF(OR(DI16>(DH16+6),DI16<(DH16-6)),DI16,DH16))) ->  | DI18: =IF(DI16="","",IF(OR(DI16>(DH16+6),DI16<(DH16-6)),"Agncy Repl.","")) ->  | DJ18: =IF(DJ16="","",IF(DK16="",DJ16,IF(OR(DK16>(DJ16+6),DK16<(DJ16-6)),DK16,DJ16))) ->  | DK18: =IF(DK16="","",IF(OR(DK16>(DJ16+6),DK16<(DJ16-6)),"Agncy Repl.","")) ->  | DL18: =IF(DL16="","",IF(DM16="",DL16,IF(OR(DM16>(DL16+6),DM16<(DL16-6)),DM16,DL16))) ->  | DM18: =IF(DM16="","",IF(OR(DM16>(DL16+6),DM16<(DL16-6)),"Agncy Repl.","")) ->  | DN18: =IF(DN16="","",IF(DO16="",DN16,IF(OR(DO16>(DN16+6),DO16<(DN16-6)),DO16,DN16))) ->  | DO18: =IF(DO16="","",IF(OR(DO16>(DN16+6),DO16<(DN16-6)),"Agncy Repl.","")) ->  | DQ18: Calc. % | DT18: =IF(DT16="","",IF(DU16="",DT16,IF(OR(DU16>(DT16+6),DU16<(DT16-6)),DU16,DT16))) ->  | DU18: =IF(DU16="","",IF(OR(DU16>(DT16+6),DU16<(DT16-6)),"Agncy Repl.","")) ->  | DV18: =IF(DV16="","",IF(DW16="",DV16,IF(OR(DW16>(DV16+6),DW16<(DV16-6)),DW16,DV16))) ->  | DW18: =IF(DW16="","",IF(OR(DW16>(DV16+6),DW16<(DV16-6)),"Agncy Repl.","")) ->  | DX18: =IF(DX16="","",IF(DY16="",DX16,IF(OR(DY16>(DX16+6),DY16<(DX16-6)),DY16,DX16))) ->  | DY18: =IF(DY16="","",IF(OR(DY16>(DX16+6),DY16<(DX16-6)),"Agncy Repl.","")) ->  | DZ18: =IF(DZ16="","",IF(EA16="",DZ16,IF(OR(EA16>(DZ16+6),EA16<(DZ16-6)),EA16,DZ16))) ->  | EA18: =IF(EA16="","",IF(OR(EA16>(DZ16+6),EA16<(DZ16-6)),"Agncy Repl.","")) ->  | EC18: Calc. % | EF18: =IF(EF16="","",IF(EG16="",EF16,IF(OR(EG16>(EF16+6),EG16<(EF16-6)),EG16,EF16))) ->  | EG18: =IF(EG16="","",IF(OR(EG16>(EF16+6),EG16<(EF16-6)),"Agncy Repl.","")) ->  | EH18: =IF(EH16="","",IF(EI16="",EH16,IF(OR(EI16>(EH16+6),EI16<(EH16-6)),EI16,EH16))) ->  | EI18: =IF(EI16="","",IF(OR(EI16>(EH16+6),EI16<(EH16-6)),"Agncy Repl.","")) ->  | EJ18: =IF(EJ16="","",IF(EK16="",EJ16,IF(OR(EK16>(EJ16+6),EK16<(EJ16-6)),EK16,EJ16))) ->  | EK18: =IF(EK16="","",IF(OR(EK16>(EJ16+6),EK16<(EJ16-6)),"Agncy Repl.","")) ->  | EL18: =IF(EL16="","",IF(EM16="",EL16,IF(OR(EM16>(EL16+6),EM16<(EL16-6)),EM16,EL16))) ->  | EM18: =IF(EM16="","",IF(OR(EM16>(EL16+6),EM16<(EL16-6)),"Agncy Repl.","")) ->  | EO18: Calc. % | ER18: =IF(ER16="","",IF(ES16="",ER16,IF(OR(ES16>(ER16+6),ES16<(ER16-6)),ES16,ER16))) ->  | ES18: =IF(ES16="","",IF(OR(ES16>(ER16+6),ES16<(ER16-6)),"Agncy Repl.","")) ->  | ET18: =IF(ET16="","",IF(EU16="",ET16,IF(OR(EU16>(ET16+6),EU16<(ET16-6)),EU16,ET16))) ->  | EU18: =IF(EU16="","",IF(OR(EU16>(ET16+6),EU16<(ET16-6)),"Agncy Repl.","")) ->  | EV18: =IF(EV16="","",IF(EW16="",EV16,IF(OR(EW16>(EV16+6),EW16<(EV16-6)),EW16,EV16))) ->  | EW18: =IF(EW16="","",IF(OR(EW16>(EV16+6),EW16<(EV16-6)),"Agncy Repl.","")) ->  | EX18: =IF(EX16="","",IF(EY16="",EX16,IF(OR(EY16>(EX16+6),EY16<(EX16-6)),EY16,EX16))) ->  | EY18: =IF(EY16="","",IF(OR(EY16>(EX16+6),EY16<(EX16-6)),"Agncy Repl.","")) ->  | FA18: Calc. % | FD18: =IF(FD16="","",IF(FE16="",FD16,IF(OR(FE16>(FD16+6),FE16<(FD16-6)),FE16,FD16))) ->  | FE18: =IF(FE16="","",IF(OR(FE16>(FD16+6),FE16<(FD16-6)),"Agncy Repl.","")) ->  | FF18: =IF(FF16="","",IF(FG16="",FF16,IF(OR(FG16>(FF16+6),FG16<(FF16-6)),FG16,FF16))) ->  | FG18: =IF(FG16="","",IF(OR(FG16>(FF16+6),FG16<(FF16-6)),"Agncy Repl.","")) ->  | FH18: =IF(FH16="","",IF(FI16="",FH16,IF(OR(FI16>(FH16+6),FI16<(FH16-6)),FI16,FH16))) ->  | FI18: =IF(FI16="","",IF(OR(FI16>(FH16+6),FI16<(FH16-6)),"Agncy Repl.","")) ->  | FJ18: =IF(FJ16="","",IF(FK16="",FJ16,IF(OR(FK16>(FJ16+6),FK16<(FJ16-6)),FK16,FJ16))) ->  | FK18: =IF(FK16="","",IF(OR(FK16>(FJ16+6),FK16<(FJ16-6)),"Agncy Repl.","")) ->  | FM18: Calc. % | FP18: =IF(FP16="","",IF(FQ16="",FP16,IF(OR(FQ16>(FP16+6),FQ16<(FP16-6)),FQ16,FP16))) ->  | FQ18: =IF(FQ16="","",IF(OR(FQ16>(FP16+6),FQ16<(FP16-6)),"Agncy Repl.","")) ->  | FR18: =IF(FR16="","",IF(FS16="",FR16,IF(OR(FS16>(FR16+6),FS16<(FR16-6)),FS16,FR16))) ->  | FS18: =IF(FS16="","",IF(OR(FS16>(FR16+6),FS16<(FR16-6)),"Agncy Repl.","")) ->  | FT18: =IF(FT16="","",IF(FU16="",FT16,IF(OR(FU16>(FT16+6),FU16<(FT16-6)),FU16,FT16))) ->  | FU18: =IF(FU16="","",IF(OR(FU16>(FT16+6),FU16<(FT16-6)),"Agncy Repl.","")) ->  | FV18: =IF(FV16="","",IF(FW16="",FV16,IF(OR(FW16>(FV16+6),FW16<(FV16-6)),FW16,FV16))) ->  | FW18: =IF(FW16="","",IF(OR(FW16>(FV16+6),FW16<(FV16-6)),"Agncy Repl.","")) ->  | FY18: Calc. % | GB18: =IF(GB16="","",IF(GC16="",GB16,IF(OR(GC16>(GB16+6),GC16<(GB16-6)),GC16,GB16))) ->  | GC18: =IF(GC16="","",IF(OR(GC16>(GB16+6),GC16<(GB16-6)),"Agncy Repl.","")) ->  | GD18: =IF(GD16="","",IF(GE16="",GD16,IF(OR(GE16>(GD16+6),GE16<(GD16-6)),GE16,GD16))) ->  | GE18: =IF(GE16="","",IF(OR(GE16>(GD16+6),GE16<(GD16-6)),"Agncy Repl.","")) ->  | GF18: =IF(GF16="","",IF(GG16="",GF16,IF(OR(GG16>(GF16+6),GG16<(GF16-6)),GG16,GF16))) ->  | GG18: =IF(GG16="","",IF(OR(GG16>(GF16+6),GG16<(GF16-6)),"Agncy Repl.","")) ->  | GH18: =IF(GH16="","",IF(GI16="",GH16,IF(OR(GI16>(GH16+6),GI16<(GH16-6)),GI16,GH16))) ->  | GI18: =IF(GI16="","",IF(OR(GI16>(GH16+6),GI16<(GH16-6)),"Agncy Repl.","")) ->  | GK18: Calc. % | GN18: =IF(GN16="","",IF(GO16="",GN16,IF(OR(GO16>(GN16+6),GO16<(GN16-6)),GO16,GN16))) ->  | GO18: =IF(GO16="","",IF(OR(GO16>(GN16+6),GO16<(GN16-6)),"Agncy Repl.","")) ->  | GP18: =IF(GP16="","",IF(GQ16="",GP16,IF(OR(GQ16>(GP16+6),GQ16<(GP16-6)),GQ16,GP16))) ->  | GQ18: =IF(GQ16="","",IF(OR(GQ16>(GP16+6),GQ16<(GP16-6)),"Agncy Repl.","")) ->  | GR18: =IF(GR16="","",IF(GS16="",GR16,IF(OR(GS16>(GR16+6),GS16<(GR16-6)),GS16,GR16))) ->  | GS18: =IF(GS16="","",IF(OR(GS16>(GR16+6),GS16<(GR16-6)),"Agncy Repl.","")) ->  | GT18: =IF(GT16="","",IF(GU16="",GT16,IF(OR(GU16>(GT16+6),GU16<(GT16-6)),GU16,GT16))) ->  | GU18: =IF(GU16="","",IF(OR(GU16>(GT16+6),GU16<(GT16-6)),"Agncy Repl.","")) ->  | GV18: =IF(GV16="","",IF(OR(GV16>(GU16+6),GV16<(GU16-6)),"Agncy Repl.","")) ->  | GW18: Calc. % | GZ18: =IF(GZ16="","",IF(HA16="",GZ16,IF(OR(HA16>(GZ16+6),HA16<(GZ16-6)),HA16,GZ16))) ->  | HA18: =IF(HA16="","",IF(OR(HA16>(GZ16+6),HA16<(GZ16-6)),"Agncy Repl.","")) ->  | HB18: =IF(HB16="","",IF(HC16="",HB16,IF(OR(HC16>(HB16+6),HC16<(HB16-6)),HC16,HB16))) ->  | HC18: =IF(HC16="","",IF(OR(HC16>(HB16+6),HC16<(HB16-6)),"Agncy Repl.","")) ->  | HD18: =IF(HD16="","",IF(HE16="",HD16,IF(OR(HE16>(HD16+6),HE16<(HD16-6)),HE16,HD16))) ->  | HE18: =IF(HE16="","",IF(OR(HE16>(HD16+6),HE16<(HD16-6)),"Agncy Repl.","")) ->  | HF18: =IF(HF16="","",IF(HG16="",HF16,IF(OR(HG16>(HF16+6),HG16<(HF16-6)),HG16,HF16))) ->  | HG18: =IF(HG16="","",IF(OR(HG16>(HF16+6),HG16<(HF16-6)),"Agncy Repl.","")) ->  | HH18: =IF(HH16="","",IF(OR(HH16>(HG16+6),HH16<(HG16-6)),"Agncy Repl.","")) ->  | HI18: Calc. % | HL18: =IF(HL16="","",IF(HM16="",HL16,IF(OR(HM16>(HL16+6),HM16<(HL16-6)),HM16,HL16))) ->  | HM18: =IF(HM16="","",IF(OR(HM16>(HL16+6),HM16<(HL16-6)),"Agncy Repl.","")) ->  | HN18: =IF(HN16="","",IF(HO16="",HN16,IF(OR(HO16>(HN16+6),HO16<(HN16-6)),HO16,HN16))) ->  | HO18: =IF(HO16="","",IF(OR(HO16>(HN16+6),HO16<(HN16-6)),"Agncy Repl.","")) ->  | HP18: =IF(HP16="","",IF(HQ16="",HP16,IF(OR(HQ16>(HP16+6),HQ16<(HP16-6)),HQ16,HP16))) ->  | HQ18: =IF(HQ16="","",IF(OR(HQ16>(HP16+6),HQ16<(HP16-6)),"Agncy Repl.","")) ->  | HR18: =IF(HR16="","",IF(HS16="",HR16,IF(OR(HS16>(HR16+6),HS16<(HR16-6)),HS16,HR16))) ->  | HS18: =IF(HS16="","",IF(OR(HS16>(HR16+6),HS16<(HR16-6)),"Agncy Repl.","")) ->  | HU18: Calc. % | HX18: =IF(HX16="","",IF(HY16="",HX16,IF(OR(HY16>(HX16+6),HY16<(HX16-6)),HY16,HX16))) ->  | HY18: =IF(HY16="","",IF(OR(HY16>(HX16+6),HY16<(HX16-6)),"Agncy Repl.","")) ->  | HZ18: =IF(HZ16="","",IF(IA16="",HZ16,IF(OR(IA16>(HZ16+6),IA16<(HZ16-6)),IA16,HZ16))) ->  | IA18: =IF(IA16="","",IF(OR(IA16>(HZ16+6),IA16<(HZ16-6)),"Agncy Repl.","")) ->  | IB18: =IF(IB16="","",IF(IC16="",IB16,IF(OR(IC16>(IB16+6),IC16<(IB16-6)),IC16,IB16))) ->  | IC18: =IF(IC16="","",IF(OR(IC16>(IB16+6),IC16<(IB16-6)),"Agncy Repl.","")) ->  | ID18: =IF(ID16="","",IF(IE16="",ID16,IF(OR(IE16>(ID16+6),IE16<(ID16-6)),IE16,ID16))) ->  | IE18: =IF(IE16="","",IF(OR(IE16>(ID16+6),IE16<(ID16-6)),"Agncy Repl.","")) ->  | IG18: Calc. % | IJ18: =IF(IJ16="","",IF(IK16="",IJ16,IF(OR(IK16>(IJ16+6),IK16<(IJ16-6)),IK16,IJ16))) ->  | IK18: =IF(IK16="","",IF(OR(IK16>(IJ16+6),IK16<(IJ16-6)),"Agncy Repl.","")) ->  | IL18: =IF(IL16="","",IF(IM16="",IL16,IF(OR(IM16>(IL16+6),IM16<(IL16-6)),IM16,IL16))) ->  | IM18: =IF(IM16="","",IF(OR(IM16>(IL16+6),IM16<(IL16-6)),"Agncy Repl.","")) ->  | IN18: =IF(IN16="","",IF(IO16="",IN16,IF(OR(IO16>(IN16+6),IO16<(IN16-6)),IO16,IN16))) ->  | IO18: =IF(IO16="","",IF(OR(IO16>(IN16+6),IO16<(IN16-6)),"Agncy Repl.","")) ->  | IP18: =IF(IP16="","",IF(IQ16="",IP16,IF(OR(IQ16>(IP16+6),IQ16<(IP16-6)),IQ16,IP16))) ->  | IQ18: =IF(IQ16="","",IF(OR(IQ16>(IP16+6),IQ16<(IP16-6)),"Agncy Repl.","")) -> 
A19: 1/2 in. | M19: 1/2 in. | Y19: 1/2 in. | AK19: 1/2 in. | AW19: 1/2 in. | BI19: 1/2 in. | BU19: 1/2 in. | CG19: 1/2 in. | CS19: 1/2 in. | DE19: 1/2 in. | DQ19: 1/2 in. | EC19: 1/2 in. | EO19: 1/2 in. | FA19: 1/2 in. | FM19: 1/2 in. | FY19: 1/2 in. | GK19: 1/2 in. | GW19: 1/2 in. | HI19: 1/2 in. | HU19: 1/2 in. | IG19: 1/2 in. | IT19: 0 | IU19: Agency AFT Substituted
A20: Mov Avg. | B20: =IF(MDR!$AL$4="YES",MDR!$BQ$46,MDR!$S12) -> 85 | C20: =IF(MDR!$AL$4="YES",MDR!$BR$46,MDR!$T12) -> 100 | E20: =IF(E19="","",IF(OR(E19>(D19+6),E19<(D19-6)),"Tolerance","")) ->  | G20: =IF(G19="","",IF(OR(G19>(F19+6),G19<(F19-6)),"Tolerance","")) ->  | I20: =IF(I19="","",IF(OR(I19>(H19+6),I19<(H19-6)),"Tolerance","")) ->  | J20: =mndot_rounding_0(IF(D19="","",IF(F19="","",IF(H19="","",IF(J19="","",Grad!G14))))) ->  | K20: =IF(K19="","",IF(OR(K19>(J19+6),K19<(J19-6)),"Tolerance","")) ->  | M20: Mov Avg. | N20: =IF(MDR!$AL$4="YES",MDR!$BQ$46,MDR!$S16) -> 85 | O20: =IF(MDR!$AL$4="YES",MDR!$BR$46,MDR!$T16) -> 100 | P20: =mndot_rounding_0(Grad!T15) ->  | Q20: =IF(Q19="","",IF(OR(Q19>(P19+6),Q19<(P19-6)),"Tolerance","")) ->  | R20: =mndot_rounding_0(Grad!T16) ->  | S20: =IF(S19="","",IF(OR(S19>(R19+6),S19<(R19-6)),"Tolerance","")) ->  | T20: =mndot_rounding_0(Grad!T17) ->  | U20: =IF(U19="","",IF(OR(U19>(T19+6),U19<(T19-6)),"Tolerance","")) ->  | V20: =mndot_rounding_0(Grad!T18) ->  | W20: =IF(W19="","",IF(OR(W19>(V19+6),W19<(V19-6)),"Tolerance","")) ->  | Y20: Mov Avg. | Z20: =IF(MDR!$AL$4="YES",MDR!$BQ$46,MDR!$S20) -> 85 | AA20: =IF(MDR!$AL$4="YES",MDR!$BR$46,MDR!$T20) -> 100 | AB20: =mndot_rounding_0(Grad!$T19) ->  | AC20: =IF(AC19="","",IF(OR(AC19>(AB19+6),AC19<(AB19-6)),"Tolerance","")) ->  | AD20: =mndot_rounding_0(Grad!$T20) ->  | AE20: =IF(AE19="","",IF(OR(AE19>(AD19+6),AE19<(AD19-6)),"Tolerance","")) ->  | AF20: =mndot_rounding_0(Grad!$T21) ->  | AG20: =IF(AG19="","",IF(OR(AG19>(AF19+6),AG19<(AF19-6)),"Tolerance","")) ->  | AH20: =mndot_rounding_0(Grad!$T22) ->  | AI20: =IF(AI19="","",IF(OR(AI19>(AH19+6),AI19<(AH19-6)),"Tolerance","")) ->  | AK20: Mov Avg. | AL20: =IF(MDR!$AL$4="YES",MDR!$BQ$46,MDR!$S24) -> 85 | AM20: =IF(MDR!$AL$4="YES",MDR!$BR$46,MDR!$T24) -> 100 | AN20: =mndot_rounding_0(Grad!$T23) ->  | AO20: =IF(AO19="","",IF(OR(AO19>(AN19+6),AO19<(AN19-6)),"Tolerance","")) ->  | AP20: =mndot_rounding_0(Grad!$T24) ->  | AQ20: =IF(AQ19="","",IF(OR(AQ19>(AP19+6),AQ19<(AP19-6)),"Tolerance","")) ->  | AR20: =mndot_rounding_0(Grad!$T25) ->  | AS20: =IF(AS19="","",IF(OR(AS19>(AR19+6),AS19<(AR19-6)),"Tolerance","")) ->  | AT20: =mndot_rounding_0(Grad!$T26) ->  | AU20: =IF(AU19="","",IF(OR(AU19>(AT19+6),AU19<(AT19-6)),"Tolerance","")) ->  | AW20: Mov Avg. | AX20: =IF(MDR!$AL$4="YES",MDR!$BQ$46,MDR!$S28) -> 85 | AY20: =IF(MDR!$AL$4="YES",MDR!$BR$46,MDR!$T28) -> 100 | AZ20: =mndot_rounding_0(Grad!$T27) ->  | BA20: =IF(BA19="","",IF(OR(BA19>(AZ19+6),BA19<(AZ19-6)),"Tolerance","")) ->  | BB20: =mndot_rounding_0(Grad!$T28) ->  | BC20: =IF(BC19="","",IF(OR(BC19>(BB19+6),BC19<(BB19-6)),"Tolerance","")) ->  | BD20: =mndot_rounding_0(Grad!$T29) ->  | BE20: =IF(BE19="","",IF(OR(BE19>(BD19+6),BE19<(BD19-6)),"Tolerance","")) ->  | BF20: =mndot_rounding_0(Grad!$T30) ->  | BG20: =IF(BG19="","",IF(OR(BG19>(BF19+6),BG19<(BF19-6)),"Tolerance","")) ->  | BI20: Mov Avg. | BJ20: =IF(MDR!$AL$4="YES",MDR!$BQ$46,MDR!$S32) -> 85 | BK20: =IF(MDR!$AL$4="YES",MDR!$BR$46,MDR!$T32) -> 100 | BL20: =mndot_rounding_0(Grad!$T31) ->  | BM20: =IF(BM19="","",IF(OR(BM19>(BL19+6),BM19<(BL19-6)),"Tolerance","")) ->  | BN20: =mndot_rounding_0(Grad!$T32) ->  | BO20: =IF(BO19="","",IF(OR(BO19>(BN19+6),BO19<(BN19-6)),"Tolerance","")) ->  | BP20: =mndot_rounding_0(Grad!$T33) ->  | BQ20: =IF(BQ19="","",IF(OR(BQ19>(BP19+6),BQ19<(BP19-6)),"Tolerance","")) ->  | BR20: =mndot_rounding_0(Grad!$T34) ->  | BS20: =IF(BS19="","",IF(OR(BS19>(BR19+6),BS19<(BR19-6)),"Tolerance","")) ->  | BU20: Mov Avg. | BV20: =IF(MDR!$AL$4="YES",MDR!$BQ$46,MDR!$S36) -> 85 | BW20: =IF(MDR!$AL$4="YES",MDR!$BR$46,MDR!$T36) -> 100 | BX20: =mndot_rounding_0(Grad!$T35) ->  | BY20: =IF(BY19="","",IF(OR(BY19>(BX19+6),BY19<(BX19-6)),"Tolerance","")) ->  | BZ20: =mndot_rounding_0(Grad!$T36) ->  | CA20: =IF(CA19="","",IF(OR(CA19>(BZ19+6),CA19<(BZ19-6)),"Tolerance","")) ->  | CB20: =mndot_rounding_0(Grad!$T37) ->  | CC20: =IF(CC19="","",IF(OR(CC19>(CB19+6),CC19<(CB19-6)),"Tolerance","")) ->  | CD20: =mndot_rounding_0(Grad!$T38) ->  | CE20: =IF(CE19="","",IF(OR(CE19>(CD19+6),CE19<(CD19-6)),"Tolerance","")) ->  | CG20: Mov Avg. | CH20: =IF(MDR!$AL$4="YES",MDR!$BQ$46,MDR!$S40) -> 85 | CI20: =IF(MDR!$AL$4="YES",MDR!$BR$46,MDR!$T40) -> 100 | CJ20: =mndot_rounding_0(Grad!$T39) ->  | CK20: =IF(CK19="","",IF(OR(CK19>(CJ19+6),CK19<(CJ19-6)),"Tolerance","")) ->  | CL20: =mndot_rounding_0(Grad!$T40) ->  | CM20: =IF(CM19="","",IF(OR(CM19>(CL19+6),CM19<(CL19-6)),"Tolerance","")) ->  | CN20: =mndot_rounding_0(Grad!$T41) ->  | CO20: =IF(CO19="","",IF(OR(CO19>(CN19+6),CO19<(CN19-6)),"Tolerance","")) ->  | CP20: =mndot_rounding_0(Grad!$T42) ->  | CQ20: =IF(CQ19="","",IF(OR(CQ19>(CP19+6),CQ19<(CP19-6)),"Tolerance","")) ->  | CS20: Mov Avg. | CT20: =IF(MDR!$AL$4="YES",MDR!$BQ$46,MDR!$S44) -> 85 | CU20: =IF(MDR!$AL$4="YES",MDR!$BR$46,MDR!$T44) -> 100 | CV20: =mndot_rounding_0(Grad!$T43) ->  | CW20: =IF(CW19="","",IF(OR(CW19>(CV19+6),CW19<(CV19-6)),"Tolerance","")) ->  | CX20: =mndot_rounding_0(Grad!$T44) ->  | CY20: =IF(CY19="","",IF(OR(CY19>(CX19+6),CY19<(CX19-6)),"Tolerance","")) ->  | CZ20: =mndot_rounding_0(Grad!$T45) ->  | DA20: =IF(DA19="","",IF(OR(DA19>(CZ19+6),DA19<(CZ19-6)),"Tolerance","")) ->  | DB20: =mndot_rounding_0(Grad!$T46) ->  | DC20: =IF(DC19="","",IF(OR(DC19>(DB19+6),DC19<(DB19-6)),"Tolerance","")) ->  | DE20: Mov Avg. | DF20: =IF(MDR!$AL$4="YES",MDR!$BQ$46,MDR!$S48) -> 85 | DG20: =IF(MDR!$AL$4="YES",MDR!$BR$46,MDR!$T48) -> 100 | DH20: =mndot_rounding_0(Grad!$T47) ->  | DI20: =IF(DI19="","",IF(OR(DI19>(DH19+6),DI19<(DH19-6)),"Tolerance","")) ->  | DJ20: =mndot_rounding_0(Grad!$T48) ->  | DK20: =IF(DK19="","",IF(OR(DK19>(DJ19+6),DK19<(DJ19-6)),"Tolerance","")) ->  | DL20: =mndot_rounding_0(Grad!$T49) ->  | DM20: =IF(DM19="","",IF(OR(DM19>(DL19+6),DM19<(DL19-6)),"Tolerance","")) ->  | DN20: =mndot_rounding_0(Grad!$T50) ->  | DO20: =IF(DO19="","",IF(OR(DO19>(DN19+6),DO19<(DN19-6)),"Tolerance","")) ->  | DQ20: Mov Avg. | DR20: =IF(MDR!$AL$4="YES",MDR!$BQ$46,MDR!$S52) -> 85 | DS20: =IF(MDR!$AL$4="YES",MDR!$BR$46,MDR!$T52) -> 100 | DT20: =mndot_rounding_0(Grad!$T51) ->  | DU20: =IF(DU19="","",IF(OR(DU19>(DT19+6),DU19<(DT19-6)),"Tolerance","")) ->  | DV20: =mndot_rounding_0(Grad!$T52) ->  | DW20: =IF(DW19="","",IF(OR(DW19>(DV19+6),DW19<(DV19-6)),"Tolerance","")) ->  | DX20: =mndot_rounding_0(Grad!$T53) ->  | DY20: =IF(DY19="","",IF(OR(DY19>(DX19+6),DY19<(DX19-6)),"Tolerance","")) ->  | DZ20: =mndot_rounding_0(Grad!$T54) ->  | EA20: =IF(EA19="","",IF(OR(EA19>(DZ19+6),EA19<(DZ19-6)),"Tolerance","")) ->  | EC20: Mov Avg. | ED20: =IF(MDR!$AL$4="YES",MDR!$BQ$46,MDR!$S56) -> 85 | EE20: =IF(MDR!$AL$4="YES",MDR!$BR$46,MDR!$T56) -> 100 | EF20: =mndot_rounding_0(Grad!$T55) ->  | EG20: =IF(EG19="","",IF(OR(EG19>(EF19+6),EG19<(EF19-6)),"Tolerance","")) ->  | EH20: =mndot_rounding_0(Grad!$T56) ->  | EI20: =IF(EI19="","",IF(OR(EI19>(EH19+6),EI19<(EH19-6)),"Tolerance","")) ->  | EJ20: =mndot_rounding_0(Grad!$T57) ->  | EK20: =IF(EK19="","",IF(OR(EK19>(EJ19+6),EK19<(EJ19-6)),"Tolerance","")) ->  | EL20: =mndot_rounding_0(Grad!$T58) ->  | EM20: =IF(EM19="","",IF(OR(EM19>(EL19+6),EM19<(EL19-6)),"Tolerance","")) ->  | EO20: Mov Avg. | EP20: =IF(MDR!$AL$4="YES",MDR!$BQ$46,MDR!$S60) -> 85 | EQ20: =IF(MDR!$AL$4="YES",MDR!$BR$46,MDR!$T60) -> 100 | ER20: =mndot_rounding_0(Grad!$T59) ->  | ES20: =IF(ES19="","",IF(OR(ES19>(ER19+6),ES19<(ER19-6)),"Tolerance","")) ->  | ET20: =mndot_rounding_0(Grad!$T60) ->  | EU20: =IF(EU19="","",IF(OR(EU19>(ET19+6),EU19<(ET19-6)),"Tolerance","")) ->  | EV20: =mndot_rounding_0(Grad!$T61) ->  | EW20: =IF(EW19="","",IF(OR(EW19>(EV19+6),EW19<(EV19-6)),"Tolerance","")) ->  | EX20: =mndot_rounding_0(Grad!$T62) ->  | EY20: =IF(EY19="","",IF(OR(EY19>(EX19+6),EY19<(EX19-6)),"Tolerance","")) ->  | FA20: Mov Avg. | FB20: =IF(MDR!$AL$4="YES",MDR!$BQ$46,MDR!$S64) -> 85 | FC20: =IF(MDR!$AL$4="YES",MDR!$BR$46,MDR!$T64) -> 100 | FD20: =mndot_rounding_0(Grad!$T63) ->  | FE20: =IF(FE19="","",IF(OR(FE19>(FD19+6),FE19<(FD19-6)),"Tolerance","")) ->  | FF20: =mndot_rounding_0(Grad!$T64) ->  | FG20: =IF(FG19="","",IF(OR(FG19>(FF19+6),FG19<(FF19-6)),"Tolerance","")) ->  | FH20: =mndot_rounding_0(Grad!$T65) ->  | FI20: =IF(FI19="","",IF(OR(FI19>(FH19+6),FI19<(FH19-6)),"Tolerance","")) ->  | FJ20: =mndot_rounding_0(Grad!$T66) ->  | FK20: =IF(FK19="","",IF(OR(FK19>(FJ19+6),FK19<(FJ19-6)),"Tolerance","")) ->  | FM20: Mov Avg. | FN20: =IF(MDR!$AL$4="YES",MDR!$BQ$46,MDR!$S68) -> 85 | FO20: =IF(MDR!$AL$4="YES",MDR!$BR$46,MDR!$T68) -> 100 | FP20: =mndot_rounding_0(Grad!$T67) ->  | FQ20: =IF(FQ19="","",IF(OR(FQ19>(FP19+6),FQ19<(FP19-6)),"Tolerance","")) ->  | FR20: =mndot_rounding_0(Grad!$T68) ->  | FS20: =IF(FS19="","",IF(OR(FS19>(FR19+6),FS19<(FR19-6)),"Tolerance","")) ->  | FT20: =mndot_rounding_0(Grad!$T69) ->  | FU20: =IF(FU19="","",IF(OR(FU19>(FT19+6),FU19<(FT19-6)),"Tolerance","")) ->  | FV20: =mndot_rounding_0(Grad!$T70) ->  | FW20: =IF(FW19="","",IF(OR(FW19>(FV19+6),FW19<(FV19-6)),"Tolerance","")) ->  | FY20: Mov Avg. | FZ20: =IF(MDR!$AL$4="YES",MDR!$BQ$46,MDR!$S72) -> 85 | GA20: =IF(MDR!$AL$4="YES",MDR!$BR$46,MDR!$T72) -> 100 | GB20: =mndot_rounding_0(Grad!$T71) ->  | GC20: =IF(GC19="","",IF(OR(GC19>(GB19+6),GC19<(GB19-6)),"Tolerance","")) ->  | GD20: =mndot_rounding_0(Grad!$T72) ->  | GE20: =IF(GE19="","",IF(OR(GE19>(GD19+6),GE19<(GD19-6)),"Tolerance","")) ->  | GF20: =mndot_rounding_0(Grad!$T73) ->  | GG20: =IF(GG19="","",IF(OR(GG19>(GF19+6),GG19<(GF19-6)),"Tolerance","")) ->  | GH20: =mndot_rounding_0(Grad!$T74) ->  | GI20: =IF(GI19="","",IF(OR(GI19>(GH19+6),GI19<(GH19-6)),"Tolerance","")) ->  | GK20: Mov Avg. | GL20: =IF(MDR!$AL$4="YES",MDR!$BQ$46,MDR!$S76) -> 85 | GM20: =IF(MDR!$AL$4="YES",MDR!$BR$46,MDR!$T76) -> 100 | GN20: =mndot_rounding_0(Grad!$T75) ->  | GO20: =IF(GO19="","",IF(OR(GO19>(GN19+6),GO19<(GN19-6)),"Tolerance","")) ->  | GP20: =mndot_rounding_0(Grad!$T76) ->  | GQ20: =IF(GQ19="","",IF(OR(GQ19>(GP19+6),GQ19<(GP19-6)),"Tolerance","")) ->  | GR20: =mndot_rounding_0(Grad!$T77) ->  | GS20: =IF(GS19="","",IF(OR(GS19>(GR19+6),GS19<(GR19-6)),"Tolerance","")) ->  | GT20: =mndot_rounding_0(Grad!$T78) ->  | GU20: =IF(GU19="","",IF(OR(GU19>(GT19+6),GU19<(GT19-6)),"Tolerance","")) ->  | GW20: Mov Avg. | GX20: =IF(MDR!$AL$4="YES",MDR!$BQ$46,MDR!$S80) -> 85 | GY20: =IF(MDR!$AL$4="YES",MDR!$BR$46,MDR!$T80) -> 100 | GZ20: =mndot_rounding_0(Grad!$T79) ->  | HA20: =IF(HA19="","",IF(OR(HA19>(GZ19+6),HA19<(GZ19-6)),"Tolerance","")) ->  | HB20: =mndot_rounding_0(Grad!$T80) ->  | HC20: =IF(HC19="","",IF(OR(HC19>(HB19+6),HC19<(HB19-6)),"Tolerance","")) ->  | HD20: =mndot_rounding_0(Grad!$T81) ->  | HE20: =IF(HE19="","",IF(OR(HE19>(HD19+6),HE19<(HD19-6)),"Tolerance","")) ->  | HF20: =mndot_rounding_0(Grad!$T82) ->  | HG20: =IF(HG19="","",IF(OR(HG19>(HF19+6),HG19<(HF19-6)),"Tolerance","")) ->  | HI20: Mov Avg. | HJ20: =IF(MDR!$AL$4="YES",MDR!$BQ$46,MDR!$S84) -> 85 | HK20: =IF(MDR!$AL$4="YES",MDR!$BR$46,MDR!$T84) -> 100 | HL20: =mndot_rounding_0(Grad!$T83) ->  | HM20: =IF(HM19="","",IF(OR(HM19>(HL19+6),HM19<(HL19-6)),"Tolerance","")) ->  | HN20: =mndot_rounding_0(Grad!$T84) ->  | HO20: =IF(HO19="","",IF(OR(HO19>(HN19+6),HO19<(HN19-6)),"Tolerance","")) ->  | HP20: =mndot_rounding_0(Grad!$T85) ->  | HQ20: =IF(HQ19="","",IF(OR(HQ19>(HP19+6),HQ19<(HP19-6)),"Tolerance","")) ->  | HR20: =mndot_rounding_0(Grad!$T86) ->  | HS20: =IF(HS19="","",IF(OR(HS19>(HR19+6),HS19<(HR19-6)),"Tolerance","")) ->  | HU20: Mov Avg. | HV20: =IF(MDR!$AL$4="YES",MDR!$BQ$46,MDR!$S88) -> 85 | HW20: =IF(MDR!$AL$4="YES",MDR!$BR$46,MDR!$T88) -> 100 | HX20: =mndot_rounding_0(Grad!$T87) ->  | HY20: =IF(HY19="","",IF(OR(HY19>(HX19+6),HY19<(HX19-6)),"Tolerance","")) ->  | HZ20: =mndot_rounding_0(Grad!$T88) ->  | IA20: =IF(IA19="","",IF(OR(IA19>(HZ19+6),IA19<(HZ19-6)),"Tolerance","")) ->  | IB20: =mndot_rounding_0(Grad!$T89) ->  | IC20: =IF(IC19="","",IF(OR(IC19>(IB19+6),IC19<(IB19-6)),"Tolerance","")) ->  | ID20: =mndot_rounding_0(Grad!$T90) ->  | IE20: =IF(IE19="","",IF(OR(IE19>(ID19+6),IE19<(ID19-6)),"Tolerance","")) ->  | IG20: Mov Avg. | IH20: =IF(MDR!$AL$4="YES",MDR!$BQ$46,MDR!$S92) -> 85 | II20: =IF(MDR!$AL$4="YES",MDR!$BR$46,MDR!$T92) -> 100 | IJ20: =mndot_rounding_0(Grad!$T91) ->  | IK20: =IF(IK19="","",IF(OR(IK19>(IJ19+6),IK19<(IJ19-6)),"Tolerance","")) ->  | IL20: =mndot_rounding_0(Grad!$T92) ->  | IM20: =IF(IM19="","",IF(OR(IM19>(IL19+6),IM19<(IL19-6)),"Tolerance","")) ->  | IN20: =mndot_rounding_0(Grad!$T93) ->  | IO20: =IF(IO19="","",IF(OR(IO19>(IN19+6),IO19<(IN19-6)),"Tolerance","")) ->  | IP20: =mndot_rounding_0(Grad!$T94) ->  | IQ20: =IF(IQ19="","",IF(OR(IQ19>(IP19+6),IQ19<(IP19-6)),"Tolerance","")) ->  | IT20: 0 | IU20: Agency AFT Substituted
A21: 1/2" Calc. % | D21: =IF(D19="","",IF(E19="",D19,IF(OR(E19>(D19+6),E19<(D19-6)),E19,D19))) ->  | E21: =IF(E19="","",IF(OR(E19>(D19+6),E19<(D19-6)),"Agncy Repl.","")) ->  | F21: =IF(F19="","",IF(G19="",F19,IF(OR(G19>(F19+6),G19<(F19-6)),G19,F19))) ->  | G21: =IF(G19="","",IF(OR(G19>(F19+6),G19<(F19-6)),"Agncy Repl.","")) ->  | H21: =IF(H19="","",IF(I19="",H19,IF(OR(I19>(H19+6),I19<(H19-6)),I19,H19))) ->  | I21: =IF(I19="","",IF(OR(I19>(H19+6),I19<(H19-6)),"Agncy Repl.","")) ->  | J21: =IF(J19="","",IF(K19="",J19,IF(OR(K19>(J19+6),K19<(J19-6)),K19,J19))) ->  | K21: =IF(K19="","",IF(OR(K19>(J19+6),K19<(J19-6)),"Agncy Repl.","")) ->  | M21: Calc. % | P21: =IF(P19="","",IF(Q19="",P19,IF(OR(Q19>(P19+6),Q19<(P19-6)),Q19,P19))) ->  | Q21: =IF(Q19="","",IF(OR(Q19>(P19+6),Q19<(P19-6)),"Agncy Repl.","")) ->  | R21: =IF(R19="","",IF(S19="",R19,IF(OR(S19>(R19+6),S19<(R19-6)),S19,R19))) ->  | S21: =IF(S19="","",IF(OR(S19>(R19+6),S19<(R19-6)),"Agncy Repl.","")) ->  | T21: =IF(T19="","",IF(U19="",T19,IF(OR(U19>(T19+6),U19<(T19-6)),U19,T19))) ->  | U21: =IF(U19="","",IF(OR(U19>(T19+6),U19<(T19-6)),"Agncy Repl.","")) ->  | V21: =IF(V19="","",IF(W19="",V19,IF(OR(W19>(V19+6),W19<(V19-6)),W19,V19))) ->  | W21: =IF(W19="","",IF(OR(W19>(V19+6),W19<(V19-6)),"Agncy Repl.","")) ->  | Y21: Calc. % | AB21: =IF(AB19="","",IF(AC19="",AB19,IF(OR(AC19>(AB19+6),AC19<(AB19-6)),AC19,AB19))) ->  | AC21: =IF(AC19="","",IF(OR(AC19>(AB19+6),AC19<(AB19-6)),"Agncy Repl.","")) ->  | AD21: =IF(AD19="","",IF(AE19="",AD19,IF(OR(AE19>(AD19+6),AE19<(AD19-6)),AE19,AD19))) ->  | AE21: =IF(AE19="","",IF(OR(AE19>(AD19+6),AE19<(AD19-6)),"Agncy Repl.","")) ->  | AF21: =IF(AF19="","",IF(AG19="",AF19,IF(OR(AG19>(AF19+6),AG19<(AF19-6)),AG19,AF19))) ->  | AG21: =IF(AG19="","",IF(OR(AG19>(AF19+6),AG19<(AF19-6)),"Agncy Repl.","")) ->  | AH21: =IF(AH19="","",IF(AI19="",AH19,IF(OR(AI19>(AH19+6),AI19<(AH19-6)),AI19,AH19))) ->  | AI21: =IF(AI19="","",IF(OR(AI19>(AH19+6),AI19<(AH19-6)),"Agncy Repl.","")) ->  | AK21: Calc. % | AN21: =IF(AN19="","",IF(AO19="",AN19,IF(OR(AO19>(AN19+6),AO19<(AN19-6)),AO19,AN19))) ->  | AO21: =IF(AO19="","",IF(OR(AO19>(AN19+6),AO19<(AN19-6)),"Agncy Repl.","")) ->  | AP21: =IF(AP19="","",IF(AQ19="",AP19,IF(OR(AQ19>(AP19+6),AQ19<(AP19-6)),AQ19,AP19))) ->  | AQ21: =IF(AQ19="","",IF(OR(AQ19>(AP19+6),AQ19<(AP19-6)),"Agncy Repl.","")) ->  | AR21: =IF(AR19="","",IF(AS19="",AR19,IF(OR(AS19>(AR19+6),AS19<(AR19-6)),AS19,AR19))) ->  | AS21: =IF(AS19="","",IF(OR(AS19>(AR19+6),AS19<(AR19-6)),"Agncy Repl.","")) ->  | AT21: =IF(AT19="","",IF(AU19="",AT19,IF(OR(AU19>(AT19+6),AU19<(AT19-6)),AU19,AT19))) ->  | AU21: =IF(AU19="","",IF(OR(AU19>(AT19+6),AU19<(AT19-6)),"Agncy Repl.","")) ->  | AW21: Calc. % | AZ21: =IF(AZ19="","",IF(BA19="",AZ19,IF(OR(BA19>(AZ19+6),BA19<(AZ19-6)),BA19,AZ19))) ->  | BA21: =IF(BA19="","",IF(OR(BA19>(AZ19+6),BA19<(AZ19-6)),"Agncy Repl.","")) ->  | BB21: =IF(BB19="","",IF(BC19="",BB19,IF(OR(BC19>(BB19+6),BC19<(BB19-6)),BC19,BB19))) ->  | BC21: =IF(BC19="","",IF(OR(BC19>(BB19+6),BC19<(BB19-6)),"Agncy Repl.","")) ->  | BD21: =IF(BD19="","",IF(BE19="",BD19,IF(OR(BE19>(BD19+6),BE19<(BD19-6)),BE19,BD19))) ->  | BE21: =IF(BE19="","",IF(OR(BE19>(BD19+6),BE19<(BD19-6)),"Agncy Repl.","")) ->  | BF21: =IF(BF19="","",IF(BG19="",BF19,IF(OR(BG19>(BF19+6),BG19<(BF19-6)),BG19,BF19))) ->  | BG21: =IF(BG19="","",IF(OR(BG19>(BF19+6),BG19<(BF19-6)),"Agncy Repl.","")) ->  | BI21: Calc. % | BL21: =IF(BL19="","",IF(BM19="",BL19,IF(OR(BM19>(BL19+6),BM19<(BL19-6)),BM19,BL19))) ->  | BM21: =IF(BM19="","",IF(OR(BM19>(BL19+6),BM19<(BL19-6)),"Agncy Repl.","")) ->  | BN21: =IF(BN19="","",IF(BO19="",BN19,IF(OR(BO19>(BN19+6),BO19<(BN19-6)),BO19,BN19))) ->  | BO21: =IF(BO19="","",IF(OR(BO19>(BN19+6),BO19<(BN19-6)),"Agncy Repl.","")) ->  | BP21: =IF(BP19="","",IF(BQ19="",BP19,IF(OR(BQ19>(BP19+6),BQ19<(BP19-6)),BQ19,BP19))) ->  | BQ21: =IF(BQ19="","",IF(OR(BQ19>(BP19+6),BQ19<(BP19-6)),"Agncy Repl.","")) ->  | BR21: =IF(BR19="","",IF(BS19="",BR19,IF(OR(BS19>(BR19+6),BS19<(BR19-6)),BS19,BR19))) ->  | BS21: =IF(BS19="","",IF(OR(BS19>(BR19+6),BS19<(BR19-6)),"Agncy Repl.","")) ->  | BU21: Calc. % | BX21: =IF(BX19="","",IF(BY19="",BX19,IF(OR(BY19>(BX19+6),BY19<(BX19-6)),BY19,BX19))) ->  | BY21: =IF(BY19="","",IF(OR(BY19>(BX19+6),BY19<(BX19-6)),"Agncy Repl.","")) ->  | BZ21: =IF(BZ19="","",IF(CA19="",BZ19,IF(OR(CA19>(BZ19+6),CA19<(BZ19-6)),CA19,BZ19))) ->  | CA21: =IF(CA19="","",IF(OR(CA19>(BZ19+6),CA19<(BZ19-6)),"Agncy Repl.","")) ->  | CB21: =IF(CB19="","",IF(CC19="",CB19,IF(OR(CC19>(CB19+6),CC19<(CB19-6)),CC19,CB19))) ->  | CC21: =IF(CC19="","",IF(OR(CC19>(CB19+6),CC19<(CB19-6)),"Agncy Repl.","")) ->  | CD21: =IF(CD19="","",IF(CE19="",CD19,IF(OR(CE19>(CD19+6),CE19<(CD19-6)),CE19,CD19))) ->  | CE21: =IF(CE19="","",IF(OR(CE19>(CD19+6),CE19<(CD19-6)),"Agncy Repl.","")) ->  | CG21: Calc. % | CJ21: =IF(CJ19="","",IF(CK19="",CJ19,IF(OR(CK19>(CJ19+6),CK19<(CJ19-6)),CK19,CJ19))) ->  | CK21: =IF(CK19="","",IF(OR(CK19>(CJ19+6),CK19<(CJ19-6)),"Agncy Repl.","")) ->  | CL21: =IF(CL19="","",IF(CM19="",CL19,IF(OR(CM19>(CL19+6),CM19<(CL19-6)),CM19,CL19))) ->  | CM21: =IF(CM19="","",IF(OR(CM19>(CL19+6),CM19<(CL19-6)),"Agncy Repl.","")) ->  | CN21: =IF(CN19="","",IF(CO19="",CN19,IF(OR(CO19>(CN19+6),CO19<(CN19-6)),CO19,CN19))) ->  | CO21: =IF(CO19="","",IF(OR(CO19>(CN19+6),CO19<(CN19-6)),"Agncy Repl.","")) ->  | CP21: =IF(CP19="","",IF(CQ19="",CP19,IF(OR(CQ19>(CP19+6),CQ19<(CP19-6)),CQ19,CP19))) ->  | CQ21: =IF(CQ19="","",IF(OR(CQ19>(CP19+6),CQ19<(CP19-6)),"Agncy Repl.","")) ->  | CS21: Calc. % | CV21: =IF(CV19="","",IF(CW19="",CV19,IF(OR(CW19>(CV19+6),CW19<(CV19-6)),CW19,CV19))) ->  | CW21: =IF(CW19="","",IF(OR(CW19>(CV19+6),CW19<(CV19-6)),"Agncy Repl.","")) ->  | CX21: =IF(CX19="","",IF(CY19="",CX19,IF(OR(CY19>(CX19+6),CY19<(CX19-6)),CY19,CX19))) ->  | CY21: =IF(CY19="","",IF(OR(CY19>(CX19+6),CY19<(CX19-6)),"Agncy Repl.","")) ->  | CZ21: =IF(CZ19="","",IF(DA19="",CZ19,IF(OR(DA19>(CZ19+6),DA19<(CZ19-6)),DA19,CZ19))) ->  | DA21: =IF(DA19="","",IF(OR(DA19>(CZ19+6),DA19<(CZ19-6)),"Agncy Repl.","")) ->  | DB21: =IF(DB19="","",IF(DC19="",DB19,IF(OR(DC19>(DB19+6),DC19<(DB19-6)),DC19,DB19))) ->  | DC21: =IF(DC19="","",IF(OR(DC19>(DB19+6),DC19<(DB19-6)),"Agncy Repl.","")) ->  | DE21: Calc. % | DH21: =IF(DH19="","",IF(DI19="",DH19,IF(OR(DI19>(DH19+6),DI19<(DH19-6)),DI19,DH19))) ->  | DI21: =IF(DI19="","",IF(OR(DI19>(DH19+6),DI19<(DH19-6)),"Agncy Repl.","")) ->  | DJ21: =IF(DJ19="","",IF(DK19="",DJ19,IF(OR(DK19>(DJ19+6),DK19<(DJ19-6)),DK19,DJ19))) ->  | DK21: =IF(DK19="","",IF(OR(DK19>(DJ19+6),DK19<(DJ19-6)),"Agncy Repl.","")) ->  | DL21: =IF(DL19="","",IF(DM19="",DL19,IF(OR(DM19>(DL19+6),DM19<(DL19-6)),DM19,DL19))) ->  | DM21: =IF(DM19="","",IF(OR(DM19>(DL19+6),DM19<(DL19-6)),"Agncy Repl.","")) ->  | DN21: =IF(DN19="","",IF(DO19="",DN19,IF(OR(DO19>(DN19+6),DO19<(DN19-6)),DO19,DN19))) ->  | DO21: =IF(DO19="","",IF(OR(DO19>(DN19+6),DO19<(DN19-6)),"Agncy Repl.","")) ->  | DP21: =IF(DP19="","",IF(OR(DP19>(DO19+6),DP19<(DO19-6)),"Agncy Repl.","")) ->  | DQ21: Calc. % | DT21: =IF(DT19="","",IF(DU19="",DT19,IF(OR(DU19>(DT19+6),DU19<(DT19-6)),DU19,DT19))) ->  | DU21: =IF(DU19="","",IF(OR(DU19>(DT19+6),DU19<(DT19-6)),"Agncy Repl.","")) ->  | DV21: =IF(DV19="","",IF(DW19="",DV19,IF(OR(DW19>(DV19+6),DW19<(DV19-6)),DW19,DV19))) ->  | DW21: =IF(DW19="","",IF(OR(DW19>(DV19+6),DW19<(DV19-6)),"Agncy Repl.","")) ->  | DX21: =IF(DX19="","",IF(DY19="",DX19,IF(OR(DY19>(DX19+6),DY19<(DX19-6)),DY19,DX19))) ->  | DY21: =IF(DY19="","",IF(OR(DY19>(DX19+6),DY19<(DX19-6)),"Agncy Repl.","")) ->  | DZ21: =IF(DZ19="","",IF(EA19="",DZ19,IF(OR(EA19>(DZ19+6),EA19<(DZ19-6)),EA19,DZ19))) ->  | EA21: =IF(EA19="","",IF(OR(EA19>(DZ19+6),EA19<(DZ19-6)),"Agncy Repl.","")) ->  | EC21: Calc. % | EF21: =IF(EF19="","",IF(EG19="",EF19,IF(OR(EG19>(EF19+6),EG19<(EF19-6)),EG19,EF19))) ->  | EG21: =IF(EG19="","",IF(OR(EG19>(EF19+6),EG19<(EF19-6)),"Agncy Repl.","")) ->  | EH21: =IF(EH19="","",IF(EI19="",EH19,IF(OR(EI19>(EH19+6),EI19<(EH19-6)),EI19,EH19))) ->  | EI21: =IF(EI19="","",IF(OR(EI19>(EH19+6),EI19<(EH19-6)),"Agncy Repl.","")) ->  | EJ21: =IF(EJ19="","",IF(EK19="",EJ19,IF(OR(EK19>(EJ19+6),EK19<(EJ19-6)),EK19,EJ19))) ->  | EK21: =IF(EK19="","",IF(OR(EK19>(EJ19+6),EK19<(EJ19-6)),"Agncy Repl.","")) ->  | EL21: =IF(EL19="","",IF(EM19="",EL19,IF(OR(EM19>(EL19+6),EM19<(EL19-6)),EM19,EL19))) ->  | EM21: =IF(EM19="","",IF(OR(EM19>(EL19+6),EM19<(EL19-6)),"Agncy Repl.","")) ->  | EO21: Calc. % | ER21: =IF(ER19="","",IF(ES19="",ER19,IF(OR(ES19>(ER19+6),ES19<(ER19-6)),ES19,ER19))) ->  | ES21: =IF(ES19="","",IF(OR(ES19>(ER19+6),ES19<(ER19-6)),"Agncy Repl.","")) ->  | ET21: =IF(ET19="","",IF(EU19="",ET19,IF(OR(EU19>(ET19+6),EU19<(ET19-6)),EU19,ET19))) ->  | EU21: =IF(EU19="","",IF(OR(EU19>(ET19+6),EU19<(ET19-6)),"Agncy Repl.","")) ->  | EV21: =IF(EV19="","",IF(EW19="",EV19,IF(OR(EW19>(EV19+6),EW19<(EV19-6)),EW19,EV19))) ->  | EW21: =IF(EW19="","",IF(OR(EW19>(EV19+6),EW19<(EV19-6)),"Agncy Repl.","")) ->  | EX21: =IF(EX19="","",IF(EY19="",EX19,IF(OR(EY19>(EX19+6),EY19<(EX19-6)),EY19,EX19))) ->  | EY21: =IF(EY19="","",IF(OR(EY19>(EX19+6),EY19<(EX19-6)),"Agncy Repl.","")) ->  | FA21: Calc. % | FD21: =IF(FD19="","",IF(FE19="",FD19,IF(OR(FE19>(FD19+6),FE19<(FD19-6)),FE19,FD19))) ->  | FE21: =IF(FE19="","",IF(OR(FE19>(FD19+6),FE19<(FD19-6)),"Agncy Repl.","")) ->  | FF21: =IF(FF19="","",IF(FG19="",FF19,IF(OR(FG19>(FF19+6),FG19<(FF19-6)),FG19,FF19))) ->  | FG21: =IF(FG19="","",IF(OR(FG19>(FF19+6),FG19<(FF19-6)),"Agncy Repl.","")) ->  | FH21: =IF(FH19="","",IF(FI19="",FH19,IF(OR(FI19>(FH19+6),FI19<(FH19-6)),FI19,FH19))) ->  | FI21: =IF(FI19="","",IF(OR(FI19>(FH19+6),FI19<(FH19-6)),"Agncy Repl.","")) ->  | FJ21: =IF(FJ19="","",IF(FK19="",FJ19,IF(OR(FK19>(FJ19+6),FK19<(FJ19-6)),FK19,FJ19))) ->  | FK21: =IF(FK19="","",IF(OR(FK19>(FJ19+6),FK19<(FJ19-6)),"Agncy Repl.","")) ->  | FM21: Calc. % | FP21: =IF(FP19="","",IF(FQ19="",FP19,IF(OR(FQ19>(FP19+6),FQ19<(FP19-6)),FQ19,FP19))) ->  | FQ21: =IF(FQ19="","",IF(OR(FQ19>(FP19+6),FQ19<(FP19-6)),"Agncy Repl.","")) ->  | FR21: =IF(FR19="","",IF(FS19="",FR19,IF(OR(FS19>(FR19+6),FS19<(FR19-6)),FS19,FR19))) ->  | FS21: =IF(FS19="","",IF(OR(FS19>(FR19+6),FS19<(FR19-6)),"Agncy Repl.","")) ->  | FT21: =IF(FT19="","",IF(FU19="",FT19,IF(OR(FU19>(FT19+6),FU19<(FT19-6)),FU19,FT19))) ->  | FU21: =IF(FU19="","",IF(OR(FU19>(FT19+6),FU19<(FT19-6)),"Agncy Repl.","")) ->  | FV21: =IF(FV19="","",IF(FW19="",FV19,IF(OR(FW19>(FV19+6),FW19<(FV19-6)),FW19,FV19))) ->  | FW21: =IF(FW19="","",IF(OR(FW19>(FV19+6),FW19<(FV19-6)),"Agncy Repl.","")) ->  | FY21: Calc. % | GB21: =IF(GB19="","",IF(GC19="",GB19,IF(OR(GC19>(GB19+6),GC19<(GB19-6)),GC19,GB19))) ->  | GC21: =IF(GC19="","",IF(OR(GC19>(GB19+6),GC19<(GB19-6)),"Agncy Repl.","")) ->  | GD21: =IF(GD19="","",IF(GE19="",GD19,IF(OR(GE19>(GD19+6),GE19<(GD19-6)),GE19,GD19))) ->  | GE21: =IF(GE19="","",IF(OR(GE19>(GD19+6),GE19<(GD19-6)),"Agncy Repl.","")) ->  | GF21: =IF(GF19="","",IF(GG19="",GF19,IF(OR(GG19>(GF19+6),GG19<(GF19-6)),GG19,GF19))) ->  | GG21: =IF(GG19="","",IF(OR(GG19>(GF19+6),GG19<(GF19-6)),"Agncy Repl.","")) ->  | GH21: =IF(GH19="","",IF(GI19="",GH19,IF(OR(GI19>(GH19+6),GI19<(GH19-6)),GI19,GH19))) ->  | GI21: =IF(GI19="","",IF(OR(GI19>(GH19+6),GI19<(GH19-6)),"Agncy Repl.","")) ->  | GK21: Calc. % | GN21: =IF(GN19="","",IF(GO19="",GN19,IF(OR(GO19>(GN19+6),GO19<(GN19-6)),GO19,GN19))) ->  | GO21: =IF(GO19="","",IF(OR(GO19>(GN19+6),GO19<(GN19-6)),"Agncy Repl.","")) ->  | GP21: =IF(GP19="","",IF(GQ19="",GP19,IF(OR(GQ19>(GP19+6),GQ19<(GP19-6)),GQ19,GP19))) ->  | GQ21: =IF(GQ19="","",IF(OR(GQ19>(GP19+6),GQ19<(GP19-6)),"Agncy Repl.","")) ->  | GR21: =IF(GR19="","",IF(GS19="",GR19,IF(OR(GS19>(GR19+6),GS19<(GR19-6)),GS19,GR19))) ->  | GS21: =IF(GS19="","",IF(OR(GS19>(GR19+6),GS19<(GR19-6)),"Agncy Repl.","")) ->  | GT21: =IF(GT19="","",IF(GU19="",GT19,IF(OR(GU19>(GT19+6),GU19<(GT19-6)),GU19,GT19))) ->  | GU21: =IF(GU19="","",IF(OR(GU19>(GT19+6),GU19<(GT19-6)),"Agncy Repl.","")) ->  | GW21: Calc. % | GZ21: =IF(GZ19="","",IF(HA19="",GZ19,IF(OR(HA19>(GZ19+6),HA19<(GZ19-6)),HA19,GZ19))) ->  | HA21: =IF(HA19="","",IF(OR(HA19>(GZ19+6),HA19<(GZ19-6)),"Agncy Repl.","")) ->  | HB21: =IF(HB19="","",IF(HC19="",HB19,IF(OR(HC19>(HB19+6),HC19<(HB19-6)),HC19,HB19))) ->  | HC21: =IF(HC19="","",IF(OR(HC19>(HB19+6),HC19<(HB19-6)),"Agncy Repl.","")) ->  | HD21: =IF(HD19="","",IF(HE19="",HD19,IF(OR(HE19>(HD19+6),HE19<(HD19-6)),HE19,HD19))) ->  | HE21: =IF(HE19="","",IF(OR(HE19>(HD19+6),HE19<(HD19-6)),"Agncy Repl.","")) ->  | HF21: =IF(HF19="","",IF(HG19="",HF19,IF(OR(HG19>(HF19+6),HG19<(HF19-6)),HG19,HF19))) ->  | HG21: =IF(HG19="","",IF(OR(HG19>(HF19+6),HG19<(HF19-6)),"Agncy Repl.","")) ->  | HI21: Calc. % | HL21: =IF(HL19="","",IF(HM19="",HL19,IF(OR(HM19>(HL19+6),HM19<(HL19-6)),HM19,HL19))) ->  | HM21: =IF(HM19="","",IF(OR(HM19>(HL19+6),HM19<(HL19-6)),"Agncy Repl.","")) ->  | HN21: =IF(HN19="","",IF(HO19="",HN19,IF(OR(HO19>(HN19+6),HO19<(HN19-6)),HO19,HN19))) ->  | HO21: =IF(HO19="","",IF(OR(HO19>(HN19+6),HO19<(HN19-6)),"Agncy Repl.","")) ->  | HP21: =IF(HP19="","",IF(HQ19="",HP19,IF(OR(HQ19>(HP19+6),HQ19<(HP19-6)),HQ19,HP19))) ->  | HQ21: =IF(HQ19="","",IF(OR(HQ19>(HP19+6),HQ19<(HP19-6)),"Agncy Repl.","")) ->  | HR21: =IF(HR19="","",IF(HS19="",HR19,IF(OR(HS19>(HR19+6),HS19<(HR19-6)),HS19,HR19))) ->  | HS21: =IF(HS19="","",IF(OR(HS19>(HR19+6),HS19<(HR19-6)),"Agncy Repl.","")) ->  | HU21: Calc. % | HX21: =IF(HX19="","",IF(HY19="",HX19,IF(OR(HY19>(HX19+6),HY19<(HX19-6)),HY19,HX19))) ->  | HY21: =IF(HY19="","",IF(OR(HY19>(HX19+6),HY19<(HX19-6)),"Agncy Repl.","")) ->  | HZ21: =IF(HZ19="","",IF(IA19="",HZ19,IF(OR(IA19>(HZ19+6),IA19<(HZ19-6)),IA19,HZ19))) ->  | IA21: =IF(IA19="","",IF(OR(IA19>(HZ19+6),IA19<(HZ19-6)),"Agncy Repl.","")) ->  | IB21: =IF(IB19="","",IF(IC19="",IB19,IF(OR(IC19>(IB19+6),IC19<(IB19-6)),IC19,IB19))) ->  | IC21: =IF(IC19="","",IF(OR(IC19>(IB19+6),IC19<(IB19-6)),"Agncy Repl.","")) ->  | ID21: =IF(ID19="","",IF(IE19="",ID19,IF(OR(IE19>(ID19+6),IE19<(ID19-6)),IE19,ID19))) ->  | IE21: =IF(IE19="","",IF(OR(IE19>(ID19+6),IE19<(ID19-6)),"Agncy Repl.","")) ->  | IG21: Calc. % | IJ21: =IF(IJ19="","",IF(IK19="",IJ19,IF(OR(IK19>(IJ19+6),IK19<(IJ19-6)),IK19,IJ19))) ->  | IK21: =IF(IK19="","",IF(OR(IK19>(IJ19+6),IK19<(IJ19-6)),"Agncy Repl.","")) ->  | IL21: =IF(IL19="","",IF(IM19="",IL19,IF(OR(IM19>(IL19+6),IM19<(IL19-6)),IM19,IL19))) ->  | IM21: =IF(IM19="","",IF(OR(IM19>(IL19+6),IM19<(IL19-6)),"Agncy Repl.","")) ->  | IN21: =IF(IN19="","",IF(IO19="",IN19,IF(OR(IO19>(IN19+6),IO19<(IN19-6)),IO19,IN19))) ->  | IO21: =IF(IO19="","",IF(OR(IO19>(IN19+6),IO19<(IN19-6)),"Agncy Repl.","")) ->  | IP21: =IF(IP19="","",IF(IQ19="",IP19,IF(OR(IQ19>(IP19+6),IQ19<(IP19-6)),IQ19,IP19))) ->  | IQ21: =IF(IQ19="","",IF(OR(IQ19>(IP19+6),IQ19<(IP19-6)),"Agncy Repl.","")) -> 
A22: 3/8 in. | M22: 3/8 in. | Y22: 3/8 in. | AK22: 3/8 in. | AW22: 3/8 in. | BI22: 3/8 in. | BU22: 3/8 in. | CG22: 3/8 in. | CS22: 3/8 in. | DE22: 3/8 in. | DQ22: 3/8 in. | EC22: 3/8 in. | EO22: 3/8 in. | FA22: 3/8 in. | FM22: 3/8 in. | FY22: 3/8 in. | GK22: 3/8 in. | GW22: 3/8 in. | HI22: 3/8 in. | HU22: 3/8 in. | IG22: 3/8 in. | IT22: 0 | IU22: Agency AFT Substituted
A23: Mov Avg. | B23: =IF(MDR!$AL$4="YES",MDR!$BQ$47,MDR!$Y12) -> 35 | C23: =IF(MDR!$AL$4="YES",MDR!$BR$47,MDR!$Z12) -> 90 | E23: =IF(E22="","",IF(OR(E22>(D22+6),E22<(D22-6)),"Tolerance","")) ->  | G23: =IF(G22="","",IF(OR(G22>(F22+6),G22<(F22-6)),"Tolerance","")) ->  | I23: =IF(I22="","",IF(OR(I22>(H22+6),I22<(H22-6)),"Tolerance","")) ->  | J23: =mndot_rounding_0(IF(D22="","",IF(F22="","",IF(H22="","",IF(J22="","",Grad!I14))))) ->  | K23: =IF(K22="","",IF(OR(K22>(J22+6),K22<(J22-6)),"Tolerance","")) ->  | M23: Mov Avg. | N23: =IF(MDR!$AL$4="YES",MDR!$BQ$47,MDR!$Y16) -> 35 | O23: =IF(MDR!$AL$4="YES",MDR!$BR$47,MDR!$Z16) -> 90 | P23: =mndot_rounding_0(Grad!U15) ->  | Q23: =IF(Q22="","",IF(OR(Q22>(P22+6),Q22<(P22-6)),"Tolerance","")) ->  | R23: =mndot_rounding_0(Grad!$U16) ->  | S23: =IF(S22="","",IF(OR(S22>(R22+6),S22<(R22-6)),"Tolerance","")) ->  | T23: =mndot_rounding_0(Grad!$U17) ->  | U23: =IF(U22="","",IF(OR(U22>(T22+6),U22<(T22-6)),"Tolerance","")) ->  | V23: =mndot_rounding_0(Grad!$U18) ->  | W23: =IF(W22="","",IF(OR(W22>(V22+6),W22<(V22-6)),"Tolerance","")) ->  | Y23: Mov Avg. | Z23: =IF(MDR!$AL$4="YES",MDR!$BQ$47,MDR!$Y20) -> 35 | AA23: =IF(MDR!$AL$4="YES",MDR!$BR$47,MDR!$Z20) -> 90 | AB23: =mndot_rounding_0(Grad!$U19) ->  | AC23: =IF(AC22="","",IF(OR(AC22>(AB22+6),AC22<(AB22-6)),"Tolerance","")) ->  | AD23: =mndot_rounding_0(Grad!$U20) ->  | AE23: =IF(AE22="","",IF(OR(AE22>(AD22+6),AE22<(AD22-6)),"Tolerance","")) ->  | AF23: =mndot_rounding_0(Grad!$U21) ->  | AG23: =IF(AG22="","",IF(OR(AG22>(AF22+6),AG22<(AF22-6)),"Tolerance","")) ->  | AH23: =mndot_rounding_0(Grad!$U22) ->  | AI23: =IF(AI22="","",IF(OR(AI22>(AH22+6),AI22<(AH22-6)),"Tolerance","")) ->  | AK23: Mov Avg. | AL23: =IF(MDR!$AL$4="YES",MDR!$BQ$47,MDR!$Y24) -> 35 | AM23: =IF(MDR!$AL$4="YES",MDR!$BR$47,MDR!$Z24) -> 90 | AN23: =mndot_rounding_0(Grad!$U23) ->  | AO23: =IF(AO22="","",IF(OR(AO22>(AN22+6),AO22<(AN22-6)),"Tolerance","")) ->  | AP23: =mndot_rounding_0(Grad!$U24) ->  | AQ23: =IF(AQ22="","",IF(OR(AQ22>(AP22+6),AQ22<(AP22-6)),"Tolerance","")) ->  | AR23: =mndot_rounding_0(Grad!$U25) ->  | AS23: =IF(AS22="","",IF(OR(AS22>(AR22+6),AS22<(AR22-6)),"Tolerance","")) ->  | AT23: =mndot_rounding_0(Grad!$U26) ->  | AU23: =IF(AU22="","",IF(OR(AU22>(AT22+6),AU22<(AT22-6)),"Tolerance","")) ->  | AW23: Mov Avg. | AX23: =IF(MDR!$AL$4="YES",MDR!$BQ$47,MDR!$Y28) -> 35 | AY23: =IF(MDR!$AL$4="YES",MDR!$BR$47,MDR!$Z28) -> 90 | AZ23: =mndot_rounding_0(Grad!$U27) ->  | BA23: =IF(BA22="","",IF(OR(BA22>(AZ22+6),BA22<(AZ22-6)),"Tolerance","")) ->  | BB23: =mndot_rounding_0(Grad!$U28) ->  | BC23: =IF(BC22="","",IF(OR(BC22>(BB22+6),BC22<(BB22-6)),"Tolerance","")) ->  | BD23: =mndot_rounding_0(Grad!$U29) ->  | BE23: =IF(BE22="","",IF(OR(BE22>(BD22+6),BE22<(BD22-6)),"Tolerance","")) ->  | BF23: =mndot_rounding_0(Grad!$U30) ->  | BG23: =IF(BG22="","",IF(OR(BG22>(BF22+6),BG22<(BF22-6)),"Tolerance","")) ->  | BI23: Mov Avg. | BJ23: =IF(MDR!$AL$4="YES",MDR!$BQ$47,MDR!$Y32) -> 35 | BK23: =IF(MDR!$AL$4="YES",MDR!$BR$47,MDR!$Z32) -> 90 | BL23: =mndot_rounding_0(Grad!$U31) ->  | BM23: =IF(BM22="","",IF(OR(BM22>(BL22+6),BM22<(BL22-6)),"Tolerance","")) ->  | BN23: =mndot_rounding_0(Grad!$U32) ->  | BO23: =IF(BO22="","",IF(OR(BO22>(BN22+6),BO22<(BN22-6)),"Tolerance","")) ->  | BP23: =mndot_rounding_0(Grad!$U33) ->  | BQ23: =IF(BQ22="","",IF(OR(BQ22>(BP22+6),BQ22<(BP22-6)),"Tolerance","")) ->  | BR23: =mndot_rounding_0(Grad!$U34) ->  | BS23: =IF(BS22="","",IF(OR(BS22>(BR22+6),BS22<(BR22-6)),"Tolerance","")) ->  | BU23: Mov Avg. | BV23: =IF(MDR!$AL$4="YES",MDR!$BQ$47,MDR!$Y36) -> 35 | BW23: =IF(MDR!$AL$4="YES",MDR!$BR$47,MDR!$Z36) -> 90 | BX23: =mndot_rounding_0(Grad!$U35) ->  | BY23: =IF(BY22="","",IF(OR(BY22>(BX22+6),BY22<(BX22-6)),"Tolerance","")) ->  | BZ23: =mndot_rounding_0(Grad!$U36) ->  | CA23: =IF(CA22="","",IF(OR(CA22>(BZ22+6),CA22<(BZ22-6)),"Tolerance","")) ->  | CB23: =mndot_rounding_0(Grad!$U37) ->  | CC23: =IF(CC22="","",IF(OR(CC22>(CB22+6),CC22<(CB22-6)),"Tolerance","")) ->  | CD23: =mndot_rounding_0(Grad!$U38) ->  | CE23: =IF(CE22="","",IF(OR(CE22>(CD22+6),CE22<(CD22-6)),"Tolerance","")) ->  | CG23: Mov Avg. | CH23: =IF(MDR!$AL$4="YES",MDR!$BQ$47,MDR!$Y40) -> 35 | CI23: =IF(MDR!$AL$4="YES",MDR!$BR$47,MDR!$Z40) -> 90 | CJ23: =mndot_rounding_0(Grad!$U39) ->  | CK23: =IF(CK22="","",IF(OR(CK22>(CJ22+6),CK22<(CJ22-6)),"Tolerance","")) ->  | CL23: =mndot_rounding_0(Grad!$U40) ->  | CM23: =IF(CM22="","",IF(OR(CM22>(CL22+6),CM22<(CL22-6)),"Tolerance","")) ->  | CN23: =mndot_rounding_0(Grad!$U41) ->  | CO23: =IF(CO22="","",IF(OR(CO22>(CN22+6),CO22<(CN22-6)),"Tolerance","")) ->  | CP23: =mndot_rounding_0(Grad!$U42) ->  | CQ23: =IF(CQ22="","",IF(OR(CQ22>(CP22+6),CQ22<(CP22-6)),"Tolerance","")) ->  | CS23: Mov Avg. | CT23: =IF(MDR!$AL$4="YES",MDR!$BQ$47,MDR!$Y44) -> 35 | CU23: =IF(MDR!$AL$4="YES",MDR!$BR$47,MDR!$Z44) -> 90 | CV23: =mndot_rounding_0(Grad!$U43) ->  | CW23: =IF(CW22="","",IF(OR(CW22>(CV22+6),CW22<(CV22-6)),"Tolerance","")) ->  | CX23: =mndot_rounding_0(Grad!$U44) ->  | CY23: =IF(CY22="","",IF(OR(CY22>(CX22+6),CY22<(CX22-6)),"Tolerance","")) ->  | CZ23: =mndot_rounding_0(Grad!$U45) ->  | DA23: =IF(DA22="","",IF(OR(DA22>(CZ22+6),DA22<(CZ22-6)),"Tolerance","")) ->  | DB23: =mndot_rounding_0(Grad!$U46) ->  | DC23: =IF(DC22="","",IF(OR(DC22>(DB22+6),DC22<(DB22-6)),"Tolerance","")) ->  | DE23: Mov Avg. | DF23: =IF(MDR!$AL$4="YES",MDR!$BQ$47,MDR!$Y48) -> 35 | DG23: =IF(MDR!$AL$4="YES",MDR!$BR$47,MDR!$Z48) -> 90 | DH23: =mndot_rounding_0(Grad!$U47) ->  | DI23: =IF(DI22="","",IF(OR(DI22>(DH22+6),DI22<(DH22-6)),"Tolerance","")) ->  | DJ23: =mndot_rounding_0(Grad!$U48) ->  | DK23: =IF(DK22="","",IF(OR(DK22>(DJ22+6),DK22<(DJ22-6)),"Tolerance","")) ->  | DL23: =mndot_rounding_0(Grad!$U49) ->  | DM23: =IF(DM22="","",IF(OR(DM22>(DL22+6),DM22<(DL22-6)),"Tolerance","")) ->  | DN23: =mndot_rounding_0(Grad!$U50) ->  | DO23: =IF(DO22="","",IF(OR(DO22>(DN22+6),DO22<(DN22-6)),"Tolerance","")) ->  | DQ23: Mov Avg. | DR23: =IF(MDR!$AL$4="YES",MDR!$BQ$47,MDR!$Y52) -> 35 | DS23: =IF(MDR!$AL$4="YES",MDR!$BR$47,MDR!$Z52) -> 90 | DT23: =mndot_rounding_0(Grad!$U51) ->  | DU23: =IF(DU22="","",IF(OR(DU22>(DT22+6),DU22<(DT22-6)),"Tolerance","")) ->  | DV23: =mndot_rounding_0(Grad!$U52) ->  | DW23: =IF(DW22="","",IF(OR(DW22>(DV22+6),DW22<(DV22-6)),"Tolerance","")) ->  | DX23: =mndot_rounding_0(Grad!$U53) ->  | DY23: =IF(DY22="","",IF(OR(DY22>(DX22+6),DY22<(DX22-6)),"Tolerance","")) ->  | DZ23: =mndot_rounding_0(Grad!$U54) ->  | EA23: =IF(EA22="","",IF(OR(EA22>(DZ22+6),EA22<(DZ22-6)),"Tolerance","")) ->  | EC23: Mov Avg. | ED23: =IF(MDR!$AL$4="YES",MDR!$BQ$47,MDR!$Y56) -> 35 | EE23: =IF(MDR!$AL$4="YES",MDR!$BR$47,MDR!$Z56) -> 90 | EF23: =mndot_rounding_0(Grad!$U55) ->  | EG23: =IF(EG22="","",IF(OR(EG22>(EF22+6),EG22<(EF22-6)),"Tolerance","")) ->  | EH23: =mndot_rounding_0(Grad!$U56) ->  | EI23: =IF(EI22="","",IF(OR(EI22>(EH22+6),EI22<(EH22-6)),"Tolerance","")) ->  | EJ23: =mndot_rounding_0(Grad!$U57) ->  | EK23: =IF(EK22="","",IF(OR(EK22>(EJ22+6),EK22<(EJ22-6)),"Tolerance","")) ->  | EL23: =mndot_rounding_0(Grad!$U58) ->  | EM23: =IF(EM22="","",IF(OR(EM22>(EL22+6),EM22<(EL22-6)),"Tolerance","")) ->  | EO23: Mov Avg. | EP23: =IF(MDR!$AL$4="YES",MDR!$BQ$47,MDR!$Y60) -> 35 | EQ23: =IF(MDR!$AL$4="YES",MDR!$BR$47,MDR!$Z60) -> 90 | ER23: =mndot_rounding_0(Grad!$U59) ->  | ES23: =IF(ES22="","",IF(OR(ES22>(ER22+6),ES22<(ER22-6)),"Tolerance","")) ->  | ET23: =mndot_rounding_0(Grad!$U60) ->  | EU23: =IF(EU22="","",IF(OR(EU22>(ET22+6),EU22<(ET22-6)),"Tolerance","")) ->  | EV23: =mndot_rounding_0(Grad!$U61) ->  | EW23: =IF(EW22="","",IF(OR(EW22>(EV22+6),EW22<(EV22-6)),"Tolerance","")) ->  | EX23: =mndot_rounding_0(Grad!$U62) ->  | EY23: =IF(EY22="","",IF(OR(EY22>(EX22+6),EY22<(EX22-6)),"Tolerance","")) ->  | FA23: Mov Avg. | FB23: =IF(MDR!$AL$4="YES",MDR!$BQ$47,MDR!$Y64) -> 35 | FC23: =IF(MDR!$AL$4="YES",MDR!$BR$47,MDR!$Z64) -> 90 | FD23: =mndot_rounding_0(Grad!$U63) ->  | FE23: =IF(FE22="","",IF(OR(FE22>(FD22+6),FE22<(FD22-6)),"Tolerance","")) ->  | FF23: =mndot_rounding_0(Grad!$U64) ->  | FG23: =IF(FG22="","",IF(OR(FG22>(FF22+6),FG22<(FF22-6)),"Tolerance","")) ->  | FH23: =mndot_rounding_0(Grad!$U65) ->  | FI23: =IF(FI22="","",IF(OR(FI22>(FH22+6),FI22<(FH22-6)),"Tolerance","")) ->  | FJ23: =mndot_rounding_0(Grad!$U66) ->  | FK23: =IF(FK22="","",IF(OR(FK22>(FJ22+6),FK22<(FJ22-6)),"Tolerance","")) ->  | FM23: Mov Avg. | FN23: =IF(MDR!$AL$4="YES",MDR!$BQ$47,MDR!$Y68) -> 35 | FO23: =IF(MDR!$AL$4="YES",MDR!$BR$47,MDR!$Z68) -> 90 | FP23: =mndot_rounding_0(Grad!$U67) ->  | FQ23: =IF(FQ22="","",IF(OR(FQ22>(FP22+6),FQ22<(FP22-6)),"Tolerance","")) ->  | FR23: =mndot_rounding_0(Grad!$U68) ->  | FS23: =IF(FS22="","",IF(OR(FS22>(FR22+6),FS22<(FR22-6)),"Tolerance","")) ->  | FT23: =mndot_rounding_0(Grad!$U69) ->  | FU23: =IF(FU22="","",IF(OR(FU22>(FT22+6),FU22<(FT22-6)),"Tolerance","")) ->  | FV23: =mndot_rounding_0(Grad!$U70) ->  | FW23: =IF(FW22="","",IF(OR(FW22>(FV22+6),FW22<(FV22-6)),"Tolerance","")) ->  | FY23: Mov Avg. | FZ23: =IF(MDR!$AL$4="YES",MDR!$BQ$47,MDR!$Y72) -> 35 | GA23: =IF(MDR!$AL$4="YES",MDR!$BR$47,MDR!$Z72) -> 90 | GB23: =mndot_rounding_0(Grad!$U71) ->  | GC23: =IF(GC22="","",IF(OR(GC22>(GB22+6),GC22<(GB22-6)),"Tolerance","")) ->  | GD23: =mndot_rounding_0(Grad!$U72) ->  | GE23: =IF(GE22="","",IF(OR(GE22>(GD22+6),GE22<(GD22-6)),"Tolerance","")) ->  | GF23: =mndot_rounding_0(Grad!$U73) ->  | GG23: =IF(GG22="","",IF(OR(GG22>(GF22+6),GG22<(GF22-6)),"Tolerance","")) ->  | GH23: =mndot_rounding_0(Grad!$U74) ->  | GI23: =IF(GI22="","",IF(OR(GI22>(GH22+6),GI22<(GH22-6)),"Tolerance","")) ->  | GK23: Mov Avg. | GL23: =IF(MDR!$AL$4="YES",MDR!$BQ$47,MDR!$Y76) -> 35 | GM23: =IF(MDR!$AL$4="YES",MDR!$BR$47,MDR!$Z76) -> 90 | GN23: =mndot_rounding_0(Grad!$U75) ->  | GO23: =IF(GO22="","",IF(OR(GO22>(GN22+6),GO22<(GN22-6)),"Tolerance","")) ->  | GP23: =mndot_rounding_0(Grad!$U76) ->  | GQ23: =IF(GQ22="","",IF(OR(GQ22>(GP22+6),GQ22<(GP22-6)),"Tolerance","")) ->  | GR23: =mndot_rounding_0(Grad!$U77) ->  | GS23: =IF(GS22="","",IF(OR(GS22>(GR22+6),GS22<(GR22-6)),"Tolerance","")) ->  | GT23: =mndot_rounding_0(Grad!$U78) ->  | GU23: =IF(GU22="","",IF(OR(GU22>(GT22+6),GU22<(GT22-6)),"Tolerance","")) ->  | GW23: Mov Avg. | GX23: =IF(MDR!$AL$4="YES",MDR!$BQ$47,MDR!$Y80) -> 35 | GY23: =IF(MDR!$AL$4="YES",MDR!$BR$47,MDR!$Z80) -> 90 | GZ23: =mndot_rounding_0(Grad!$U79) ->  | HA23: =IF(HA22="","",IF(OR(HA22>(GZ22+6),HA22<(GZ22-6)),"Tolerance","")) ->  | HB23: =mndot_rounding_0(Grad!$U80) ->  | HC23: =IF(HC22="","",IF(OR(HC22>(HB22+6),HC22<(HB22-6)),"Tolerance","")) ->  | HD23: =mndot_rounding_0(Grad!$U81) ->  | HE23: =IF(HE22="","",IF(OR(HE22>(HD22+6),HE22<(HD22-6)),"Tolerance","")) ->  | HF23: =mndot_rounding_0(Grad!$U82) ->  | HG23: =IF(HG22="","",IF(OR(HG22>(HF22+6),HG22<(HF22-6)),"Tolerance","")) ->  | HI23: Mov Avg. | HJ23: =IF(MDR!$AL$4="YES",MDR!$BQ$47,MDR!$Y84) -> 35 | HK23: =IF(MDR!$AL$4="YES",MDR!$BR$47,MDR!$Z84) -> 90 | HL23: =mndot_rounding_0(Grad!$U83) ->  | HM23: =IF(HM22="","",IF(OR(HM22>(HL22+6),HM22<(HL22-6)),"Tolerance","")) ->  | HN23: =mndot_rounding_0(Grad!$U84) ->  | HO23: =IF(HO22="","",IF(OR(HO22>(HN22+6),HO22<(HN22-6)),"Tolerance","")) ->  | HP23: =mndot_rounding_0(Grad!$U85) ->  | HQ23: =IF(HQ22="","",IF(OR(HQ22>(HP22+6),HQ22<(HP22-6)),"Tolerance","")) ->  | HR23: =mndot_rounding_0(Grad!$U86) ->  | HS23: =IF(HS22="","",IF(OR(HS22>(HR22+6),HS22<(HR22-6)),"Tolerance","")) ->  | HU23: Mov Avg. | HV23: =IF(MDR!$AL$4="YES",MDR!$BQ$47,MDR!$Y88) -> 35 | HW23: =IF(MDR!$AL$4="YES",MDR!$BR$47,MDR!$Z88) -> 90 | HX23: =mndot_rounding_0(Grad!$U87) ->  | HY23: =IF(HY22="","",IF(OR(HY22>(HX22+6),HY22<(HX22-6)),"Tolerance","")) ->  | HZ23: =mndot_rounding_0(Grad!$U88) ->  | IA23: =IF(IA22="","",IF(OR(IA22>(HZ22+6),IA22<(HZ22-6)),"Tolerance","")) ->  | IB23: =mndot_rounding_0(Grad!$U89) ->  | IC23: =IF(IC22="","",IF(OR(IC22>(IB22+6),IC22<(IB22-6)),"Tolerance","")) ->  | ID23: =mndot_rounding_0(Grad!$U90) ->  | IE23: =IF(IE22="","",IF(OR(IE22>(ID22+6),IE22<(ID22-6)),"Tolerance","")) ->  | IG23: Mov Avg. | IH23: =IF(MDR!$AL$4="YES",MDR!$BQ$47,MDR!$Y92) -> 35 | II23: =IF(MDR!$AL$4="YES",MDR!$BR$47,MDR!$Z92) -> 90 | IJ23: =mndot_rounding_0(Grad!$U91) ->  | IK23: =IF(IK22="","",IF(OR(IK22>(IJ22+6),IK22<(IJ22-6)),"Tolerance","")) ->  | IL23: =mndot_rounding_0(Grad!$U92) ->  | IM23: =IF(IM22="","",IF(OR(IM22>(IL22+6),IM22<(IL22-6)),"Tolerance","")) ->  | IN23: =mndot_rounding_0(Grad!$U93) ->  | IO23: =IF(IO22="","",IF(OR(IO22>(IN22+6),IO22<(IN22-6)),"Tolerance","")) ->  | IP23: =mndot_rounding_0(Grad!$U94) ->  | IQ23: =IF(IQ22="","",IF(OR(IQ22>(IP22+6),IQ22<(IP22-6)),"Tolerance","")) ->  | IT23: 0 | IU23: Agency AFT Substituted
A24: 3/8" Calc. % | D24: =IF(D22="","",IF(E22="",D22,IF(OR(E22>(D22+6),E22<(D22-6)),E22,D22))) ->  | E24: =IF(E22="","",IF(OR(E22>(D22+6),E22<(D22-6)),"Agncy Repl.","")) ->  | F24: =IF(F22="","",IF(G22="",F22,IF(OR(G22>(F22+6),G22<(F22-6)),G22,F22))) ->  | G24: =IF(G22="","",IF(OR(G22>(F22+6),G22<(F22-6)),"Agncy Repl.","")) ->  | H24: =IF(H22="","",IF(I22="",H22,IF(OR(I22>(H22+6),I22<(H22-6)),I22,H22))) ->  | I24: =IF(I22="","",IF(OR(I22>(H22+6),I22<(H22-6)),"Agncy Repl.","")) ->  | J24: =IF(J22="","",IF(K22="",J22,IF(OR(K22>(J22+6),K22<(J22-6)),K22,J22))) ->  | K24: =IF(K22="","",IF(OR(K22>(J22+6),K22<(J22-6)),"Agncy Repl.","")) ->  | M24: Calc. % | P24: =IF(P22="","",IF(Q22="",P22,IF(OR(Q22>(P22+6),Q22<(P22-6)),Q22,P22))) ->  | Q24: =IF(Q22="","",IF(OR(Q22>(P22+6),Q22<(P22-6)),"Agncy Repl.","")) ->  | R24: =IF(R22="","",IF(S22="",R22,IF(OR(S22>(R22+6),S22<(R22-6)),S22,R22))) ->  | S24: =IF(S22="","",IF(OR(S22>(R22+6),S22<(R22-6)),"Agncy Repl.","")) ->  | T24: =IF(T22="","",IF(U22="",T22,IF(OR(U22>(T22+6),U22<(T22-6)),U22,T22))) ->  | U24: =IF(U22="","",IF(OR(U22>(T22+6),U22<(T22-6)),"Agncy Repl.","")) ->  | V24: =IF(V22="","",IF(W22="",V22,IF(OR(W22>(V22+6),W22<(V22-6)),W22,V22))) ->  | W24: =IF(W22="","",IF(OR(W22>(V22+6),W22<(V22-6)),"Agncy Repl.","")) ->  | Y24: Calc. % | AB24: =IF(AB22="","",IF(AC22="",AB22,IF(OR(AC22>(AB22+6),AC22<(AB22-6)),AC22,AB22))) ->  | AC24: =IF(AC22="","",IF(OR(AC22>(AB22+6),AC22<(AB22-6)),"Agncy Repl.","")) ->  | AD24: =IF(AD22="","",IF(AE22="",AD22,IF(OR(AE22>(AD22+6),AE22<(AD22-6)),AE22,AD22))) ->  | AE24: =IF(AE22="","",IF(OR(AE22>(AD22+6),AE22<(AD22-6)),"Agncy Repl.","")) ->  | AF24: =IF(AF22="","",IF(AG22="",AF22,IF(OR(AG22>(AF22+6),AG22<(AF22-6)),AG22,AF22))) ->  | AG24: =IF(AG22="","",IF(OR(AG22>(AF22+6),AG22<(AF22-6)),"Agncy Repl.","")) ->  | AH24: =IF(AH22="","",IF(AI22="",AH22,IF(OR(AI22>(AH22+6),AI22<(AH22-6)),AI22,AH22))) ->  | AI24: =IF(AI22="","",IF(OR(AI22>(AH22+6),AI22<(AH22-6)),"Agncy Repl.","")) ->  | AK24: Calc. % | AN24: =IF(AN22="","",IF(AO22="",AN22,IF(OR(AO22>(AN22+6),AO22<(AN22-6)),AO22,AN22))) ->  | AO24: =IF(AO22="","",IF(OR(AO22>(AN22+6),AO22<(AN22-6)),"Agncy Repl.","")) ->  | AP24: =IF(AP22="","",IF(AQ22="",AP22,IF(OR(AQ22>(AP22+6),AQ22<(AP22-6)),AQ22,AP22))) ->  | AQ24: =IF(AQ22="","",IF(OR(AQ22>(AP22+6),AQ22<(AP22-6)),"Agncy Repl.","")) ->  | AR24: =IF(AR22="","",IF(AS22="",AR22,IF(OR(AS22>(AR22+6),AS22<(AR22-6)),AS22,AR22))) ->  | AS24: =IF(AS22="","",IF(OR(AS22>(AR22+6),AS22<(AR22-6)),"Agncy Repl.","")) ->  | AT24: =IF(AT22="","",IF(AU22="",AT22,IF(OR(AU22>(AT22+6),AU22<(AT22-6)),AU22,AT22))) ->  | AU24: =IF(AU22="","",IF(OR(AU22>(AT22+6),AU22<(AT22-6)),"Agncy Repl.","")) ->  | AW24: Calc. % | AZ24: =IF(AZ22="","",IF(BA22="",AZ22,IF(OR(BA22>(AZ22+6),BA22<(AZ22-6)),BA22,AZ22))) ->  | BA24: =IF(BA22="","",IF(OR(BA22>(AZ22+6),BA22<(AZ22-6)),"Agncy Repl.","")) ->  | BB24: =IF(BB22="","",IF(BC22="",BB22,IF(OR(BC22>(BB22+6),BC22<(BB22-6)),BC22,BB22))) ->  | BC24: =IF(BC22="","",IF(OR(BC22>(BB22+6),BC22<(BB22-6)),"Agncy Repl.","")) ->  | BD24: =IF(BD22="","",IF(BE22="",BD22,IF(OR(BE22>(BD22+6),BE22<(BD22-6)),BE22,BD22))) ->  | BE24: =IF(BE22="","",IF(OR(BE22>(BD22+6),BE22<(BD22-6)),"Agncy Repl.","")) ->  | BF24: =IF(BF22="","",IF(BG22="",BF22,IF(OR(BG22>(BF22+6),BG22<(BF22-6)),BG22,BF22))) ->  | BG24: =IF(BG22="","",IF(OR(BG22>(BF22+6),BG22<(BF22-6)),"Agncy Repl.","")) ->  | BI24: Calc. % | BL24: =IF(BL22="","",IF(BM22="",BL22,IF(OR(BM22>(BL22+6),BM22<(BL22-6)),BM22,BL22))) ->  | BM24: =IF(BM22="","",IF(OR(BM22>(BL22+6),BM22<(BL22-6)),"Agncy Repl.","")) ->  | BN24: =IF(BN22="","",IF(BO22="",BN22,IF(OR(BO22>(BN22+6),BO22<(BN22-6)),BO22,BN22))) ->  | BO24: =IF(BO22="","",IF(OR(BO22>(BN22+6),BO22<(BN22-6)),"Agncy Repl.","")) ->  | BP24: =IF(BP22="","",IF(BQ22="",BP22,IF(OR(BQ22>(BP22+6),BQ22<(BP22-6)),BQ22,BP22))) ->  | BQ24: =IF(BQ22="","",IF(OR(BQ22>(BP22+6),BQ22<(BP22-6)),"Agncy Repl.","")) ->  | BR24: =IF(BR22="","",IF(BS22="",BR22,IF(OR(BS22>(BR22+6),BS22<(BR22-6)),BS22,BR22))) ->  | BS24: =IF(BS22="","",IF(OR(BS22>(BR22+6),BS22<(BR22-6)),"Agncy Repl.","")) ->  | BU24: Calc. % | BX24: =IF(BX22="","",IF(BY22="",BX22,IF(OR(BY22>(BX22+6),BY22<(BX22-6)),BY22,BX22))) ->  | BY24: =IF(BY22="","",IF(OR(BY22>(BX22+6),BY22<(BX22-6)),"Agncy Repl.","")) ->  | BZ24: =IF(BZ22="","",IF(CA22="",BZ22,IF(OR(CA22>(BZ22+6),CA22<(BZ22-6)),CA22,BZ22))) ->  | CA24: =IF(CA22="","",IF(OR(CA22>(BZ22+6),CA22<(BZ22-6)),"Agncy Repl.","")) ->  | CB24: =IF(CB22="","",IF(CC22="",CB22,IF(OR(CC22>(CB22+6),CC22<(CB22-6)),CC22,CB22))) ->  | CC24: =IF(CC22="","",IF(OR(CC22>(CB22+6),CC22<(CB22-6)),"Agncy Repl.","")) ->  | CD24: =IF(CD22="","",IF(CE22="",CD22,IF(OR(CE22>(CD22+6),CE22<(CD22-6)),CE22,CD22))) ->  | CE24: =IF(CE22="","",IF(OR(CE22>(CD22+6),CE22<(CD22-6)),"Agncy Repl.","")) ->  | CG24: Calc. % | CJ24: =IF(CJ22="","",IF(CK22="",CJ22,IF(OR(CK22>(CJ22+6),CK22<(CJ22-6)),CK22,CJ22))) ->  | CK24: =IF(CK22="","",IF(OR(CK22>(CJ22+6),CK22<(CJ22-6)),"Agncy Repl.","")) ->  | CL24: =IF(CL22="","",IF(CM22="",CL22,IF(OR(CM22>(CL22+6),CM22<(CL22-6)),CM22,CL22))) ->  | CM24: =IF(CM22="","",IF(OR(CM22>(CL22+6),CM22<(CL22-6)),"Agncy Repl.","")) ->  | CN24: =IF(CN22="","",IF(CO22="",CN22,IF(OR(CO22>(CN22+6),CO22<(CN22-6)),CO22,CN22))) ->  | CO24: =IF(CO22="","",IF(OR(CO22>(CN22+6),CO22<(CN22-6)),"Agncy Repl.","")) ->  | CP24: =IF(CP22="","",IF(CQ22="",CP22,IF(OR(CQ22>(CP22+6),CQ22<(CP22-6)),CQ22,CP22))) ->  | CQ24: =IF(CQ22="","",IF(OR(CQ22>(CP22+6),CQ22<(CP22-6)),"Agncy Repl.","")) ->  | CS24: Calc. % | CV24: =IF(CV22="","",IF(CW22="",CV22,IF(OR(CW22>(CV22+6),CW22<(CV22-6)),CW22,CV22))) ->  | CW24: =IF(CW22="","",IF(OR(CW22>(CV22+6),CW22<(CV22-6)),"Agncy Repl.","")) ->  | CX24: =IF(CX22="","",IF(CY22="",CX22,IF(OR(CY22>(CX22+6),CY22<(CX22-6)),CY22,CX22))) ->  | CY24: =IF(CY22="","",IF(OR(CY22>(CX22+6),CY22<(CX22-6)),"Agncy Repl.","")) ->  | CZ24: =IF(CZ22="","",IF(DA22="",CZ22,IF(OR(DA22>(CZ22+6),DA22<(CZ22-6)),DA22,CZ22))) ->  | DA24: =IF(DA22="","",IF(OR(DA22>(CZ22+6),DA22<(CZ22-6)),"Agncy Repl.","")) ->  | DB24: =IF(DB22="","",IF(DC22="",DB22,IF(OR(DC22>(DB22+6),DC22<(DB22-6)),DC22,DB22))) ->  | DC24: =IF(DC22="","",IF(OR(DC22>(DB22+6),DC22<(DB22-6)),"Agncy Repl.","")) ->  | DE24: Calc. % | DH24: =IF(DH22="","",IF(DI22="",DH22,IF(OR(DI22>(DH22+6),DI22<(DH22-6)),DI22,DH22))) ->  | DI24: =IF(DI22="","",IF(OR(DI22>(DH22+6),DI22<(DH22-6)),"Agncy Repl.","")) ->  | DJ24: =IF(DJ22="","",IF(DK22="",DJ22,IF(OR(DK22>(DJ22+6),DK22<(DJ22-6)),DK22,DJ22))) ->  | DK24: =IF(DK22="","",IF(OR(DK22>(DJ22+6),DK22<(DJ22-6)),"Agncy Repl.","")) ->  | DL24: =IF(DL22="","",IF(DM22="",DL22,IF(OR(DM22>(DL22+6),DM22<(DL22-6)),DM22,DL22))) ->  | DM24: =IF(DM22="","",IF(OR(DM22>(DL22+6),DM22<(DL22-6)),"Agncy Repl.","")) ->  | DN24: =IF(DN22="","",IF(DO22="",DN22,IF(OR(DO22>(DN22+6),DO22<(DN22-6)),DO22,DN22))) ->  | DO24: =IF(DO22="","",IF(OR(DO22>(DN22+6),DO22<(DN22-6)),"Agncy Repl.","")) ->  | DQ24: Calc. % | DT24: =IF(DT22="","",IF(DU22="",DT22,IF(OR(DU22>(DT22+6),DU22<(DT22-6)),DU22,DT22))) ->  | DU24: =IF(DU22="","",IF(OR(DU22>(DT22+6),DU22<(DT22-6)),"Agncy Repl.","")) ->  | DV24: =IF(DV22="","",IF(DW22="",DV22,IF(OR(DW22>(DV22+6),DW22<(DV22-6)),DW22,DV22))) ->  | DW24: =IF(DW22="","",IF(OR(DW22>(DV22+6),DW22<(DV22-6)),"Agncy Repl.","")) ->  | DX24: =IF(DX22="","",IF(DY22="",DX22,IF(OR(DY22>(DX22+6),DY22<(DX22-6)),DY22,DX22))) ->  | DY24: =IF(DY22="","",IF(OR(DY22>(DX22+6),DY22<(DX22-6)),"Agncy Repl.","")) ->  | DZ24: =IF(DZ22="","",IF(EA22="",DZ22,IF(OR(EA22>(DZ22+6),EA22<(DZ22-6)),EA22,DZ22))) ->  | EA24: =IF(EA22="","",IF(OR(EA22>(DZ22+6),EA22<(DZ22-6)),"Agncy Repl.","")) ->  | EC24: Calc. % | EF24: =IF(EF22="","",IF(EG22="",EF22,IF(OR(EG22>(EF22+6),EG22<(EF22-6)),EG22,EF22))) ->  | EG24: =IF(EG22="","",IF(OR(EG22>(EF22+6),EG22<(EF22-6)),"Agncy Repl.","")) ->  | EH24: =IF(EH22="","",IF(EI22="",EH22,IF(OR(EI22>(EH22+6),EI22<(EH22-6)),EI22,EH22))) ->  | EI24: =IF(EI22="","",IF(OR(EI22>(EH22+6),EI22<(EH22-6)),"Agncy Repl.","")) ->  | EJ24: =IF(EJ22="","",IF(EK22="",EJ22,IF(OR(EK22>(EJ22+6),EK22<(EJ22-6)),EK22,EJ22))) ->  | EK24: =IF(EK22="","",IF(OR(EK22>(EJ22+6),EK22<(EJ22-6)),"Agncy Repl.","")) ->  | EL24: =IF(EL22="","",IF(EM22="",EL22,IF(OR(EM22>(EL22+6),EM22<(EL22-6)),EM22,EL22))) ->  | EM24: =IF(EM22="","",IF(OR(EM22>(EL22+6),EM22<(EL22-6)),"Agncy Repl.","")) ->  | EO24: Calc. % | ER24: =IF(ER22="","",IF(ES22="",ER22,IF(OR(ES22>(ER22+6),ES22<(ER22-6)),ES22,ER22))) ->  | ES24: =IF(ES22="","",IF(OR(ES22>(ER22+6),ES22<(ER22-6)),"Agncy Repl.","")) ->  | ET24: =IF(ET22="","",IF(EU22="",ET22,IF(OR(EU22>(ET22+6),EU22<(ET22-6)),EU22,ET22))) ->  | EU24: =IF(EU22="","",IF(OR(EU22>(ET22+6),EU22<(ET22-6)),"Agncy Repl.","")) ->  | EV24: =IF(EV22="","",IF(EW22="",EV22,IF(OR(EW22>(EV22+6),EW22<(EV22-6)),EW22,EV22))) ->  | EW24: =IF(EW22="","",IF(OR(EW22>(EV22+6),EW22<(EV22-6)),"Agncy Repl.","")) ->  | EX24: =IF(EX22="","",IF(EY22="",EX22,IF(OR(EY22>(EX22+6),EY22<(EX22-6)),EY22,EX22))) ->  | EY24: =IF(EY22="","",IF(OR(EY22>(EX22+6),EY22<(EX22-6)),"Agncy Repl.","")) ->  | FA24: Calc. % | FD24: =IF(FD22="","",IF(FE22="",FD22,IF(OR(FE22>(FD22+6),FE22<(FD22-6)),FE22,FD22))) ->  | FE24: =IF(FE22="","",IF(OR(FE22>(FD22+6),FE22<(FD22-6)),"Agncy Repl.","")) ->  | FF24: =IF(FF22="","",IF(FG22="",FF22,IF(OR(FG22>(FF22+6),FG22<(FF22-6)),FG22,FF22))) ->  | FG24: =IF(FG22="","",IF(OR(FG22>(FF22+6),FG22<(FF22-6)),"Agncy Repl.","")) ->  | FH24: =IF(FH22="","",IF(FI22="",FH22,IF(OR(FI22>(FH22+6),FI22<(FH22-6)),FI22,FH22))) ->  | FI24: =IF(FI22="","",IF(OR(FI22>(FH22+6),FI22<(FH22-6)),"Agncy Repl.","")) ->  | FJ24: =IF(FJ22="","",IF(FK22="",FJ22,IF(OR(FK22>(FJ22+6),FK22<(FJ22-6)),FK22,FJ22))) ->  | FK24: =IF(FK22="","",IF(OR(FK22>(FJ22+6),FK22<(FJ22-6)),"Agncy Repl.","")) ->  | FM24: Calc. % | FP24: =IF(FP22="","",IF(FQ22="",FP22,IF(OR(FQ22>(FP22+6),FQ22<(FP22-6)),FQ22,FP22))) ->  | FQ24: =IF(FQ22="","",IF(OR(FQ22>(FP22+6),FQ22<(FP22-6)),"Agncy Repl.","")) ->  | FR24: =IF(FR22="","",IF(FS22="",FR22,IF(OR(FS22>(FR22+6),FS22<(FR22-6)),FS22,FR22))) ->  | FS24: =IF(FS22="","",IF(OR(FS22>(FR22+6),FS22<(FR22-6)),"Agncy Repl.","")) ->  | FT24: =IF(FT22="","",IF(FU22="",FT22,IF(OR(FU22>(FT22+6),FU22<(FT22-6)),FU22,FT22))) ->  | FU24: =IF(FU22="","",IF(OR(FU22>(FT22+6),FU22<(FT22-6)),"Agncy Repl.","")) ->  | FV24: =IF(FV22="","",IF(FW22="",FV22,IF(OR(FW22>(FV22+6),FW22<(FV22-6)),FW22,FV22))) ->  | FW24: =IF(FW22="","",IF(OR(FW22>(FV22+6),FW22<(FV22-6)),"Agncy Repl.","")) ->  | FY24: Calc. % | GB24: =IF(GB22="","",IF(GC22="",GB22,IF(OR(GC22>(GB22+6),GC22<(GB22-6)),GC22,GB22))) ->  | GC24: =IF(GC22="","",IF(OR(GC22>(GB22+6),GC22<(GB22-6)),"Agncy Repl.","")) ->  | GD24: =IF(GD22="","",IF(GE22="",GD22,IF(OR(GE22>(GD22+6),GE22<(GD22-6)),GE22,GD22))) ->  | GE24: =IF(GE22="","",IF(OR(GE22>(GD22+6),GE22<(GD22-6)),"Agncy Repl.","")) ->  | GF24: =IF(GF22="","",IF(GG22="",GF22,IF(OR(GG22>(GF22+6),GG22<(GF22-6)),GG22,GF22))) ->  | GG24: =IF(GG22="","",IF(OR(GG22>(GF22+6),GG22<(GF22-6)),"Agncy Repl.","")) ->  | GH24: =IF(GH22="","",IF(GI22="",GH22,IF(OR(GI22>(GH22+6),GI22<(GH22-6)),GI22,GH22))) ->  | GI24: =IF(GI22="","",IF(OR(GI22>(GH22+6),GI22<(GH22-6)),"Agncy Repl.","")) ->  | GK24: Calc. % | GN24: =IF(GN22="","",IF(GO22="",GN22,IF(OR(GO22>(GN22+6),GO22<(GN22-6)),GO22,GN22))) ->  | GO24: =IF(GO22="","",IF(OR(GO22>(GN22+6),GO22<(GN22-6)),"Agncy Repl.","")) ->  | GP24: =IF(GP22="","",IF(GQ22="",GP22,IF(OR(GQ22>(GP22+6),GQ22<(GP22-6)),GQ22,GP22))) ->  | GQ24: =IF(GQ22="","",IF(OR(GQ22>(GP22+6),GQ22<(GP22-6)),"Agncy Repl.","")) ->  | GR24: =IF(GR22="","",IF(GS22="",GR22,IF(OR(GS22>(GR22+6),GS22<(GR22-6)),GS22,GR22))) ->  | GS24: =IF(GS22="","",IF(OR(GS22>(GR22+6),GS22<(GR22-6)),"Agncy Repl.","")) ->  | GT24: =IF(GT22="","",IF(GU22="",GT22,IF(OR(GU22>(GT22+6),GU22<(GT22-6)),GU22,GT22))) ->  | GU24: =IF(GU22="","",IF(OR(GU22>(GT22+6),GU22<(GT22-6)),"Agncy Repl.","")) ->  | GW24: Calc. % | GZ24: =IF(GZ22="","",IF(HA22="",GZ22,IF(OR(HA22>(GZ22+6),HA22<(GZ22-6)),HA22,GZ22))) ->  | HA24: =IF(HA22="","",IF(OR(HA22>(GZ22+6),HA22<(GZ22-6)),"Agncy Repl.","")) ->  | HB24: =IF(HB22="","",IF(HC22="",HB22,IF(OR(HC22>(HB22+6),HC22<(HB22-6)),HC22,HB22))) ->  | HC24: =IF(HC22="","",IF(OR(HC22>(HB22+6),HC22<(HB22-6)),"Agncy Repl.","")) ->  | HD24: =IF(HD22="","",IF(HE22="",HD22,IF(OR(HE22>(HD22+6),HE22<(HD22-6)),HE22,HD22))) ->  | HE24: =IF(HE22="","",IF(OR(HE22>(HD22+6),HE22<(HD22-6)),"Agncy Repl.","")) ->  | HF24: =IF(HF22="","",IF(HG22="",HF22,IF(OR(HG22>(HF22+6),HG22<(HF22-6)),HG22,HF22))) ->  | HG24: =IF(HG22="","",IF(OR(HG22>(HF22+6),HG22<(HF22-6)),"Agncy Repl.","")) ->  | HI24: Calc. % | HL24: =IF(HL22="","",IF(HM22="",HL22,IF(OR(HM22>(HL22+6),HM22<(HL22-6)),HM22,HL22))) ->  | HM24: =IF(HM22="","",IF(OR(HM22>(HL22+6),HM22<(HL22-6)),"Agncy Repl.","")) ->  | HN24: =IF(HN22="","",IF(HO22="",HN22,IF(OR(HO22>(HN22+6),HO22<(HN22-6)),HO22,HN22))) ->  | HO24: =IF(HO22="","",IF(OR(HO22>(HN22+6),HO22<(HN22-6)),"Agncy Repl.","")) ->  | HP24: =IF(HP22="","",IF(HQ22="",HP22,IF(OR(HQ22>(HP22+6),HQ22<(HP22-6)),HQ22,HP22))) ->  | HQ24: =IF(HQ22="","",IF(OR(HQ22>(HP22+6),HQ22<(HP22-6)),"Agncy Repl.","")) ->  | HR24: =IF(HR22="","",IF(HS22="",HR22,IF(OR(HS22>(HR22+6),HS22<(HR22-6)),HS22,HR22))) ->  | HS24: =IF(HS22="","",IF(OR(HS22>(HR22+6),HS22<(HR22-6)),"Agncy Repl.","")) ->  | HU24: Calc. % | HX24: =IF(HX22="","",IF(HY22="",HX22,IF(OR(HY22>(HX22+6),HY22<(HX22-6)),HY22,HX22))) ->  | HY24: =IF(HY22="","",IF(OR(HY22>(HX22+6),HY22<(HX22-6)),"Agncy Repl.","")) ->  | HZ24: =IF(HZ22="","",IF(IA22="",HZ22,IF(OR(IA22>(HZ22+6),IA22<(HZ22-6)),IA22,HZ22))) ->  | IA24: =IF(IA22="","",IF(OR(IA22>(HZ22+6),IA22<(HZ22-6)),"Agncy Repl.","")) ->  | IB24: =IF(IB22="","",IF(IC22="",IB22,IF(OR(IC22>(IB22+6),IC22<(IB22-6)),IC22,IB22))) ->  | IC24: =IF(IC22="","",IF(OR(IC22>(IB22+6),IC22<(IB22-6)),"Agncy Repl.","")) ->  | ID24: =IF(ID22="","",IF(IE22="",ID22,IF(OR(IE22>(ID22+6),IE22<(ID22-6)),IE22,ID22))) ->  | IE24: =IF(IE22="","",IF(OR(IE22>(ID22+6),IE22<(ID22-6)),"Agncy Repl.","")) ->  | IG24: Calc. % | IJ24: =IF(IJ22="","",IF(IK22="",IJ22,IF(OR(IK22>(IJ22+6),IK22<(IJ22-6)),IK22,IJ22))) ->  | IK24: =IF(IK22="","",IF(OR(IK22>(IJ22+6),IK22<(IJ22-6)),"Agncy Repl.","")) ->  | IL24: =IF(IL22="","",IF(IM22="",IL22,IF(OR(IM22>(IL22+6),IM22<(IL22-6)),IM22,IL22))) ->  | IM24: =IF(IM22="","",IF(OR(IM22>(IL22+6),IM22<(IL22-6)),"Agncy Repl.","")) ->  | IN24: =IF(IN22="","",IF(IO22="",IN22,IF(OR(IO22>(IN22+6),IO22<(IN22-6)),IO22,IN22))) ->  | IO24: =IF(IO22="","",IF(OR(IO22>(IN22+6),IO22<(IN22-6)),"Agncy Repl.","")) ->  | IP24: =IF(IP22="","",IF(IQ22="",IP22,IF(OR(IQ22>(IP22+6),IQ22<(IP22-6)),IQ22,IP22))) ->  | IQ24: =IF(IQ22="","",IF(OR(IQ22>(IP22+6),IQ22<(IP22-6)),"Agncy Repl.","")) -> 
A25: #4 | M25: #4 | Y25: #4 | AK25: #4 | AW25: #4 | BI25: #4 | BU25: #4 | CG25: #4 | CS25: #4 | DE25: #4 | DQ25: #4 | EC25: #4 | EO25: #4 | FA25: #4 | FM25: #4 | FY25: #4 | GK25: #4 | GW25: #4 | HI25: #4 | HU25: #4 | IG25: #4 | IT25: 0 | IU25: Agency AFT Substituted
A26: Mov Avg. | B26: =IF(MDR!$AL$4="YES",MDR!$BQ$48,MDR!$AE12) -> 30 | C26: =IF(MDR!$AL$4="YES",MDR!$BR$48,MDR!$AF12) -> 80 | E26: =IF(E25="","",IF(OR(E25>(D25+5),E25<(D25-5)),"Tolerance","")) ->  | G26: =IF(G25="","",IF(OR(G25>(F25+5),G25<(F25-5)),"Tolerance","")) ->  | I26: =IF(I25="","",IF(OR(I25>(H25+5),I25<(H25-5)),"Tolerance","")) ->  | J26: =mndot_rounding_0(IF(D25="","",IF(F25="","",IF(H25="","",IF(J25="","",Grad!K14))))) ->  | K26: =IF(K25="","",IF(OR(K25>(J25+5),K25<(J25-5)),"Tolerance","")) ->  | M26: Mov Avg. | N26: =IF(MDR!$AL$4="YES",MDR!$BQ$48,MDR!$AE16) -> 30 | O26: =IF(MDR!$AL$4="YES",MDR!$BR$48,MDR!$AF16) -> 80 | P26: =mndot_rounding_0(Grad!V15) ->  | Q26: =IF(Q25="","",IF(OR(Q25>(P25+5),Q25<(P25-5)),"Tolerance","")) ->  | R26: =mndot_rounding_0(Grad!V16) ->  | S26: =IF(S25="","",IF(OR(S25>(R25+5),S25<(R25-5)),"Tolerance","")) ->  | T26: =mndot_rounding_0(Grad!$V17) ->  | U26: =IF(U25="","",IF(OR(U25>(T25+5),U25<(T25-5)),"Tolerance","")) ->  | V26: =mndot_rounding_0(Grad!$V18) ->  | W26: =IF(W25="","",IF(OR(W25>(V25+5),W25<(V25-5)),"Tolerance","")) ->  | Y26: Mov Avg. | Z26: =IF(MDR!$AL$4="YES",MDR!$BQ$48,MDR!$AE20) -> 30 | AA26: =IF(MDR!$AL$4="YES",MDR!$BR$48,MDR!$AF20) -> 80 | AB26: =mndot_rounding_0(Grad!$V19) ->  | AC26: =IF(AC25="","",IF(OR(AC25>(AB25+5),AC25<(AB25-5)),"Tolerance","")) ->  | AD26: =mndot_rounding_0(Grad!$V20) ->  | AE26: =IF(AE25="","",IF(OR(AE25>(AD25+5),AE25<(AD25-5)),"Tolerance","")) ->  | AF26: =mndot_rounding_0(Grad!$V21) ->  | AG26: =IF(AG25="","",IF(OR(AG25>(AF25+5),AG25<(AF25-5)),"Tolerance","")) ->  | AH26: =mndot_rounding_0(Grad!$V22) ->  | AI26: =IF(AI25="","",IF(OR(AI25>(AH25+5),AI25<(AH25-5)),"Tolerance","")) ->  | AK26: Mov Avg. | AL26: =IF(MDR!$AL$4="YES",MDR!$BQ$48,MDR!$AE24) -> 30 | AM26: =IF(MDR!$AL$4="YES",MDR!$BR$48,MDR!$AF24) -> 80 | AN26: =mndot_rounding_0(Grad!$V23) ->  | AO26: =IF(AO25="","",IF(OR(AO25>(AN25+5),AO25<(AN25-5)),"Tolerance","")) ->  | AP26: =mndot_rounding_0(Grad!$V24) ->  | AQ26: =IF(AQ25="","",IF(OR(AQ25>(AP25+5),AQ25<(AP25-5)),"Tolerance","")) ->  | AR26: =mndot_rounding_0(Grad!$V25) ->  | AS26: =IF(AS25="","",IF(OR(AS25>(AR25+5),AS25<(AR25-5)),"Tolerance","")) ->  | AT26: =mndot_rounding_0(Grad!$V26) ->  | AU26: =IF(AU25="","",IF(OR(AU25>(AT25+5),AU25<(AT25-5)),"Tolerance","")) ->  | AW26: Mov Avg. | AX26: =IF(MDR!$AL$4="YES",MDR!$BQ$48,MDR!$AE28) -> 30 | AY26: =IF(MDR!$AL$4="YES",MDR!$BR$48,MDR!$AF28) -> 80 | AZ26: =mndot_rounding_0(Grad!$V27) ->  | BA26: =IF(BA25="","",IF(OR(BA25>(AZ25+5),BA25<(AZ25-5)),"Tolerance","")) ->  | BB26: =mndot_rounding_0(Grad!$V28) ->  | BC26: =IF(BC25="","",IF(OR(BC25>(BB25+5),BC25<(BB25-5)),"Tolerance","")) ->  | BD26: =mndot_rounding_0(Grad!$V29) ->  | BE26: =IF(BE25="","",IF(OR(BE25>(BD25+5),BE25<(BD25-5)),"Tolerance","")) ->  | BF26: =mndot_rounding_0(Grad!$V30) ->  | BG26: =IF(BG25="","",IF(OR(BG25>(BF25+5),BG25<(BF25-5)),"Tolerance","")) ->  | BI26: Mov Avg. | BJ26: =IF(MDR!$AL$4="YES",MDR!$BQ$48,MDR!$AE32) -> 30 | BK26: =IF(MDR!$AL$4="YES",MDR!$BR$48,MDR!$AF32) -> 80 | BL26: =mndot_rounding_0(Grad!$V31) ->  | BM26: =IF(BM25="","",IF(OR(BM25>(BL25+5),BM25<(BL25-5)),"Tolerance","")) ->  | BN26: =mndot_rounding_0(Grad!$V32) ->  | BO26: =IF(BO25="","",IF(OR(BO25>(BN25+5),BO25<(BN25-5)),"Tolerance","")) ->  | BP26: =mndot_rounding_0(Grad!$V33) ->  | BQ26: =IF(BQ25="","",IF(OR(BQ25>(BP25+5),BQ25<(BP25-5)),"Tolerance","")) ->  | BR26: =mndot_rounding_0(Grad!$V34) ->  | BS26: =IF(BS25="","",IF(OR(BS25>(BR25+5),BS25<(BR25-5)),"Tolerance","")) ->  | BU26: Mov Avg. | BV26: =IF(MDR!$AL$4="YES",MDR!$BQ$48,MDR!$AE36) -> 30 | BW26: =IF(MDR!$AL$4="YES",MDR!$BR$48,MDR!$AF36) -> 80 | BX26: =mndot_rounding_0(Grad!$V35) ->  | BY26: =IF(BY25="","",IF(OR(BY25>(BX25+5),BY25<(BX25-5)),"Tolerance","")) ->  | BZ26: =mndot_rounding_0(Grad!$V36) ->  | CA26: =IF(CA25="","",IF(OR(CA25>(BZ25+5),CA25<(BZ25-5)),"Tolerance","")) ->  | CB26: =mndot_rounding_0(Grad!$V37) ->  | CC26: =IF(CC25="","",IF(OR(CC25>(CB25+5),CC25<(CB25-5)),"Tolerance","")) ->  | CD26: =mndot_rounding_0(Grad!$V38) ->  | CE26: =IF(CE25="","",IF(OR(CE25>(CD25+5),CE25<(CD25-5)),"Tolerance","")) ->  | CG26: Mov Avg. | CH26: =IF(MDR!$AL$4="YES",MDR!$BQ$48,MDR!$AE40) -> 30 | CI26: =IF(MDR!$AL$4="YES",MDR!$BR$48,MDR!$AF40) -> 80 | CJ26: =mndot_rounding_0(Grad!$V39) ->  | CK26: =IF(CK25="","",IF(OR(CK25>(CJ25+5),CK25<(CJ25-5)),"Tolerance","")) ->  | CL26: =mndot_rounding_0(Grad!$V40) ->  | CM26: =IF(CM25="","",IF(OR(CM25>(CL25+5),CM25<(CL25-5)),"Tolerance","")) ->  | CN26: =mndot_rounding_0(Grad!$V41) ->  | CO26: =IF(CO25="","",IF(OR(CO25>(CN25+5),CO25<(CN25-5)),"Tolerance","")) ->  | CP26: =mndot_rounding_0(Grad!$V42) ->  | CQ26: =IF(CQ25="","",IF(OR(CQ25>(CP25+5),CQ25<(CP25-5)),"Tolerance","")) ->  | CS26: Mov Avg. | CT26: =IF(MDR!$AL$4="YES",MDR!$BQ$48,MDR!$AE44) -> 30 | CU26: =IF(MDR!$AL$4="YES",MDR!$BR$48,MDR!$AF44) -> 80 | CV26: =mndot_rounding_0(Grad!$V43) ->  | CW26: =IF(CW25="","",IF(OR(CW25>(CV25+5),CW25<(CV25-5)),"Tolerance","")) ->  | CX26: =mndot_rounding_0(Grad!$V44) ->  | CY26: =IF(CY25="","",IF(OR(CY25>(CX25+5),CY25<(CX25-5)),"Tolerance","")) ->  | CZ26: =mndot_rounding_0(Grad!$V45) ->  | DA26: =IF(DA25="","",IF(OR(DA25>(CZ25+5),DA25<(CZ25-5)),"Tolerance","")) ->  | DB26: =mndot_rounding_0(Grad!$V46) ->  | DC26: =IF(DC25="","",IF(OR(DC25>(DB25+5),DC25<(DB25-5)),"Tolerance","")) ->  | DE26: Mov Avg. | DF26: =IF(MDR!$AL$4="YES",MDR!$BQ$48,MDR!$AE48) -> 30 | DG26: =IF(MDR!$AL$4="YES",MDR!$BR$48,MDR!$AF48) -> 80 | DH26: =mndot_rounding_0(Grad!$V47) ->  | DI26: =IF(DI25="","",IF(OR(DI25>(DH25+5),DI25<(DH25-5)),"Tolerance","")) ->  | DJ26: =mndot_rounding_0(Grad!$V48) ->  | DK26: =IF(DK25="","",IF(OR(DK25>(DJ25+5),DK25<(DJ25-5)),"Tolerance","")) ->  | DL26: =mndot_rounding_0(Grad!$V49) ->  | DM26: =IF(DM25="","",IF(OR(DM25>(DL25+5),DM25<(DL25-5)),"Tolerance","")) ->  | DN26: =mndot_rounding_0(Grad!$V50) ->  | DO26: =IF(DO25="","",IF(OR(DO25>(DN25+5),DO25<(DN25-5)),"Tolerance","")) ->  | DQ26: Mov Avg. | DR26: =IF(MDR!$AL$4="YES",MDR!$BQ$48,MDR!$AE52) -> 30 | DS26: =IF(MDR!$AL$4="YES",MDR!$BR$48,MDR!$AF52) -> 80 | DT26: =mndot_rounding_0(Grad!$V51) ->  | DU26: =IF(DU25="","",IF(OR(DU25>(DT25+5),DU25<(DT25-5)),"Tolerance","")) ->  | DV26: =mndot_rounding_0(Grad!$V52) ->  | DW26: =IF(DW25="","",IF(OR(DW25>(DV25+5),DW25<(DV25-5)),"Tolerance","")) ->  | DX26: =mndot_rounding_0(Grad!$V53) ->  | DY26: =IF(DY25="","",IF(OR(DY25>(DX25+5),DY25<(DX25-5)),"Tolerance","")) ->  | DZ26: =mndot_rounding_0(Grad!$V54) ->  | EA26: =IF(EA25="","",IF(OR(EA25>(DZ25+5),EA25<(DZ25-5)),"Tolerance","")) ->  | EC26: Mov Avg. | ED26: =IF(MDR!$AL$4="YES",MDR!$BQ$48,MDR!$AE56) -> 30 | EE26: =IF(MDR!$AL$4="YES",MDR!$BR$48,MDR!$AF56) -> 80 | EF26: =mndot_rounding_0(Grad!$V55) ->  | EG26: =IF(EG25="","",IF(OR(EG25>(EF25+5),EG25<(EF25-5)),"Tolerance","")) ->  | EH26: =mndot_rounding_0(Grad!$V56) ->  | EI26: =IF(EI25="","",IF(OR(EI25>(EH25+5),EI25<(EH25-5)),"Tolerance","")) ->  | EJ26: =mndot_rounding_0(Grad!$V57) ->  | EK26: =IF(EK25="","",IF(OR(EK25>(EJ25+5),EK25<(EJ25-5)),"Tolerance","")) ->  | EL26: =mndot_rounding_0(Grad!$V58) ->  | EM26: =IF(EM25="","",IF(OR(EM25>(EL25+5),EM25<(EL25-5)),"Tolerance","")) ->  | EO26: Mov Avg. | EP26: =IF(MDR!$AL$4="YES",MDR!$BQ$48,MDR!$AE60) -> 30 | EQ26: =IF(MDR!$AL$4="YES",MDR!$BR$48,MDR!$AF60) -> 80 | ER26: =mndot_rounding_0(Grad!$V59) ->  | ES26: =IF(ES25="","",IF(OR(ES25>(ER25+5),ES25<(ER25-5)),"Tolerance","")) ->  | ET26: =mndot_rounding_0(Grad!$V60) ->  | EU26: =IF(EU25="","",IF(OR(EU25>(ET25+5),EU25<(ET25-5)),"Tolerance","")) ->  | EV26: =mndot_rounding_0(Grad!$V61) ->  | EW26: =IF(EW25="","",IF(OR(EW25>(EV25+5),EW25<(EV25-5)),"Tolerance","")) ->  | EX26: =mndot_rounding_0(Grad!$V62) ->  | EY26: =IF(EY25="","",IF(OR(EY25>(EX25+5),EY25<(EX25-5)),"Tolerance","")) ->  | FA26: Mov Avg. | FB26: =IF(MDR!$AL$4="YES",MDR!$BQ$48,MDR!$AE64) -> 30 | FC26: =IF(MDR!$AL$4="YES",MDR!$BR$48,MDR!$AF64) -> 80 | FD26: =mndot_rounding_0(Grad!$V63) ->  | FE26: =IF(FE25="","",IF(OR(FE25>(FD25+5),FE25<(FD25-5)),"Tolerance","")) ->  | FF26: =mndot_rounding_0(Grad!$V64) ->  | FG26: =IF(FG25="","",IF(OR(FG25>(FF25+5),FG25<(FF25-5)),"Tolerance","")) ->  | FH26: =mndot_rounding_0(Grad!$V65) ->  | FI26: =IF(FI25="","",IF(OR(FI25>(FH25+5),FI25<(FH25-5)),"Tolerance","")) ->  | FJ26: =mndot_rounding_0(Grad!$V66) ->  | FK26: =IF(FK25="","",IF(OR(FK25>(FJ25+5),FK25<(FJ25-5)),"Tolerance","")) ->  | FM26: Mov Avg. | FN26: =IF(MDR!$AL$4="YES",MDR!$BQ$48,MDR!$AE68) -> 30 | FO26: =IF(MDR!$AL$4="YES",MDR!$BR$48,MDR!$AF68) -> 80 | FP26: =mndot_rounding_0(Grad!$V67) ->  | FQ26: =IF(FQ25="","",IF(OR(FQ25>(FP25+5),FQ25<(FP25-5)),"Tolerance","")) ->  | FR26: =mndot_rounding_0(Grad!$V68) ->  | FS26: =IF(FS25="","",IF(OR(FS25>(FR25+5),FS25<(FR25-5)),"Tolerance","")) ->  | FT26: =mndot_rounding_0(Grad!$V69) ->  | FU26: =IF(FU25="","",IF(OR(FU25>(FT25+5),FU25<(FT25-5)),"Tolerance","")) ->  | FV26: =mndot_rounding_0(Grad!$V70) ->  | FW26: =IF(FW25="","",IF(OR(FW25>(FV25+5),FW25<(FV25-5)),"Tolerance","")) ->  | FY26: Mov Avg. | FZ26: =IF(MDR!$AL$4="YES",MDR!$BQ$48,MDR!$AE72) -> 30 | GA26: =IF(MDR!$AL$4="YES",MDR!$BR$48,MDR!$AF72) -> 80 | GB26: =mndot_rounding_0(Grad!$V71) ->  | GC26: =IF(GC25="","",IF(OR(GC25>(GB25+5),GC25<(GB25-5)),"Tolerance","")) ->  | GD26: =mndot_rounding_0(Grad!$V72) ->  | GE26: =IF(GE25="","",IF(OR(GE25>(GD25+5),GE25<(GD25-5)),"Tolerance","")) ->  | GF26: =mndot_rounding_0(Grad!$V73) ->  | GG26: =IF(GG25="","",IF(OR(GG25>(GF25+5),GG25<(GF25-5)),"Tolerance","")) ->  | GH26: =mndot_rounding_0(Grad!$V74) ->  | GI26: =IF(GI25="","",IF(OR(GI25>(GH25+5),GI25<(GH25-5)),"Tolerance","")) ->  | GK26: Mov Avg. | GL26: =IF(MDR!$AL$4="YES",MDR!$BQ$48,MDR!$AE76) -> 30 | GM26: =IF(MDR!$AL$4="YES",MDR!$BR$48,MDR!$AF76) -> 80 | GN26: =mndot_rounding_0(Grad!$V75) ->  | GO26: =IF(GO25="","",IF(OR(GO25>(GN25+5),GO25<(GN25-5)),"Tolerance","")) ->  | GP26: =mndot_rounding_0(Grad!$V76) ->  | GQ26: =IF(GQ25="","",IF(OR(GQ25>(GP25+5),GQ25<(GP25-5)),"Tolerance","")) ->  | GR26: =mndot_rounding_0(Grad!$V77) ->  | GS26: =IF(GS25="","",IF(OR(GS25>(GR25+5),GS25<(GR25-5)),"Tolerance","")) ->  | GT26: =mndot_rounding_0(Grad!$V78) ->  | GU26: =IF(GU25="","",IF(OR(GU25>(GT25+5),GU25<(GT25-5)),"Tolerance","")) ->  | GW26: Mov Avg. | GX26: =IF(MDR!$AL$4="YES",MDR!$BQ$48,MDR!$AE80) -> 30 | GY26: =IF(MDR!$AL$4="YES",MDR!$BR$48,MDR!$AF80) -> 80 | GZ26: =mndot_rounding_0(Grad!$V79) ->  | HA26: =IF(HA25="","",IF(OR(HA25>(GZ25+5),HA25<(GZ25-5)),"Tolerance","")) ->  | HB26: =mndot_rounding_0(Grad!$V80) ->  | HC26: =IF(HC25="","",IF(OR(HC25>(HB25+5),HC25<(HB25-5)),"Tolerance","")) ->  | HD26: =mndot_rounding_0(Grad!$V81) ->  | HE26: =IF(HE25="","",IF(OR(HE25>(HD25+5),HE25<(HD25-5)),"Tolerance","")) ->  | HF26: =mndot_rounding_0(Grad!$V82) ->  | HG26: =IF(HG25="","",IF(OR(HG25>(HF25+5),HG25<(HF25-5)),"Tolerance","")) ->  | HI26: Mov Avg. | HJ26: =IF(MDR!$AL$4="YES",MDR!$BQ$48,MDR!$AE84) -> 30 | HK26: =IF(MDR!$AL$4="YES",MDR!$BR$48,MDR!$AF84) -> 80 | HL26: =mndot_rounding_0(Grad!$V83) ->  | HM26: =IF(HM25="","",IF(OR(HM25>(HL25+5),HM25<(HL25-5)),"Tolerance","")) ->  | HN26: =mndot_rounding_0(Grad!$V84) ->  | HO26: =IF(HO25="","",IF(OR(HO25>(HN25+5),HO25<(HN25-5)),"Tolerance","")) ->  | HP26: =mndot_rounding_0(Grad!$V85) ->  | HQ26: =IF(HQ25="","",IF(OR(HQ25>(HP25+5),HQ25<(HP25-5)),"Tolerance","")) ->  | HR26: =mndot_rounding_0(Grad!$V86) ->  | HS26: =IF(HS25="","",IF(OR(HS25>(HR25+5),HS25<(HR25-5)),"Tolerance","")) ->  | HU26: Mov Avg. | HV26: =IF(MDR!$AL$4="YES",MDR!$BQ$48,MDR!$AE88) -> 30 | HW26: =IF(MDR!$AL$4="YES",MDR!$BR$48,MDR!$AF88) -> 80 | HX26: =mndot_rounding_0(Grad!$V87) ->  | HY26: =IF(HY25="","",IF(OR(HY25>(HX25+5),HY25<(HX25-5)),"Tolerance","")) ->  | HZ26: =mndot_rounding_0(Grad!$V88) ->  | IA26: =IF(IA25="","",IF(OR(IA25>(HZ25+5),IA25<(HZ25-5)),"Tolerance","")) ->  | IB26: =mndot_rounding_0(Grad!$V89) ->  | IC26: =IF(IC25="","",IF(OR(IC25>(IB25+5),IC25<(IB25-5)),"Tolerance","")) ->  | ID26: =mndot_rounding_0(Grad!$V90) ->  | IE26: =IF(IE25="","",IF(OR(IE25>(ID25+5),IE25<(ID25-5)),"Tolerance","")) ->  | IG26: Mov Avg. | IH26: =IF(MDR!$AL$4="YES",MDR!$BQ$48,MDR!$AE92) -> 30 | II26: =IF(MDR!$AL$4="YES",MDR!$BR$48,MDR!$AF92) -> 80 | IJ26: =mndot_rounding_0(Grad!$V91) ->  | IK26: =IF(IK25="","",IF(OR(IK25>(IJ25+5),IK25<(IJ25-5)),"Tolerance","")) ->  | IL26: =mndot_rounding_0(Grad!$V92) ->  | IM26: =IF(IM25="","",IF(OR(IM25>(IL25+5),IM25<(IL25-5)),"Tolerance","")) ->  | IN26: =mndot_rounding_0(Grad!$V93) ->  | IO26: =IF(IO25="","",IF(OR(IO25>(IN25+5),IO25<(IN25-5)),"Tolerance","")) ->  | IP26: =mndot_rounding_0(Grad!$V94) ->  | IQ26: =IF(IQ25="","",IF(OR(IQ25>(IP25+5),IQ25<(IP25-5)),"Tolerance","")) ->  | IT26: 0 | IU26: Agency AFT Substituted
A27: #4 Calc. % | D27: =IF(D25="","",IF(E25="",D25,IF(OR(E25>(D25+5),E25<(D25-5)),E25,D25))) ->  | E27: =IF(E25="","",IF(OR(E25>(D25+5),E25<(D25-5)),"Agncy Repl.","")) ->  | F27: =IF(F25="","",IF(G25="",F25,IF(OR(G25>(F25+5),G25<(F25-5)),G25,F25))) ->  | G27: =IF(G25="","",IF(OR(G25>(F25+5),G25<(F25-5)),"Agncy Repl.","")) ->  | H27: =IF(H25="","",IF(I25="",H25,IF(OR(I25>(H25+5),I25<(H25-5)),I25,H25))) ->  | I27: =IF(I25="","",IF(OR(I25>(H25+5),I25<(H25-5)),"Agncy Repl.","")) ->  | J27: =IF(J25="","",IF(K25="",J25,IF(OR(K25>(J25+5),K25<(J25-5)),K25,J25))) ->  | K27: =IF(K25="","",IF(OR(K25>(J25+5),K25<(J25-5)),"Agncy Repl.","")) ->  | M27: Calc. % | P27: =IF(P25="","",IF(Q25="",P25,IF(OR(Q25>(P25+5),Q25<(P25-5)),Q25,P25))) ->  | Q27: =IF(Q25="","",IF(OR(Q25>(P25+5),Q25<(P25-5)),"Agncy Repl.","")) ->  | R27: =IF(R25="","",IF(S25="",R25,IF(OR(S25>(R25+5),S25<(R25-5)),S25,R25))) ->  | S27: =IF(S25="","",IF(OR(S25>(R25+5),S25<(R25-5)),"Agncy Repl.","")) ->  | T27: =IF(T25="","",IF(U25="",T25,IF(OR(U25>(T25+5),U25<(T25-5)),U25,T25))) ->  | U27: =IF(U25="","",IF(OR(U25>(T25+5),U25<(T25-5)),"Agncy Repl.","")) ->  | V27: =IF(V25="","",IF(W25="",V25,IF(OR(W25>(V25+5),W25<(V25-5)),W25,V25))) ->  | W27: =IF(W25="","",IF(OR(W25>(V25+5),W25<(V25-5)),"Agncy Repl.","")) ->  | Y27: Calc. % | AB27: =IF(AB25="","",IF(AC25="",AB25,IF(OR(AC25>(AB25+5),AC25<(AB25-5)),AC25,AB25))) ->  | AC27: =IF(AC25="","",IF(OR(AC25>(AB25+5),AC25<(AB25-5)),"Agncy Repl.","")) ->  | AD27: =IF(AD25="","",IF(AE25="",AD25,IF(OR(AE25>(AD25+5),AE25<(AD25-5)),AE25,AD25))) ->  | AE27: =IF(AE25="","",IF(OR(AE25>(AD25+5),AE25<(AD25-5)),"Agncy Repl.","")) ->  | AF27: =IF(AF25="","",IF(AG25="",AF25,IF(OR(AG25>(AF25+5),AG25<(AF25-5)),AG25,AF25))) ->  | AG27: =IF(AG25="","",IF(OR(AG25>(AF25+5),AG25<(AF25-5)),"Agncy Repl.","")) ->  | AH27: =IF(AH25="","",IF(AI25="",AH25,IF(OR(AI25>(AH25+5),AI25<(AH25-5)),AI25,AH25))) ->  | AI27: =IF(AI25="","",IF(OR(AI25>(AH25+5),AI25<(AH25-5)),"Agncy Repl.","")) ->  | AK27: Calc. % | AN27: =IF(AN25="","",IF(AO25="",AN25,IF(OR(AO25>(AN25+5),AO25<(AN25-5)),AO25,AN25))) ->  | AO27: =IF(AO25="","",IF(OR(AO25>(AN25+5),AO25<(AN25-5)),"Agncy Repl.","")) ->  | AP27: =IF(AP25="","",IF(AQ25="",AP25,IF(OR(AQ25>(AP25+5),AQ25<(AP25-5)),AQ25,AP25))) ->  | AQ27: =IF(AQ25="","",IF(OR(AQ25>(AP25+5),AQ25<(AP25-5)),"Agncy Repl.","")) ->  | AR27: =IF(AR25="","",IF(AS25="",AR25,IF(OR(AS25>(AR25+5),AS25<(AR25-5)),AS25,AR25))) ->  | AS27: =IF(AS25="","",IF(OR(AS25>(AR25+5),AS25<(AR25-5)),"Agncy Repl.","")) ->  | AT27: =IF(AT25="","",IF(AU25="",AT25,IF(OR(AU25>(AT25+5),AU25<(AT25-5)),AU25,AT25))) ->  | AU27: =IF(AU25="","",IF(OR(AU25>(AT25+5),AU25<(AT25-5)),"Agncy Repl.","")) ->  | AW27: Calc. % | AZ27: =IF(AZ25="","",IF(BA25="",AZ25,IF(OR(BA25>(AZ25+5),BA25<(AZ25-5)),BA25,AZ25))) ->  | BA27: =IF(BA25="","",IF(OR(BA25>(AZ25+5),BA25<(AZ25-5)),"Agncy Repl.","")) ->  | BB27: =IF(BB25="","",IF(BC25="",BB25,IF(OR(BC25>(BB25+5),BC25<(BB25-5)),BC25,BB25))) ->  | BC27: =IF(BC25="","",IF(OR(BC25>(BB25+5),BC25<(BB25-5)),"Agncy Repl.","")) ->  | BD27: =IF(BD25="","",IF(BE25="",BD25,IF(OR(BE25>(BD25+5),BE25<(BD25-5)),BE25,BD25))) ->  | BE27: =IF(BE25="","",IF(OR(BE25>(BD25+5),BE25<(BD25-5)),"Agncy Repl.","")) ->  | BF27: =IF(BF25="","",IF(BG25="",BF25,IF(OR(BG25>(BF25+5),BG25<(BF25-5)),BG25,BF25))) ->  | BG27: =IF(BG25="","",IF(OR(BG25>(BF25+5),BG25<(BF25-5)),"Agncy Repl.","")) ->  | BI27: Calc. % | BL27: =IF(BL25="","",IF(BM25="",BL25,IF(OR(BM25>(BL25+5),BM25<(BL25-5)),BM25,BL25))) ->  | BM27: =IF(BM25="","",IF(OR(BM25>(BL25+5),BM25<(BL25-5)),"Agncy Repl.","")) ->  | BN27: =IF(BN25="","",IF(BO25="",BN25,IF(OR(BO25>(BN25+5),BO25<(BN25-5)),BO25,BN25))) ->  | BO27: =IF(BO25="","",IF(OR(BO25>(BN25+5),BO25<(BN25-5)),"Agncy Repl.","")) ->  | BP27: =IF(BP25="","",IF(BQ25="",BP25,IF(OR(BQ25>(BP25+5),BQ25<(BP25-5)),BQ25,BP25))) ->  | BQ27: =IF(BQ25="","",IF(OR(BQ25>(BP25+5),BQ25<(BP25-5)),"Agncy Repl.","")) ->  | BR27: =IF(BR25="","",IF(BS25="",BR25,IF(OR(BS25>(BR25+5),BS25<(BR25-5)),BS25,BR25))) ->  | BS27: =IF(BS25="","",IF(OR(BS25>(BR25+5),BS25<(BR25-5)),"Agncy Repl.","")) ->  | BU27: Calc. % | BX27: =IF(BX25="","",IF(BY25="",BX25,IF(OR(BY25>(BX25+5),BY25<(BX25-5)),BY25,BX25))) ->  | BY27: =IF(BY25="","",IF(OR(BY25>(BX25+5),BY25<(BX25-5)),"Agncy Repl.","")) ->  | BZ27: =IF(BZ25="","",IF(CA25="",BZ25,IF(OR(CA25>(BZ25+5),CA25<(BZ25-5)),CA25,BZ25))) ->  | CA27: =IF(CA25="","",IF(OR(CA25>(BZ25+5),CA25<(BZ25-5)),"Agncy Repl.","")) ->  | CB27: =IF(CB25="","",IF(CC25="",CB25,IF(OR(CC25>(CB25+5),CC25<(CB25-5)),CC25,CB25))) ->  | CC27: =IF(CC25="","",IF(OR(CC25>(CB25+5),CC25<(CB25-5)),"Agncy Repl.","")) ->  | CD27: =IF(CD25="","",IF(CE25="",CD25,IF(OR(CE25>(CD25+5),CE25<(CD25-5)),CE25,CD25))) ->  | CE27: =IF(CE25="","",IF(OR(CE25>(CD25+5),CE25<(CD25-5)),"Agncy Repl.","")) ->  | CG27: Calc. % | CJ27: =IF(CJ25="","",IF(CK25="",CJ25,IF(OR(CK25>(CJ25+5),CK25<(CJ25-5)),CK25,CJ25))) ->  | CK27: =IF(CK25="","",IF(OR(CK25>(CJ25+5),CK25<(CJ25-5)),"Agncy Repl.","")) ->  | CL27: =IF(CL25="","",IF(CM25="",CL25,IF(OR(CM25>(CL25+5),CM25<(CL25-5)),CM25,CL25))) ->  | CM27: =IF(CM25="","",IF(OR(CM25>(CL25+5),CM25<(CL25-5)),"Agncy Repl.","")) ->  | CN27: =IF(CN25="","",IF(CO25="",CN25,IF(OR(CO25>(CN25+5),CO25<(CN25-5)),CO25,CN25))) ->  | CO27: =IF(CO25="","",IF(OR(CO25>(CN25+5),CO25<(CN25-5)),"Agncy Repl.","")) ->  | CP27: =IF(CP25="","",IF(CQ25="",CP25,IF(OR(CQ25>(CP25+5),CQ25<(CP25-5)),CQ25,CP25))) ->  | CQ27: =IF(CQ25="","",IF(OR(CQ25>(CP25+5),CQ25<(CP25-5)),"Agncy Repl.","")) ->  | CS27: Calc. % | CV27: =IF(CV25="","",IF(CW25="",CV25,IF(OR(CW25>(CV25+5),CW25<(CV25-5)),CW25,CV25))) ->  | CW27: =IF(CW25="","",IF(OR(CW25>(CV25+5),CW25<(CV25-5)),"Agncy Repl.","")) ->  | CX27: =IF(CX25="","",IF(CY25="",CX25,IF(OR(CY25>(CX25+5),CY25<(CX25-5)),CY25,CX25))) ->  | CY27: =IF(CY25="","",IF(OR(CY25>(CX25+5),CY25<(CX25-5)),"Agncy Repl.","")) ->  | CZ27: =IF(CZ25="","",IF(DA25="",CZ25,IF(OR(DA25>(CZ25+5),DA25<(CZ25-5)),DA25,CZ25))) ->  | DA27: =IF(DA25="","",IF(OR(DA25>(CZ25+5),DA25<(CZ25-5)),"Agncy Repl.","")) ->  | DB27: =IF(DB25="","",IF(DC25="",DB25,IF(OR(DC25>(DB25+5),DC25<(DB25-5)),DC25,DB25))) ->  | DC27: =IF(DC25="","",IF(OR(DC25>(DB25+5),DC25<(DB25-5)),"Agncy Repl.","")) ->  | DE27: Calc. % | DH27: =IF(DH25="","",IF(DI25="",DH25,IF(OR(DI25>(DH25+5),DI25<(DH25-5)),DI25,DH25))) ->  | DI27: =IF(DI25="","",IF(OR(DI25>(DH25+5),DI25<(DH25-5)),"Agncy Repl.","")) ->  | DJ27: =IF(DJ25="","",IF(DK25="",DJ25,IF(OR(DK25>(DJ25+5),DK25<(DJ25-5)),DK25,DJ25))) ->  | DK27: =IF(DK25="","",IF(OR(DK25>(DJ25+5),DK25<(DJ25-5)),"Agncy Repl.","")) ->  | DL27: =IF(DL25="","",IF(DM25="",DL25,IF(OR(DM25>(DL25+5),DM25<(DL25-5)),DM25,DL25))) ->  | DM27: =IF(DM25="","",IF(OR(DM25>(DL25+5),DM25<(DL25-5)),"Agncy Repl.","")) ->  | DN27: =IF(DN25="","",IF(DO25="",DN25,IF(OR(DO25>(DN25+5),DO25<(DN25-5)),DO25,DN25))) ->  | DO27: =IF(DO25="","",IF(OR(DO25>(DN25+5),DO25<(DN25-5)),"Agncy Repl.","")) ->  | DQ27: Calc. % | DT27: =IF(DT25="","",IF(DU25="",DT25,IF(OR(DU25>(DT25+5),DU25<(DT25-5)),DU25,DT25))) ->  | DU27: =IF(DU25="","",IF(OR(DU25>(DT25+5),DU25<(DT25-5)),"Agncy Repl.","")) ->  | DV27: =IF(DV25="","",IF(DW25="",DV25,IF(OR(DW25>(DV25+5),DW25<(DV25-5)),DW25,DV25))) ->  | DW27: =IF(DW25="","",IF(OR(DW25>(DV25+5),DW25<(DV25-5)),"Agncy Repl.","")) ->  | DX27: =IF(DX25="","",IF(DY25="",DX25,IF(OR(DY25>(DX25+5),DY25<(DX25-5)),DY25,DX25))) ->  | DY27: =IF(DY25="","",IF(OR(DY25>(DX25+5),DY25<(DX25-5)),"Agncy Repl.","")) ->  | DZ27: =IF(DZ25="","",IF(EA25="",DZ25,IF(OR(EA25>(DZ25+5),EA25<(DZ25-5)),EA25,DZ25))) ->  | EA27: =IF(EA25="","",IF(OR(EA25>(DZ25+5),EA25<(DZ25-5)),"Agncy Repl.","")) ->  | EC27: Calc. % | EF27: =IF(EF25="","",IF(EG25="",EF25,IF(OR(EG25>(EF25+5),EG25<(EF25-5)),EG25,EF25))) ->  | EG27: =IF(EG25="","",IF(OR(EG25>(EF25+5),EG25<(EF25-5)),"Agncy Repl.","")) ->  | EH27: =IF(EH25="","",IF(EI25="",EH25,IF(OR(EI25>(EH25+5),EI25<(EH25-5)),EI25,EH25))) ->  | EI27: =IF(EI25="","",IF(OR(EI25>(EH25+5),EI25<(EH25-5)),"Agncy Repl.","")) ->  | EJ27: =IF(EJ25="","",IF(EK25="",EJ25,IF(OR(EK25>(EJ25+5),EK25<(EJ25-5)),EK25,EJ25))) ->  | EK27: =IF(EK25="","",IF(OR(EK25>(EJ25+5),EK25<(EJ25-5)),"Agncy Repl.","")) ->  | EL27: =IF(EL25="","",IF(EM25="",EL25,IF(OR(EM25>(EL25+5),EM25<(EL25-5)),EM25,EL25))) ->  | EM27: =IF(EM25="","",IF(OR(EM25>(EL25+5),EM25<(EL25-5)),"Agncy Repl.","")) ->  | EO27: Calc. % | ER27: =IF(ER25="","",IF(ES25="",ER25,IF(OR(ES25>(ER25+5),ES25<(ER25-5)),ES25,ER25))) ->  | ES27: =IF(ES25="","",IF(OR(ES25>(ER25+5),ES25<(ER25-5)),"Agncy Repl.","")) ->  | ET27: =IF(ET25="","",IF(EU25="",ET25,IF(OR(EU25>(ET25+5),EU25<(ET25-5)),EU25,ET25))) ->  | EU27: =IF(EU25="","",IF(OR(EU25>(ET25+5),EU25<(ET25-5)),"Agncy Repl.","")) ->  | EV27: =IF(EV25="","",IF(EW25="",EV25,IF(OR(EW25>(EV25+5),EW25<(EV25-5)),EW25,EV25))) ->  | EW27: =IF(EW25="","",IF(OR(EW25>(EV25+5),EW25<(EV25-5)),"Agncy Repl.","")) ->  | EX27: =IF(EX25="","",IF(EY25="",EX25,IF(OR(EY25>(EX25+5),EY25<(EX25-5)),EY25,EX25))) ->  | EY27: =IF(EY25="","",IF(OR(EY25>(EX25+5),EY25<(EX25-5)),"Agncy Repl.","")) ->  | FA27: Calc. % | FD27: =IF(FD25="","",IF(FE25="",FD25,IF(OR(FE25>(FD25+5),FE25<(FD25-5)),FE25,FD25))) ->  | FE27: =IF(FE25="","",IF(OR(FE25>(FD25+5),FE25<(FD25-5)),"Agncy Repl.","")) ->  | FF27: =IF(FF25="","",IF(FG25="",FF25,IF(OR(FG25>(FF25+5),FG25<(FF25-5)),FG25,FF25))) ->  | FG27: =IF(FG25="","",IF(OR(FG25>(FF25+5),FG25<(FF25-5)),"Agncy Repl.","")) ->  | FH27: =IF(FH25="","",IF(FI25="",FH25,IF(OR(FI25>(FH25+5),FI25<(FH25-5)),FI25,FH25))) ->  | FI27: =IF(FI25="","",IF(OR(FI25>(FH25+5),FI25<(FH25-5)),"Agncy Repl.","")) ->  | FJ27: =IF(FJ25="","",IF(FK25="",FJ25,IF(OR(FK25>(FJ25+5),FK25<(FJ25-5)),FK25,FJ25))) ->  | FK27: =IF(FK25="","",IF(OR(FK25>(FJ25+5),FK25<(FJ25-5)),"Agncy Repl.","")) ->  | FM27: Calc. % | FP27: =IF(FP25="","",IF(FQ25="",FP25,IF(OR(FQ25>(FP25+5),FQ25<(FP25-5)),FQ25,FP25))) ->  | FQ27: =IF(FQ25="","",IF(OR(FQ25>(FP25+5),FQ25<(FP25-5)),"Agncy Repl.","")) ->  | FR27: =IF(FR25="","",IF(FS25="",FR25,IF(OR(FS25>(FR25+5),FS25<(FR25-5)),FS25,FR25))) ->  | FS27: =IF(FS25="","",IF(OR(FS25>(FR25+5),FS25<(FR25-5)),"Agncy Repl.","")) ->  | FT27: =IF(FT25="","",IF(FU25="",FT25,IF(OR(FU25>(FT25+5),FU25<(FT25-5)),FU25,FT25))) ->  | FU27: =IF(FU25="","",IF(OR(FU25>(FT25+5),FU25<(FT25-5)),"Agncy Repl.","")) ->  | FV27: =IF(FV25="","",IF(FW25="",FV25,IF(OR(FW25>(FV25+5),FW25<(FV25-5)),FW25,FV25))) ->  | FW27: =IF(FW25="","",IF(OR(FW25>(FV25+5),FW25<(FV25-5)),"Agncy Repl.","")) ->  | FY27: Calc. % | GB27: =IF(GB25="","",IF(GC25="",GB25,IF(OR(GC25>(GB25+5),GC25<(GB25-5)),GC25,GB25))) ->  | GC27: =IF(GC25="","",IF(OR(GC25>(GB25+5),GC25<(GB25-5)),"Agncy Repl.","")) ->  | GD27: =IF(GD25="","",IF(GE25="",GD25,IF(OR(GE25>(GD25+5),GE25<(GD25-5)),GE25,GD25))) ->  | GE27: =IF(GE25="","",IF(OR(GE25>(GD25+5),GE25<(GD25-5)),"Agncy Repl.","")) ->  | GF27: =IF(GF25="","",IF(GG25="",GF25,IF(OR(GG25>(GF25+5),GG25<(GF25-5)),GG25,GF25))) ->  | GG27: =IF(GG25="","",IF(OR(GG25>(GF25+5),GG25<(GF25-5)),"Agncy Repl.","")) ->  | GH27: =IF(GH25="","",IF(GI25="",GH25,IF(OR(GI25>(GH25+5),GI25<(GH25-5)),GI25,GH25))) ->  | GI27: =IF(GI25="","",IF(OR(GI25>(GH25+5),GI25<(GH25-5)),"Agncy Repl.","")) ->  | GK27: Calc. % | GN27: =IF(GN25="","",IF(GO25="",GN25,IF(OR(GO25>(GN25+5),GO25<(GN25-5)),GO25,GN25))) ->  | GO27: =IF(GO25="","",IF(OR(GO25>(GN25+5),GO25<(GN25-5)),"Agncy Repl.","")) ->  | GP27: =IF(GP25="","",IF(GQ25="",GP25,IF(OR(GQ25>(GP25+5),GQ25<(GP25-5)),GQ25,GP25))) ->  | GQ27: =IF(GQ25="","",IF(OR(GQ25>(GP25+5),GQ25<(GP25-5)),"Agncy Repl.","")) ->  | GR27: =IF(GR25="","",IF(GS25="",GR25,IF(OR(GS25>(GR25+5),GS25<(GR25-5)),GS25,GR25))) ->  | GS27: =IF(GS25="","",IF(OR(GS25>(GR25+5),GS25<(GR25-5)),"Agncy Repl.","")) ->  | GT27: =IF(GT25="","",IF(GU25="",GT25,IF(OR(GU25>(GT25+5),GU25<(GT25-5)),GU25,GT25))) ->  | GU27: =IF(GU25="","",IF(OR(GU25>(GT25+5),GU25<(GT25-5)),"Agncy Repl.","")) ->  | GW27: Calc. % | GZ27: =IF(GZ25="","",IF(HA25="",GZ25,IF(OR(HA25>(GZ25+5),HA25<(GZ25-5)),HA25,GZ25))) ->  | HA27: =IF(HA25="","",IF(OR(HA25>(GZ25+5),HA25<(GZ25-5)),"Agncy Repl.","")) ->  | HB27: =IF(HB25="","",IF(HC25="",HB25,IF(OR(HC25>(HB25+5),HC25<(HB25-5)),HC25,HB25))) ->  | HC27: =IF(HC25="","",IF(OR(HC25>(HB25+5),HC25<(HB25-5)),"Agncy Repl.","")) ->  | HD27: =IF(HD25="","",IF(HE25="",HD25,IF(OR(HE25>(HD25+5),HE25<(HD25-5)),HE25,HD25))) ->  | HE27: =IF(HE25="","",IF(OR(HE25>(HD25+5),HE25<(HD25-5)),"Agncy Repl.","")) ->  | HF27: =IF(HF25="","",IF(HG25="",HF25,IF(OR(HG25>(HF25+5),HG25<(HF25-5)),HG25,HF25))) ->  | HG27: =IF(HG25="","",IF(OR(HG25>(HF25+5),HG25<(HF25-5)),"Agncy Repl.","")) ->  | HI27: Calc. % | HL27: =IF(HL25="","",IF(HM25="",HL25,IF(OR(HM25>(HL25+5),HM25<(HL25-5)),HM25,HL25))) ->  | HM27: =IF(HM25="","",IF(OR(HM25>(HL25+5),HM25<(HL25-5)),"Agncy Repl.","")) ->  | HN27: =IF(HN25="","",IF(HO25="",HN25,IF(OR(HO25>(HN25+5),HO25<(HN25-5)),HO25,HN25))) ->  | HO27: =IF(HO25="","",IF(OR(HO25>(HN25+5),HO25<(HN25-5)),"Agncy Repl.","")) ->  | HP27: =IF(HP25="","",IF(HQ25="",HP25,IF(OR(HQ25>(HP25+5),HQ25<(HP25-5)),HQ25,HP25))) ->  | HQ27: =IF(HQ25="","",IF(OR(HQ25>(HP25+5),HQ25<(HP25-5)),"Agncy Repl.","")) ->  | HR27: =IF(HR25="","",IF(HS25="",HR25,IF(OR(HS25>(HR25+5),HS25<(HR25-5)),HS25,HR25))) ->  | HS27: =IF(HS25="","",IF(OR(HS25>(HR25+5),HS25<(HR25-5)),"Agncy Repl.","")) ->  | HU27: Calc. % | HX27: =IF(HX25="","",IF(HY25="",HX25,IF(OR(HY25>(HX25+5),HY25<(HX25-5)),HY25,HX25))) ->  | HY27: =IF(HY25="","",IF(OR(HY25>(HX25+5),HY25<(HX25-5)),"Agncy Repl.","")) ->  | HZ27: =IF(HZ25="","",IF(IA25="",HZ25,IF(OR(IA25>(HZ25+5),IA25<(HZ25-5)),IA25,HZ25))) ->  | IA27: =IF(IA25="","",IF(OR(IA25>(HZ25+5),IA25<(HZ25-5)),"Agncy Repl.","")) ->  | IB27: =IF(IB25="","",IF(IC25="",IB25,IF(OR(IC25>(IB25+5),IC25<(IB25-5)),IC25,IB25))) ->  | IC27: =IF(IC25="","",IF(OR(IC25>(IB25+5),IC25<(IB25-5)),"Agncy Repl.","")) ->  | ID27: =IF(ID25="","",IF(IE25="",ID25,IF(OR(IE25>(ID25+5),IE25<(ID25-5)),IE25,ID25))) ->  | IE27: =IF(IE25="","",IF(OR(IE25>(ID25+5),IE25<(ID25-5)),"Agncy Repl.","")) ->  | IG27: Calc. % | IJ27: =IF(IJ25="","",IF(IK25="",IJ25,IF(OR(IK25>(IJ25+5),IK25<(IJ25-5)),IK25,IJ25))) ->  | IK27: =IF(IK25="","",IF(OR(IK25>(IJ25+5),IK25<(IJ25-5)),"Agncy Repl.","")) ->  | IL27: =IF(IL25="","",IF(IM25="",IL25,IF(OR(IM25>(IL25+5),IM25<(IL25-5)),IM25,IL25))) ->  | IM27: =IF(IM25="","",IF(OR(IM25>(IL25+5),IM25<(IL25-5)),"Agncy Repl.","")) ->  | IN27: =IF(IN25="","",IF(IO25="",IN25,IF(OR(IO25>(IN25+5),IO25<(IN25-5)),IO25,IN25))) ->  | IO27: =IF(IO25="","",IF(OR(IO25>(IN25+5),IO25<(IN25-5)),"Agncy Repl.","")) ->  | IP27: =IF(IP25="","",IF(IQ25="",IP25,IF(OR(IQ25>(IP25+5),IQ25<(IP25-5)),IQ25,IP25))) ->  | IQ27: =IF(IQ25="","",IF(OR(IQ25>(IP25+5),IQ25<(IP25-5)),"Agncy Repl.","")) -> 
A28: #8 | M28: #8 | Y28: #8 | AK28: #8 | AW28: #8 | BI28: #8 | BU28: #8 | CG28: #8 | CS28: #8 | DE28: #8 | DQ28: #8 | EC28: #8 | EO28: #8 | FA28: #8 | FM28: #8 | FY28: #8 | GK28: #8 | GW28: #8 | HI28: #8 | HU28: #8 | IG28: #8 | IT28: 0 | IU28: Agency AFT Substituted
A29: Mov Avg. | B29: =IF(MDR!$AL$4="YES",MDR!$BQ$49,MDR!$AK12) -> 25 | C29: =IF(MDR!$AL$4="YES",MDR!BR49,MDR!$AL12) -> 65 | E29: =IF(E28="","",IF(OR(E28>(D28+4),E28<(D28-4)),"Tolerance","")) ->  | G29: =IF(G28="","",IF(OR(G28>(F28+4),G28<(F28-4)),"Tolerance","")) ->  | I29: =IF(I28="","",IF(OR(I28>(H28+4),I28<(H28-4)),"Tolerance","")) ->  | J29: =mndot_rounding_0(IF(D28="","",IF(F28="","",IF(H28="","",IF(J28="","",Grad!M14))))) ->  | K29: =IF(K28="","",IF(OR(K28>(J28+4),K28<(J28-4)),"Tolerance","")) ->  | M29: Mov Avg. | N29: =IF(MDR!$AL$4="YES",MDR!$BQ$49,MDR!$AK16) -> 25 | O29: =IF(MDR!$AL$4="YES",MDR!BR49,MDR!$AL16) -> 65 | P29: =mndot_rounding_0(Grad!$W15) ->  | Q29: =IF(Q28="","",IF(OR(Q28>(P28+4),Q28<(P28-4)),"Tolerance","")) ->  | R29: =mndot_rounding_0(Grad!$W16) ->  | S29: =IF(S28="","",IF(OR(S28>(R28+4),S28<(R28-4)),"Tolerance","")) ->  | T29: =mndot_rounding_0(Grad!$W17) ->  | U29: =IF(U28="","",IF(OR(U28>(T28+4),U28<(T28-4)),"Tolerance","")) ->  | V29: =mndot_rounding_0(Grad!$W18) ->  | W29: =IF(W28="","",IF(OR(W28>(V28+4),W28<(V28-4)),"Tolerance","")) ->  | Y29: Mov Avg. | Z29: =IF(MDR!$AL$4="YES",MDR!$BQ$49,MDR!$AK20) -> 25 | AA29: =IF(MDR!$AL$4="YES",MDR!BR49,MDR!$AL20) -> 65 | AB29: =mndot_rounding_0(Grad!$W19) ->  | AC29: =IF(AC28="","",IF(OR(AC28>(AB28+4),AC28<(AB28-4)),"Tolerance","")) ->  | AD29: =mndot_rounding_0(Grad!$W20) ->  | AE29: =IF(AE28="","",IF(OR(AE28>(AD28+4),AE28<(AD28-4)),"Tolerance","")) ->  | AF29: =mndot_rounding_0(Grad!$W21) ->  | AG29: =IF(AG28="","",IF(OR(AG28>(AF28+4),AG28<(AF28-4)),"Tolerance","")) ->  | AH29: =mndot_rounding_0(Grad!$W22) ->  | AI29: =IF(AI28="","",IF(OR(AI28>(AH28+4),AI28<(AH28-4)),"Tolerance","")) ->  | AK29: Mov Avg. | AL29: =IF(MDR!$AL$4="YES",MDR!$BQ$49,MDR!$AK24) -> 25 | AM29: =IF(MDR!$AL$4="YES",MDR!BR49,MDR!$AL24) -> 65 | AN29: =mndot_rounding_0(Grad!$W23) ->  | AO29: =IF(AO28="","",IF(OR(AO28>(AN28+4),AO28<(AN28-4)),"Tolerance","")) ->  | AP29: =mndot_rounding_0(Grad!$W24) ->  | AQ29: =IF(AQ28="","",IF(OR(AQ28>(AP28+4),AQ28<(AP28-4)),"Tolerance","")) ->  | AR29: =mndot_rounding_0(Grad!$W25) ->  | AS29: =IF(AS28="","",IF(OR(AS28>(AR28+4),AS28<(AR28-4)),"Tolerance","")) ->  | AT29: =mndot_rounding_0(Grad!$W26) ->  | AU29: =IF(AU28="","",IF(OR(AU28>(AT28+4),AU28<(AT28-4)),"Tolerance","")) ->  | AW29: Mov Avg. | AX29: =IF(MDR!$AL$4="YES",MDR!$BQ$49,MDR!$AK28) -> 25 | AY29: =IF(MDR!$AL$4="YES",MDR!BR49,MDR!$AL28) -> 65 | AZ29: =mndot_rounding_0(Grad!$W27) ->  | BA29: =IF(BA28="","",IF(OR(BA28>(AZ28+4),BA28<(AZ28-4)),"Tolerance","")) ->  | BB29: =mndot_rounding_0(Grad!$W28) ->  | BC29: =IF(BC28="","",IF(OR(BC28>(BB28+4),BC28<(BB28-4)),"Tolerance","")) ->  | BD29: =mndot_rounding_0(Grad!$W29) ->  | BE29: =IF(BE28="","",IF(OR(BE28>(BD28+4),BE28<(BD28-4)),"Tolerance","")) ->  | BF29: =mndot_rounding_0(Grad!$W30) ->  | BG29: =IF(BG28="","",IF(OR(BG28>(BF28+4),BG28<(BF28-4)),"Tolerance","")) ->  | BI29: Mov Avg. | BJ29: =IF(MDR!$AL$4="YES",MDR!$BQ$49,MDR!$AK32) -> 25 | BK29: =IF(MDR!$AL$4="YES",MDR!BR49,MDR!$AL32) -> 65 | BL29: =mndot_rounding_0(Grad!$W31) ->  | BM29: =IF(BM28="","",IF(OR(BM28>(BL28+4),BM28<(BL28-4)),"Tolerance","")) ->  | BN29: =mndot_rounding_0(Grad!$W32) ->  | BO29: =IF(BO28="","",IF(OR(BO28>(BN28+4),BO28<(BN28-4)),"Tolerance","")) ->  | BP29: =mndot_rounding_0(Grad!$W33) ->  | BQ29: =IF(BQ28="","",IF(OR(BQ28>(BP28+4),BQ28<(BP28-4)),"Tolerance","")) ->  | BR29: =mndot_rounding_0(Grad!$W34) ->  | BS29: =IF(BS28="","",IF(OR(BS28>(BR28+4),BS28<(BR28-4)),"Tolerance","")) ->  | BU29: Mov Avg. | BV29: =IF(MDR!$AL$4="YES",MDR!$BQ$49,MDR!$AK36) -> 25 | BW29: =IF(MDR!$AL$4="YES",MDR!BR49,MDR!$AL36) -> 65 | BX29: =mndot_rounding_0(Grad!$W35) ->  | BY29: =IF(BY28="","",IF(OR(BY28>(BX28+4),BY28<(BX28-4)),"Tolerance","")) ->  | BZ29: =mndot_rounding_0(Grad!$W36) ->  | CA29: =IF(CA28="","",IF(OR(CA28>(BZ28+4),CA28<(BZ28-4)),"Tolerance","")) ->  | CB29: =mndot_rounding_0(Grad!$W37) ->  | CC29: =IF(CC28="","",IF(OR(CC28>(CB28+4),CC28<(CB28-4)),"Tolerance","")) ->  | CD29: =mndot_rounding_0(Grad!$W38) ->  | CE29: =IF(CE28="","",IF(OR(CE28>(CD28+4),CE28<(CD28-4)),"Tolerance","")) ->  | CG29: Mov Avg. | CH29: =IF(MDR!$AL$4="YES",MDR!$BQ$49,MDR!$AK40) -> 25 | CI29: =IF(MDR!$AL$4="YES",MDR!BR49,MDR!$AL40) -> 65 | CJ29: =mndot_rounding_0(Grad!$W39) ->  | CK29: =IF(CK28="","",IF(OR(CK28>(CJ28+4),CK28<(CJ28-4)),"Tolerance","")) ->  | CL29: =mndot_rounding_0(Grad!$W40) ->  | CM29: =IF(CM28="","",IF(OR(CM28>(CL28+4),CM28<(CL28-4)),"Tolerance","")) ->  | CN29: =mndot_rounding_0(Grad!$W41) ->  | CO29: =IF(CO28="","",IF(OR(CO28>(CN28+4),CO28<(CN28-4)),"Tolerance","")) ->  | CP29: =mndot_rounding_0(Grad!$W42) ->  | CQ29: =IF(CQ28="","",IF(OR(CQ28>(CP28+4),CQ28<(CP28-4)),"Tolerance","")) ->  | CS29: Mov Avg. | CT29: =IF(MDR!$AL$4="YES",MDR!$BQ$49,MDR!$AK44) -> 25 | CU29: =IF(MDR!$AL$4="YES",MDR!BR49,MDR!$AL44) -> 65 | CV29: =mndot_rounding_0(Grad!$W43) ->  | CW29: =IF(CW28="","",IF(OR(CW28>(CV28+4),CW28<(CV28-4)),"Tolerance","")) ->  | CX29: =mndot_rounding_0(Grad!$W44) ->  | CY29: =IF(CY28="","",IF(OR(CY28>(CX28+4),CY28<(CX28-4)),"Tolerance","")) ->  | CZ29: =mndot_rounding_0(Grad!$W45) ->  | DA29: =IF(DA28="","",IF(OR(DA28>(CZ28+4),DA28<(CZ28-4)),"Tolerance","")) ->  | DB29: =mndot_rounding_0(Grad!$W46) ->  | DC29: =IF(DC28="","",IF(OR(DC28>(DB28+4),DC28<(DB28-4)),"Tolerance","")) ->  | DE29: Mov Avg. | DF29: =IF(MDR!$AL$4="YES",MDR!$BQ$49,MDR!$AK48) -> 25 | DG29: =IF(MDR!$AL$4="YES",MDR!BR49,MDR!$AL48) -> 65 | DH29: =mndot_rounding_0(Grad!$W47) ->  | DI29: =IF(DI28="","",IF(OR(DI28>(DH28+4),DI28<(DH28-4)),"Tolerance","")) ->  | DJ29: =mndot_rounding_0(Grad!$W48) ->  | DK29: =IF(DK28="","",IF(OR(DK28>(DJ28+4),DK28<(DJ28-4)),"Tolerance","")) ->  | DL29: =mndot_rounding_0(Grad!$W49) ->  | DM29: =IF(DM28="","",IF(OR(DM28>(DL28+4),DM28<(DL28-4)),"Tolerance","")) ->  | DN29: =mndot_rounding_0(Grad!$W50) ->  | DO29: =IF(DO28="","",IF(OR(DO28>(DN28+4),DO28<(DN28-4)),"Tolerance","")) ->  | DQ29: Mov Avg. | DR29: =IF(MDR!$AL$4="YES",MDR!$BQ$49,MDR!$AK52) -> 25 | DS29: =IF(MDR!$AL$4="YES",MDR!BR49,MDR!$AL52) -> 65 | DT29: =mndot_rounding_0(Grad!$W51) ->  | DU29: =IF(DU28="","",IF(OR(DU28>(DT28+4),DU28<(DT28-4)),"Tolerance","")) ->  | DV29: =mndot_rounding_0(Grad!$W52) ->  | DW29: =IF(DW28="","",IF(OR(DW28>(DV28+4),DW28<(DV28-4)),"Tolerance","")) ->  | DX29: =mndot_rounding_0(Grad!$W53) ->  | DY29: =IF(DY28="","",IF(OR(DY28>(DX28+4),DY28<(DX28-4)),"Tolerance","")) ->  | DZ29: =mndot_rounding_0(Grad!$W54) ->  | EA29: =IF(EA28="","",IF(OR(EA28>(DZ28+4),EA28<(DZ28-4)),"Tolerance","")) ->  | EC29: Mov Avg. | ED29: =IF(MDR!$AL$4="YES",MDR!$BQ$49,MDR!$AK56) -> 25 | EE29: =IF(MDR!$AL$4="YES",MDR!BR49,MDR!$AL56) -> 65 | EF29: =mndot_rounding_0(Grad!$W55) ->  | EG29: =IF(EG28="","",IF(OR(EG28>(EF28+4),EG28<(EF28-4)),"Tolerance","")) ->  | EH29: =mndot_rounding_0(Grad!$W56) ->  | EI29: =IF(EI28="","",IF(OR(EI28>(EH28+4),EI28<(EH28-4)),"Tolerance","")) ->  | EJ29: =mndot_rounding_0(Grad!$W57) ->  | EK29: =IF(EK28="","",IF(OR(EK28>(EJ28+4),EK28<(EJ28-4)),"Tolerance","")) ->  | EL29: =mndot_rounding_0(Grad!$W58) ->  | EM29: =IF(EM28="","",IF(OR(EM28>(EL28+4),EM28<(EL28-4)),"Tolerance","")) ->  | EO29: Mov Avg. | EP29: =IF(MDR!$AL$4="YES",MDR!$BQ$49,MDR!$AK60) -> 25 | EQ29: =IF(MDR!$AL$4="YES",MDR!BR49,MDR!$AL60) -> 65 | ER29: =mndot_rounding_0(Grad!$W59) ->  | ES29: =IF(ES28="","",IF(OR(ES28>(ER28+4),ES28<(ER28-4)),"Tolerance","")) ->  | ET29: =mndot_rounding_0(Grad!$W60) ->  | EU29: =IF(EU28="","",IF(OR(EU28>(ET28+4),EU28<(ET28-4)),"Tolerance","")) ->  | EV29: =mndot_rounding_0(Grad!$W61) ->  | EW29: =IF(EW28="","",IF(OR(EW28>(EV28+4),EW28<(EV28-4)),"Tolerance","")) ->  | EX29: =mndot_rounding_0(Grad!$W62) ->  | EY29: =IF(EY28="","",IF(OR(EY28>(EX28+4),EY28<(EX28-4)),"Tolerance","")) ->  | FA29: Mov Avg. | FB29: =IF(MDR!$AL$4="YES",MDR!$BQ$49,MDR!$AK64) -> 25 | FC29: =IF(MDR!$AL$4="YES",MDR!BR49,MDR!$AL64) -> 65 | FD29: =mndot_rounding_0(Grad!$W63) ->  | FE29: =IF(FE28="","",IF(OR(FE28>(FD28+4),FE28<(FD28-4)),"Tolerance","")) ->  | FF29: =mndot_rounding_0(Grad!$W64) ->  | FG29: =IF(FG28="","",IF(OR(FG28>(FF28+4),FG28<(FF28-4)),"Tolerance","")) ->  | FH29: =mndot_rounding_0(Grad!$W65) ->  | FI29: =IF(FI28="","",IF(OR(FI28>(FH28+4),FI28<(FH28-4)),"Tolerance","")) ->  | FJ29: =mndot_rounding_0(Grad!$W66) ->  | FK29: =IF(FK28="","",IF(OR(FK28>(FJ28+4),FK28<(FJ28-4)),"Tolerance","")) ->  | FM29: Mov Avg. | FN29: =IF(MDR!$AL$4="YES",MDR!$BQ$49,MDR!$AK68) -> 25 | FO29: =IF(MDR!$AL$4="YES",MDR!BR49,MDR!$AL68) -> 65 | FP29: =mndot_rounding_0(Grad!$W67) ->  | FQ29: =IF(FQ28="","",IF(OR(FQ28>(FP28+4),FQ28<(FP28-4)),"Tolerance","")) ->  | FR29: =mndot_rounding_0(Grad!$W68) ->  | FS29: =IF(FS28="","",IF(OR(FS28>(FR28+4),FS28<(FR28-4)),"Tolerance","")) ->  | FT29: =mndot_rounding_0(Grad!$W69) ->  | FU29: =IF(FU28="","",IF(OR(FU28>(FT28+4),FU28<(FT28-4)),"Tolerance","")) ->  | FV29: =mndot_rounding_0(Grad!$W70) ->  | FW29: =IF(FW28="","",IF(OR(FW28>(FV28+4),FW28<(FV28-4)),"Tolerance","")) ->  | FY29: Mov Avg. | FZ29: =IF(MDR!$AL$4="YES",MDR!$BQ$49,MDR!$AK72) -> 25 | GA29: =IF(MDR!$AL$4="YES",MDR!BR49,MDR!$AL72) -> 65 | GB29: =mndot_rounding_0(Grad!$W71) ->  | GC29: =IF(GC28="","",IF(OR(GC28>(GB28+4),GC28<(GB28-4)),"Tolerance","")) ->  | GD29: =mndot_rounding_0(Grad!$W72) ->  | GE29: =IF(GE28="","",IF(OR(GE28>(GD28+4),GE28<(GD28-4)),"Tolerance","")) ->  | GF29: =mndot_rounding_0(Grad!$W73) ->  | GG29: =IF(GG28="","",IF(OR(GG28>(GF28+4),GG28<(GF28-4)),"Tolerance","")) ->  | GH29: =mndot_rounding_0(Grad!$W74) ->  | GI29: =IF(GI28="","",IF(OR(GI28>(GH28+4),GI28<(GH28-4)),"Tolerance","")) ->  | GK29: Mov Avg. | GL29: =IF(MDR!$AL$4="YES",MDR!$BQ$49,MDR!$AK76) -> 25 | GM29: =IF(MDR!$AL$4="YES",MDR!BR49,MDR!$AL76) -> 65 | GN29: =mndot_rounding_0(Grad!$W75) ->  | GO29: =IF(GO28="","",IF(OR(GO28>(GN28+4),GO28<(GN28-4)),"Tolerance","")) ->  | GP29: =mndot_rounding_0(Grad!$W76) ->  | GQ29: =IF(GQ28="","",IF(OR(GQ28>(GP28+4),GQ28<(GP28-4)),"Tolerance","")) ->  | GR29: =mndot_rounding_0(Grad!$W77) ->  | GS29: =IF(GS28="","",IF(OR(GS28>(GR28+4),GS28<(GR28-4)),"Tolerance","")) ->  | GT29: =mndot_rounding_0(Grad!$W78) ->  | GU29: =IF(GU28="","",IF(OR(GU28>(GT28+4),GU28<(GT28-4)),"Tolerance","")) ->  | GW29: Mov Avg. | GX29: =IF(MDR!$AL$4="YES",MDR!$BQ$49,MDR!$AK80) -> 25 | GY29: =IF(MDR!$AL$4="YES",MDR!BR49,MDR!$AL80) -> 65 | GZ29: =mndot_rounding_0(Grad!$W79) ->  | HA29: =IF(HA28="","",IF(OR(HA28>(GZ28+4),HA28<(GZ28-4)),"Tolerance","")) ->  | HB29: =mndot_rounding_0(Grad!$W80) ->  | HC29: =IF(HC28="","",IF(OR(HC28>(HB28+4),HC28<(HB28-4)),"Tolerance","")) ->  | HD29: =mndot_rounding_0(Grad!$W81) ->  | HE29: =IF(HE28="","",IF(OR(HE28>(HD28+4),HE28<(HD28-4)),"Tolerance","")) ->  | HF29: =mndot_rounding_0(Grad!$W82) ->  | HG29: =IF(HG28="","",IF(OR(HG28>(HF28+4),HG28<(HF28-4)),"Tolerance","")) ->  | HI29: Mov Avg. | HJ29: =IF(MDR!$AL$4="YES",MDR!$BQ$49,MDR!$AK84) -> 25 | HK29: =IF(MDR!$AL$4="YES",MDR!BR49,MDR!$AL84) -> 65 | HL29: =mndot_rounding_0(Grad!$W83) ->  | HM29: =IF(HM28="","",IF(OR(HM28>(HL28+4),HM28<(HL28-4)),"Tolerance","")) ->  | HN29: =mndot_rounding_0(Grad!$W84) ->  | HO29: =IF(HO28="","",IF(OR(HO28>(HN28+4),HO28<(HN28-4)),"Tolerance","")) ->  | HP29: =mndot_rounding_0(Grad!$W85) ->  | HQ29: =IF(HQ28="","",IF(OR(HQ28>(HP28+4),HQ28<(HP28-4)),"Tolerance","")) ->  | HR29: =mndot_rounding_0(Grad!$W86) ->  | HS29: =IF(HS28="","",IF(OR(HS28>(HR28+4),HS28<(HR28-4)),"Tolerance","")) ->  | HU29: Mov Avg. | HV29: =IF(MDR!$AL$4="YES",MDR!$BQ$49,MDR!$AK88) -> 25 | HW29: =IF(MDR!$AL$4="YES",MDR!BR49,MDR!$AL88) -> 65 | HX29: =mndot_rounding_0(Grad!$W87) ->  | HY29: =IF(HY28="","",IF(OR(HY28>(HX28+4),HY28<(HX28-4)),"Tolerance","")) ->  | HZ29: =mndot_rounding_0(Grad!$W88) ->  | IA29: =IF(IA28="","",IF(OR(IA28>(HZ28+4),IA28<(HZ28-4)),"Tolerance","")) ->  | IB29: =mndot_rounding_0(Grad!$W89) ->  | IC29: =IF(IC28="","",IF(OR(IC28>(IB28+4),IC28<(IB28-4)),"Tolerance","")) ->  | ID29: =mndot_rounding_0(Grad!$W90) ->  | IE29: =IF(IE28="","",IF(OR(IE28>(ID28+4),IE28<(ID28-4)),"Tolerance","")) ->  | IG29: Mov Avg. | IH29: =IF(MDR!$AL$4="YES",MDR!$BQ$49,MDR!$AK92) -> 25 | II29: =IF(MDR!$AL$4="YES",MDR!BR49,MDR!$AL92) -> 65 | IJ29: =mndot_rounding_0(Grad!$W91) ->  | IK29: =IF(IK28="","",IF(OR(IK28>(IJ28+4),IK28<(IJ28-4)),"Tolerance","")) ->  | IL29: =mndot_rounding_0(Grad!$W92) ->  | IM29: =IF(IM28="","",IF(OR(IM28>(IL28+4),IM28<(IL28-4)),"Tolerance","")) ->  | IN29: =mndot_rounding_0(Grad!$W93) ->  | IO29: =IF(IO28="","",IF(OR(IO28>(IN28+4),IO28<(IN28-4)),"Tolerance","")) ->  | IP29: =mndot_rounding_0(Grad!$W94) ->  | IQ29: =IF(IQ28="","",IF(OR(IQ28>(IP28+4),IQ28<(IP28-4)),"Tolerance","")) ->  | IT29: 0 | IU29: Agency AFT Substituted
A30: #8 Calc. % | D30: =IF(D28="","",IF(E28="",D28,IF(OR(E28>(D28+4),E28<(D28-4)),E28,D28))) ->  | E30: =IF(E28="","",IF(OR(E28>(D28+4),E28<(D28-4)),"Agncy Repl.","")) ->  | F30: =IF(F28="","",IF(G28="",F28,IF(OR(G28>(F28+4),G28<(F28-4)),G28,F28))) ->  | G30: =IF(G28="","",IF(OR(G28>(F28+4),G28<(F28-4)),"Agncy Repl.","")) ->  | H30: =IF(H28="","",IF(I28="",H28,IF(OR(I28>(H28+4),I28<(H28-4)),I28,H28))) ->  | I30: =IF(I28="","",IF(OR(I28>(H28+4),I28<(H28-4)),"Agncy Repl.","")) ->  | J30: =IF(J28="","",IF(K28="",J28,IF(OR(K28>(J28+4),K28<(J28-4)),K28,J28))) ->  | K30: =IF(K28="","",IF(OR(K28>(J28+4),K28<(J28-4)),"Agncy Repl.","")) ->  | M30: Calc. % | P30: =IF(P28="","",IF(Q28="",P28,IF(OR(Q28>(P28+4),Q28<(P28-4)),Q28,P28))) ->  | Q30: =IF(Q28="","",IF(OR(Q28>(P28+4),Q28<(P28-4)),"Agncy Repl.","")) ->  | R30: =IF(R28="","",IF(S28="",R28,IF(OR(S28>(R28+4),S28<(R28-4)),S28,R28))) ->  | S30: =IF(S28="","",IF(OR(S28>(R28+4),S28<(R28-4)),"Agncy Repl.","")) ->  | T30: =IF(T28="","",IF(U28="",T28,IF(OR(U28>(T28+4),U28<(T28-4)),U28,T28))) ->  | U30: =IF(U28="","",IF(OR(U28>(T28+4),U28<(T28-4)),"Agncy Repl.","")) ->  | V30: =IF(V28="","",IF(W28="",V28,IF(OR(W28>(V28+4),W28<(V28-4)),W28,V28))) ->  | W30: =IF(W28="","",IF(OR(W28>(V28+4),W28<(V28-4)),"Agncy Repl.","")) ->  | Y30: Calc. % | AB30: =IF(AB28="","",IF(AC28="",AB28,IF(OR(AC28>(AB28+4),AC28<(AB28-4)),AC28,AB28))) ->  | AC30: =IF(AC28="","",IF(OR(AC28>(AB28+4),AC28<(AB28-4)),"Agncy Repl.","")) ->  | AD30: =IF(AD28="","",IF(AE28="",AD28,IF(OR(AE28>(AD28+4),AE28<(AD28-4)),AE28,AD28))) ->  | AE30: =IF(AE28="","",IF(OR(AE28>(AD28+4),AE28<(AD28-4)),"Agncy Repl.","")) ->  | AF30: =IF(AF28="","",IF(AG28="",AF28,IF(OR(AG28>(AF28+4),AG28<(AF28-4)),AG28,AF28))) ->  | AG30: =IF(AG28="","",IF(OR(AG28>(AF28+4),AG28<(AF28-4)),"Agncy Repl.","")) ->  | AH30: =IF(AH28="","",IF(AI28="",AH28,IF(OR(AI28>(AH28+4),AI28<(AH28-4)),AI28,AH28))) ->  | AI30: =IF(AI28="","",IF(OR(AI28>(AH28+4),AI28<(AH28-4)),"Agncy Repl.","")) ->  | AK30: Calc. % | AN30: =IF(AN28="","",IF(AO28="",AN28,IF(OR(AO28>(AN28+4),AO28<(AN28-4)),AO28,AN28))) ->  | AO30: =IF(AO28="","",IF(OR(AO28>(AN28+4),AO28<(AN28-4)),"Agncy Repl.","")) ->  | AP30: =IF(AP28="","",IF(AQ28="",AP28,IF(OR(AQ28>(AP28+4),AQ28<(AP28-4)),AQ28,AP28))) ->  | AQ30: =IF(AQ28="","",IF(OR(AQ28>(AP28+4),AQ28<(AP28-4)),"Agncy Repl.","")) ->  | AR30: =IF(AR28="","",IF(AS28="",AR28,IF(OR(AS28>(AR28+4),AS28<(AR28-4)),AS28,AR28))) ->  | AS30: =IF(AS28="","",IF(OR(AS28>(AR28+4),AS28<(AR28-4)),"Agncy Repl.","")) ->  | AT30: =IF(AT28="","",IF(AU28="",AT28,IF(OR(AU28>(AT28+4),AU28<(AT28-4)),AU28,AT28))) ->  | AU30: =IF(AU28="","",IF(OR(AU28>(AT28+4),AU28<(AT28-4)),"Agncy Repl.","")) ->  | AW30: Calc. % | AZ30: =IF(AZ28="","",IF(BA28="",AZ28,IF(OR(BA28>(AZ28+4),BA28<(AZ28-4)),BA28,AZ28))) ->  | BA30: =IF(BA28="","",IF(OR(BA28>(AZ28+4),BA28<(AZ28-4)),"Agncy Repl.","")) ->  | BB30: =IF(BB28="","",IF(BC28="",BB28,IF(OR(BC28>(BB28+4),BC28<(BB28-4)),BC28,BB28))) ->  | BC30: =IF(BC28="","",IF(OR(BC28>(BB28+4),BC28<(BB28-4)),"Agncy Repl.","")) ->  | BD30: =IF(BD28="","",IF(BE28="",BD28,IF(OR(BE28>(BD28+4),BE28<(BD28-4)),BE28,BD28))) ->  | BE30: =IF(BE28="","",IF(OR(BE28>(BD28+4),BE28<(BD28-4)),"Agncy Repl.","")) ->  | BF30: =IF(BF28="","",IF(BG28="",BF28,IF(OR(BG28>(BF28+4),BG28<(BF28-4)),BG28,BF28))) ->  | BG30: =IF(BG28="","",IF(OR(BG28>(BF28+4),BG28<(BF28-4)),"Agncy Repl.","")) ->  | BI30: Calc. % | BL30: =IF(BL28="","",IF(BM28="",BL28,IF(OR(BM28>(BL28+4),BM28<(BL28-4)),BM28,BL28))) ->  | BM30: =IF(BM28="","",IF(OR(BM28>(BL28+4),BM28<(BL28-4)),"Agncy Repl.","")) ->  | BN30: =IF(BN28="","",IF(BO28="",BN28,IF(OR(BO28>(BN28+4),BO28<(BN28-4)),BO28,BN28))) ->  | BO30: =IF(BO28="","",IF(OR(BO28>(BN28+4),BO28<(BN28-4)),"Agncy Repl.","")) ->  | BP30: =IF(BP28="","",IF(BQ28="",BP28,IF(OR(BQ28>(BP28+4),BQ28<(BP28-4)),BQ28,BP28))) ->  | BQ30: =IF(BQ28="","",IF(OR(BQ28>(BP28+4),BQ28<(BP28-4)),"Agncy Repl.","")) ->  | BR30: =IF(BR28="","",IF(BS28="",BR28,IF(OR(BS28>(BR28+4),BS28<(BR28-4)),BS28,BR28))) ->  | BS30: =IF(BS28="","",IF(OR(BS28>(BR28+4),BS28<(BR28-4)),"Agncy Repl.","")) ->  | BU30: Calc. % | BX30: =IF(BX28="","",IF(BY28="",BX28,IF(OR(BY28>(BX28+4),BY28<(BX28-4)),BY28,BX28))) ->  | BY30: =IF(BY28="","",IF(OR(BY28>(BX28+4),BY28<(BX28-4)),"Agncy Repl.","")) ->  | BZ30: =IF(BZ28="","",IF(CA28="",BZ28,IF(OR(CA28>(BZ28+4),CA28<(BZ28-4)),CA28,BZ28))) ->  | CA30: =IF(CA28="","",IF(OR(CA28>(BZ28+4),CA28<(BZ28-4)),"Agncy Repl.","")) ->  | CB30: =IF(CB28="","",IF(CC28="",CB28,IF(OR(CC28>(CB28+4),CC28<(CB28-4)),CC28,CB28))) ->  | CC30: =IF(CC28="","",IF(OR(CC28>(CB28+4),CC28<(CB28-4)),"Agncy Repl.","")) ->  | CD30: =IF(CD28="","",IF(CE28="",CD28,IF(OR(CE28>(CD28+4),CE28<(CD28-4)),CE28,CD28))) ->  | CE30: =IF(CE28="","",IF(OR(CE28>(CD28+4),CE28<(CD28-4)),"Agncy Repl.","")) ->  | CG30: Calc. % | CJ30: =IF(CJ28="","",IF(CK28="",CJ28,IF(OR(CK28>(CJ28+4),CK28<(CJ28-4)),CK28,CJ28))) ->  | CK30: =IF(CK28="","",IF(OR(CK28>(CJ28+4),CK28<(CJ28-4)),"Agncy Repl.","")) ->  | CL30: =IF(CL28="","",IF(CM28="",CL28,IF(OR(CM28>(CL28+4),CM28<(CL28-4)),CM28,CL28))) ->  | CM30: =IF(CM28="","",IF(OR(CM28>(CL28+4),CM28<(CL28-4)),"Agncy Repl.","")) ->  | CN30: =IF(CN28="","",IF(CO28="",CN28,IF(OR(CO28>(CN28+4),CO28<(CN28-4)),CO28,CN28))) ->  | CO30: =IF(CO28="","",IF(OR(CO28>(CN28+4),CO28<(CN28-4)),"Agncy Repl.","")) ->  | CP30: =IF(CP28="","",IF(CQ28="",CP28,IF(OR(CQ28>(CP28+4),CQ28<(CP28-4)),CQ28,CP28))) ->  | CQ30: =IF(CQ28="","",IF(OR(CQ28>(CP28+4),CQ28<(CP28-4)),"Agncy Repl.","")) ->  | CS30: Calc. % | CV30: =IF(CV28="","",IF(CW28="",CV28,IF(OR(CW28>(CV28+4),CW28<(CV28-4)),CW28,CV28))) ->  | CW30: =IF(CW28="","",IF(OR(CW28>(CV28+4),CW28<(CV28-4)),"Agncy Repl.","")) ->  | CX30: =IF(CX28="","",IF(CY28="",CX28,IF(OR(CY28>(CX28+4),CY28<(CX28-4)),CY28,CX28))) ->  | CY30: =IF(CY28="","",IF(OR(CY28>(CX28+4),CY28<(CX28-4)),"Agncy Repl.","")) ->  | CZ30: =IF(CZ28="","",IF(DA28="",CZ28,IF(OR(DA28>(CZ28+4),DA28<(CZ28-4)),DA28,CZ28))) ->  | DA30: =IF(DA28="","",IF(OR(DA28>(CZ28+4),DA28<(CZ28-4)),"Agncy Repl.","")) ->  | DB30: =IF(DB28="","",IF(DC28="",DB28,IF(OR(DC28>(DB28+4),DC28<(DB28-4)),DC28,DB28))) ->  | DC30: =IF(DC28="","",IF(OR(DC28>(DB28+4),DC28<(DB28-4)),"Agncy Repl.","")) ->  | DE30: Calc. % | DH30: =IF(DH28="","",IF(DI28="",DH28,IF(OR(DI28>(DH28+4),DI28<(DH28-4)),DI28,DH28))) ->  | DI30: =IF(DI28="","",IF(OR(DI28>(DH28+4),DI28<(DH28-4)),"Agncy Repl.","")) ->  | DJ30: =IF(DJ28="","",IF(DK28="",DJ28,IF(OR(DK28>(DJ28+4),DK28<(DJ28-4)),DK28,DJ28))) ->  | DK30: =IF(DK28="","",IF(OR(DK28>(DJ28+4),DK28<(DJ28-4)),"Agncy Repl.","")) ->  | DL30: =IF(DL28="","",IF(DM28="",DL28,IF(OR(DM28>(DL28+4),DM28<(DL28-4)),DM28,DL28))) ->  | DM30: =IF(DM28="","",IF(OR(DM28>(DL28+4),DM28<(DL28-4)),"Agncy Repl.","")) ->  | DN30: =IF(DN28="","",IF(DO28="",DN28,IF(OR(DO28>(DN28+4),DO28<(DN28-4)),DO28,DN28))) ->  | DO30: =IF(DO28="","",IF(OR(DO28>(DN28+4),DO28<(DN28-4)),"Agncy Repl.","")) ->  | DQ30: Calc. % | DT30: =IF(DT28="","",IF(DU28="",DT28,IF(OR(DU28>(DT28+4),DU28<(DT28-4)),DU28,DT28))) ->  | DU30: =IF(DU28="","",IF(OR(DU28>(DT28+4),DU28<(DT28-4)),"Agncy Repl.","")) ->  | DV30: =IF(DV28="","",IF(DW28="",DV28,IF(OR(DW28>(DV28+4),DW28<(DV28-4)),DW28,DV28))) ->  | DW30: =IF(DW28="","",IF(OR(DW28>(DV28+4),DW28<(DV28-4)),"Agncy Repl.","")) ->  | DX30: =IF(DX28="","",IF(DY28="",DX28,IF(OR(DY28>(DX28+4),DY28<(DX28-4)),DY28,DX28))) ->  | DY30: =IF(DY28="","",IF(OR(DY28>(DX28+4),DY28<(DX28-4)),"Agncy Repl.","")) ->  | DZ30: =IF(DZ28="","",IF(EA28="",DZ28,IF(OR(EA28>(DZ28+4),EA28<(DZ28-4)),EA28,DZ28))) ->  | EA30: =IF(EA28="","",IF(OR(EA28>(DZ28+4),EA28<(DZ28-4)),"Agncy Repl.","")) ->  | EC30: Calc. % | EF30: =IF(EF28="","",IF(EG28="",EF28,IF(OR(EG28>(EF28+4),EG28<(EF28-4)),EG28,EF28))) ->  | EG30: =IF(EG28="","",IF(OR(EG28>(EF28+4),EG28<(EF28-4)),"Agncy Repl.","")) ->  | EH30: =IF(EH28="","",IF(EI28="",EH28,IF(OR(EI28>(EH28+4),EI28<(EH28-4)),EI28,EH28))) ->  | EI30: =IF(EI28="","",IF(OR(EI28>(EH28+4),EI28<(EH28-4)),"Agncy Repl.","")) ->  | EJ30: =IF(EJ28="","",IF(EK28="",EJ28,IF(OR(EK28>(EJ28+4),EK28<(EJ28-4)),EK28,EJ28))) ->  | EK30: =IF(EK28="","",IF(OR(EK28>(EJ28+4),EK28<(EJ28-4)),"Agncy Repl.","")) ->  | EL30: =IF(EL28="","",IF(EM28="",EL28,IF(OR(EM28>(EL28+4),EM28<(EL28-4)),EM28,EL28))) ->  | EM30: =IF(EM28="","",IF(OR(EM28>(EL28+4),EM28<(EL28-4)),"Agncy Repl.","")) ->  | EO30: Calc. % | ER30: =IF(ER28="","",IF(ES28="",ER28,IF(OR(ES28>(ER28+4),ES28<(ER28-4)),ES28,ER28))) ->  | ES30: =IF(ES28="","",IF(OR(ES28>(ER28+4),ES28<(ER28-4)),"Agncy Repl.","")) ->  | ET30: =IF(ET28="","",IF(EU28="",ET28,IF(OR(EU28>(ET28+4),EU28<(ET28-4)),EU28,ET28))) ->  | EU30: =IF(EU28="","",IF(OR(EU28>(ET28+4),EU28<(ET28-4)),"Agncy Repl.","")) ->  | EV30: =IF(EV28="","",IF(EW28="",EV28,IF(OR(EW28>(EV28+4),EW28<(EV28-4)),EW28,EV28))) ->  | EW30: =IF(EW28="","",IF(OR(EW28>(EV28+4),EW28<(EV28-4)),"Agncy Repl.","")) ->  | EX30: =IF(EX28="","",IF(EY28="",EX28,IF(OR(EY28>(EX28+4),EY28<(EX28-4)),EY28,EX28))) ->  | EY30: =IF(EY28="","",IF(OR(EY28>(EX28+4),EY28<(EX28-4)),"Agncy Repl.","")) ->  | FA30: Calc. % | FD30: =IF(FD28="","",IF(FE28="",FD28,IF(OR(FE28>(FD28+4),FE28<(FD28-4)),FE28,FD28))) ->  | FE30: =IF(FE28="","",IF(OR(FE28>(FD28+4),FE28<(FD28-4)),"Agncy Repl.","")) ->  | FF30: =IF(FF28="","",IF(FG28="",FF28,IF(OR(FG28>(FF28+4),FG28<(FF28-4)),FG28,FF28))) ->  | FG30: =IF(FG28="","",IF(OR(FG28>(FF28+4),FG28<(FF28-4)),"Agncy Repl.","")) ->  | FH30: =IF(FH28="","",IF(FI28="",FH28,IF(OR(FI28>(FH28+4),FI28<(FH28-4)),FI28,FH28))) ->  | FI30: =IF(FI28="","",IF(OR(FI28>(FH28+4),FI28<(FH28-4)),"Agncy Repl.","")) ->  | FJ30: =IF(FJ28="","",IF(FK28="",FJ28,IF(OR(FK28>(FJ28+4),FK28<(FJ28-4)),FK28,FJ28))) ->  | FK30: =IF(FK28="","",IF(OR(FK28>(FJ28+4),FK28<(FJ28-4)),"Agncy Repl.","")) ->  | FM30: Calc. % | FP30: =IF(FP28="","",IF(FQ28="",FP28,IF(OR(FQ28>(FP28+4),FQ28<(FP28-4)),FQ28,FP28))) ->  | FQ30: =IF(FQ28="","",IF(OR(FQ28>(FP28+4),FQ28<(FP28-4)),"Agncy Repl.","")) ->  | FR30: =IF(FR28="","",IF(FS28="",FR28,IF(OR(FS28>(FR28+4),FS28<(FR28-4)),FS28,FR28))) ->  | FS30: =IF(FS28="","",IF(OR(FS28>(FR28+4),FS28<(FR28-4)),"Agncy Repl.","")) ->  | FT30: =IF(FT28="","",IF(FU28="",FT28,IF(OR(FU28>(FT28+4),FU28<(FT28-4)),FU28,FT28))) ->  | FU30: =IF(FU28="","",IF(OR(FU28>(FT28+4),FU28<(FT28-4)),"Agncy Repl.","")) ->  | FV30: =IF(FV28="","",IF(FW28="",FV28,IF(OR(FW28>(FV28+4),FW28<(FV28-4)),FW28,FV28))) ->  | FW30: =IF(FW28="","",IF(OR(FW28>(FV28+4),FW28<(FV28-4)),"Agncy Repl.","")) ->  | FY30: Calc. % | GB30: =IF(GB28="","",IF(GC28="",GB28,IF(OR(GC28>(GB28+4),GC28<(GB28-4)),GC28,GB28))) ->  | GC30: =IF(GC28="","",IF(OR(GC28>(GB28+4),GC28<(GB28-4)),"Agncy Repl.","")) ->  | GD30: =IF(GD28="","",IF(GE28="",GD28,IF(OR(GE28>(GD28+4),GE28<(GD28-4)),GE28,GD28))) ->  | GE30: =IF(GE28="","",IF(OR(GE28>(GD28+4),GE28<(GD28-4)),"Agncy Repl.","")) ->  | GF30: =IF(GF28="","",IF(GG28="",GF28,IF(OR(GG28>(GF28+4),GG28<(GF28-4)),GG28,GF28))) ->  | GG30: =IF(GG28="","",IF(OR(GG28>(GF28+4),GG28<(GF28-4)),"Agncy Repl.","")) ->  | GH30: =IF(GH28="","",IF(GI28="",GH28,IF(OR(GI28>(GH28+4),GI28<(GH28-4)),GI28,GH28))) ->  | GI30: =IF(GI28="","",IF(OR(GI28>(GH28+4),GI28<(GH28-4)),"Agncy Repl.","")) ->  | GK30: Calc. % | GN30: =IF(GN28="","",IF(GO28="",GN28,IF(OR(GO28>(GN28+4),GO28<(GN28-4)),GO28,GN28))) ->  | GO30: =IF(GO28="","",IF(OR(GO28>(GN28+4),GO28<(GN28-4)),"Agncy Repl.","")) ->  | GP30: =IF(GP28="","",IF(GQ28="",GP28,IF(OR(GQ28>(GP28+4),GQ28<(GP28-4)),GQ28,GP28))) ->  | GQ30: =IF(GQ28="","",IF(OR(GQ28>(GP28+4),GQ28<(GP28-4)),"Agncy Repl.","")) ->  | GR30: =IF(GR28="","",IF(GS28="",GR28,IF(OR(GS28>(GR28+4),GS28<(GR28-4)),GS28,GR28))) ->  | GS30: =IF(GS28="","",IF(OR(GS28>(GR28+4),GS28<(GR28-4)),"Agncy Repl.","")) ->  | GT30: =IF(GT28="","",IF(GU28="",GT28,IF(OR(GU28>(GT28+4),GU28<(GT28-4)),GU28,GT28))) ->  | GU30: =IF(GU28="","",IF(OR(GU28>(GT28+4),GU28<(GT28-4)),"Agncy Repl.","")) ->  | GW30: Calc. % | GZ30: =IF(GZ28="","",IF(HA28="",GZ28,IF(OR(HA28>(GZ28+4),HA28<(GZ28-4)),HA28,GZ28))) ->  | HA30: =IF(HA28="","",IF(OR(HA28>(GZ28+4),HA28<(GZ28-4)),"Agncy Repl.","")) ->  | HB30: =IF(HB28="","",IF(HC28="",HB28,IF(OR(HC28>(HB28+4),HC28<(HB28-4)),HC28,HB28))) ->  | HC30: =IF(HC28="","",IF(OR(HC28>(HB28+4),HC28<(HB28-4)),"Agncy Repl.","")) ->  | HD30: =IF(HD28="","",IF(HE28="",HD28,IF(OR(HE28>(HD28+4),HE28<(HD28-4)),HE28,HD28))) ->  | HE30: =IF(HE28="","",IF(OR(HE28>(HD28+4),HE28<(HD28-4)),"Agncy Repl.","")) ->  | HF30: =IF(HF28="","",IF(HG28="",HF28,IF(OR(HG28>(HF28+4),HG28<(HF28-4)),HG28,HF28))) ->  | HG30: =IF(HG28="","",IF(OR(HG28>(HF28+4),HG28<(HF28-4)),"Agncy Repl.","")) ->  | HI30: Calc. % | HL30: =IF(HL28="","",IF(HM28="",HL28,IF(OR(HM28>(HL28+4),HM28<(HL28-4)),HM28,HL28))) ->  | HM30: =IF(HM28="","",IF(OR(HM28>(HL28+4),HM28<(HL28-4)),"Agncy Repl.","")) ->  | HN30: =IF(HN28="","",IF(HO28="",HN28,IF(OR(HO28>(HN28+4),HO28<(HN28-4)),HO28,HN28))) ->  | HO30: =IF(HO28="","",IF(OR(HO28>(HN28+4),HO28<(HN28-4)),"Agncy Repl.","")) ->  | HP30: =IF(HP28="","",IF(HQ28="",HP28,IF(OR(HQ28>(HP28+4),HQ28<(HP28-4)),HQ28,HP28))) ->  | HQ30: =IF(HQ28="","",IF(OR(HQ28>(HP28+4),HQ28<(HP28-4)),"Agncy Repl.","")) ->  | HR30: =IF(HR28="","",IF(HS28="",HR28,IF(OR(HS28>(HR28+4),HS28<(HR28-4)),HS28,HR28))) ->  | HS30: =IF(HS28="","",IF(OR(HS28>(HR28+4),HS28<(HR28-4)),"Agncy Repl.","")) ->  | HU30: Calc. % | HX30: =IF(HX28="","",IF(HY28="",HX28,IF(OR(HY28>(HX28+4),HY28<(HX28-4)),HY28,HX28))) ->  | HY30: =IF(HY28="","",IF(OR(HY28>(HX28+4),HY28<(HX28-4)),"Agncy Repl.","")) ->  | HZ30: =IF(HZ28="","",IF(IA28="",HZ28,IF(OR(IA28>(HZ28+4),IA28<(HZ28-4)),IA28,HZ28))) ->  | IA30: =IF(IA28="","",IF(OR(IA28>(HZ28+4),IA28<(HZ28-4)),"Agncy Repl.","")) ->  | IB30: =IF(IB28="","",IF(IC28="",IB28,IF(OR(IC28>(IB28+4),IC28<(IB28-4)),IC28,IB28))) ->  | IC30: =IF(IC28="","",IF(OR(IC28>(IB28+4),IC28<(IB28-4)),"Agncy Repl.","")) ->  | ID30: =IF(ID28="","",IF(IE28="",ID28,IF(OR(IE28>(ID28+4),IE28<(ID28-4)),IE28,ID28))) ->  | IE30: =IF(IE28="","",IF(OR(IE28>(ID28+4),IE28<(ID28-4)),"Agncy Repl.","")) ->  | IG30: Calc. % | IJ30: =IF(IJ28="","",IF(IK28="",IJ28,IF(OR(IK28>(IJ28+4),IK28<(IJ28-4)),IK28,IJ28))) ->  | IK30: =IF(IK28="","",IF(OR(IK28>(IJ28+4),IK28<(IJ28-4)),"Agncy Repl.","")) ->  | IL30: =IF(IL28="","",IF(IM28="",IL28,IF(OR(IM28>(IL28+4),IM28<(IL28-4)),IM28,IL28))) ->  | IM30: =IF(IM28="","",IF(OR(IM28>(IL28+4),IM28<(IL28-4)),"Agncy Repl.","")) ->  | IN30: =IF(IN28="","",IF(IO28="",IN28,IF(OR(IO28>(IN28+4),IO28<(IN28-4)),IO28,IN28))) ->  | IO30: =IF(IO28="","",IF(OR(IO28>(IN28+4),IO28<(IN28-4)),"Agncy Repl.","")) ->  | IP30: =IF(IP28="","",IF(IQ28="",IP28,IF(OR(IQ28>(IP28+4),IQ28<(IP28-4)),IQ28,IP28))) ->  | IQ30: =IF(IQ28="","",IF(OR(IQ28>(IP28+4),IQ28<(IP28-4)),"Agncy Repl.","")) -> 
A31: # 16 | M31: # 16 | Y31: # 16 | AK31: # 16 | AW31: # 16 | BI31: # 16 | BU31: # 16 | CG31: # 16 | CS31: # 16 | DE31: # 16 | DQ31: # 16 | EC31: # 16 | EO31: # 16 | FA31: # 16 | FM31: # 16 | FY31: # 16 | GK31: # 16 | GW31: # 16 | HI31: # 16 | HU31: # 16 | IG31: # 16 | IT31: 0 | IU31: Agency AFT Substituted
A32: #16 Calc. % | D32: =IF(D31="","",IF(E31="",D31,IF(OR(E31>(D31+4),E31<(D31-4)),E31,D31))) ->  | E32: =IF(E31="","",IF(OR(E31>(D31+4),E31<(D31-4)),"Agncy Repl.","")) ->  | F32: =IF(F31="","",IF(G31="",F31,IF(OR(G31>(F31+4),G31<(F31-4)),G31,F31))) ->  | G32: =IF(G31="","",IF(OR(G31>(F31+4),G31<(F31-4)),"Agncy Repl.","")) ->  | H32: =IF(H31="","",IF(I31="",H31,IF(OR(I31>(H31+4),I31<(H31-4)),I31,H31))) ->  | I32: =IF(I31="","",IF(OR(I31>(H31+4),I31<(H31-4)),"Agncy Repl.","")) ->  | J32: =IF(J31="","",IF(K31="",J31,IF(OR(K31>(J31+4),K31<(J31-4)),K31,J31))) ->  | K32: =IF(K31="","",IF(OR(K31>(J31+4),K31<(J31-4)),"Agncy Repl.","")) ->  | M32: #16 Calc. % | P32: =IF(P31="","",IF(Q31="",P31,IF(OR(Q31>(P31+4),Q31<(P31-4)),Q31,P31))) ->  | Q32: =IF(Q31="","",IF(OR(Q31>(P31+4),Q31<(P31-4)),"Agncy Repl.","")) ->  | R32: =IF(R31="","",IF(S31="",R31,IF(OR(S31>(R31+4),S31<(R31-4)),S31,R31))) ->  | S32: =IF(S31="","",IF(OR(S31>(R31+4),S31<(R31-4)),"Agncy Repl.","")) ->  | T32: =IF(T31="","",IF(U31="",T31,IF(OR(U31>(T31+4),U31<(T31-4)),U31,T31))) ->  | U32: =IF(U31="","",IF(OR(U31>(T31+4),U31<(T31-4)),"Agncy Repl.","")) ->  | V32: =IF(V31="","",IF(W31="",V31,IF(OR(W31>(V31+4),W31<(V31-4)),W31,V31))) ->  | W32: =IF(W31="","",IF(OR(W31>(V31+4),W31<(V31-4)),"Agncy Repl.","")) ->  | Y32: #16 Calc. % | AB32: =IF(AB31="","",IF(AC31="",AB31,IF(OR(AC31>(AB31+4),AC31<(AB31-4)),AC31,AB31))) ->  | AC32: =IF(AC31="","",IF(OR(AC31>(AB31+4),AC31<(AB31-4)),"Agncy Repl.","")) ->  | AD32: =IF(AD31="","",IF(AE31="",AD31,IF(OR(AE31>(AD31+4),AE31<(AD31-4)),AE31,AD31))) ->  | AE32: =IF(AE31="","",IF(OR(AE31>(AD31+4),AE31<(AD31-4)),"Agncy Repl.","")) ->  | AF32: =IF(AF31="","",IF(AG31="",AF31,IF(OR(AG31>(AF31+4),AG31<(AF31-4)),AG31,AF31))) ->  | AG32: =IF(AG31="","",IF(OR(AG31>(AF31+4),AG31<(AF31-4)),"Agncy Repl.","")) ->  | AH32: =IF(AH31="","",IF(AI31="",AH31,IF(OR(AI31>(AH31+4),AI31<(AH31-4)),AI31,AH31))) ->  | AI32: =IF(AI31="","",IF(OR(AI31>(AH31+4),AI31<(AH31-4)),"Agncy Repl.","")) ->  | AK32: #16 Calc. % | AN32: =IF(AN31="","",IF(AO31="",AN31,IF(OR(AO31>(AN31+4),AO31<(AN31-4)),AO31,AN31))) ->  | AO32: =IF(AO31="","",IF(OR(AO31>(AN31+4),AO31<(AN31-4)),"Agncy Repl.","")) ->  | AP32: =IF(AP31="","",IF(AQ31="",AP31,IF(OR(AQ31>(AP31+4),AQ31<(AP31-4)),AQ31,AP31))) ->  | AQ32: =IF(AQ31="","",IF(OR(AQ31>(AP31+4),AQ31<(AP31-4)),"Agncy Repl.","")) ->  | AR32: =IF(AR31="","",IF(AS31="",AR31,IF(OR(AS31>(AR31+4),AS31<(AR31-4)),AS31,AR31))) ->  | AS32: =IF(AS31="","",IF(OR(AS31>(AR31+4),AS31<(AR31-4)),"Agncy Repl.","")) ->  | AT32: =IF(AT31="","",IF(AU31="",AT31,IF(OR(AU31>(AT31+4),AU31<(AT31-4)),AU31,AT31))) ->  | AU32: =IF(AU31="","",IF(OR(AU31>(AT31+4),AU31<(AT31-4)),"Agncy Repl.","")) ->  | AW32: #16 Calc. % | AZ32: =IF(AZ31="","",IF(BA31="",AZ31,IF(OR(BA31>(AZ31+4),BA31<(AZ31-4)),BA31,AZ31))) ->  | BA32: =IF(BA31="","",IF(OR(BA31>(AZ31+4),BA31<(AZ31-4)),"Agncy Repl.","")) ->  | BB32: =IF(BB31="","",IF(BC31="",BB31,IF(OR(BC31>(BB31+4),BC31<(BB31-4)),BC31,BB31))) ->  | BC32: =IF(BC31="","",IF(OR(BC31>(BB31+4),BC31<(BB31-4)),"Agncy Repl.","")) ->  | BD32: =IF(BD31="","",IF(BE31="",BD31,IF(OR(BE31>(BD31+4),BE31<(BD31-4)),BE31,BD31))) ->  | BE32: =IF(BE31="","",IF(OR(BE31>(BD31+4),BE31<(BD31-4)),"Agncy Repl.","")) ->  | BF32: =IF(BF31="","",IF(BG31="",BF31,IF(OR(BG31>(BF31+4),BG31<(BF31-4)),BG31,BF31))) ->  | BG32: =IF(BG31="","",IF(OR(BG31>(BF31+4),BG31<(BF31-4)),"Agncy Repl.","")) ->  | BI32: #16 Calc. % | BL32: =IF(BL31="","",IF(BM31="",BL31,IF(OR(BM31>(BL31+4),BM31<(BL31-4)),BM31,BL31))) ->  | BM32: =IF(BM31="","",IF(OR(BM31>(BL31+4),BM31<(BL31-4)),"Agncy Repl.","")) ->  | BN32: =IF(BN31="","",IF(BO31="",BN31,IF(OR(BO31>(BN31+4),BO31<(BN31-4)),BO31,BN31))) ->  | BO32: =IF(BO31="","",IF(OR(BO31>(BN31+4),BO31<(BN31-4)),"Agncy Repl.","")) ->  | BP32: =IF(BP31="","",IF(BQ31="",BP31,IF(OR(BQ31>(BP31+4),BQ31<(BP31-4)),BQ31,BP31))) ->  | BQ32: =IF(BQ31="","",IF(OR(BQ31>(BP31+4),BQ31<(BP31-4)),"Agncy Repl.","")) ->  | BR32: =IF(BR31="","",IF(BS31="",BR31,IF(OR(BS31>(BR31+4),BS31<(BR31-4)),BS31,BR31))) ->  | BS32: =IF(BS31="","",IF(OR(BS31>(BR31+4),BS31<(BR31-4)),"Agncy Repl.","")) ->  | BU32: #16 Calc. % | BX32: =IF(BX31="","",IF(BY31="",BX31,IF(OR(BY31>(BX31+4),BY31<(BX31-4)),BY31,BX31))) ->  | BY32: =IF(BY31="","",IF(OR(BY31>(BX31+4),BY31<(BX31-4)),"Agncy Repl.","")) ->  | BZ32: =IF(BZ31="","",IF(CA31="",BZ31,IF(OR(CA31>(BZ31+4),CA31<(BZ31-4)),CA31,BZ31))) ->  | CA32: =IF(CA31="","",IF(OR(CA31>(BZ31+4),CA31<(BZ31-4)),"Agncy Repl.","")) ->  | CB32: =IF(CB31="","",IF(CC31="",CB31,IF(OR(CC31>(CB31+4),CC31<(CB31-4)),CC31,CB31))) ->  | CC32: =IF(CC31="","",IF(OR(CC31>(CB31+4),CC31<(CB31-4)),"Agncy Repl.","")) ->  | CD32: =IF(CD31="","",IF(CE31="",CD31,IF(OR(CE31>(CD31+4),CE31<(CD31-4)),CE31,CD31))) ->  | CE32: =IF(CE31="","",IF(OR(CE31>(CD31+4),CE31<(CD31-4)),"Agncy Repl.","")) ->  | CG32: #16 Calc. % | CJ32: =IF(CJ31="","",IF(CK31="",CJ31,IF(OR(CK31>(CJ31+4),CK31<(CJ31-4)),CK31,CJ31))) ->  | CK32: =IF(CK31="","",IF(OR(CK31>(CJ31+4),CK31<(CJ31-4)),"Agncy Repl.","")) ->  | CL32: =IF(CL31="","",IF(CM31="",CL31,IF(OR(CM31>(CL31+4),CM31<(CL31-4)),CM31,CL31))) ->  | CM32: =IF(CM31="","",IF(OR(CM31>(CL31+4),CM31<(CL31-4)),"Agncy Repl.","")) ->  | CN32: =IF(CN31="","",IF(CO31="",CN31,IF(OR(CO31>(CN31+4),CO31<(CN31-4)),CO31,CN31))) ->  | CO32: =IF(CO31="","",IF(OR(CO31>(CN31+4),CO31<(CN31-4)),"Agncy Repl.","")) ->  | CP32: =IF(CP31="","",IF(CQ31="",CP31,IF(OR(CQ31>(CP31+4),CQ31<(CP31-4)),CQ31,CP31))) ->  | CQ32: =IF(CQ31="","",IF(OR(CQ31>(CP31+4),CQ31<(CP31-4)),"Agncy Repl.","")) ->  | CS32: #16 Calc. % | CV32: =IF(CV31="","",IF(CW31="",CV31,IF(OR(CW31>(CV31+4),CW31<(CV31-4)),CW31,CV31))) ->  | CW32: =IF(CW31="","",IF(OR(CW31>(CV31+4),CW31<(CV31-4)),"Agncy Repl.","")) ->  | CX32: =IF(CX31="","",IF(CY31="",CX31,IF(OR(CY31>(CX31+4),CY31<(CX31-4)),CY31,CX31))) ->  | CY32: =IF(CY31="","",IF(OR(CY31>(CX31+4),CY31<(CX31-4)),"Agncy Repl.","")) ->  | CZ32: =IF(CZ31="","",IF(DA31="",CZ31,IF(OR(DA31>(CZ31+4),DA31<(CZ31-4)),DA31,CZ31))) ->  | DA32: =IF(DA31="","",IF(OR(DA31>(CZ31+4),DA31<(CZ31-4)),"Agncy Repl.","")) ->  | DB32: =IF(DB31="","",IF(DC31="",DB31,IF(OR(DC31>(DB31+4),DC31<(DB31-4)),DC31,DB31))) ->  | DC32: =IF(DC31="","",IF(OR(DC31>(DB31+4),DC31<(DB31-4)),"Agncy Repl.","")) ->  | DE32: #16 Calc. % | DH32: =IF(DH31="","",IF(DI31="",DH31,IF(OR(DI31>(DH31+4),DI31<(DH31-4)),DI31,DH31))) ->  | DI32: =IF(DI31="","",IF(OR(DI31>(DH31+4),DI31<(DH31-4)),"Agncy Repl.","")) ->  | DJ32: =IF(DJ31="","",IF(DK31="",DJ31,IF(OR(DK31>(DJ31+4),DK31<(DJ31-4)),DK31,DJ31))) ->  | DK32: =IF(DK31="","",IF(OR(DK31>(DJ31+4),DK31<(DJ31-4)),"Agncy Repl.","")) ->  | DL32: =IF(DL31="","",IF(DM31="",DL31,IF(OR(DM31>(DL31+4),DM31<(DL31-4)),DM31,DL31))) ->  | DM32: =IF(DM31="","",IF(OR(DM31>(DL31+4),DM31<(DL31-4)),"Agncy Repl.","")) ->  | DN32: =IF(DN31="","",IF(DO31="",DN31,IF(OR(DO31>(DN31+4),DO31<(DN31-4)),DO31,DN31))) ->  | DO32: =IF(DO31="","",IF(OR(DO31>(DN31+4),DO31<(DN31-4)),"Agncy Repl.","")) ->  | DQ32: #16 Calc. % | DT32: =IF(DT31="","",IF(DU31="",DT31,IF(OR(DU31>(DT31+4),DU31<(DT31-4)),DU31,DT31))) ->  | DU32: =IF(DU31="","",IF(OR(DU31>(DT31+4),DU31<(DT31-4)),"Agncy Repl.","")) ->  | DV32: =IF(DV31="","",IF(DW31="",DV31,IF(OR(DW31>(DV31+4),DW31<(DV31-4)),DW31,DV31))) ->  | DW32: =IF(DW31="","",IF(OR(DW31>(DV31+4),DW31<(DV31-4)),"Agncy Repl.","")) ->  | DX32: =IF(DX31="","",IF(DY31="",DX31,IF(OR(DY31>(DX31+4),DY31<(DX31-4)),DY31,DX31))) ->  | DY32: =IF(DY31="","",IF(OR(DY31>(DX31+4),DY31<(DX31-4)),"Agncy Repl.","")) ->  | DZ32: =IF(DZ31="","",IF(EA31="",DZ31,IF(OR(EA31>(DZ31+4),EA31<(DZ31-4)),EA31,DZ31))) ->  | EA32: =IF(EA31="","",IF(OR(EA31>(DZ31+4),EA31<(DZ31-4)),"Agncy Repl.","")) ->  | EC32: #16 Calc. % | EF32: =IF(EF31="","",IF(EG31="",EF31,IF(OR(EG31>(EF31+4),EG31<(EF31-4)),EG31,EF31))) ->  | EG32: =IF(EG31="","",IF(OR(EG31>(EF31+4),EG31<(EF31-4)),"Agncy Repl.","")) ->  | EH32: =IF(EH31="","",IF(EI31="",EH31,IF(OR(EI31>(EH31+4),EI31<(EH31-4)),EI31,EH31))) ->  | EI32: =IF(EI31="","",IF(OR(EI31>(EH31+4),EI31<(EH31-4)),"Agncy Repl.","")) ->  | EJ32: =IF(EJ31="","",IF(EK31="",EJ31,IF(OR(EK31>(EJ31+4),EK31<(EJ31-4)),EK31,EJ31))) ->  | EK32: =IF(EK31="","",IF(OR(EK31>(EJ31+4),EK31<(EJ31-4)),"Agncy Repl.","")) ->  | EL32: =IF(EL31="","",IF(EM31="",EL31,IF(OR(EM31>(EL31+4),EM31<(EL31-4)),EM31,EL31))) ->  | EM32: =IF(EM31="","",IF(OR(EM31>(EL31+4),EM31<(EL31-4)),"Agncy Repl.","")) ->  | EO32: #16 Calc. % | ER32: =IF(ER31="","",IF(ES31="",ER31,IF(OR(ES31>(ER31+4),ES31<(ER31-4)),ES31,ER31))) ->  | ES32: =IF(ES31="","",IF(OR(ES31>(ER31+4),ES31<(ER31-4)),"Agncy Repl.","")) ->  | ET32: =IF(ET31="","",IF(EU31="",ET31,IF(OR(EU31>(ET31+4),EU31<(ET31-4)),EU31,ET31))) ->  | EU32: =IF(EU31="","",IF(OR(EU31>(ET31+4),EU31<(ET31-4)),"Agncy Repl.","")) ->  | EV32: =IF(EV31="","",IF(EW31="",EV31,IF(OR(EW31>(EV31+4),EW31<(EV31-4)),EW31,EV31))) ->  | EW32: =IF(EW31="","",IF(OR(EW31>(EV31+4),EW31<(EV31-4)),"Agncy Repl.","")) ->  | EX32: =IF(EX31="","",IF(EY31="",EX31,IF(OR(EY31>(EX31+4),EY31<(EX31-4)),EY31,EX31))) ->  | EY32: =IF(EY31="","",IF(OR(EY31>(EX31+4),EY31<(EX31-4)),"Agncy Repl.","")) ->  | FA32: #16 Calc. % | FD32: =IF(FD31="","",IF(FE31="",FD31,IF(OR(FE31>(FD31+4),FE31<(FD31-4)),FE31,FD31))) ->  | FE32: =IF(FE31="","",IF(OR(FE31>(FD31+4),FE31<(FD31-4)),"Agncy Repl.","")) ->  | FF32: =IF(FF31="","",IF(FG31="",FF31,IF(OR(FG31>(FF31+4),FG31<(FF31-4)),FG31,FF31))) ->  | FG32: =IF(FG31="","",IF(OR(FG31>(FF31+4),FG31<(FF31-4)),"Agncy Repl.","")) ->  | FH32: =IF(FH31="","",IF(FI31="",FH31,IF(OR(FI31>(FH31+4),FI31<(FH31-4)),FI31,FH31))) ->  | FI32: =IF(FI31="","",IF(OR(FI31>(FH31+4),FI31<(FH31-4)),"Agncy Repl.","")) ->  | FJ32: =IF(FJ31="","",IF(FK31="",FJ31,IF(OR(FK31>(FJ31+4),FK31<(FJ31-4)),FK31,FJ31))) ->  | FK32: =IF(FK31="","",IF(OR(FK31>(FJ31+4),FK31<(FJ31-4)),"Agncy Repl.","")) ->  | FM32: #16 Calc. % | FP32: =IF(FP31="","",IF(FQ31="",FP31,IF(OR(FQ31>(FP31+4),FQ31<(FP31-4)),FQ31,FP31))) ->  | FQ32: =IF(FQ31="","",IF(OR(FQ31>(FP31+4),FQ31<(FP31-4)),"Agncy Repl.","")) ->  | FR32: =IF(FR31="","",IF(FS31="",FR31,IF(OR(FS31>(FR31+4),FS31<(FR31-4)),FS31,FR31))) ->  | FS32: =IF(FS31="","",IF(OR(FS31>(FR31+4),FS31<(FR31-4)),"Agncy Repl.","")) ->  | FT32: =IF(FT31="","",IF(FU31="",FT31,IF(OR(FU31>(FT31+4),FU31<(FT31-4)),FU31,FT31))) ->  | FU32: =IF(FU31="","",IF(OR(FU31>(FT31+4),FU31<(FT31-4)),"Agncy Repl.","")) ->  | FV32: =IF(FV31="","",IF(FW31="",FV31,IF(OR(FW31>(FV31+4),FW31<(FV31-4)),FW31,FV31))) ->  | FW32: =IF(FW31="","",IF(OR(FW31>(FV31+4),FW31<(FV31-4)),"Agncy Repl.","")) ->  | FY32: #16 Calc. % | GB32: =IF(GB31="","",IF(GC31="",GB31,IF(OR(GC31>(GB31+4),GC31<(GB31-4)),GC31,GB31))) ->  | GC32: =IF(GC31="","",IF(OR(GC31>(GB31+4),GC31<(GB31-4)),"Agncy Repl.","")) ->  | GD32: =IF(GD31="","",IF(GE31="",GD31,IF(OR(GE31>(GD31+4),GE31<(GD31-4)),GE31,GD31))) ->  | GE32: =IF(GE31="","",IF(OR(GE31>(GD31+4),GE31<(GD31-4)),"Agncy Repl.","")) ->  | GF32: =IF(GF31="","",IF(GG31="",GF31,IF(OR(GG31>(GF31+4),GG31<(GF31-4)),GG31,GF31))) ->  | GG32: =IF(GG31="","",IF(OR(GG31>(GF31+4),GG31<(GF31-4)),"Agncy Repl.","")) ->  | GH32: =IF(GH31="","",IF(GI31="",GH31,IF(OR(GI31>(GH31+4),GI31<(GH31-4)),GI31,GH31))) ->  | GI32: =IF(GI31="","",IF(OR(GI31>(GH31+4),GI31<(GH31-4)),"Agncy Repl.","")) ->  | GK32: #16 Calc. % | GN32: =IF(GN31="","",IF(GO31="",GN31,IF(OR(GO31>(GN31+4),GO31<(GN31-4)),GO31,GN31))) ->  | GO32: =IF(GO31="","",IF(OR(GO31>(GN31+4),GO31<(GN31-4)),"Agncy Repl.","")) ->  | GP32: =IF(GP31="","",IF(GQ31="",GP31,IF(OR(GQ31>(GP31+4),GQ31<(GP31-4)),GQ31,GP31))) ->  | GQ32: =IF(GQ31="","",IF(OR(GQ31>(GP31+4),GQ31<(GP31-4)),"Agncy Repl.","")) ->  | GR32: =IF(GR31="","",IF(GS31="",GR31,IF(OR(GS31>(GR31+4),GS31<(GR31-4)),GS31,GR31))) ->  | GS32: =IF(GS31="","",IF(OR(GS31>(GR31+4),GS31<(GR31-4)),"Agncy Repl.","")) ->  | GT32: =IF(GT31="","",IF(GU31="",GT31,IF(OR(GU31>(GT31+4),GU31<(GT31-4)),GU31,GT31))) ->  | GU32: =IF(GU31="","",IF(OR(GU31>(GT31+4),GU31<(GT31-4)),"Agncy Repl.","")) ->  | GW32: #16 Calc. % | GZ32: =IF(GZ31="","",IF(HA31="",GZ31,IF(OR(HA31>(GZ31+4),HA31<(GZ31-4)),HA31,GZ31))) ->  | HA32: =IF(HA31="","",IF(OR(HA31>(GZ31+4),HA31<(GZ31-4)),"Agncy Repl.","")) ->  | HB32: =IF(HB31="","",IF(HC31="",HB31,IF(OR(HC31>(HB31+4),HC31<(HB31-4)),HC31,HB31))) ->  | HC32: =IF(HC31="","",IF(OR(HC31>(HB31+4),HC31<(HB31-4)),"Agncy Repl.","")) ->  | HD32: =IF(HD31="","",IF(HE31="",HD31,IF(OR(HE31>(HD31+4),HE31<(HD31-4)),HE31,HD31))) ->  | HE32: =IF(HE31="","",IF(OR(HE31>(HD31+4),HE31<(HD31-4)),"Agncy Repl.","")) ->  | HF32: =IF(HF31="","",IF(HG31="",HF31,IF(OR(HG31>(HF31+4),HG31<(HF31-4)),HG31,HF31))) ->  | HG32: =IF(HG31="","",IF(OR(HG31>(HF31+4),HG31<(HF31-4)),"Agncy Repl.","")) ->  | HI32: #16 Calc. % | HL32: =IF(HL31="","",IF(HM31="",HL31,IF(OR(HM31>(HL31+4),HM31<(HL31-4)),HM31,HL31))) ->  | HM32: =IF(HM31="","",IF(OR(HM31>(HL31+4),HM31<(HL31-4)),"Agncy Repl.","")) ->  | HN32: =IF(HN31="","",IF(HO31="",HN31,IF(OR(HO31>(HN31+4),HO31<(HN31-4)),HO31,HN31))) ->  | HO32: =IF(HO31="","",IF(OR(HO31>(HN31+4),HO31<(HN31-4)),"Agncy Repl.","")) ->  | HP32: =IF(HP31="","",IF(HQ31="",HP31,IF(OR(HQ31>(HP31+4),HQ31<(HP31-4)),HQ31,HP31))) ->  | HQ32: =IF(HQ31="","",IF(OR(HQ31>(HP31+4),HQ31<(HP31-4)),"Agncy Repl.","")) ->  | HR32: =IF(HR31="","",IF(HS31="",HR31,IF(OR(HS31>(HR31+4),HS31<(HR31-4)),HS31,HR31))) ->  | HS32: =IF(HS31="","",IF(OR(HS31>(HR31+4),HS31<(HR31-4)),"Agncy Repl.","")) ->  | HU32: #16 Calc. % | HX32: =IF(HX31="","",IF(HY31="",HX31,IF(OR(HY31>(HX31+4),HY31<(HX31-4)),HY31,HX31))) ->  | HY32: =IF(HY31="","",IF(OR(HY31>(HX31+4),HY31<(HX31-4)),"Agncy Repl.","")) ->  | HZ32: =IF(HZ31="","",IF(IA31="",HZ31,IF(OR(IA31>(HZ31+4),IA31<(HZ31-4)),IA31,HZ31))) ->  | IA32: =IF(IA31="","",IF(OR(IA31>(HZ31+4),IA31<(HZ31-4)),"Agncy Repl.","")) ->  | IB32: =IF(IB31="","",IF(IC31="",IB31,IF(OR(IC31>(IB31+4),IC31<(IB31-4)),IC31,IB31))) ->  | IC32: =IF(IC31="","",IF(OR(IC31>(IB31+4),IC31<(IB31-4)),"Agncy Repl.","")) ->  | ID32: =IF(ID31="","",IF(IE31="",ID31,IF(OR(IE31>(ID31+4),IE31<(ID31-4)),IE31,ID31))) ->  | IE32: =IF(IE31="","",IF(OR(IE31>(ID31+4),IE31<(ID31-4)),"Agncy Repl.","")) ->  | IG32: #16 Calc. % | IJ32: =IF(IJ31="","",IF(IK31="",IJ31,IF(OR(IK31>(IJ31+4),IK31<(IJ31-4)),IK31,IJ31))) ->  | IK32: =IF(IK31="","",IF(OR(IK31>(IJ31+4),IK31<(IJ31-4)),"Agncy Repl.","")) ->  | IL32: =IF(IL31="","",IF(IM31="",IL31,IF(OR(IM31>(IL31+4),IM31<(IL31-4)),IM31,IL31))) ->  | IM32: =IF(IM31="","",IF(OR(IM31>(IL31+4),IM31<(IL31-4)),"Agncy Repl.","")) ->  | IN32: =IF(IN31="","",IF(IO31="",IN31,IF(OR(IO31>(IN31+4),IO31<(IN31-4)),IO31,IN31))) ->  | IO32: =IF(IO31="","",IF(OR(IO31>(IN31+4),IO31<(IN31-4)),"Agncy Repl.","")) ->  | IP32: =IF(IP31="","",IF(IQ31="",IP31,IF(OR(IQ31>(IP31+4),IQ31<(IP31-4)),IQ31,IP31))) ->  | IQ32: =IF(IQ31="","",IF(OR(IQ31>(IP31+4),IQ31<(IP31-4)),"Agncy Repl.","")) -> 
A33: # 30 | M33: # 30 | Y33: # 30 | AK33: # 30 | AW33: # 30 | BI33: # 30 | BU33: # 30 | CG33: # 30 | CS33: # 30 | DE33: # 30 | DQ33: # 30 | EC33: # 30 | EO33: # 30 | FA33: # 30 | FM33: # 30 | FY33: # 30 | GK33: # 30 | GW33: # 30 | HI33: # 30 | HU33: # 30 | IG33: # 30 | IT33: 0 | IU33: Agency AFT Substituted
A34: #30 Calc. % | D34: =IF(D33="","",IF(E33="",D33,IF(OR(E33>(D33+4),E33<(D33-4)),E33,D33))) ->  | E34: =IF(E33="","",IF(OR(E33>(D33+4),E33<(D33-4)),"Agncy Repl.","")) ->  | F34: =IF(F33="","",IF(G33="",F33,IF(OR(G33>(F33+4),G33<(F33-4)),G33,F33))) ->  | G34: =IF(G33="","",IF(OR(G33>(F33+4),G33<(F33-4)),"Agncy Repl.","")) ->  | H34: =IF(H33="","",IF(I33="",H33,IF(OR(I33>(H33+4),I33<(H33-4)),I33,H33))) ->  | I34: =IF(I33="","",IF(OR(I33>(H33+4),I33<(H33-4)),"Agncy Repl.","")) ->  | J34: =IF(J33="","",IF(K33="",J33,IF(OR(K33>(J33+4),K33<(J33-4)),K33,J33))) ->  | K34: =IF(K33="","",IF(OR(K33>(J33+4),K33<(J33-4)),"Agncy Repl.","")) ->  | M34: #30 Calc. % | P34: =IF(P33="","",IF(Q33="",P33,IF(OR(Q33>(P33+4),Q33<(P33-4)),Q33,P33))) ->  | Q34: =IF(Q33="","",IF(OR(Q33>(P33+4),Q33<(P33-4)),"Agncy Repl.","")) ->  | R34: =IF(R33="","",IF(S33="",R33,IF(OR(S33>(R33+4),S33<(R33-4)),S33,R33))) ->  | S34: =IF(S33="","",IF(OR(S33>(R33+4),S33<(R33-4)),"Agncy Repl.","")) ->  | T34: =IF(T33="","",IF(U33="",T33,IF(OR(U33>(T33+4),U33<(T33-4)),U33,T33))) ->  | U34: =IF(U33="","",IF(OR(U33>(T33+4),U33<(T33-4)),"Agncy Repl.","")) ->  | V34: =IF(V33="","",IF(W33="",V33,IF(OR(W33>(V33+4),W33<(V33-4)),W33,V33))) ->  | W34: =IF(W33="","",IF(OR(W33>(V33+4),W33<(V33-4)),"Agncy Repl.","")) ->  | Y34: #30 Calc. % | AB34: =IF(AB33="","",IF(AC33="",AB33,IF(OR(AC33>(AB33+4),AC33<(AB33-4)),AC33,AB33))) ->  | AC34: =IF(AC33="","",IF(OR(AC33>(AB33+4),AC33<(AB33-4)),"Agncy Repl.","")) ->  | AD34: =IF(AD33="","",IF(AE33="",AD33,IF(OR(AE33>(AD33+4),AE33<(AD33-4)),AE33,AD33))) ->  | AE34: =IF(AE33="","",IF(OR(AE33>(AD33+4),AE33<(AD33-4)),"Agncy Repl.","")) ->  | AF34: =IF(AF33="","",IF(AG33="",AF33,IF(OR(AG33>(AF33+4),AG33<(AF33-4)),AG33,AF33))) ->  | AG34: =IF(AG33="","",IF(OR(AG33>(AF33+4),AG33<(AF33-4)),"Agncy Repl.","")) ->  | AH34: =IF(AH33="","",IF(AI33="",AH33,IF(OR(AI33>(AH33+4),AI33<(AH33-4)),AI33,AH33))) ->  | AI34: =IF(AI33="","",IF(OR(AI33>(AH33+4),AI33<(AH33-4)),"Agncy Repl.","")) ->  | AK34: #30 Calc. % | AN34: =IF(AN33="","",IF(AO33="",AN33,IF(OR(AO33>(AN33+4),AO33<(AN33-4)),AO33,AN33))) ->  | AO34: =IF(AO33="","",IF(OR(AO33>(AN33+4),AO33<(AN33-4)),"Agncy Repl.","")) ->  | AP34: =IF(AP33="","",IF(AQ33="",AP33,IF(OR(AQ33>(AP33+4),AQ33<(AP33-4)),AQ33,AP33))) ->  | AQ34: =IF(AQ33="","",IF(OR(AQ33>(AP33+4),AQ33<(AP33-4)),"Agncy Repl.","")) ->  | AR34: =IF(AR33="","",IF(AS33="",AR33,IF(OR(AS33>(AR33+4),AS33<(AR33-4)),AS33,AR33))) ->  | AS34: =IF(AS33="","",IF(OR(AS33>(AR33+4),AS33<(AR33-4)),"Agncy Repl.","")) ->  | AT34: =IF(AT33="","",IF(AU33="",AT33,IF(OR(AU33>(AT33+4),AU33<(AT33-4)),AU33,AT33))) ->  | AU34: =IF(AU33="","",IF(OR(AU33>(AT33+4),AU33<(AT33-4)),"Agncy Repl.","")) ->  | AW34: #30 Calc. % | AZ34: =IF(AZ33="","",IF(BA33="",AZ33,IF(OR(BA33>(AZ33+4),BA33<(AZ33-4)),BA33,AZ33))) ->  | BA34: =IF(BA33="","",IF(OR(BA33>(AZ33+4),BA33<(AZ33-4)),"Agncy Repl.","")) ->  | BB34: =IF(BB33="","",IF(BC33="",BB33,IF(OR(BC33>(BB33+4),BC33<(BB33-4)),BC33,BB33))) ->  | BC34: =IF(BC33="","",IF(OR(BC33>(BB33+4),BC33<(BB33-4)),"Agncy Repl.","")) ->  | BD34: =IF(BD33="","",IF(BE33="",BD33,IF(OR(BE33>(BD33+4),BE33<(BD33-4)),BE33,BD33))) ->  | BE34: =IF(BE33="","",IF(OR(BE33>(BD33+4),BE33<(BD33-4)),"Agncy Repl.","")) ->  | BF34: =IF(BF33="","",IF(BG33="",BF33,IF(OR(BG33>(BF33+4),BG33<(BF33-4)),BG33,BF33))) ->  | BG34: =IF(BG33="","",IF(OR(BG33>(BF33+4),BG33<(BF33-4)),"Agncy Repl.","")) ->  | BI34: #30 Calc. % | BL34: =IF(BL33="","",IF(BM33="",BL33,IF(OR(BM33>(BL33+4),BM33<(BL33-4)),BM33,BL33))) ->  | BM34: =IF(BM33="","",IF(OR(BM33>(BL33+4),BM33<(BL33-4)),"Agncy Repl.","")) ->  | BN34: =IF(BN33="","",IF(BO33="",BN33,IF(OR(BO33>(BN33+4),BO33<(BN33-4)),BO33,BN33))) ->  | BO34: =IF(BO33="","",IF(OR(BO33>(BN33+4),BO33<(BN33-4)),"Agncy Repl.","")) ->  | BP34: =IF(BP33="","",IF(BQ33="",BP33,IF(OR(BQ33>(BP33+4),BQ33<(BP33-4)),BQ33,BP33))) ->  | BQ34: =IF(BQ33="","",IF(OR(BQ33>(BP33+4),BQ33<(BP33-4)),"Agncy Repl.","")) ->  | BR34: =IF(BR33="","",IF(BS33="",BR33,IF(OR(BS33>(BR33+4),BS33<(BR33-4)),BS33,BR33))) ->  | BS34: =IF(BS33="","",IF(OR(BS33>(BR33+4),BS33<(BR33-4)),"Agncy Repl.","")) ->  | BU34: #30 Calc. % | BX34: =IF(BX33="","",IF(BY33="",BX33,IF(OR(BY33>(BX33+4),BY33<(BX33-4)),BY33,BX33))) ->  | BY34: =IF(BY33="","",IF(OR(BY33>(BX33+4),BY33<(BX33-4)),"Agncy Repl.","")) ->  | BZ34: =IF(BZ33="","",IF(CA33="",BZ33,IF(OR(CA33>(BZ33+4),CA33<(BZ33-4)),CA33,BZ33))) ->  | CA34: =IF(CA33="","",IF(OR(CA33>(BZ33+4),CA33<(BZ33-4)),"Agncy Repl.","")) ->  | CB34: =IF(CB33="","",IF(CC33="",CB33,IF(OR(CC33>(CB33+4),CC33<(CB33-4)),CC33,CB33))) ->  | CC34: =IF(CC33="","",IF(OR(CC33>(CB33+4),CC33<(CB33-4)),"Agncy Repl.","")) ->  | CD34: =IF(CD33="","",IF(CE33="",CD33,IF(OR(CE33>(CD33+4),CE33<(CD33-4)),CE33,CD33))) ->  | CE34: =IF(CE33="","",IF(OR(CE33>(CD33+4),CE33<(CD33-4)),"Agncy Repl.","")) ->  | CG34: #30 Calc. % | CJ34: =IF(CJ33="","",IF(CK33="",CJ33,IF(OR(CK33>(CJ33+4),CK33<(CJ33-4)),CK33,CJ33))) ->  | CK34: =IF(CK33="","",IF(OR(CK33>(CJ33+4),CK33<(CJ33-4)),"Agncy Repl.","")) ->  | CL34: =IF(CL33="","",IF(CM33="",CL33,IF(OR(CM33>(CL33+4),CM33<(CL33-4)),CM33,CL33))) ->  | CM34: =IF(CM33="","",IF(OR(CM33>(CL33+4),CM33<(CL33-4)),"Agncy Repl.","")) ->  | CN34: =IF(CN33="","",IF(CO33="",CN33,IF(OR(CO33>(CN33+4),CO33<(CN33-4)),CO33,CN33))) ->  | CO34: =IF(CO33="","",IF(OR(CO33>(CN33+4),CO33<(CN33-4)),"Agncy Repl.","")) ->  | CP34: =IF(CP33="","",IF(CQ33="",CP33,IF(OR(CQ33>(CP33+4),CQ33<(CP33-4)),CQ33,CP33))) ->  | CQ34: =IF(CQ33="","",IF(OR(CQ33>(CP33+4),CQ33<(CP33-4)),"Agncy Repl.","")) ->  | CS34: #30 Calc. % | CV34: =IF(CV33="","",IF(CW33="",CV33,IF(OR(CW33>(CV33+4),CW33<(CV33-4)),CW33,CV33))) ->  | CW34: =IF(CW33="","",IF(OR(CW33>(CV33+4),CW33<(CV33-4)),"Agncy Repl.","")) ->  | CX34: =IF(CX33="","",IF(CY33="",CX33,IF(OR(CY33>(CX33+4),CY33<(CX33-4)),CY33,CX33))) ->  | CY34: =IF(CY33="","",IF(OR(CY33>(CX33+4),CY33<(CX33-4)),"Agncy Repl.","")) ->  | CZ34: =IF(CZ33="","",IF(DA33="",CZ33,IF(OR(DA33>(CZ33+4),DA33<(CZ33-4)),DA33,CZ33))) ->  | DA34: =IF(DA33="","",IF(OR(DA33>(CZ33+4),DA33<(CZ33-4)),"Agncy Repl.","")) ->  | DB34: =IF(DB33="","",IF(DC33="",DB33,IF(OR(DC33>(DB33+4),DC33<(DB33-4)),DC33,DB33))) ->  | DC34: =IF(DC33="","",IF(OR(DC33>(DB33+4),DC33<(DB33-4)),"Agncy Repl.","")) ->  | DE34: #30 Calc. % | DH34: =IF(DH33="","",IF(DI33="",DH33,IF(OR(DI33>(DH33+4),DI33<(DH33-4)),DI33,DH33))) ->  | DI34: =IF(DI33="","",IF(OR(DI33>(DH33+4),DI33<(DH33-4)),"Agncy Repl.","")) ->  | DJ34: =IF(DJ33="","",IF(DK33="",DJ33,IF(OR(DK33>(DJ33+4),DK33<(DJ33-4)),DK33,DJ33))) ->  | DK34: =IF(DK33="","",IF(OR(DK33>(DJ33+4),DK33<(DJ33-4)),"Agncy Repl.","")) ->  | DL34: =IF(DL33="","",IF(DM33="",DL33,IF(OR(DM33>(DL33+4),DM33<(DL33-4)),DM33,DL33))) ->  | DM34: =IF(DM33="","",IF(OR(DM33>(DL33+4),DM33<(DL33-4)),"Agncy Repl.","")) ->  | DN34: =IF(DN33="","",IF(DO33="",DN33,IF(OR(DO33>(DN33+4),DO33<(DN33-4)),DO33,DN33))) ->  | DO34: =IF(DO33="","",IF(OR(DO33>(DN33+4),DO33<(DN33-4)),"Agncy Repl.","")) ->  | DQ34: #30 Calc. % | DT34: =IF(DT33="","",IF(DU33="",DT33,IF(OR(DU33>(DT33+4),DU33<(DT33-4)),DU33,DT33))) ->  | DU34: =IF(DU33="","",IF(OR(DU33>(DT33+4),DU33<(DT33-4)),"Agncy Repl.","")) ->  | DV34: =IF(DV33="","",IF(DW33="",DV33,IF(OR(DW33>(DV33+4),DW33<(DV33-4)),DW33,DV33))) ->  | DW34: =IF(DW33="","",IF(OR(DW33>(DV33+4),DW33<(DV33-4)),"Agncy Repl.","")) ->  | DX34: =IF(DX33="","",IF(DY33="",DX33,IF(OR(DY33>(DX33+4),DY33<(DX33-4)),DY33,DX33))) ->  | DY34: =IF(DY33="","",IF(OR(DY33>(DX33+4),DY33<(DX33-4)),"Agncy Repl.","")) ->  | DZ34: =IF(DZ33="","",IF(EA33="",DZ33,IF(OR(EA33>(DZ33+4),EA33<(DZ33-4)),EA33,DZ33))) ->  | EA34: =IF(EA33="","",IF(OR(EA33>(DZ33+4),EA33<(DZ33-4)),"Agncy Repl.","")) ->  | EC34: #30 Calc. % | EF34: =IF(EF33="","",IF(EG33="",EF33,IF(OR(EG33>(EF33+4),EG33<(EF33-4)),EG33,EF33))) ->  | EG34: =IF(EG33="","",IF(OR(EG33>(EF33+4),EG33<(EF33-4)),"Agncy Repl.","")) ->  | EH34: =IF(EH33="","",IF(EI33="",EH33,IF(OR(EI33>(EH33+4),EI33<(EH33-4)),EI33,EH33))) ->  | EI34: =IF(EI33="","",IF(OR(EI33>(EH33+4),EI33<(EH33-4)),"Agncy Repl.","")) ->  | EJ34: =IF(EJ33="","",IF(EK33="",EJ33,IF(OR(EK33>(EJ33+4),EK33<(EJ33-4)),EK33,EJ33))) ->  | EK34: =IF(EK33="","",IF(OR(EK33>(EJ33+4),EK33<(EJ33-4)),"Agncy Repl.","")) ->  | EL34: =IF(EL33="","",IF(EM33="",EL33,IF(OR(EM33>(EL33+4),EM33<(EL33-4)),EM33,EL33))) ->  | EM34: =IF(EM33="","",IF(OR(EM33>(EL33+4),EM33<(EL33-4)),"Agncy Repl.","")) ->  | EO34: #30 Calc. % | ER34: =IF(ER33="","",IF(ES33="",ER33,IF(OR(ES33>(ER33+4),ES33<(ER33-4)),ES33,ER33))) ->  | ES34: =IF(ES33="","",IF(OR(ES33>(ER33+4),ES33<(ER33-4)),"Agncy Repl.","")) ->  | ET34: =IF(ET33="","",IF(EU33="",ET33,IF(OR(EU33>(ET33+4),EU33<(ET33-4)),EU33,ET33))) ->  | EU34: =IF(EU33="","",IF(OR(EU33>(ET33+4),EU33<(ET33-4)),"Agncy Repl.","")) ->  | EV34: =IF(EV33="","",IF(EW33="",EV33,IF(OR(EW33>(EV33+4),EW33<(EV33-4)),EW33,EV33))) ->  | EW34: =IF(EW33="","",IF(OR(EW33>(EV33+4),EW33<(EV33-4)),"Agncy Repl.","")) ->  | EX34: =IF(EX33="","",IF(EY33="",EX33,IF(OR(EY33>(EX33+4),EY33<(EX33-4)),EY33,EX33))) ->  | EY34: =IF(EY33="","",IF(OR(EY33>(EX33+4),EY33<(EX33-4)),"Agncy Repl.","")) ->  | FA34: #30 Calc. % | FD34: =IF(FD33="","",IF(FE33="",FD33,IF(OR(FE33>(FD33+4),FE33<(FD33-4)),FE33,FD33))) ->  | FE34: =IF(FE33="","",IF(OR(FE33>(FD33+4),FE33<(FD33-4)),"Agncy Repl.","")) ->  | FF34: =IF(FF33="","",IF(FG33="",FF33,IF(OR(FG33>(FF33+4),FG33<(FF33-4)),FG33,FF33))) ->  | FG34: =IF(FG33="","",IF(OR(FG33>(FF33+4),FG33<(FF33-4)),"Agncy Repl.","")) ->  | FH34: =IF(FH33="","",IF(FI33="",FH33,IF(OR(FI33>(FH33+4),FI33<(FH33-4)),FI33,FH33))) ->  | FI34: =IF(FI33="","",IF(OR(FI33>(FH33+4),FI33<(FH33-4)),"Agncy Repl.","")) ->  | FJ34: =IF(FJ33="","",IF(FK33="",FJ33,IF(OR(FK33>(FJ33+4),FK33<(FJ33-4)),FK33,FJ33))) ->  | FK34: =IF(FK33="","",IF(OR(FK33>(FJ33+4),FK33<(FJ33-4)),"Agncy Repl.","")) ->  | FM34: #30 Calc. % | FP34: =IF(FP33="","",IF(FQ33="",FP33,IF(OR(FQ33>(FP33+4),FQ33<(FP33-4)),FQ33,FP33))) ->  | FQ34: =IF(FQ33="","",IF(OR(FQ33>(FP33+4),FQ33<(FP33-4)),"Agncy Repl.","")) ->  | FR34: =IF(FR33="","",IF(FS33="",FR33,IF(OR(FS33>(FR33+4),FS33<(FR33-4)),FS33,FR33))) ->  | FS34: =IF(FS33="","",IF(OR(FS33>(FR33+4),FS33<(FR33-4)),"Agncy Repl.","")) ->  | FT34: =IF(FT33="","",IF(FU33="",FT33,IF(OR(FU33>(FT33+4),FU33<(FT33-4)),FU33,FT33))) ->  | FU34: =IF(FU33="","",IF(OR(FU33>(FT33+4),FU33<(FT33-4)),"Agncy Repl.","")) ->  | FV34: =IF(FV33="","",IF(FW33="",FV33,IF(OR(FW33>(FV33+4),FW33<(FV33-4)),FW33,FV33))) ->  | FW34: =IF(FW33="","",IF(OR(FW33>(FV33+4),FW33<(FV33-4)),"Agncy Repl.","")) ->  | FY34: #30 Calc. % | GB34: =IF(GB33="","",IF(GC33="",GB33,IF(OR(GC33>(GB33+4),GC33<(GB33-4)),GC33,GB33))) ->  | GC34: =IF(GC33="","",IF(OR(GC33>(GB33+4),GC33<(GB33-4)),"Agncy Repl.","")) ->  | GD34: =IF(GD33="","",IF(GE33="",GD33,IF(OR(GE33>(GD33+4),GE33<(GD33-4)),GE33,GD33))) ->  | GE34: =IF(GE33="","",IF(OR(GE33>(GD33+4),GE33<(GD33-4)),"Agncy Repl.","")) ->  | GF34: =IF(GF33="","",IF(GG33="",GF33,IF(OR(GG33>(GF33+4),GG33<(GF33-4)),GG33,GF33))) ->  | GG34: =IF(GG33="","",IF(OR(GG33>(GF33+4),GG33<(GF33-4)),"Agncy Repl.","")) ->  | GH34: =IF(GH33="","",IF(GI33="",GH33,IF(OR(GI33>(GH33+4),GI33<(GH33-4)),GI33,GH33))) ->  | GI34: =IF(GI33="","",IF(OR(GI33>(GH33+4),GI33<(GH33-4)),"Agncy Repl.","")) ->  | GK34: #30 Calc. % | GN34: =IF(GN33="","",IF(GO33="",GN33,IF(OR(GO33>(GN33+4),GO33<(GN33-4)),GO33,GN33))) ->  | GO34: =IF(GO33="","",IF(OR(GO33>(GN33+4),GO33<(GN33-4)),"Agncy Repl.","")) ->  | GP34: =IF(GP33="","",IF(GQ33="",GP33,IF(OR(GQ33>(GP33+4),GQ33<(GP33-4)),GQ33,GP33))) ->  | GQ34: =IF(GQ33="","",IF(OR(GQ33>(GP33+4),GQ33<(GP33-4)),"Agncy Repl.","")) ->  | GR34: =IF(GR33="","",IF(GS33="",GR33,IF(OR(GS33>(GR33+4),GS33<(GR33-4)),GS33,GR33))) ->  | GS34: =IF(GS33="","",IF(OR(GS33>(GR33+4),GS33<(GR33-4)),"Agncy Repl.","")) ->  | GT34: =IF(GT33="","",IF(GU33="",GT33,IF(OR(GU33>(GT33+4),GU33<(GT33-4)),GU33,GT33))) ->  | GU34: =IF(GU33="","",IF(OR(GU33>(GT33+4),GU33<(GT33-4)),"Agncy Repl.","")) ->  | GW34: #30 Calc. % | GZ34: =IF(GZ33="","",IF(HA33="",GZ33,IF(OR(HA33>(GZ33+4),HA33<(GZ33-4)),HA33,GZ33))) ->  | HA34: =IF(HA33="","",IF(OR(HA33>(GZ33+4),HA33<(GZ33-4)),"Agncy Repl.","")) ->  | HB34: =IF(HB33="","",IF(HC33="",HB33,IF(OR(HC33>(HB33+4),HC33<(HB33-4)),HC33,HB33))) ->  | HC34: =IF(HC33="","",IF(OR(HC33>(HB33+4),HC33<(HB33-4)),"Agncy Repl.","")) ->  | HD34: =IF(HD33="","",IF(HE33="",HD33,IF(OR(HE33>(HD33+4),HE33<(HD33-4)),HE33,HD33))) ->  | HE34: =IF(HE33="","",IF(OR(HE33>(HD33+4),HE33<(HD33-4)),"Agncy Repl.","")) ->  | HF34: =IF(HF33="","",IF(HG33="",HF33,IF(OR(HG33>(HF33+4),HG33<(HF33-4)),HG33,HF33))) ->  | HG34: =IF(HG33="","",IF(OR(HG33>(HF33+4),HG33<(HF33-4)),"Agncy Repl.","")) ->  | HI34: #30 Calc. % | HL34: =IF(HL33="","",IF(HM33="",HL33,IF(OR(HM33>(HL33+4),HM33<(HL33-4)),HM33,HL33))) ->  | HM34: =IF(HM33="","",IF(OR(HM33>(HL33+4),HM33<(HL33-4)),"Agncy Repl.","")) ->  | HN34: =IF(HN33="","",IF(HO33="",HN33,IF(OR(HO33>(HN33+4),HO33<(HN33-4)),HO33,HN33))) ->  | HO34: =IF(HO33="","",IF(OR(HO33>(HN33+4),HO33<(HN33-4)),"Agncy Repl.","")) ->  | HP34: =IF(HP33="","",IF(HQ33="",HP33,IF(OR(HQ33>(HP33+4),HQ33<(HP33-4)),HQ33,HP33))) ->  | HQ34: =IF(HQ33="","",IF(OR(HQ33>(HP33+4),HQ33<(HP33-4)),"Agncy Repl.","")) ->  | HR34: =IF(HR33="","",IF(HS33="",HR33,IF(OR(HS33>(HR33+4),HS33<(HR33-4)),HS33,HR33))) ->  | HS34: =IF(HS33="","",IF(OR(HS33>(HR33+4),HS33<(HR33-4)),"Agncy Repl.","")) ->  | HU34: #30 Calc. % | HX34: =IF(HX33="","",IF(HY33="",HX33,IF(OR(HY33>(HX33+4),HY33<(HX33-4)),HY33,HX33))) ->  | HY34: =IF(HY33="","",IF(OR(HY33>(HX33+4),HY33<(HX33-4)),"Agncy Repl.","")) ->  | HZ34: =IF(HZ33="","",IF(IA33="",HZ33,IF(OR(IA33>(HZ33+4),IA33<(HZ33-4)),IA33,HZ33))) ->  | IA34: =IF(IA33="","",IF(OR(IA33>(HZ33+4),IA33<(HZ33-4)),"Agncy Repl.","")) ->  | IB34: =IF(IB33="","",IF(IC33="",IB33,IF(OR(IC33>(IB33+4),IC33<(IB33-4)),IC33,IB33))) ->  | IC34: =IF(IC33="","",IF(OR(IC33>(IB33+4),IC33<(IB33-4)),"Agncy Repl.","")) ->  | ID34: =IF(ID33="","",IF(IE33="",ID33,IF(OR(IE33>(ID33+4),IE33<(ID33-4)),IE33,ID33))) ->  | IE34: =IF(IE33="","",IF(OR(IE33>(ID33+4),IE33<(ID33-4)),"Agncy Repl.","")) ->  | IG34: #30 Calc. % | IJ34: =IF(IJ33="","",IF(IK33="",IJ33,IF(OR(IK33>(IJ33+4),IK33<(IJ33-4)),IK33,IJ33))) ->  | IK34: =IF(IK33="","",IF(OR(IK33>(IJ33+4),IK33<(IJ33-4)),"Agncy Repl.","")) ->  | IL34: =IF(IL33="","",IF(IM33="",IL33,IF(OR(IM33>(IL33+4),IM33<(IL33-4)),IM33,IL33))) ->  | IM34: =IF(IM33="","",IF(OR(IM33>(IL33+4),IM33<(IL33-4)),"Agncy Repl.","")) ->  | IN34: =IF(IN33="","",IF(IO33="",IN33,IF(OR(IO33>(IN33+4),IO33<(IN33-4)),IO33,IN33))) ->  | IO34: =IF(IO33="","",IF(OR(IO33>(IN33+4),IO33<(IN33-4)),"Agncy Repl.","")) ->  | IP34: =IF(IP33="","",IF(IQ33="",IP33,IF(OR(IQ33>(IP33+4),IQ33<(IP33-4)),IQ33,IP33))) ->  | IQ34: =IF(IQ33="","",IF(OR(IQ33>(IP33+4),IQ33<(IP33-4)),"Agncy Repl.","")) -> 
A35: # 50 | M35: # 50 | Y35: # 50 | AK35: # 50 | AW35: # 50 | BI35: # 50 | BU35: # 50 | CG35: # 50 | CS35: # 50 | DE35: # 50 | DQ35: # 50 | EC35: # 50 | EO35: # 50 | FA35: # 50 | FM35: # 50 | FY35: # 50 | GK35: # 50 | GW35: # 50 | HI35: # 50 | HU35: # 50 | IG35: # 50 | IT35: 0 | IU35: Agency AFT Substituted
A36: #50 Calc. % | D36: =IF(D35="","",IF(E35="",D35,IF(OR(E35>(D35+3),E35<(D35-3)),E35,D35))) ->  | E36: =IF(E35="","",IF(OR(E35>(D35+3),E35<(D35-3)),"Agncy Repl.","")) ->  | F36: =IF(F35="","",IF(G35="",F35,IF(OR(G35>(F35+3),G35<(F35-3)),G35,F35))) ->  | G36: =IF(G35="","",IF(OR(G35>(F35+3),G35<(F35-3)),"Agncy Repl.","")) ->  | H36: =IF(H35="","",IF(I35="",H35,IF(OR(I35>(H35+3),I35<(H35-3)),I35,H35))) ->  | I36: =IF(I35="","",IF(OR(I35>(H35+3),I35<(H35-3)),"Agncy Repl.","")) ->  | J36: =IF(J35="","",IF(K35="",J35,IF(OR(K35>(J35+3),K35<(J35-3)),K35,J35))) ->  | K36: =IF(K35="","",IF(OR(K35>(J35+3),K35<(J35-3)),"Agncy Repl.","")) ->  | M36: #50 Calc. % | P36: =IF(P35="","",IF(Q35="",P35,IF(OR(Q35>(P35+3),Q35<(P35-3)),Q35,P35))) ->  | Q36: =IF(Q35="","",IF(OR(Q35>(P35+3),Q35<(P35-3)),"Agncy Repl.","")) ->  | R36: =IF(R35="","",IF(S35="",R35,IF(OR(S35>(R35+3),S35<(R35-3)),S35,R35))) ->  | S36: =IF(S35="","",IF(OR(S35>(R35+3),S35<(R35-3)),"Agncy Repl.","")) ->  | T36: =IF(T35="","",IF(U35="",T35,IF(OR(U35>(T35+3),U35<(T35-3)),U35,T35))) ->  | U36: =IF(U35="","",IF(OR(U35>(T35+3),U35<(T35-3)),"Agncy Repl.","")) ->  | V36: =IF(V35="","",IF(W35="",V35,IF(OR(W35>(V35+3),W35<(V35-3)),W35,V35))) ->  | W36: =IF(W35="","",IF(OR(W35>(V35+3),W35<(V35-3)),"Agncy Repl.","")) ->  | Y36: #50 Calc. % | AB36: =IF(AB35="","",IF(AC35="",AB35,IF(OR(AC35>(AB35+3),AC35<(AB35-3)),AC35,AB35))) ->  | AC36: =IF(AC35="","",IF(OR(AC35>(AB35+3),AC35<(AB35-3)),"Agncy Repl.","")) ->  | AD36: =IF(AD35="","",IF(AE35="",AD35,IF(OR(AE35>(AD35+3),AE35<(AD35-3)),AE35,AD35))) ->  | AE36: =IF(AE35="","",IF(OR(AE35>(AD35+3),AE35<(AD35-3)),"Agncy Repl.","")) ->  | AF36: =IF(AF35="","",IF(AG35="",AF35,IF(OR(AG35>(AF35+3),AG35<(AF35-3)),AG35,AF35))) ->  | AG36: =IF(AG35="","",IF(OR(AG35>(AF35+3),AG35<(AF35-3)),"Agncy Repl.","")) ->  | AH36: =IF(AH35="","",IF(AI35="",AH35,IF(OR(AI35>(AH35+3),AI35<(AH35-3)),AI35,AH35))) ->  | AI36: =IF(AI35="","",IF(OR(AI35>(AH35+3),AI35<(AH35-3)),"Agncy Repl.","")) ->  | AK36: #50 Calc. % | AN36: =IF(AN35="","",IF(AO35="",AN35,IF(OR(AO35>(AN35+3),AO35<(AN35-3)),AO35,AN35))) ->  | AO36: =IF(AO35="","",IF(OR(AO35>(AN35+3),AO35<(AN35-3)),"Agncy Repl.","")) ->  | AP36: =IF(AP35="","",IF(AQ35="",AP35,IF(OR(AQ35>(AP35+3),AQ35<(AP35-3)),AQ35,AP35))) ->  | AQ36: =IF(AQ35="","",IF(OR(AQ35>(AP35+3),AQ35<(AP35-3)),"Agncy Repl.","")) ->  | AR36: =IF(AR35="","",IF(AS35="",AR35,IF(OR(AS35>(AR35+3),AS35<(AR35-3)),AS35,AR35))) ->  | AS36: =IF(AS35="","",IF(OR(AS35>(AR35+3),AS35<(AR35-3)),"Agncy Repl.","")) ->  | AT36: =IF(AT35="","",IF(AU35="",AT35,IF(OR(AU35>(AT35+3),AU35<(AT35-3)),AU35,AT35))) ->  | AU36: =IF(AU35="","",IF(OR(AU35>(AT35+3),AU35<(AT35-3)),"Agncy Repl.","")) ->  | AW36: #50 Calc. % | AZ36: =IF(AZ35="","",IF(BA35="",AZ35,IF(OR(BA35>(AZ35+3),BA35<(AZ35-3)),BA35,AZ35))) ->  | BA36: =IF(BA35="","",IF(OR(BA35>(AZ35+3),BA35<(AZ35-3)),"Agncy Repl.","")) ->  | BB36: =IF(BB35="","",IF(BC35="",BB35,IF(OR(BC35>(BB35+3),BC35<(BB35-3)),BC35,BB35))) ->  | BC36: =IF(BC35="","",IF(OR(BC35>(BB35+3),BC35<(BB35-3)),"Agncy Repl.","")) ->  | BD36: =IF(BD35="","",IF(BE35="",BD35,IF(OR(BE35>(BD35+3),BE35<(BD35-3)),BE35,BD35))) ->  | BE36: =IF(BE35="","",IF(OR(BE35>(BD35+3),BE35<(BD35-3)),"Agncy Repl.","")) ->  | BF36: =IF(BF35="","",IF(BG35="",BF35,IF(OR(BG35>(BF35+3),BG35<(BF35-3)),BG35,BF35))) ->  | BG36: =IF(BG35="","",IF(OR(BG35>(BF35+3),BG35<(BF35-3)),"Agncy Repl.","")) ->  | BI36: #50 Calc. % | BL36: =IF(BL35="","",IF(BM35="",BL35,IF(OR(BM35>(BL35+3),BM35<(BL35-3)),BM35,BL35))) ->  | BM36: =IF(BM35="","",IF(OR(BM35>(BL35+3),BM35<(BL35-3)),"Agncy Repl.","")) ->  | BN36: =IF(BN35="","",IF(BO35="",BN35,IF(OR(BO35>(BN35+3),BO35<(BN35-3)),BO35,BN35))) ->  | BO36: =IF(BO35="","",IF(OR(BO35>(BN35+3),BO35<(BN35-3)),"Agncy Repl.","")) ->  | BP36: =IF(BP35="","",IF(BQ35="",BP35,IF(OR(BQ35>(BP35+3),BQ35<(BP35-3)),BQ35,BP35))) ->  | BQ36: =IF(BQ35="","",IF(OR(BQ35>(BP35+3),BQ35<(BP35-3)),"Agncy Repl.","")) ->  | BR36: =IF(BR35="","",IF(BS35="",BR35,IF(OR(BS35>(BR35+3),BS35<(BR35-3)),BS35,BR35))) ->  | BS36: =IF(BS35="","",IF(OR(BS35>(BR35+3),BS35<(BR35-3)),"Agncy Repl.","")) ->  | BU36: #50 Calc. % | BX36: =IF(BX35="","",IF(BY35="",BX35,IF(OR(BY35>(BX35+3),BY35<(BX35-3)),BY35,BX35))) ->  | BY36: =IF(BY35="","",IF(OR(BY35>(BX35+3),BY35<(BX35-3)),"Agncy Repl.","")) ->  | BZ36: =IF(BZ35="","",IF(CA35="",BZ35,IF(OR(CA35>(BZ35+3),CA35<(BZ35-3)),CA35,BZ35))) ->  | CA36: =IF(CA35="","",IF(OR(CA35>(BZ35+3),CA35<(BZ35-3)),"Agncy Repl.","")) ->  | CB36: =IF(CB35="","",IF(CC35="",CB35,IF(OR(CC35>(CB35+3),CC35<(CB35-3)),CC35,CB35))) ->  | CC36: =IF(CC35="","",IF(OR(CC35>(CB35+3),CC35<(CB35-3)),"Agncy Repl.","")) ->  | CD36: =IF(CD35="","",IF(CE35="",CD35,IF(OR(CE35>(CD35+3),CE35<(CD35-3)),CE35,CD35))) ->  | CE36: =IF(CE35="","",IF(OR(CE35>(CD35+3),CE35<(CD35-3)),"Agncy Repl.","")) ->  | CG36: #50 Calc. % | CJ36: =IF(CJ35="","",IF(CK35="",CJ35,IF(OR(CK35>(CJ35+3),CK35<(CJ35-3)),CK35,CJ35))) ->  | CK36: =IF(CK35="","",IF(OR(CK35>(CJ35+3),CK35<(CJ35-3)),"Agncy Repl.","")) ->  | CL36: =IF(CL35="","",IF(CM35="",CL35,IF(OR(CM35>(CL35+3),CM35<(CL35-3)),CM35,CL35))) ->  | CM36: =IF(CM35="","",IF(OR(CM35>(CL35+3),CM35<(CL35-3)),"Agncy Repl.","")) ->  | CN36: =IF(CN35="","",IF(CO35="",CN35,IF(OR(CO35>(CN35+3),CO35<(CN35-3)),CO35,CN35))) ->  | CO36: =IF(CO35="","",IF(OR(CO35>(CN35+3),CO35<(CN35-3)),"Agncy Repl.","")) ->  | CP36: =IF(CP35="","",IF(CQ35="",CP35,IF(OR(CQ35>(CP35+3),CQ35<(CP35-3)),CQ35,CP35))) ->  | CQ36: =IF(CQ35="","",IF(OR(CQ35>(CP35+3),CQ35<(CP35-3)),"Agncy Repl.","")) ->  | CS36: #50 Calc. % | CV36: =IF(CV35="","",IF(CW35="",CV35,IF(OR(CW35>(CV35+3),CW35<(CV35-3)),CW35,CV35))) ->  | CW36: =IF(CW35="","",IF(OR(CW35>(CV35+3),CW35<(CV35-3)),"Agncy Repl.","")) ->  | CX36: =IF(CX35="","",IF(CY35="",CX35,IF(OR(CY35>(CX35+3),CY35<(CX35-3)),CY35,CX35))) ->  | CY36: =IF(CY35="","",IF(OR(CY35>(CX35+3),CY35<(CX35-3)),"Agncy Repl.","")) ->  | CZ36: =IF(CZ35="","",IF(DA35="",CZ35,IF(OR(DA35>(CZ35+3),DA35<(CZ35-3)),DA35,CZ35))) ->  | DA36: =IF(DA35="","",IF(OR(DA35>(CZ35+3),DA35<(CZ35-3)),"Agncy Repl.","")) ->  | DB36: =IF(DB35="","",IF(DC35="",DB35,IF(OR(DC35>(DB35+3),DC35<(DB35-3)),DC35,DB35))) ->  | DC36: =IF(DC35="","",IF(OR(DC35>(DB35+3),DC35<(DB35-3)),"Agncy Repl.","")) ->  | DE36: #50 Calc. % | DH36: =IF(DH35="","",IF(DI35="",DH35,IF(OR(DI35>(DH35+3),DI35<(DH35-3)),DI35,DH35))) ->  | DI36: =IF(DI35="","",IF(OR(DI35>(DH35+3),DI35<(DH35-3)),"Agncy Repl.","")) ->  | DJ36: =IF(DJ35="","",IF(DK35="",DJ35,IF(OR(DK35>(DJ35+3),DK35<(DJ35-3)),DK35,DJ35))) ->  | DK36: =IF(DK35="","",IF(OR(DK35>(DJ35+3),DK35<(DJ35-3)),"Agncy Repl.","")) ->  | DL36: =IF(DL35="","",IF(DM35="",DL35,IF(OR(DM35>(DL35+3),DM35<(DL35-3)),DM35,DL35))) ->  | DM36: =IF(DM35="","",IF(OR(DM35>(DL35+3),DM35<(DL35-3)),"Agncy Repl.","")) ->  | DN36: =IF(DN35="","",IF(DO35="",DN35,IF(OR(DO35>(DN35+3),DO35<(DN35-3)),DO35,DN35))) ->  | DO36: =IF(DO35="","",IF(OR(DO35>(DN35+3),DO35<(DN35-3)),"Agncy Repl.","")) ->  | DQ36: #50 Calc. % | DT36: =IF(DT35="","",IF(DU35="",DT35,IF(OR(DU35>(DT35+3),DU35<(DT35-3)),DU35,DT35))) ->  | DU36: =IF(DU35="","",IF(OR(DU35>(DT35+3),DU35<(DT35-3)),"Agncy Repl.","")) ->  | DV36: =IF(DV35="","",IF(DW35="",DV35,IF(OR(DW35>(DV35+3),DW35<(DV35-3)),DW35,DV35))) ->  | DW36: =IF(DW35="","",IF(OR(DW35>(DV35+3),DW35<(DV35-3)),"Agncy Repl.","")) ->  | DX36: =IF(DX35="","",IF(DY35="",DX35,IF(OR(DY35>(DX35+3),DY35<(DX35-3)),DY35,DX35))) ->  | DY36: =IF(DY35="","",IF(OR(DY35>(DX35+3),DY35<(DX35-3)),"Agncy Repl.","")) ->  | DZ36: =IF(DZ35="","",IF(EA35="",DZ35,IF(OR(EA35>(DZ35+3),EA35<(DZ35-3)),EA35,DZ35))) ->  | EA36: =IF(EA35="","",IF(OR(EA35>(DZ35+3),EA35<(DZ35-3)),"Agncy Repl.","")) ->  | EC36: #50 Calc. % | EF36: =IF(EF35="","",IF(EG35="",EF35,IF(OR(EG35>(EF35+3),EG35<(EF35-3)),EG35,EF35))) ->  | EG36: =IF(EG35="","",IF(OR(EG35>(EF35+3),EG35<(EF35-3)),"Agncy Repl.","")) ->  | EH36: =IF(EH35="","",IF(EI35="",EH35,IF(OR(EI35>(EH35+3),EI35<(EH35-3)),EI35,EH35))) ->  | EI36: =IF(EI35="","",IF(OR(EI35>(EH35+3),EI35<(EH35-3)),"Agncy Repl.","")) ->  | EJ36: =IF(EJ35="","",IF(EK35="",EJ35,IF(OR(EK35>(EJ35+3),EK35<(EJ35-3)),EK35,EJ35))) ->  | EK36: =IF(EK35="","",IF(OR(EK35>(EJ35+3),EK35<(EJ35-3)),"Agncy Repl.","")) ->  | EL36: =IF(EL35="","",IF(EM35="",EL35,IF(OR(EM35>(EL35+3),EM35<(EL35-3)),EM35,EL35))) ->  | EM36: =IF(EM35="","",IF(OR(EM35>(EL35+3),EM35<(EL35-3)),"Agncy Repl.","")) ->  | EO36: #50 Calc. % | ER36: =IF(ER35="","",IF(ES35="",ER35,IF(OR(ES35>(ER35+3),ES35<(ER35-3)),ES35,ER35))) ->  | ES36: =IF(ES35="","",IF(OR(ES35>(ER35+3),ES35<(ER35-3)),"Agncy Repl.","")) ->  | ET36: =IF(ET35="","",IF(EU35="",ET35,IF(OR(EU35>(ET35+3),EU35<(ET35-3)),EU35,ET35))) ->  | EU36: =IF(EU35="","",IF(OR(EU35>(ET35+3),EU35<(ET35-3)),"Agncy Repl.","")) ->  | EV36: =IF(EV35="","",IF(EW35="",EV35,IF(OR(EW35>(EV35+3),EW35<(EV35-3)),EW35,EV35))) ->  | EW36: =IF(EW35="","",IF(OR(EW35>(EV35+3),EW35<(EV35-3)),"Agncy Repl.","")) ->  | EX36: =IF(EX35="","",IF(EY35="",EX35,IF(OR(EY35>(EX35+3),EY35<(EX35-3)),EY35,EX35))) ->  | EY36: =IF(EY35="","",IF(OR(EY35>(EX35+3),EY35<(EX35-3)),"Agncy Repl.","")) ->  | FA36: #50 Calc. % | FD36: =IF(FD35="","",IF(FE35="",FD35,IF(OR(FE35>(FD35+3),FE35<(FD35-3)),FE35,FD35))) ->  | FE36: =IF(FE35="","",IF(OR(FE35>(FD35+3),FE35<(FD35-3)),"Agncy Repl.","")) ->  | FF36: =IF(FF35="","",IF(FG35="",FF35,IF(OR(FG35>(FF35+3),FG35<(FF35-3)),FG35,FF35))) ->  | FG36: =IF(FG35="","",IF(OR(FG35>(FF35+3),FG35<(FF35-3)),"Agncy Repl.","")) ->  | FH36: =IF(FH35="","",IF(FI35="",FH35,IF(OR(FI35>(FH35+3),FI35<(FH35-3)),FI35,FH35))) ->  | FI36: =IF(FI35="","",IF(OR(FI35>(FH35+3),FI35<(FH35-3)),"Agncy Repl.","")) ->  | FJ36: =IF(FJ35="","",IF(FK35="",FJ35,IF(OR(FK35>(FJ35+3),FK35<(FJ35-3)),FK35,FJ35))) ->  | FK36: =IF(FK35="","",IF(OR(FK35>(FJ35+3),FK35<(FJ35-3)),"Agncy Repl.","")) ->  | FM36: #50 Calc. % | FP36: =IF(FP35="","",IF(FQ35="",FP35,IF(OR(FQ35>(FP35+3),FQ35<(FP35-3)),FQ35,FP35))) ->  | FQ36: =IF(FQ35="","",IF(OR(FQ35>(FP35+3),FQ35<(FP35-3)),"Agncy Repl.","")) ->  | FR36: =IF(FR35="","",IF(FS35="",FR35,IF(OR(FS35>(FR35+3),FS35<(FR35-3)),FS35,FR35))) ->  | FS36: =IF(FS35="","",IF(OR(FS35>(FR35+3),FS35<(FR35-3)),"Agncy Repl.","")) ->  | FT36: =IF(FT35="","",IF(FU35="",FT35,IF(OR(FU35>(FT35+3),FU35<(FT35-3)),FU35,FT35))) ->  | FU36: =IF(FU35="","",IF(OR(FU35>(FT35+3),FU35<(FT35-3)),"Agncy Repl.","")) ->  | FV36: =IF(FV35="","",IF(FW35="",FV35,IF(OR(FW35>(FV35+3),FW35<(FV35-3)),FW35,FV35))) ->  | FW36: =IF(FW35="","",IF(OR(FW35>(FV35+3),FW35<(FV35-3)),"Agncy Repl.","")) ->  | FY36: #50 Calc. % | GB36: =IF(GB35="","",IF(GC35="",GB35,IF(OR(GC35>(GB35+3),GC35<(GB35-3)),GC35,GB35))) ->  | GC36: =IF(GC35="","",IF(OR(GC35>(GB35+3),GC35<(GB35-3)),"Agncy Repl.","")) ->  | GD36: =IF(GD35="","",IF(GE35="",GD35,IF(OR(GE35>(GD35+3),GE35<(GD35-3)),GE35,GD35))) ->  | GE36: =IF(GE35="","",IF(OR(GE35>(GD35+3),GE35<(GD35-3)),"Agncy Repl.","")) ->  | GF36: =IF(GF35="","",IF(GG35="",GF35,IF(OR(GG35>(GF35+3),GG35<(GF35-3)),GG35,GF35))) ->  | GG36: =IF(GG35="","",IF(OR(GG35>(GF35+3),GG35<(GF35-3)),"Agncy Repl.","")) ->  | GH36: =IF(GH35="","",IF(GI35="",GH35,IF(OR(GI35>(GH35+3),GI35<(GH35-3)),GI35,GH35))) ->  | GI36: =IF(GI35="","",IF(OR(GI35>(GH35+3),GI35<(GH35-3)),"Agncy Repl.","")) ->  | GK36: #50 Calc. % | GN36: =IF(GN35="","",IF(GO35="",GN35,IF(OR(GO35>(GN35+3),GO35<(GN35-3)),GO35,GN35))) ->  | GO36: =IF(GO35="","",IF(OR(GO35>(GN35+3),GO35<(GN35-3)),"Agncy Repl.","")) ->  | GP36: =IF(GP35="","",IF(GQ35="",GP35,IF(OR(GQ35>(GP35+3),GQ35<(GP35-3)),GQ35,GP35))) ->  | GQ36: =IF(GQ35="","",IF(OR(GQ35>(GP35+3),GQ35<(GP35-3)),"Agncy Repl.","")) ->  | GR36: =IF(GR35="","",IF(GS35="",GR35,IF(OR(GS35>(GR35+3),GS35<(GR35-3)),GS35,GR35))) ->  | GS36: =IF(GS35="","",IF(OR(GS35>(GR35+3),GS35<(GR35-3)),"Agncy Repl.","")) ->  | GT36: =IF(GT35="","",IF(GU35="",GT35,IF(OR(GU35>(GT35+3),GU35<(GT35-3)),GU35,GT35))) ->  | GU36: =IF(GU35="","",IF(OR(GU35>(GT35+3),GU35<(GT35-3)),"Agncy Repl.","")) ->  | GW36: #50 Calc. % | GZ36: =IF(GZ35="","",IF(HA35="",GZ35,IF(OR(HA35>(GZ35+3),HA35<(GZ35-3)),HA35,GZ35))) ->  | HA36: =IF(HA35="","",IF(OR(HA35>(GZ35+3),HA35<(GZ35-3)),"Agncy Repl.","")) ->  | HB36: =IF(HB35="","",IF(HC35="",HB35,IF(OR(HC35>(HB35+3),HC35<(HB35-3)),HC35,HB35))) ->  | HC36: =IF(HC35="","",IF(OR(HC35>(HB35+3),HC35<(HB35-3)),"Agncy Repl.","")) ->  | HD36: =IF(HD35="","",IF(HE35="",HD35,IF(OR(HE35>(HD35+3),HE35<(HD35-3)),HE35,HD35))) ->  | HE36: =IF(HE35="","",IF(OR(HE35>(HD35+3),HE35<(HD35-3)),"Agncy Repl.","")) ->  | HF36: =IF(HF35="","",IF(HG35="",HF35,IF(OR(HG35>(HF35+3),HG35<(HF35-3)),HG35,HF35))) ->  | HG36: =IF(HG35="","",IF(OR(HG35>(HF35+3),HG35<(HF35-3)),"Agncy Repl.","")) ->  | HI36: #50 Calc. % | HL36: =IF(HL35="","",IF(HM35="",HL35,IF(OR(HM35>(HL35+3),HM35<(HL35-3)),HM35,HL35))) ->  | HM36: =IF(HM35="","",IF(OR(HM35>(HL35+3),HM35<(HL35-3)),"Agncy Repl.","")) ->  | HN36: =IF(HN35="","",IF(HO35="",HN35,IF(OR(HO35>(HN35+3),HO35<(HN35-3)),HO35,HN35))) ->  | HO36: =IF(HO35="","",IF(OR(HO35>(HN35+3),HO35<(HN35-3)),"Agncy Repl.","")) ->  | HP36: =IF(HP35="","",IF(HQ35="",HP35,IF(OR(HQ35>(HP35+3),HQ35<(HP35-3)),HQ35,HP35))) ->  | HQ36: =IF(HQ35="","",IF(OR(HQ35>(HP35+3),HQ35<(HP35-3)),"Agncy Repl.","")) ->  | HR36: =IF(HR35="","",IF(HS35="",HR35,IF(OR(HS35>(HR35+3),HS35<(HR35-3)),HS35,HR35))) ->  | HS36: =IF(HS35="","",IF(OR(HS35>(HR35+3),HS35<(HR35-3)),"Agncy Repl.","")) ->  | HU36: #50 Calc. % | HX36: =IF(HX35="","",IF(HY35="",HX35,IF(OR(HY35>(HX35+3),HY35<(HX35-3)),HY35,HX35))) ->  | HY36: =IF(HY35="","",IF(OR(HY35>(HX35+3),HY35<(HX35-3)),"Agncy Repl.","")) ->  | HZ36: =IF(HZ35="","",IF(IA35="",HZ35,IF(OR(IA35>(HZ35+3),IA35<(HZ35-3)),IA35,HZ35))) ->  | IA36: =IF(IA35="","",IF(OR(IA35>(HZ35+3),IA35<(HZ35-3)),"Agncy Repl.","")) ->  | IB36: =IF(IB35="","",IF(IC35="",IB35,IF(OR(IC35>(IB35+3),IC35<(IB35-3)),IC35,IB35))) ->  | IC36: =IF(IC35="","",IF(OR(IC35>(IB35+3),IC35<(IB35-3)),"Agncy Repl.","")) ->  | ID36: =IF(ID35="","",IF(IE35="",ID35,IF(OR(IE35>(ID35+3),IE35<(ID35-3)),IE35,ID35))) ->  | IE36: =IF(IE35="","",IF(OR(IE35>(ID35+3),IE35<(ID35-3)),"Agncy Repl.","")) ->  | IG36: #50 Calc. % | IJ36: =IF(IJ35="","",IF(IK35="",IJ35,IF(OR(IK35>(IJ35+3),IK35<(IJ35-3)),IK35,IJ35))) ->  | IK36: =IF(IK35="","",IF(OR(IK35>(IJ35+3),IK35<(IJ35-3)),"Agncy Repl.","")) ->  | IL36: =IF(IL35="","",IF(IM35="",IL35,IF(OR(IM35>(IL35+3),IM35<(IL35-3)),IM35,IL35))) ->  | IM36: =IF(IM35="","",IF(OR(IM35>(IL35+3),IM35<(IL35-3)),"Agncy Repl.","")) ->  | IN36: =IF(IN35="","",IF(IO35="",IN35,IF(OR(IO35>(IN35+3),IO35<(IN35-3)),IO35,IN35))) ->  | IO36: =IF(IO35="","",IF(OR(IO35>(IN35+3),IO35<(IN35-3)),"Agncy Repl.","")) ->  | IP36: =IF(IP35="","",IF(IQ35="",IP35,IF(OR(IQ35>(IP35+3),IQ35<(IP35-3)),IQ35,IP35))) ->  | IQ36: =IF(IQ35="","",IF(OR(IQ35>(IP35+3),IQ35<(IP35-3)),"Agncy Repl.","")) -> 
A37: # 100 | M37: # 100 | Y37: # 100 | AK37: # 100 | AW37: # 100 | BI37: # 100 | BU37: # 100 | CG37: # 100 | CS37: # 100 | DE37: # 100 | DQ37: # 100 | EC37: # 100 | EO37: # 100 | FA37: # 100 | FM37: # 100 | FY37: # 100 | GK37: # 100 | GW37: # 100 | HI37: # 100 | HU37: # 100 | IG37: # 100 | IT37: 0 | IU37: Agency AFT Substituted
